Workbook

Sheet AVISO LEGAL
H2: Fecha de actualización: | J2: 2018-10-10
J23: www.ree.es

Sheet Balance nacional mensual
A1: mensual
M4: Sistema eléctrico
M5: Horizonte temporal
M6: Periodo
C8: Ene. | D8: Feb. | E8: Mar. | F8: Abr. | G8: May. | H8: Jun. | I8: Jul. | J8: Ago. | K8: Sep. | L8: Oct. | M8: Nov. | N8: Dic. | O8: =OFFSET(Año!C19,($A$104-1),0) -> 2018
B10: Hidráulica | C10: =OFFSET(Balance!C85,0,($A$104-1)*12) -> 2194.203231 | D10: =OFFSET(Balance!D85,0,($A$104-1)*12) -> 2388.646453 | E10: =OFFSET(Balance!E85,0,($A$104-1)*12) -> 4399.318605 | F10: =OFFSET(Balance!F85,0,($A$104-1)*12) -> 4716.704403 | G10: =OFFSET(Balance!G85,0,($A$104-1)*12) -> 3521.10338 | H10: =OFFSET(Balance!H85,0,($A$104-1)*12) -> 3711.175769 | I10: =OFFSET(Balance!I85,0,($A$104-1)*12) -> 3024.633506 | J10: =OFFSET(Balance!J85,0,($A$104-1)*12) -> 2104.216818 | K10: =OFFSET(Balance!K85,0,($A$104-1)*12) -> 1923.918971 | L10: =OFFSET(Balance!L85,0,($A$104-1)*12) -> - | M10: =OFFSET(Balance!M85,0,($A$104-1)*12) -> - | N10: =OFFSET(Balance!N85,0,($A$104-1)*12) -> - | O10: =IF(SUM(C10:N10)=0,"-",SUM(C10:N10)) -> 27983.92114
B11: Turbinación bombeo | C11: =OFFSET(Balance!C86,0,($A$104-1)*12) -> 273.4352352 | D11: =OFFSET(Balance!D86,0,($A$104-1)*12) -> 180.6230236 | E11: =OFFSET(Balance!E86,0,($A$104-1)*12) -> 369.7777144 | F11: =OFFSET(Balance!F86,0,($A$104-1)*12) -> 345.6373248 | G11: =OFFSET(Balance!G86,0,($A$104-1)*12) -> 153.2743607 | H11: =OFFSET(Balance!H86,0,($A$104-1)*12) -> 58.72284642 | I11: =OFFSET(Balance!I86,0,($A$104-1)*12) -> 35.30614401 | J11: =OFFSET(Balance!J86,0,($A$104-1)*12) -> 60.03104151 | K11: =OFFSET(Balance!K86,0,($A$104-1)*12) -> 40.02675324 | L11: =OFFSET(Balance!L86,0,($A$104-1)*12) -> - | M11: =OFFSET(Balance!M86,0,($A$104-1)*12) -> - | N11: =OFFSET(Balance!N86,0,($A$104-1)*12) -> - | O11: =IF(SUM(C11:N11)=0,"-",SUM(C11:N11)) -> 1516.834444
B12: Nuclear | C12: =OFFSET(Balance!C87,0,($A$104-1)*12) -> 5096.528633 | D12: =OFFSET(Balance!D87,0,($A$104-1)*12) -> 4592.320568 | E12: =OFFSET(Balance!E87,0,($A$104-1)*12) -> 4488.917022 | F12: =OFFSET(Balance!F87,0,($A$104-1)*12) -> 3812.588835 | G12: =OFFSET(Balance!G87,0,($A$104-1)*12) -> 3728.673667 | H12: =OFFSET(Balance!H87,0,($A$104-1)*12) -> 3591.591351 | I12: =OFFSET(Balance!I87,0,($A$104-1)*12) -> 4471.023688 | J12: =OFFSET(Balance!J87,0,($A$104-1)*12) -> 5135.724678 | K12: =OFFSET(Balance!K87,0,($A$104-1)*12) -> 5013.034921 | L12: =OFFSET(Balance!L87,0,($A$104-1)*12) -> - | M12: =OFFSET(Balance!M87,0,($A$104-1)*12) -> - | N12: =OFFSET(Balance!N87,0,($A$104-1)*12) -> - | O12: 39930.40336
B13: Carbón | C13: =OFFSET(Balance!C88,0,($A$104-1)*12) -> 3218.62549 | D13: =OFFSET(Balance!D88,0,($A$104-1)*12) -> 3681.480651 | E13: =OFFSET(Balance!E88,0,($A$104-1)*12) -> 1510.503706 | F13: =OFFSET(Balance!F88,0,($A$104-1)*12) -> 1543.646516 | G13: =OFFSET(Balance!G88,0,($A$104-1)*12) -> 2439.662014 | H13: =OFFSET(Balance!H88,0,($A$104-1)*12) -> 2478.53063 | I13: =OFFSET(Balance!I88,0,($A$104-1)*12) -> 3730.241659 | J13: =OFFSET(Balance!J88,0,($A$104-1)*12) -> 3753.957407 | K13: =OFFSET(Balance!K88,0,($A$104-1)*12) -> 4375.780044 | L13: =OFFSET(Balance!L88,0,($A$104-1)*12) -> - | M13: =OFFSET(Balance!M88,0,($A$104-1)*12) -> - | N13: =OFFSET(Balance!N88,0,($A$104-1)*12) -> - | O13: 26732.42812
B14: Fuel + Gas | C14: =OFFSET(Balance!C89,0,($A$104-1)*12) -> 572.720996 | D14: =OFFSET(Balance!D89,0,($A$104-1)*12) -> 532.685444 | E14: =OFFSET(Balance!E89,0,($A$104-1)*12) -> 520.891362 | F14: =OFFSET(Balance!F89,0,($A$104-1)*12) -> 508.693817 | G14: =OFFSET(Balance!G89,0,($A$104-1)*12) -> 535.313086 | H14: =OFFSET(Balance!H89,0,($A$104-1)*12) -> 556.937707 | I14: =OFFSET(Balance!I89,0,($A$104-1)*12) -> 616.821007 | J14: =OFFSET(Balance!J89,0,($A$104-1)*12) -> 657.917019 | K14: =OFFSET(Balance!K89,0,($A$104-1)*12) -> 590.323445 | L14: =OFFSET(Balance!L89,0,($A$104-1)*12) -> - | M14: =OFFSET(Balance!M89,0,($A$104-1)*12) -> - | N14: =OFFSET(Balance!N89,0,($A$104-1)*12) -> - | O14: 5092.303883
B15: Ciclo combinado (2) | C15: =OFFSET(Balance!C90,0,($A$104-1)*12) -> 2519.735082 | D15: =OFFSET(Balance!D90,0,($A$104-1)*12) -> 2214.076313 | E15: =OFFSET(Balance!E90,0,($A$104-1)*12) -> 1548.319038 | F15: =OFFSET(Balance!F90,0,($A$104-1)*12) -> 1495.045925 | G15: =OFFSET(Balance!G90,0,($A$104-1)*12) -> 2262.77077 | H15: =OFFSET(Balance!H90,0,($A$104-1)*12) -> 2451.830161 | I15: =OFFSET(Balance!I90,0,($A$104-1)*12) -> 2513.179578 | J15: =OFFSET(Balance!J90,0,($A$104-1)*12) -> 2977.310293 | K15: =OFFSET(Balance!K90,0,($A$104-1)*12) -> 2461.238995 | L15: =OFFSET(Balance!L90,0,($A$104-1)*12) -> - | M15: =OFFSET(Balance!M90,0,($A$104-1)*12) -> - | N15: =OFFSET(Balance!N90,0,($A$104-1)*12) -> - | O15: 20443.50615
B16: Régimen ordinario | C16: =OFFSET(Balance!C91,0,($A$104-1)*12) -> - | D16: =OFFSET(Balance!D91,0,($A$104-1)*12) -> - | E16: =OFFSET(Balance!E91,0,($A$104-1)*12) -> - | F16: =OFFSET(Balance!F91,0,($A$104-1)*12) -> - | G16: =OFFSET(Balance!G91,0,($A$104-1)*12) -> - | H16: =OFFSET(Balance!H91,0,($A$104-1)*12) -> - | I16: =OFFSET(Balance!I91,0,($A$104-1)*12) -> - | J16: =OFFSET(Balance!J91,0,($A$104-1)*12) -> - | K16: =OFFSET(Balance!K91,0,($A$104-1)*12) -> - | L16: =OFFSET(Balance!L91,0,($A$104-1)*12) -> - | M16: =OFFSET(Balance!M91,0,($A$104-1)*12) -> - | N16: =OFFSET(Balance!N91,0,($A$104-1)*12) -> - | O16: -
B18: Hidroeólica | C18: =OFFSET(Balance!C92,0,($A$104-1)*12) -> 2.257767 | D18: =OFFSET(Balance!D92,0,($A$104-1)*12) -> 1.754305 | E18: =OFFSET(Balance!E92,0,($A$104-1)*12) -> 1.599522 | F18: =OFFSET(Balance!F92,0,($A$104-1)*12) -> 2.262646 | G18: =OFFSET(Balance!G92,0,($A$104-1)*12) -> 2.034203 | H18: =OFFSET(Balance!H92,0,($A$104-1)*12) -> 2.321804 | I18: =OFFSET(Balance!I92,0,($A$104-1)*12) -> 3.716283 | J18: =OFFSET(Balance!J92,0,($A$104-1)*12) -> 2.859321 | K18: =OFFSET(Balance!K92,0,($A$104-1)*12) -> 2.165861 | L18: =OFFSET(Balance!L92,0,($A$104-1)*12) -> - | M18: =OFFSET(Balance!M92,0,($A$104-1)*12) -> - | N18: =OFFSET(Balance!N92,0,($A$104-1)*12) -> - | O18: =IF(SUM(C18:N18)=0,"-",SUM(C18:N18)) -> 20.971712
B19: Resto hidráulica (3) | C19: =OFFSET(Balance!C93,0,($A$104-1)*12) -> - | D19: =OFFSET(Balance!D93,0,($A$104-1)*12) -> - | E19: =OFFSET(Balance!E93,0,($A$104-1)*12) -> - | F19: =OFFSET(Balance!F93,0,($A$104-1)*12) -> - | G19: =OFFSET(Balance!G93,0,($A$104-1)*12) -> - | H19: =OFFSET(Balance!H93,0,($A$104-1)*12) -> - | I19: =OFFSET(Balance!I93,0,($A$104-1)*12) -> - | J19: =OFFSET(Balance!J93,0,($A$104-1)*12) -> - | K19: =OFFSET(Balance!K93,0,($A$104-1)*12) -> - | L19: =OFFSET(Balance!L93,0,($A$104-1)*12) -> - | M19: =OFFSET(Balance!M93,0,($A$104-1)*12) -> - | N19: =OFFSET(Balance!N93,0,($A$104-1)*12) -> - | O19: -
B20: Eólica | C20: =OFFSET(Balance!C94,0,($A$104-1)*12) -> 5343.165896 | D20: =OFFSET(Balance!D94,0,($A$104-1)*12) -> 4680.11404 | E20: =OFFSET(Balance!E94,0,($A$104-1)*12) -> 7701.042706 | F20: =OFFSET(Balance!F94,0,($A$104-1)*12) -> 4455.397357 | G20: =OFFSET(Balance!G94,0,($A$104-1)*12) -> 3309.464974 | H20: =OFFSET(Balance!H94,0,($A$104-1)*12) -> 2628.247728 | I20: =OFFSET(Balance!I94,0,($A$104-1)*12) -> 2573.577932 | J20: =OFFSET(Balance!J94,0,($A$104-1)*12) -> 3129.038997 | K20: =OFFSET(Balance!K94,0,($A$104-1)*12) -> 2455.087173 | L20: =OFFSET(Balance!L94,0,($A$104-1)*12) -> - | M20: =OFFSET(Balance!M94,0,($A$104-1)*12) -> - | N20: =OFFSET(Balance!N94,0,($A$104-1)*12) -> - | O20: 36275.1368
B21: Solar fotovoltaica | C21: =OFFSET(Balance!C95,0,($A$104-1)*12) -> 444.319576 | D21: =OFFSET(Balance!D95,0,($A$104-1)*12) -> 510.237631 | E21: =OFFSET(Balance!E95,0,($A$104-1)*12) -> 590.642237 | F21: =OFFSET(Balance!F95,0,($A$104-1)*12) -> 700.872193 | G21: =OFFSET(Balance!G95,0,($A$104-1)*12) -> 812.495579 | H21: =OFFSET(Balance!H95,0,($A$104-1)*12) -> 818.325913 | I21: =OFFSET(Balance!I95,0,($A$104-1)*12) -> 929.384334 | J21: =OFFSET(Balance!J95,0,($A$104-1)*12) -> 841.118329 | K21: =OFFSET(Balance!K95,0,($A$104-1)*12) -> 666.320176 | L21: =OFFSET(Balance!L95,0,($A$104-1)*12) -> - | M21: =OFFSET(Balance!M95,0,($A$104-1)*12) -> - | N21: =OFFSET(Balance!N95,0,($A$104-1)*12) -> - | O21: 6313.715968
B22: Solar térmica | C22: =OFFSET(Balance!C96,0,($A$104-1)*12) -> 112.387517 | D22: =OFFSET(Balance!D96,0,($A$104-1)*12) -> 229.808151 | E22: =OFFSET(Balance!E96,0,($A$104-1)*12) -> 233.955943 | F22: =OFFSET(Balance!F96,0,($A$104-1)*12) -> 325.935092 | G22: =OFFSET(Balance!G96,0,($A$104-1)*12) -> 477.209634 | H22: =OFFSET(Balance!H96,0,($A$104-1)*12) -> 551.292603 | I22: =OFFSET(Balance!I96,0,($A$104-1)*12) -> 858.894648 | J22: =OFFSET(Balance!J96,0,($A$104-1)*12) -> 688.557997 | K22: =OFFSET(Balance!K96,0,($A$104-1)*12) -> 465.639936 | L22: =OFFSET(Balance!L96,0,($A$104-1)*12) -> - | M22: =OFFSET(Balance!M96,0,($A$104-1)*12) -> - | N22: =OFFSET(Balance!N96,0,($A$104-1)*12) -> - | O22: 3943.681521
B23: Otras renovables | C23: =OFFSET(Balance!C97,0,($A$104-1)*12) -> 296.331441 | D23: =OFFSET(Balance!D97,0,($A$104-1)*12) -> 301.601468 | E23: =OFFSET(Balance!E97,0,($A$104-1)*12) -> 270.091889 | F23: =OFFSET(Balance!F97,0,($A$104-1)*12) -> 237.806487 | G23: =OFFSET(Balance!G97,0,($A$104-1)*12) -> 291.746278 | H23: =OFFSET(Balance!H97,0,($A$104-1)*12) -> 304.388836 | I23: =OFFSET(Balance!I97,0,($A$104-1)*12) -> 324.148993 | J23: =OFFSET(Balance!J97,0,($A$104-1)*12) -> 317.273804 | K23: =OFFSET(Balance!K97,0,($A$104-1)*12) -> 320.029103 | L23: =OFFSET(Balance!L97,0,($A$104-1)*12) -> - | M23: =OFFSET(Balance!M97,0,($A$104-1)*12) -> - | N23: =OFFSET(Balance!N97,0,($A$104-1)*12) -> - | O23: 2663.418299
B24: Cogeneración | C24: =OFFSET(Balance!C98,0,($A$104-1)*12) -> 2483.632045 | D24: =OFFSET(Balance!D98,0,($A$104-1)*12) -> 2254.164393 | E24: =OFFSET(Balance!E98,0,($A$104-1)*12) -> 2337.821981 | F24: =OFFSET(Balance!F98,0,($A$104-1)*12) -> 2355.571763 | G24: =OFFSET(Balance!G98,0,($A$104-1)*12) -> 2420.884775 | H24: =OFFSET(Balance!H98,0,($A$104-1)*12) -> 2407.00338 | I24: =OFFSET(Balance!I98,0,($A$104-1)*12) -> 2435.60837 | J24: =OFFSET(Balance!J98,0,($A$104-1)*12) -> 2361.847334 | K24: =OFFSET(Balance!K98,0,($A$104-1)*12) -> 2394.398473 | L24: =OFFSET(Balance!L98,0,($A$104-1)*12) -> - | M24: =OFFSET(Balance!M98,0,($A$104-1)*12) -> - | N24: =OFFSET(Balance!N98,0,($A$104-1)*12) -> - | O24: 21450.93251
B25: Residuos no renovables | C25: =OFFSET(Balance!C99,0,($A$104-1)*12) -> 234.5740625 | D25: =OFFSET(Balance!D99,0,($A$104-1)*12) -> 209.150523 | E25: =OFFSET(Balance!E99,0,($A$104-1)*12) -> 227.1195505 | F25: =OFFSET(Balance!F99,0,($A$104-1)*12) -> 180.407527 | G25: =OFFSET(Balance!G99,0,($A$104-1)*12) -> 148.028147 | H25: =OFFSET(Balance!H99,0,($A$104-1)*12) -> 190.545327 | I25: =OFFSET(Balance!I99,0,($A$104-1)*12) -> 214.466498 | J25: =OFFSET(Balance!J99,0,($A$104-1)*12) -> 210.0875275 | K25: =OFFSET(Balance!K99,0,($A$104-1)*12) -> 202.9028615 | L25: =OFFSET(Balance!L99,0,($A$104-1)*12) -> - | M25: =OFFSET(Balance!M99,0,($A$104-1)*12) -> - | N25: =OFFSET(Balance!N99,0,($A$104-1)*12) -> - | O25: 1817.282024
B26: Residuos renovables | C26: =OFFSET(Balance!C100,0,($A$104-1)*12) -> 77.2660705 | D26: =OFFSET(Balance!D100,0,($A$104-1)*12) -> 67.136117 | E26: =OFFSET(Balance!E100,0,($A$104-1)*12) -> 77.6332725 | F26: =OFFSET(Balance!F100,0,($A$104-1)*12) -> 77.872185 | G26: =OFFSET(Balance!G100,0,($A$104-1)*12) -> 35.345674 | H26: =OFFSET(Balance!H100,0,($A$104-1)*12) -> 65.936057 | I26: =OFFSET(Balance!I100,0,($A$104-1)*12) -> 79.704863 | J26: =OFFSET(Balance!J100,0,($A$104-1)*12) -> 81.1874285 | K26: =OFFSET(Balance!K100,0,($A$104-1)*12) -> 78.6221015 | L26: =OFFSET(Balance!L100,0,($A$104-1)*12) -> - | M26: =OFFSET(Balance!M100,0,($A$104-1)*12) -> - | N26: =OFFSET(Balance!N100,0,($A$104-1)*12) -> - | O26: =IF(SUM(C26:N26)=0,"-",SUM(C26:N26)) -> 640.703769
B27: Régimen especial | C27: =OFFSET(Balance!C101,0,($A$104-1)*12) -> - | D27: =OFFSET(Balance!D101,0,($A$104-1)*12) -> - | E27: =OFFSET(Balance!E101,0,($A$104-1)*12) -> - | F27: =OFFSET(Balance!F101,0,($A$104-1)*12) -> - | G27: =OFFSET(Balance!G101,0,($A$104-1)*12) -> - | H27: =OFFSET(Balance!H101,0,($A$104-1)*12) -> - | I27: =OFFSET(Balance!I101,0,($A$104-1)*12) -> - | J27: =OFFSET(Balance!J101,0,($A$104-1)*12) -> - | K27: =OFFSET(Balance!K101,0,($A$104-1)*12) -> - | L27: =OFFSET(Balance!L101,0,($A$104-1)*12) -> - | M27: =OFFSET(Balance!M101,0,($A$104-1)*12) -> - | N27: =OFFSET(Balance!N101,0,($A$104-1)*12) -> - | O27: -
B28: Generación | C28: =OFFSET(Balance!C102,0,($A$104-1)*12) -> 22869.18304 | D28: =OFFSET(Balance!D102,0,($A$104-1)*12) -> 21843.79908 | E28: =OFFSET(Balance!E102,0,($A$104-1)*12) -> 24277.63455 | F28: =OFFSET(Balance!F102,0,($A$104-1)*12) -> 20758.44207 | G28: =OFFSET(Balance!G102,0,($A$104-1)*12) -> 20138.00654 | H28: =OFFSET(Balance!H102,0,($A$104-1)*12) -> 19816.85011 | I28: =OFFSET(Balance!I102,0,($A$104-1)*12) -> 21810.7075 | J28: =OFFSET(Balance!J102,0,($A$104-1)*12) -> 22321.128 | K28: =OFFSET(Balance!K102,0,($A$104-1)*12) -> 20989.48881 | L28: =OFFSET(Balance!L102,0,($A$104-1)*12) -> - | M28: =OFFSET(Balance!M102,0,($A$104-1)*12) -> - | N28: =OFFSET(Balance!N102,0,($A$104-1)*12) -> - | O28: =IF(SUM(C28:N28)=0,"-",SUM(C28:N28)) -> 194825.2397
B29: Consumos en bombeo | C29: =OFFSET(Balance!C103,0,($A$104-1)*12) -> -391.478352 | D29: =OFFSET(Balance!D103,0,($A$104-1)*12) -> -253.861089 | E29: =OFFSET(Balance!E103,0,($A$104-1)*12) -> -733.496424 | F29: =OFFSET(Balance!F103,0,($A$104-1)*12) -> -560.0684122 | G29: =OFFSET(Balance!G103,0,($A$104-1)*12) -> -213.2435446 | H29: =OFFSET(Balance!H103,0,($A$104-1)*12) -> -83.65209087 | I29: =OFFSET(Balance!I103,0,($A$104-1)*12) -> -57.94025794 | J29: =OFFSET(Balance!J103,0,($A$104-1)*12) -> -68.90229615 | K29: =OFFSET(Balance!K103,0,($A$104-1)*12) -> -80.573028 | L29: =OFFSET(Balance!L103,0,($A$104-1)*12) -> - | M29: =OFFSET(Balance!M103,0,($A$104-1)*12) -> - | N29: =OFFSET(Balance!N103,0,($A$104-1)*12) -> - | O29: -2443.215495
B30: Saldo intercambios internacionales (4) | C30: =OFFSET(Balance!C104,0,($A$104-1)*12) -> 1340.298263 | D30: =OFFSET(Balance!D104,0,($A$104-1)*12) -> 857.102993 | E30: =OFFSET(Balance!E104,0,($A$104-1)*12) -> -273.622032 | F30: =OFFSET(Balance!F104,0,($A$104-1)*12) -> 882.598526 | G30: =OFFSET(Balance!G104,0,($A$104-1)*12) -> 1368.360937 | H30: =OFFSET(Balance!H104,0,($A$104-1)*12) -> 1863.9643 | I30: =OFFSET(Balance!I104,0,($A$104-1)*12) -> 1893.727091 | J30: =OFFSET(Balance!J104,0,($A$104-1)*12) -> 1244.022075 | K30: =OFFSET(Balance!K104,0,($A$104-1)*12) -> 1124.462151 | L30: =OFFSET(Balance!L104,0,($A$104-1)*12) -> - | M30: =OFFSET(Balance!M104,0,($A$104-1)*12) -> - | N30: =OFFSET(Balance!N104,0,($A$104-1)*12) -> - | O30: 10300.9143
B31: Demanda transporte (b.c.) | C31: =OFFSET(Balance!C105,0,($A$104-1)*12) -> 23818.00295 | D31: =OFFSET(Balance!D105,0,($A$104-1)*12) -> 22447.04098 | E31: =OFFSET(Balance!E105,0,($A$104-1)*12) -> 23270.51609 | F31: =OFFSET(Balance!F105,0,($A$104-1)*12) -> 21080.97218 | G31: =OFFSET(Balance!G105,0,($A$104-1)*12) -> 21293.12393 | H31: =OFFSET(Balance!H105,0,($A$104-1)*12) -> 21597.16232 | I31: =OFFSET(Balance!I105,0,($A$104-1)*12) -> 23646.49434 | J31: =OFFSET(Balance!J105,0,($A$104-1)*12) -> 23496.24777 | K31: =OFFSET(Balance!K105,0,($A$104-1)*12) -> 22033.37794 | L31: =OFFSET(Balance!L105,0,($A$104-1)*12) -> - | M31: =OFFSET(Balance!M105,0,($A$104-1)*12) -> - | N31: =OFFSET(Balance!N105,0,($A$104-1)*12) -> - | O31: =IF(SUM(C31:N31)=0,"-",SUM(C31:N31)) -> 202682.9385
B32: (1) Asignación de unidades de producción según combustible principal.
B33: (2) Incluye funcionamiento en ciclo abierto.
B35: (3) Incluye todas aquellas unidades menores de 50 MW que no pertenecen a ninguna unidad de gestión hidráulica (UGH).
B36: (4) Valor positivo: saldo importador; valor negativo: saldo exportador.
B37: (5) Hasta 2010 incluye residuos.
B38: =IF(MONTH('AVISO LEGAL'!J2)=1,CONCATENATE("Datos definitivos hasta el 31/03/2017. Datos provisionales del 01/04/2017 al ",TEXT(EOMONTH('AVISO LEGAL'!J2-60,0),"dd/mm/aaaa"),". Datos programados del 01/12/",YEAR('AVISO LEGAL'!J2)-1," al ",TEXT(EOMONTH('AVISO LEGAL'!J2-30,0),"dd/mm/aaaa"),"."),CONCATENATE("Datos definitivos hasta el 31/03/2017. Datos provisionales del 01/04/2017 al ",TEXT(EOMONTH('AVISO LEGAL'!J2-60,0),"dd/mm/aaaa"),". Datos programados del 01/",TEXT(MONTH('AVISO LEGAL'!J2)-1,"00"),"/",YEAR('AVISO LEGAL'!J2)," al ",TEXT(EOMONTH('AVISO LEGAL'!J2-30,0),"dd/mm/aaaa"),".")) -> Datos definitivos hasta el 31/03/2017. Datos provisionales del 01/04/2017 al 31/08/2018. Datos programados del 01/09/2018 al 30/09/2018.
A102: 2
A103: 11
A104: 12
A105: 11

Sheet Balance nacional anual
I1: 2
H4: Sistema eléctrico
H5: Horizonte temporal
H6: Periodo
C8: =OFFSET(Balance!C189,0,($I$1-1)*7) -> 2014 | D8: =OFFSET(Balance!D189,0,($I$1-1)*7) -> 2015 | E8: =OFFSET(Balance!E189,0,($I$1-1)*7) -> 2016 | F8: =OFFSET(Balance!F189,0,($I$1-1)*7) -> 2017 | G8: =OFFSET(Balance!G189,0,($I$1-1)*7) -> 2018 | H8: =OFFSET(Balance!H189,0,($I$1-1)*7) -> 2019 | I8: =OFFSET(Balance!I189,0,($I$1-1)*7) -> 2020
B10: Hidráulica | C10: =OFFSET(Balance!C190,0,($I$1-1)*7) -> 39181.98522 | D10: =OFFSET(Balance!D190,0,($I$1-1)*7) -> 28382.57996 | E10: =OFFSET(Balance!E190,0,($I$1-1)*7) -> 36114.88833 | F10: =OFFSET(Balance!F190,0,($I$1-1)*7) -> 18449.1665 | G10: =OFFSET(Balance!G190,0,($I$1-1)*7) -> 27983.92114 | H10: =OFFSET(Balance!H190,0,($I$1-1)*7) -> - | I10: =OFFSET(Balance!I190,0,($I$1-1)*7) -> -
B11: Turbinación bombeo | C11: =OFFSET(Balance!C191,0,($I$1-1)*7) -> 3415.996027 | D11: =OFFSET(Balance!D191,0,($I$1-1)*7) -> 2895.365788 | E11: =OFFSET(Balance!E191,0,($I$1-1)*7) -> 3134.32891 | F11: =OFFSET(Balance!F191,0,($I$1-1)*7) -> 2248.964418 | G11: =OFFSET(Balance!G191,0,($I$1-1)*7) -> 1516.834444 | H11: =OFFSET(Balance!H191,0,($I$1-1)*7) -> - | I11: =OFFSET(Balance!I191,0,($I$1-1)*7) -> -
B12: Nuclear | C12: =OFFSET(Balance!C192,0,($I$1-1)*7) -> 54781.28133 | D12: =OFFSET(Balance!D192,0,($I$1-1)*7) -> 54661.80331 | E12: =OFFSET(Balance!E192,0,($I$1-1)*7) -> 56021.68206 | F12: =OFFSET(Balance!F192,0,($I$1-1)*7) -> 55539.5615 | G12: =OFFSET(Balance!G192,0,($I$1-1)*7) -> 39930.40336 | H12: =OFFSET(Balance!H192,0,($I$1-1)*7) -> - | I12: =OFFSET(Balance!I192,0,($I$1-1)*7) -> -
B13: Carbón | C13: =OFFSET(Balance!C193,0,($I$1-1)*7) -> 43246.0565 | D13: =OFFSET(Balance!D193,0,($I$1-1)*7) -> 52616.4776 | E13: =OFFSET(Balance!E193,0,($I$1-1)*7) -> 37313.77775 | F13: =OFFSET(Balance!F193,0,($I$1-1)*7) -> 45020.61578 | G13: =OFFSET(Balance!G193,0,($I$1-1)*7) -> 26732.42812 | H13: =OFFSET(Balance!H193,0,($I$1-1)*7) -> - | I13: =OFFSET(Balance!I193,0,($I$1-1)*7) -> -
B14: Fuel + Gas | C14: =OFFSET(Balance!C194,0,($I$1-1)*7) -> 6241.821888 | D14: =OFFSET(Balance!D194,0,($I$1-1)*7) -> 6483.814428 | E14: =OFFSET(Balance!E194,0,($I$1-1)*7) -> 6754.64403 | F14: =OFFSET(Balance!F194,0,($I$1-1)*7) -> 7001.468279 | G14: =OFFSET(Balance!G194,0,($I$1-1)*7) -> 5092.303883 | H14: =OFFSET(Balance!H194,0,($I$1-1)*7) -> - | I14: =OFFSET(Balance!I194,0,($I$1-1)*7) -> -
B15: Ciclo combinado (2) | C15: =OFFSET(Balance!C195,0,($I$1-1)*7) -> 24780.73344 | D15: =OFFSET(Balance!D195,0,($I$1-1)*7) -> 29027.28933 | E15: =OFFSET(Balance!E195,0,($I$1-1)*7) -> 29006.48209 | F15: =OFFSET(Balance!F195,0,($I$1-1)*7) -> 37065.79249 | G15: =OFFSET(Balance!G195,0,($I$1-1)*7) -> 20443.50616 | H15: =OFFSET(Balance!H195,0,($I$1-1)*7) -> - | I15: =OFFSET(Balance!I195,0,($I$1-1)*7) -> -
B16: Régimen ordinario | C16: =OFFSET(Balance!C196,0,($I$1-1)*7) -> 0 | D16: =OFFSET(Balance!D196,0,($I$1-1)*7) -> 0 | E16: =OFFSET(Balance!E196,0,($I$1-1)*7) -> 0 | F16: =OFFSET(Balance!F196,0,($I$1-1)*7) -> 0 | G16: =OFFSET(Balance!G196,0,($I$1-1)*7) -> 0 | H16: =OFFSET(Balance!H196,0,($I$1-1)*7) -> 0 | I16: =OFFSET(Balance!I196,0,($I$1-1)*7) -> 0
B18: Hidroeólica | C18: =OFFSET(Balance!C197,0,($I$1-1)*7) -> 0.728837 | D18: =OFFSET(Balance!D197,0,($I$1-1)*7) -> 8.207424 | E18: =OFFSET(Balance!E197,0,($I$1-1)*7) -> 17.891936 | F18: =OFFSET(Balance!F197,0,($I$1-1)*7) -> 20.233057 | G18: =OFFSET(Balance!G197,0,($I$1-1)*7) -> 20.971712 | H18: =OFFSET(Balance!H197,0,($I$1-1)*7) -> - | I18: =OFFSET(Balance!I197,0,($I$1-1)*7) -> -
B19: Resto hidráulica (3) | C19: =OFFSET(Balance!C198,0,($I$1-1)*7) -> 0 | D19: =OFFSET(Balance!D198,0,($I$1-1)*7) -> 0 | E19: =OFFSET(Balance!E198,0,($I$1-1)*7) -> 0 | F19: =OFFSET(Balance!F198,0,($I$1-1)*7) -> 0 | G19: =OFFSET(Balance!G198,0,($I$1-1)*7) -> 0 | H19: =OFFSET(Balance!H198,0,($I$1-1)*7) -> 0 | I19: =OFFSET(Balance!I198,0,($I$1-1)*7) -> 0
B20: Eólica | C20: =OFFSET(Balance!C199,0,($I$1-1)*7) -> 51032.03085 | D20: =OFFSET(Balance!D199,0,($I$1-1)*7) -> 48117.88752 | E20: =OFFSET(Balance!E199,0,($I$1-1)*7) -> 47696.66031 | F20: =OFFSET(Balance!F199,0,($I$1-1)*7) -> 47907.28344 | G20: =OFFSET(Balance!G199,0,($I$1-1)*7) -> 36275.1368 | H20: =OFFSET(Balance!H199,0,($I$1-1)*7) -> - | I20: =OFFSET(Balance!I199,0,($I$1-1)*7) -> -
B21: Solar fotovoltaica | C21: =OFFSET(Balance!C200,0,($I$1-1)*7) -> 8207.926131 | D21: =OFFSET(Balance!D200,0,($I$1-1)*7) -> 8243.560905 | E21: =OFFSET(Balance!E200,0,($I$1-1)*7) -> 7977.467185 | F21: =OFFSET(Balance!F200,0,($I$1-1)*7) -> 8397.106706 | G21: =OFFSET(Balance!G200,0,($I$1-1)*7) -> 6313.715968 | H21: =OFFSET(Balance!H200,0,($I$1-1)*7) -> - | I21: =OFFSET(Balance!I200,0,($I$1-1)*7) -> -
B22: Solar térmica | C22: =OFFSET(Balance!C201,0,($I$1-1)*7) -> 4958.914926 | D22: =OFFSET(Balance!D201,0,($I$1-1)*7) -> 5085.235514 | E22: =OFFSET(Balance!E201,0,($I$1-1)*7) -> 5071.201702 | F22: =OFFSET(Balance!F201,0,($I$1-1)*7) -> 5347.918192 | G22: =OFFSET(Balance!G201,0,($I$1-1)*7) -> 3943.681521 | H22: =OFFSET(Balance!H201,0,($I$1-1)*7) -> - | I22: =OFFSET(Balance!I201,0,($I$1-1)*7) -> -
B23: Térmica renovable(5)/Otras renovables | C23: =OFFSET(Balance!C202,0,($I$1-1)*7) -> 3816.315717 | D23: =OFFSET(Balance!D202,0,($I$1-1)*7) -> 3432.591921 | E23: =OFFSET(Balance!E202,0,($I$1-1)*7) -> 3425.664828 | F23: =OFFSET(Balance!F202,0,($I$1-1)*7) -> 3609.941826 | G23: =OFFSET(Balance!G202,0,($I$1-1)*7) -> 2663.418299 | H23: =OFFSET(Balance!H202,0,($I$1-1)*7) -> - | I23: =OFFSET(Balance!I202,0,($I$1-1)*7) -> -
B24: Cogeneración y resto(5)/Cogeneración | C24: =OFFSET(Balance!C203,0,($I$1-1)*7) -> 24153.24388 | D24: =OFFSET(Balance!D203,0,($I$1-1)*7) -> 25200.87777 | E24: =OFFSET(Balance!E203,0,($I$1-1)*7) -> 25908.64356 | F24: =OFFSET(Balance!F203,0,($I$1-1)*7) -> 28211.54088 | G24: =OFFSET(Balance!G203,0,($I$1-1)*7) -> 21450.93251 | H24: =OFFSET(Balance!H203,0,($I$1-1)*7) -> - | I24: =OFFSET(Balance!I203,0,($I$1-1)*7) -> -
B25: Residuos no renovables | C25: =OFFSET(Balance!C204,0,($I$1-1)*7) -> 1965.877044 | D25: =OFFSET(Balance!D204,0,($I$1-1)*7) -> 2480.108968 | E25: =OFFSET(Balance!E204,0,($I$1-1)*7) -> 2606.963764 | F25: =OFFSET(Balance!F204,0,($I$1-1)*7) -> 2607.969543 | G25: =OFFSET(Balance!G204,0,($I$1-1)*7) -> 1817.282024 | H25: =OFFSET(Balance!H204,0,($I$1-1)*7) -> - | I25: =OFFSET(Balance!I204,0,($I$1-1)*7) -> -
B26: Residuos renovables | C26: =OFFSET(Balance!C205,0,($I$1-1)*7) -> 678.0715725 | D26: =OFFSET(Balance!D205,0,($I$1-1)*7) -> 818.0497025 | E26: =OFFSET(Balance!E205,0,($I$1-1)*7) -> 785.3950295 | F26: =OFFSET(Balance!F205,0,($I$1-1)*7) -> 877.006087 | G26: =OFFSET(Balance!G205,0,($I$1-1)*7) -> 640.703769 | H26: =OFFSET(Balance!H205,0,($I$1-1)*7) -> - | I26: =OFFSET(Balance!I205,0,($I$1-1)*7) -> -
B27: Régimen especial | C27: =OFFSET(Balance!C206,0,($I$1-1)*7) -> 0 | D27: =OFFSET(Balance!D206,0,($I$1-1)*7) -> 0 | E27: =OFFSET(Balance!E206,0,($I$1-1)*7) -> 0 | F27: =OFFSET(Balance!F206,0,($I$1-1)*7) -> 0 | G27: =OFFSET(Balance!G206,0,($I$1-1)*7) -> 0 | H27: =OFFSET(Balance!H206,0,($I$1-1)*7) -> 0 | I27: =OFFSET(Balance!I206,0,($I$1-1)*7) -> 0
B28: Generación | C28: =OFFSET(Balance!C207,0,($I$1-1)*7) -> 266460.9834 | D28: =OFFSET(Balance!D207,0,($I$1-1)*7) -> 267453.8501 | E28: =OFFSET(Balance!E207,0,($I$1-1)*7) -> 261835.6915 | F28: =OFFSET(Balance!F207,0,($I$1-1)*7) -> 262304.5687 | G28: =OFFSET(Balance!G207,0,($I$1-1)*7) -> 194825.2397 | H28: =OFFSET(Balance!H207,0,($I$1-1)*7) -> - | I28: =OFFSET(Balance!I207,0,($I$1-1)*7) -> -
B29: Consumos en bombeo | C29: =OFFSET(Balance!C208,0,($I$1-1)*7) -> -5385.76886 | D29: =OFFSET(Balance!D208,0,($I$1-1)*7) -> -4512.251431 | E29: =OFFSET(Balance!E208,0,($I$1-1)*7) -> -4827.585068 | F29: =OFFSET(Balance!F208,0,($I$1-1)*7) -> -3607.580988 | G29: =OFFSET(Balance!G208,0,($I$1-1)*7) -> -2443.215495 | H29: =OFFSET(Balance!H208,0,($I$1-1)*7) -> - | I29: =OFFSET(Balance!I208,0,($I$1-1)*7) -> -
B30: Saldo intercambios internacionales (4) | C30: =OFFSET(Balance!C209,0,($I$1-1)*7) -> -3406.124024 | D30: =OFFSET(Balance!D209,0,($I$1-1)*7) -> -133.163163 | E30: =OFFSET(Balance!E209,0,($I$1-1)*7) -> 7658.043691 | F30: =OFFSET(Balance!F209,0,($I$1-1)*7) -> 9168.993523 | G30: =OFFSET(Balance!G209,0,($I$1-1)*7) -> 10300.9143 | H30: =OFFSET(Balance!H209,0,($I$1-1)*7) -> - | I30: =OFFSET(Balance!I209,0,($I$1-1)*7) -> -
B31: Demanda transporte (b.c.) | C31: =OFFSET(Balance!C210,0,($I$1-1)*7) -> 257669.0905 | D31: =OFFSET(Balance!D210,0,($I$1-1)*7) -> 262808.4355 | E31: =OFFSET(Balance!E210,0,($I$1-1)*7) -> 264666.1501 | F31: =OFFSET(Balance!F210,0,($I$1-1)*7) -> 267865.9812 | G31: =OFFSET(Balance!G210,0,($I$1-1)*7) -> 202682.9385 | H31: =OFFSET(Balance!H210,0,($I$1-1)*7) -> - | I31: =OFFSET(Balance!I210,0,($I$1-1)*7) -> -
B32: (1) Asignación de unidades de producción según combustible principal.
B33: (2) Incluye funcionamiento en ciclo abierto.
B35: (3) Incluye todas aquellas unidades menores de 50 MW que no pertenecen a ninguna unidad de gestión hidráulica (UGH) hasta 2010.
B36: (4) Valor positivo: saldo importador; valor negativo: saldo exportador.
B37: (5) Hasta 2010 e incluye residuos.
B39: =IF(MONTH(FACT)=1,"",CONCATENATE("Para el año ",YEAR(FACT), " valores acumulados hasta ",TEXT(FACT-30,"mmmm")," de ",YEAR(FACT),".")) -> Para el año 2018 valores acumulados hasta septiembre de 2018.
B40: ='Balance nacional mensual'!B38 -> Datos definitivos hasta el 31/03/2017. Datos provisionales del 01/04/2017 al 31/08/2018. Datos programados del 01/09/2018 al 30/09/2018.

Sheet Balance Peninsular mensual
O1: 29
M4: Sistema eléctrico
M5: Horizonte temporal
M6: Periodo
C8: Ene. | D8: Feb. | E8: Mar. | F8: Abr. | G8: May. | H8: Jun. | I8: Jul. | J8: Ago. | K8: Sep. | L8: Oct. | M8: Nov. | N8: Dic. | O8: =OFFSET(Año!C2,($O$1-1),0) -> 2018
B10: Hidráulica | C10: =OFFSET(Balance!C3,0,($O$1-1)*12) -> 2193.923799 | D10: =OFFSET(Balance!D3,0,($O$1-1)*12) -> 2388.61228 | E10: =OFFSET(Balance!E3,0,($O$1-1)*12) -> 4399.009078 | F10: =OFFSET(Balance!F3,0,($O$1-1)*12) -> 4716.42828 | G10: =OFFSET(Balance!G3,0,($O$1-1)*12) -> 3520.795046 | H10: =OFFSET(Balance!H3,0,($O$1-1)*12) -> 3710.881287 | I10: =OFFSET(Balance!I3,0,($O$1-1)*12) -> 3024.33791 | J10: =OFFSET(Balance!J3,0,($O$1-1)*12) -> 2103.909178 | K10: =OFFSET(Balance!K3,0,($O$1-1)*12) -> 1923.630572 | L10: =OFFSET(Balance!L3,0,($O$1-1)*12) -> - | M10: =OFFSET(Balance!M3,0,($O$1-1)*12) -> - | N10: =OFFSET(Balance!N3,0,($O$1-1)*12) -> - | O10: =IF(SUM(C10:N10)=0,"-",SUM(C10:N10)) -> 27981.52743
B11: Turbinación bombeo | C11: =OFFSET(Balance!C4,0,($O$1-1)*12) -> 273.4352352 | D11: =OFFSET(Balance!D4,0,($O$1-1)*12) -> 180.6230236 | E11: =OFFSET(Balance!E4,0,($O$1-1)*12) -> 369.7777144 | F11: =OFFSET(Balance!F4,0,($O$1-1)*12) -> 345.6373248 | G11: =OFFSET(Balance!G4,0,($O$1-1)*12) -> 153.2743607 | H11: =OFFSET(Balance!H4,0,($O$1-1)*12) -> 58.72284642 | I11: =OFFSET(Balance!I4,0,($O$1-1)*12) -> 35.30614401 | J11: =OFFSET(Balance!J4,0,($O$1-1)*12) -> 60.03104151 | K11: =OFFSET(Balance!K4,0,($O$1-1)*12) -> 40.02675324 | L11: =OFFSET(Balance!L4,0,($O$1-1)*12) -> - | M11: =OFFSET(Balance!M4,0,($O$1-1)*12) -> - | N11: =OFFSET(Balance!N4,0,($O$1-1)*12) -> - | O11: =IF(SUM(C11:N11)=0,"-",SUM(C11:N11)) -> 1516.834444
B12: Nuclear | C12: =OFFSET(Balance!C5,0,($O$1-1)*12) -> 5096.528633 | D12: =OFFSET(Balance!D5,0,($O$1-1)*12) -> 4592.320568 | E12: =OFFSET(Balance!E5,0,($O$1-1)*12) -> 4488.917022 | F12: =OFFSET(Balance!F5,0,($O$1-1)*12) -> 3812.588835 | G12: =OFFSET(Balance!G5,0,($O$1-1)*12) -> 3728.673667 | H12: =OFFSET(Balance!H5,0,($O$1-1)*12) -> 3591.591351 | I12: =OFFSET(Balance!I5,0,($O$1-1)*12) -> 4471.023688 | J12: =OFFSET(Balance!J5,0,($O$1-1)*12) -> 5135.724678 | K12: =OFFSET(Balance!K5,0,($O$1-1)*12) -> 5013.034921 | L12: =OFFSET(Balance!L5,0,($O$1-1)*12) -> - | M12: =OFFSET(Balance!M5,0,($O$1-1)*12) -> - | N12: =OFFSET(Balance!N5,0,($O$1-1)*12) -> - | O12: =IF(SUM(C12:N12)=0,"-",SUM(C12:N12)) -> 39930.40336
B13: Carbón | C13: =OFFSET(Balance!C6,0,($O$1-1)*12) -> 3020.070461 | D13: =OFFSET(Balance!D6,0,($O$1-1)*12) -> 3488.685717 | E13: =OFFSET(Balance!E6,0,($O$1-1)*12) -> 1310.682136 | F13: =OFFSET(Balance!F6,0,($O$1-1)*12) -> 1360.590295 | G13: =OFFSET(Balance!G6,0,($O$1-1)*12) -> 2254.334191 | H13: =OFFSET(Balance!H6,0,($O$1-1)*12) -> 2273.650899 | I13: =OFFSET(Balance!I6,0,($O$1-1)*12) -> 3488.17318 | J13: =OFFSET(Balance!J6,0,($O$1-1)*12) -> 3496.644297 | K13: =OFFSET(Balance!K6,0,($O$1-1)*12) -> 4125.149649 | L13: =OFFSET(Balance!L6,0,($O$1-1)*12) -> - | M13: =OFFSET(Balance!M6,0,($O$1-1)*12) -> - | N13: =OFFSET(Balance!N6,0,($O$1-1)*12) -> - | O13: 24817.98082
B14: Fuel + Gas | C14: =OFFSET(Balance!C7,0,($O$1-1)*12) -> 0 | D14: =OFFSET(Balance!D7,0,($O$1-1)*12) -> 0 | E14: =OFFSET(Balance!E7,0,($O$1-1)*12) -> 0 | F14: =OFFSET(Balance!F7,0,($O$1-1)*12) -> 0 | G14: =OFFSET(Balance!G7,0,($O$1-1)*12) -> -1e-06 | H14: =OFFSET(Balance!H7,0,($O$1-1)*12) -> 0 | I14: =OFFSET(Balance!I7,0,($O$1-1)*12) -> 1e-06 | J14: =OFFSET(Balance!J7,0,($O$1-1)*12) -> -1e-06 | K14: =OFFSET(Balance!K7,0,($O$1-1)*12) -> 0 | L14: =OFFSET(Balance!L7,0,($O$1-1)*12) -> - | M14: =OFFSET(Balance!M7,0,($O$1-1)*12) -> - | N14: =OFFSET(Balance!N7,0,($O$1-1)*12) -> - | O14: -1e-06
B15: Ciclo combinado (2) | C15: =OFFSET(Balance!C8,0,($O$1-1)*12) -> 2254.632369 | D15: =OFFSET(Balance!D8,0,($O$1-1)*12) -> 1950.724201 | E15: =OFFSET(Balance!E8,0,($O$1-1)*12) -> 1248.040595 | F15: =OFFSET(Balance!F8,0,($O$1-1)*12) -> 1200.661205 | G15: =OFFSET(Balance!G8,0,($O$1-1)*12) -> 1968.429467 | H15: =OFFSET(Balance!H8,0,($O$1-1)*12) -> 2180.126706 | I15: =OFFSET(Balance!I8,0,($O$1-1)*12) -> 2229.279387 | J15: =OFFSET(Balance!J8,0,($O$1-1)*12) -> 2663.055537 | K15: =OFFSET(Balance!K8,0,($O$1-1)*12) -> 2148.659568 | L15: =OFFSET(Balance!L8,0,($O$1-1)*12) -> - | M15: =OFFSET(Balance!M8,0,($O$1-1)*12) -> - | N15: =OFFSET(Balance!N8,0,($O$1-1)*12) -> - | O15: 17843.60904
B16: Régimen ordinario | C16: =OFFSET(Balance!C9,0,($O$1-1)*12) -> - | D16: =OFFSET(Balance!D9,0,($O$1-1)*12) -> - | E16: =OFFSET(Balance!E9,0,($O$1-1)*12) -> - | F16: =OFFSET(Balance!F9,0,($O$1-1)*12) -> - | G16: =OFFSET(Balance!G9,0,($O$1-1)*12) -> - | H16: =OFFSET(Balance!H9,0,($O$1-1)*12) -> - | I16: =OFFSET(Balance!I9,0,($O$1-1)*12) -> - | J16: =OFFSET(Balance!J9,0,($O$1-1)*12) -> - | K16: =OFFSET(Balance!K9,0,($O$1-1)*12) -> - | L16: =OFFSET(Balance!L9,0,($O$1-1)*12) -> - | M16: =OFFSET(Balance!M9,0,($O$1-1)*12) -> - | N16: =OFFSET(Balance!N9,0,($O$1-1)*12) -> - | O16: =SUM(O10:O15) -> 112090.3551
B18: Resto hidráulica (3) | C18: =OFFSET(Balance!C10,0,($O$1-1)*12) -> - | D18: =OFFSET(Balance!D10,0,($O$1-1)*12) -> - | E18: =OFFSET(Balance!E10,0,($O$1-1)*12) -> - | F18: =OFFSET(Balance!F10,0,($O$1-1)*12) -> - | G18: =OFFSET(Balance!G10,0,($O$1-1)*12) -> - | H18: =OFFSET(Balance!H10,0,($O$1-1)*12) -> - | I18: =OFFSET(Balance!I10,0,($O$1-1)*12) -> - | J18: =OFFSET(Balance!J10,0,($O$1-1)*12) -> - | K18: =OFFSET(Balance!K10,0,($O$1-1)*12) -> - | L18: =OFFSET(Balance!L10,0,($O$1-1)*12) -> - | M18: =OFFSET(Balance!M10,0,($O$1-1)*12) -> - | N18: =OFFSET(Balance!N10,0,($O$1-1)*12) -> - | O18: -
B19: Eólica | C19: =OFFSET(Balance!C11,0,($O$1-1)*12) -> 5286.004917 | D19: =OFFSET(Balance!D11,0,($O$1-1)*12) -> 4633.582556 | E19: =OFFSET(Balance!E11,0,($O$1-1)*12) -> 7650.139038 | F19: =OFFSET(Balance!F11,0,($O$1-1)*12) -> 4409.565782 | G19: =OFFSET(Balance!G11,0,($O$1-1)*12) -> 3253.884139 | H19: =OFFSET(Balance!H11,0,($O$1-1)*12) -> 2571.687929 | I19: =OFFSET(Balance!I11,0,($O$1-1)*12) -> 2478.28994 | J19: =OFFSET(Balance!J11,0,($O$1-1)*12) -> 3063.769017 | K19: =OFFSET(Balance!K11,0,($O$1-1)*12) -> 2403.200776 | L19: =OFFSET(Balance!L11,0,($O$1-1)*12) -> - | M19: =OFFSET(Balance!M11,0,($O$1-1)*12) -> - | N19: =OFFSET(Balance!N11,0,($O$1-1)*12) -> - | O19: 35750.12409
B20: Solar fotovoltaica | C20: =OFFSET(Balance!C12,0,($O$1-1)*12) -> 418.213969 | D20: =OFFSET(Balance!D12,0,($O$1-1)*12) -> 487.035563 | E20: =OFFSET(Balance!E12,0,($O$1-1)*12) -> 555.357855 | F20: =OFFSET(Balance!F12,0,($O$1-1)*12) -> 664.197636 | G20: =OFFSET(Balance!G12,0,($O$1-1)*12) -> 777.597958 | H20: =OFFSET(Balance!H12,0,($O$1-1)*12) -> 779.943951 | I20: =OFFSET(Balance!I12,0,($O$1-1)*12) -> 886.332246 | J20: =OFFSET(Balance!J12,0,($O$1-1)*12) -> 802.006368 | K20: =OFFSET(Balance!K12,0,($O$1-1)*12) -> 633.083846 | L20: =OFFSET(Balance!L12,0,($O$1-1)*12) -> - | M20: =OFFSET(Balance!M12,0,($O$1-1)*12) -> - | N20: =OFFSET(Balance!N12,0,($O$1-1)*12) -> - | O20: 6003.769392
B21: Solar térmica | C21: =OFFSET(Balance!C13,0,($O$1-1)*12) -> 112.387517 | D21: =OFFSET(Balance!D13,0,($O$1-1)*12) -> 229.808151 | E21: =OFFSET(Balance!E13,0,($O$1-1)*12) -> 233.955943 | F21: =OFFSET(Balance!F13,0,($O$1-1)*12) -> 325.935092 | G21: =OFFSET(Balance!G13,0,($O$1-1)*12) -> 477.209634 | H21: =OFFSET(Balance!H13,0,($O$1-1)*12) -> 551.292603 | I21: =OFFSET(Balance!I13,0,($O$1-1)*12) -> 858.894648 | J21: =OFFSET(Balance!J13,0,($O$1-1)*12) -> 688.557997 | K21: =OFFSET(Balance!K13,0,($O$1-1)*12) -> 465.639936 | L21: =OFFSET(Balance!L13,0,($O$1-1)*12) -> - | M21: =OFFSET(Balance!M13,0,($O$1-1)*12) -> - | N21: =OFFSET(Balance!N13,0,($O$1-1)*12) -> - | O21: 3943.681521
B22: Otras renovables (4) | C22: =OFFSET(Balance!C14,0,($O$1-1)*12) -> 295.349655 | D22: =OFFSET(Balance!D14,0,($O$1-1)*12) -> 300.788655 | E22: =OFFSET(Balance!E14,0,($O$1-1)*12) -> 269.07043 | F22: =OFFSET(Balance!F14,0,($O$1-1)*12) -> 237.136789 | G22: =OFFSET(Balance!G14,0,($O$1-1)*12) -> 290.867997 | H22: =OFFSET(Balance!H14,0,($O$1-1)*12) -> 303.747793 | I22: =OFFSET(Balance!I14,0,($O$1-1)*12) -> 323.388862 | J22: =OFFSET(Balance!J14,0,($O$1-1)*12) -> 316.4005 | K22: =OFFSET(Balance!K14,0,($O$1-1)*12) -> 319.227024 | L22: =OFFSET(Balance!L14,0,($O$1-1)*12) -> - | M22: =OFFSET(Balance!M14,0,($O$1-1)*12) -> - | N22: =OFFSET(Balance!N14,0,($O$1-1)*12) -> - | O22: 2655.977705
B23: Cogeneración | C23: =OFFSET(Balance!C15,0,($O$1-1)*12) -> 2480.449058 | D23: =OFFSET(Balance!D15,0,($O$1-1)*12) -> 2251.080739 | E23: =OFFSET(Balance!E15,0,($O$1-1)*12) -> 2335.527296 | F23: =OFFSET(Balance!F15,0,($O$1-1)*12) -> 2353.589597 | G23: =OFFSET(Balance!G15,0,($O$1-1)*12) -> 2418.3062 | H23: =OFFSET(Balance!H15,0,($O$1-1)*12) -> 2403.646138 | I23: =OFFSET(Balance!I15,0,($O$1-1)*12) -> 2432.042806 | J23: =OFFSET(Balance!J15,0,($O$1-1)*12) -> 2358.331876 | K23: =OFFSET(Balance!K15,0,($O$1-1)*12) -> 2391.961923 | L23: =OFFSET(Balance!L15,0,($O$1-1)*12) -> - | M23: =OFFSET(Balance!M15,0,($O$1-1)*12) -> - | N23: =OFFSET(Balance!N15,0,($O$1-1)*12) -> - | O23: 21424.93563
B24: Residuos no renovables | C24: =OFFSET(Balance!C16,0,($O$1-1)*12) -> 226.5715625 | D24: =OFFSET(Balance!D16,0,($O$1-1)*12) -> 204.210088 | E24: =OFFSET(Balance!E16,0,($O$1-1)*12) -> 215.3954785 | F24: =OFFSET(Balance!F16,0,($O$1-1)*12) -> 169.464494 | G24: =OFFSET(Balance!G16,0,($O$1-1)*12) -> 137.027331 | H24: =OFFSET(Balance!H16,0,($O$1-1)*12) -> 175.415691 | I24: =OFFSET(Balance!I16,0,($O$1-1)*12) -> 199.575432 | J24: =OFFSET(Balance!J16,0,($O$1-1)*12) -> 194.6552735 | K24: =OFFSET(Balance!K16,0,($O$1-1)*12) -> 189.018788 | L24: =OFFSET(Balance!L16,0,($O$1-1)*12) -> - | M24: =OFFSET(Balance!M16,0,($O$1-1)*12) -> - | N24: =OFFSET(Balance!N16,0,($O$1-1)*12) -> - | O24: 1711.334139
B25: Residuos renovables | C25: =OFFSET(Balance!C17,0,($O$1-1)*12) -> 69.2635705 | D25: =OFFSET(Balance!D17,0,($O$1-1)*12) -> 62.195682 | E25: =OFFSET(Balance!E17,0,($O$1-1)*12) -> 65.9092005 | F25: =OFFSET(Balance!F17,0,($O$1-1)*12) -> 66.929152 | G25: =OFFSET(Balance!G17,0,($O$1-1)*12) -> 24.344858 | H25: =OFFSET(Balance!H17,0,($O$1-1)*12) -> 50.806421 | I25: =OFFSET(Balance!I17,0,($O$1-1)*12) -> 64.813797 | J25: =OFFSET(Balance!J17,0,($O$1-1)*12) -> 65.7551745 | K25: =OFFSET(Balance!K17,0,($O$1-1)*12) -> 64.738028 | L25: =OFFSET(Balance!L17,0,($O$1-1)*12) -> - | M25: =OFFSET(Balance!M17,0,($O$1-1)*12) -> - | N25: =OFFSET(Balance!N17,0,($O$1-1)*12) -> - | O25: =IF(SUM(C25:N25)=0,"-",SUM(C25:N25)) -> 534.7558835
B26: Régimen especial | C26: =OFFSET(Balance!C18,0,($O$1-1)*12) -> - | D26: =OFFSET(Balance!D18,0,($O$1-1)*12) -> - | E26: =OFFSET(Balance!E18,0,($O$1-1)*12) -> - | F26: =OFFSET(Balance!F18,0,($O$1-1)*12) -> - | G26: =OFFSET(Balance!G18,0,($O$1-1)*12) -> - | H26: =OFFSET(Balance!H18,0,($O$1-1)*12) -> - | I26: =OFFSET(Balance!I18,0,($O$1-1)*12) -> - | J26: =OFFSET(Balance!J18,0,($O$1-1)*12) -> - | K26: =OFFSET(Balance!K18,0,($O$1-1)*12) -> - | L26: =OFFSET(Balance!L18,0,($O$1-1)*12) -> - | M26: =OFFSET(Balance!M18,0,($O$1-1)*12) -> - | N26: =OFFSET(Balance!N18,0,($O$1-1)*12) -> - | O26: =SUM(O18:O23) -> 69778.48834
B27: Generación | C27: =OFFSET(Balance!C19,0,($O$1-1)*12) -> 21726.83075 | D27: =OFFSET(Balance!D19,0,($O$1-1)*12) -> 20769.66722 | E27: =OFFSET(Balance!E19,0,($O$1-1)*12) -> 23141.78179 | F27: =OFFSET(Balance!F19,0,($O$1-1)*12) -> 19662.72448 | G27: =OFFSET(Balance!G19,0,($O$1-1)*12) -> 19004.74485 | H27: =OFFSET(Balance!H19,0,($O$1-1)*12) -> 18651.51361 | I27: =OFFSET(Balance!I19,0,($O$1-1)*12) -> 20491.45804 | J27: =OFFSET(Balance!J19,0,($O$1-1)*12) -> 20948.84094 | K27: =OFFSET(Balance!K19,0,($O$1-1)*12) -> 19717.37178 | L27: =OFFSET(Balance!L19,0,($O$1-1)*12) -> - | M27: =OFFSET(Balance!M19,0,($O$1-1)*12) -> - | N27: =OFFSET(Balance!N19,0,($O$1-1)*12) -> - | O27: =IF(SUM(C27:N27)=0,"-",SUM(C27:N27)) -> 184114.9335
B28: Consumos en bombeo | C28: =OFFSET(Balance!C20,0,($O$1-1)*12) -> -391.478352 | D28: =OFFSET(Balance!D20,0,($O$1-1)*12) -> -253.861089 | E28: =OFFSET(Balance!E20,0,($O$1-1)*12) -> -733.496424 | F28: =OFFSET(Balance!F20,0,($O$1-1)*12) -> -560.0684122 | G28: =OFFSET(Balance!G20,0,($O$1-1)*12) -> -213.2435446 | H28: =OFFSET(Balance!H20,0,($O$1-1)*12) -> -83.65209087 | I28: =OFFSET(Balance!I20,0,($O$1-1)*12) -> -57.94025794 | J28: =OFFSET(Balance!J20,0,($O$1-1)*12) -> -68.90229615 | K28: =OFFSET(Balance!K20,0,($O$1-1)*12) -> -80.573028 | L28: =OFFSET(Balance!L20,0,($O$1-1)*12) -> - | M28: =OFFSET(Balance!M20,0,($O$1-1)*12) -> - | N28: =OFFSET(Balance!N20,0,($O$1-1)*12) -> - | O28: -2443.215495
B29: Enlace Península-Baleares (6) | C29: =OFFSET(Balance!C21,0,($O$1-1)*12) -> -86.203829 | D29: =OFFSET(Balance!D21,0,($O$1-1)*12) -> -99.993399 | E29: =OFFSET(Balance!E21,0,($O$1-1)*12) -> -89.996875 | F29: =OFFSET(Balance!F21,0,($O$1-1)*12) -> -66.46752 | G29: =OFFSET(Balance!G21,0,($O$1-1)*12) -> -89.565091 | H29: =OFFSET(Balance!H21,0,($O$1-1)*12) -> -108.623635 | I29: =OFFSET(Balance!I21,0,($O$1-1)*12) -> -161.791603 | J29: =OFFSET(Balance!J21,0,($O$1-1)*12) -> -153.133589 | K29: =OFFSET(Balance!K21,0,($O$1-1)*12) -> -107.931268 | L29: =OFFSET(Balance!L21,0,($O$1-1)*12) -> - | M29: =OFFSET(Balance!M21,0,($O$1-1)*12) -> - | N29: =OFFSET(Balance!N21,0,($O$1-1)*12) -> - | O29: =IF(SUM(C29:N29)=0,"-",SUM(C29:N29)) -> -963.706809
B30: Saldo intercambios internacionales (7) | C30: =OFFSET(Balance!C22,0,($O$1-1)*12) -> 1340.298263 | D30: =OFFSET(Balance!D22,0,($O$1-1)*12) -> 857.102993 | E30: =OFFSET(Balance!E22,0,($O$1-1)*12) -> -273.622032 | F30: =OFFSET(Balance!F22,0,($O$1-1)*12) -> 882.598526 | G30: =OFFSET(Balance!G22,0,($O$1-1)*12) -> 1368.360937 | H30: =OFFSET(Balance!H22,0,($O$1-1)*12) -> 1863.9643 | I30: =OFFSET(Balance!I22,0,($O$1-1)*12) -> 1893.727091 | J30: =OFFSET(Balance!J22,0,($O$1-1)*12) -> 1244.022075 | K30: =OFFSET(Balance!K22,0,($O$1-1)*12) -> 1124.462151 | L30: =OFFSET(Balance!L22,0,($O$1-1)*12) -> - | M30: =OFFSET(Balance!M22,0,($O$1-1)*12) -> - | N30: =OFFSET(Balance!N22,0,($O$1-1)*12) -> - | O30: 10300.9143
B31: Demanda transporte (b.c.) | C31: =OFFSET(Balance!C23,0,($O$1-1)*12) -> 22589.44683 | D31: =OFFSET(Balance!D23,0,($O$1-1)*12) -> 21272.91573 | E31: =OFFSET(Balance!E23,0,($O$1-1)*12) -> 22044.66645 | F31: =OFFSET(Balance!F23,0,($O$1-1)*12) -> 19918.78708 | G31: =OFFSET(Balance!G23,0,($O$1-1)*12) -> 20070.29715 | H31: =OFFSET(Balance!H23,0,($O$1-1)*12) -> 20323.20219 | I31: =OFFSET(Balance!I23,0,($O$1-1)*12) -> 22165.45327 | J31: =OFFSET(Balance!J23,0,($O$1-1)*12) -> 21970.82713 | K31: =OFFSET(Balance!K23,0,($O$1-1)*12) -> 20653.32964 | L31: =OFFSET(Balance!L23,0,($O$1-1)*12) -> - | M31: =OFFSET(Balance!M23,0,($O$1-1)*12) -> - | N31: =OFFSET(Balance!N23,0,($O$1-1)*12) -> - | O31: =IF(SUM(C31:N31)=0,"-",SUM(C31:N31)) -> 191008.9255
B32: (1) Asignación de unidades de producción según combustible principal.
B33: (2) Incluye funcionamiento en ciclo abierto.
B34: (3) Incluye todas aquellas unidades menores de 50 MW que no pertenecen a ninguna unidad de gestión hidráulica (UGH).
B35: (4) Otras renovables incluyen biogás, biomasa, hidráulica marina y geotérmica. Los valores incluyen residuos hasta el 31/12/2014.
B36: (5) Hasta 2010 incluye residuos.
B37: (6) Valor positivo: entrada de energía en el sistema; valor negativo: salida de energía del sistema. Enlace funcionando al mínimo técnico de seguridad hasta el 13/08/2012.
B38: (7) Valor positivo: saldo importador; valor negativo: saldo exportador.
B39: ='Balance nacional mensual'!B38 -> Datos definitivos hasta el 31/03/2017. Datos provisionales del 01/04/2017 al 31/08/2018. Datos programados del 01/09/2018 al 30/09/2018.

Sheet Balance Peninsular anual
J1: 4 | L1: 1
H4: Sistema eléctrico
H5: Horizonte temporal
H6: Periodo
C8: =OFFSET(Balance!C107,0,($J$1-1)*8) -> 2014 | D8: =OFFSET(Balance!D107,0,($J$1-1)*8) -> 2015 | E8: =OFFSET(Balance!E107,0,($J$1-1)*8) -> 2016 | F8: =OFFSET(Balance!F107,0,($J$1-1)*8) -> 2017 | G8: =OFFSET(Balance!G107,0,($J$1-1)*8) -> 2018 | H8: =OFFSET(Balance!H107,0,($J$1-1)*8) -> 2019 | I8: =OFFSET(Balance!I107,0,($J$1-1)*8) -> 2020 | J8: =OFFSET(Balance!J107,0,($J$1-1)*8) -> 2021
B10: Hidráulica | C10: =OFFSET(Balance!C108,0,($J$1-1)*8) -> 39178.52416 | D10: =OFFSET(Balance!D108,0,($J$1-1)*8) -> 28379.01157 | E10: =OFFSET(Balance!E108,0,($J$1-1)*8) -> 36111.43437 | F10: =OFFSET(Balance!F108,0,($J$1-1)*8) -> 18445.89452 | G10: =OFFSET(Balance!G108,0,($J$1-1)*8) -> 27981.52743 | H10: =OFFSET(Balance!H108,0,($J$1-1)*8) -> - | I10: =OFFSET(Balance!I108,0,($J$1-1)*8) -> - | J10: =OFFSET(Balance!J108,0,($J$1-1)*8) -> -
B11: Turbinación bombeo | C11: =OFFSET(Balance!C109,0,($J$1-1)*8) -> 3415.996027 | D11: =OFFSET(Balance!D109,0,($J$1-1)*8) -> 2895.365788 | E11: =OFFSET(Balance!E109,0,($J$1-1)*8) -> 3134.32891 | F11: =OFFSET(Balance!F109,0,($J$1-1)*8) -> 2248.964418 | G11: =OFFSET(Balance!G109,0,($J$1-1)*8) -> 1516.834444 | H11: =OFFSET(Balance!H109,0,($J$1-1)*8) -> - | I11: =OFFSET(Balance!I109,0,($J$1-1)*8) -> - | J11: =OFFSET(Balance!J109,0,($J$1-1)*8) -> -
B12: Nuclear | C12: =OFFSET(Balance!C110,0,($J$1-1)*8) -> 54781.28133 | D12: =OFFSET(Balance!D110,0,($J$1-1)*8) -> 54661.80331 | E12: =OFFSET(Balance!E110,0,($J$1-1)*8) -> 56021.68206 | F12: =OFFSET(Balance!F110,0,($J$1-1)*8) -> 55539.5615 | G12: =OFFSET(Balance!G110,0,($J$1-1)*8) -> 39930.40336 | H12: =OFFSET(Balance!H110,0,($J$1-1)*8) -> - | I12: =OFFSET(Balance!I110,0,($J$1-1)*8) -> - | J12: =OFFSET(Balance!J110,0,($J$1-1)*8) -> -
B13: Carbón | C13: =OFFSET(Balance!C111,0,($J$1-1)*8) -> 41058.27877 | D13: =OFFSET(Balance!D111,0,($J$1-1)*8) -> 50754.79451 | E13: =OFFSET(Balance!E111,0,($J$1-1)*8) -> 35010.90978 | F13: =OFFSET(Balance!F111,0,($J$1-1)*8) -> 42422.11334 | G13: =OFFSET(Balance!G111,0,($J$1-1)*8) -> 24817.98082 | H13: =OFFSET(Balance!H111,0,($J$1-1)*8) -> - | I13: =OFFSET(Balance!I111,0,($J$1-1)*8) -> - | J13: =OFFSET(Balance!J111,0,($J$1-1)*8) -> -
B14: Fuel + Gas | C14: =OFFSET(Balance!C112,0,($J$1-1)*8) -> -0.819731 | D14: =OFFSET(Balance!D112,0,($J$1-1)*8) -> 0.016618 | E14: =OFFSET(Balance!E112,0,($J$1-1)*8) -> 0.000235 | F14: =OFFSET(Balance!F112,0,($J$1-1)*8) -> -1e-06 | G14: =OFFSET(Balance!G112,0,($J$1-1)*8) -> -1e-06 | H14: =OFFSET(Balance!H112,0,($J$1-1)*8) -> - | I14: =OFFSET(Balance!I112,0,($J$1-1)*8) -> - | J14: =OFFSET(Balance!J112,0,($J$1-1)*8) -> -
B15: Ciclo combinado (2) | C15: =OFFSET(Balance!C113,0,($J$1-1)*8) -> 21120.50862 | D15: =OFFSET(Balance!D113,0,($J$1-1)*8) -> 25034.54556 | E15: =OFFSET(Balance!E113,0,($J$1-1)*8) -> 25463.06626 | F15: =OFFSET(Balance!F113,0,($J$1-1)*8) -> 33647.98585 | G15: =OFFSET(Balance!G113,0,($J$1-1)*8) -> 17843.60904 | H15: =OFFSET(Balance!H113,0,($J$1-1)*8) -> - | I15: =OFFSET(Balance!I113,0,($J$1-1)*8) -> - | J15: =OFFSET(Balance!J113,0,($J$1-1)*8) -> -
B16: Régimen ordinario | C16: =OFFSET(Balance!C114,0,($J$1-1)*8) ->  | D16: =OFFSET(Balance!D114,0,($J$1-1)*8) ->  | E16: =OFFSET(Balance!E114,0,($J$1-1)*8) ->  | F16: =OFFSET(Balance!F114,0,($J$1-1)*8) ->  | G16: =OFFSET(Balance!G114,0,($J$1-1)*8) ->  | H16: =OFFSET(Balance!H114,0,($J$1-1)*8) ->  | I16: =OFFSET(Balance!I114,0,($J$1-1)*8) ->  | J16: =OFFSET(Balance!J114,0,($J$1-1)*8) -> 
B18: Resto hidráulica (3) | C18: =OFFSET(Balance!C115,0,($J$1-1)*8) ->  | D18: =OFFSET(Balance!D115,0,($J$1-1)*8) ->  | E18: =OFFSET(Balance!E115,0,($J$1-1)*8) ->  | F18: =OFFSET(Balance!F115,0,($J$1-1)*8) ->  | G18: =OFFSET(Balance!G115,0,($J$1-1)*8) ->  | H18: =OFFSET(Balance!H115,0,($J$1-1)*8) ->  | I18: =OFFSET(Balance!I115,0,($J$1-1)*8) ->  | J18: =OFFSET(Balance!J115,0,($J$1-1)*8) -> 
B19: Eólica | C19: =OFFSET(Balance!C116,0,($J$1-1)*8) -> 50636.66246 | D19: =OFFSET(Balance!D116,0,($J$1-1)*8) -> 47715.88214 | E19: =OFFSET(Balance!E116,0,($J$1-1)*8) -> 47298.16367 | F19: =OFFSET(Balance!F116,0,($J$1-1)*8) -> 47508.43182 | G19: =OFFSET(Balance!G116,0,($J$1-1)*8) -> 35750.12409 | H19: =OFFSET(Balance!H116,0,($J$1-1)*8) -> - | I19: =OFFSET(Balance!I116,0,($J$1-1)*8) -> - | J19: =OFFSET(Balance!J116,0,($J$1-1)*8) -> -
B20: Solar fotovoltaica | C20: =OFFSET(Balance!C117,0,($J$1-1)*8) -> 7802.79092 | D20: =OFFSET(Balance!D117,0,($J$1-1)*8) -> 7845.314537 | E20: =OFFSET(Balance!E117,0,($J$1-1)*8) -> 7579.218212 | F20: =OFFSET(Balance!F117,0,($J$1-1)*8) -> 8000.070687 | G20: =OFFSET(Balance!G117,0,($J$1-1)*8) -> 6003.769392 | H20: =OFFSET(Balance!H117,0,($J$1-1)*8) -> - | I20: =OFFSET(Balance!I117,0,($J$1-1)*8) -> - | J20: =OFFSET(Balance!J117,0,($J$1-1)*8) -> -
B21: Solar térmica | C21: =OFFSET(Balance!C118,0,($J$1-1)*8) -> 4958.914926 | D21: =OFFSET(Balance!D118,0,($J$1-1)*8) -> 5085.235514 | E21: =OFFSET(Balance!E118,0,($J$1-1)*8) -> 5071.201702 | F21: =OFFSET(Balance!F118,0,($J$1-1)*8) -> 5347.918192 | G21: =OFFSET(Balance!G118,0,($J$1-1)*8) -> 3943.681521 | H21: =OFFSET(Balance!H118,0,($J$1-1)*8) -> - | I21: =OFFSET(Balance!I118,0,($J$1-1)*8) -> - | J21: =OFFSET(Balance!J118,0,($J$1-1)*8) -> -
B22: Térmica renovable(4)/Otras renovables | C22: =OFFSET(Balance!C119,0,($J$1-1)*8) -> 3805.563474 | D22: =OFFSET(Balance!D119,0,($J$1-1)*8) -> 3422.566747 | E22: =OFFSET(Balance!E119,0,($J$1-1)*8) -> 3415.019338 | F22: =OFFSET(Balance!F119,0,($J$1-1)*8) -> 3598.749826 | G22: =OFFSET(Balance!G119,0,($J$1-1)*8) -> 2655.977705 | H22: =OFFSET(Balance!H119,0,($J$1-1)*8) -> - | I22: =OFFSET(Balance!I119,0,($J$1-1)*8) -> - | J22: =OFFSET(Balance!J119,0,($J$1-1)*8) -> -
B23: Cogeneración y resto(4)/Cogeneración | C23: =OFFSET(Balance!C120,0,($J$1-1)*8) -> 24128.0213 | D23: =OFFSET(Balance!D120,0,($J$1-1)*8) -> 25169.32804 | E23: =OFFSET(Balance!E120,0,($J$1-1)*8) -> 25873.94224 | F23: =OFFSET(Balance!F120,0,($J$1-1)*8) -> 28175.29664 | G23: =OFFSET(Balance!G120,0,($J$1-1)*8) -> 21424.93563 | H23: =OFFSET(Balance!H120,0,($J$1-1)*8) -> - | I23: =OFFSET(Balance!I120,0,($J$1-1)*8) -> - | J23: =OFFSET(Balance!J120,0,($J$1-1)*8) -> -
B24: Residuos no renovables | C24: =OFFSET(Balance!C121,0,($J$1-1)*8) -> 1833.343557 | D24: =OFFSET(Balance!D121,0,($J$1-1)*8) -> 2324.714741 | E24: =OFFSET(Balance!E121,0,($J$1-1)*8) -> 2471.308645 | F24: =OFFSET(Balance!F121,0,($J$1-1)*8) -> 2459.113889 | G24: =OFFSET(Balance!G121,0,($J$1-1)*8) -> 1711.334139 | H24: =OFFSET(Balance!H121,0,($J$1-1)*8) -> - | I24: =OFFSET(Balance!I121,0,($J$1-1)*8) -> - | J24: =OFFSET(Balance!J121,0,($J$1-1)*8) -> -
B25: Residuos renovables | C25: =OFFSET(Balance!C122,0,($J$1-1)*8) -> 545.538086 | D25: =OFFSET(Balance!D122,0,($J$1-1)*8) -> 662.655475 | E25: =OFFSET(Balance!E122,0,($J$1-1)*8) -> 649.7399105 | F25: =OFFSET(Balance!F122,0,($J$1-1)*8) -> 728.150433 | G25: =OFFSET(Balance!G122,0,($J$1-1)*8) -> 534.7558835 | H25: =OFFSET(Balance!H122,0,($J$1-1)*8) -> - | I25: =OFFSET(Balance!I122,0,($J$1-1)*8) -> - | J25: =OFFSET(Balance!J122,0,($J$1-1)*8) -> -
B26: Régimen especial | C26: =OFFSET(Balance!C123,0,($J$1-1)*8) ->  | D26: =OFFSET(Balance!D123,0,($J$1-1)*8) ->  | E26: =OFFSET(Balance!E123,0,($J$1-1)*8) ->  | F26: =OFFSET(Balance!F123,0,($J$1-1)*8) ->  | G26: =OFFSET(Balance!G123,0,($J$1-1)*8) ->  | H26: =OFFSET(Balance!H123,0,($J$1-1)*8) ->  | I26: =OFFSET(Balance!I123,0,($J$1-1)*8) ->  | J26: =OFFSET(Balance!J123,0,($J$1-1)*8) -> 
B27: Generación | C27: =OFFSET(Balance!C124,0,($J$1-1)*8) -> 253264.6039 | D27: =OFFSET(Balance!D124,0,($J$1-1)*8) -> 253951.2346 | E27: =OFFSET(Balance!E124,0,($J$1-1)*8) -> 248100.0153 | F27: =OFFSET(Balance!F124,0,($J$1-1)*8) -> 248122.2511 | G27: =OFFSET(Balance!G124,0,($J$1-1)*8) -> 184114.9335 | H27: =OFFSET(Balance!H124,0,($J$1-1)*8) -> - | I27: =OFFSET(Balance!I124,0,($J$1-1)*8) -> - | J27: =OFFSET(Balance!J124,0,($J$1-1)*8) -> -
B28: Consumos en bombeo | C28: =OFFSET(Balance!C125,0,($J$1-1)*8) -> -5385.76886 | D28: =OFFSET(Balance!D125,0,($J$1-1)*8) -> -4512.251431 | E28: =OFFSET(Balance!E125,0,($J$1-1)*8) -> -4827.585068 | F28: =OFFSET(Balance!F125,0,($J$1-1)*8) -> -3607.580988 | G28: =OFFSET(Balance!G125,0,($J$1-1)*8) -> -2443.215495 | H28: =OFFSET(Balance!H125,0,($J$1-1)*8) -> - | I28: =OFFSET(Balance!I125,0,($J$1-1)*8) -> - | J28: =OFFSET(Balance!J125,0,($J$1-1)*8) -> -
B29: Enlace Península-Baleares (6) | C29: =OFFSET(Balance!C126,0,($J$1-1)*8) -> -1298.258934 | D29: =OFFSET(Balance!D126,0,($J$1-1)*8) -> -1335.792544 | E29: =OFFSET(Balance!E126,0,($J$1-1)*8) -> -1250.583968 | F29: =OFFSET(Balance!F126,0,($J$1-1)*8) -> -1179.306642 | G29: =OFFSET(Balance!G126,0,($J$1-1)*8) -> -963.706809 | H29: =OFFSET(Balance!H126,0,($J$1-1)*8) -> - | I29: =OFFSET(Balance!I126,0,($J$1-1)*8) -> - | J29: =OFFSET(Balance!J126,0,($J$1-1)*8) -> -
B30: Saldo intercambios internacionales (7) | C30: =OFFSET(Balance!C127,0,($J$1-1)*8) -> -3406.124024 | D30: =OFFSET(Balance!D127,0,($J$1-1)*8) -> -133.163163 | E30: =OFFSET(Balance!E127,0,($J$1-1)*8) -> 7658.043691 | F30: =OFFSET(Balance!F127,0,($J$1-1)*8) -> 9168.993523 | G30: =OFFSET(Balance!G127,0,($J$1-1)*8) -> 10300.9143 | H30: =OFFSET(Balance!H127,0,($J$1-1)*8) -> - | I30: =OFFSET(Balance!I127,0,($J$1-1)*8) -> - | J30: =OFFSET(Balance!J127,0,($J$1-1)*8) -> -
B31: Demanda transporte (b.c.) | C31: =OFFSET(Balance!C128,0,($J$1-1)*8) -> 243174.4521 | D31: =OFFSET(Balance!D128,0,($J$1-1)*8) -> 247970.0274 | E31: =OFFSET(Balance!E128,0,($J$1-1)*8) -> 249679.89 | F31: =OFFSET(Balance!F128,0,($J$1-1)*8) -> 252504.357 | G31: =OFFSET(Balance!G128,0,($J$1-1)*8) -> 191008.9255 | H31: =OFFSET(Balance!H128,0,($J$1-1)*8) -> - | I31: =OFFSET(Balance!I128,0,($J$1-1)*8) -> - | J31: =OFFSET(Balance!J128,0,($J$1-1)*8) -> -
B32: (1) Asignación de unidades de producción según combustible principal.
B33: (2) Incluye funcionamiento en ciclo abierto.
B34: (3) Incluye todas aquellas unidades menores de 50 MW que no pertenecen a ninguna unidad de gestión hidráulica (UGH).
B35: (4) Incluye residuos hasta el 31/12/2010.
B36: (5) Incluye biogás, biomasa, hidráulica marina y geotérmica.
B37: (6) Valor positivo: entrada de energía en el sistema; valor negativo: salida de energía del sistema. Enlace funcionando al mínimo técnico de seguridad hasta el 13/08/2012.
B38: (7) Valor positivo: saldo importador; valor negativo: saldo exportador.
B39: =IF(MONTH(FACT)=1,"",CONCATENATE("Para el año ",YEAR(FACT), " valores acumulados hasta ",TEXT(FACT-30,"mmmm")," de ",YEAR(FACT),".")) -> Para el año 2018 valores acumulados hasta septiembre de 2018.
B40: ='Balance nacional mensual'!B38 -> Datos definitivos hasta el 31/03/2017. Datos provisionales del 01/04/2017 al 31/08/2018. Datos programados del 01/09/2018 al 30/09/2018.

Sheet Balance Baleares mensual
O1: 13
M4: Sistema eléctrico
M5: Horizonte temporal
M6: Periodo
C8: Ene. | D8: Feb. | E8: Mar. | F8: Abr. | G8: May. | H8: Jun. | I8: Jul. | J8: Ago. | K8: Sep. | L8: Oct. | M8: Nov. | N8: Dic. | O8: =OFFSET(Año!C18,($O$1-1),0) -> 2018
B10: Carbón | C10: =OFFSET(Balance!C26,0,($O$1-1)*12) -> 198555.029 | D10: =OFFSET(Balance!D26,0,($O$1-1)*12) -> 192794.934 | E10: =OFFSET(Balance!E26,0,($O$1-1)*12) -> 199821.57 | F10: =OFFSET(Balance!F26,0,($O$1-1)*12) -> 183056.221 | G10: =OFFSET(Balance!G26,0,($O$1-1)*12) -> 185327.823 | H10: =OFFSET(Balance!H26,0,($O$1-1)*12) -> 204879.731 | I10: =OFFSET(Balance!I26,0,($O$1-1)*12) -> 242068.479 | J10: =OFFSET(Balance!J26,0,($O$1-1)*12) -> 257313.11 | K10: =OFFSET(Balance!K26,0,($O$1-1)*12) -> 250630.395 | L10: =OFFSET(Balance!L26,0,($O$1-1)*12) -> - | M10: =OFFSET(Balance!M26,0,($O$1-1)*12) -> - | N10: =OFFSET(Balance!N26,0,($O$1-1)*12) -> - | O10: =IF(SUM(C10:N10)=0,"-",SUM(C10:N10)) -> 1914447.292
B11: Motores diesel | C11: =OFFSET(Balance!C27,0,($O$1-1)*12) -> 35080.182 | D11: =OFFSET(Balance!D27,0,($O$1-1)*12) -> 38969.616 | E11: =OFFSET(Balance!E27,0,($O$1-1)*12) -> 35928.452 | F11: =OFFSET(Balance!F27,0,($O$1-1)*12) -> 37207.235 | G11: =OFFSET(Balance!G27,0,($O$1-1)*12) -> 51279.923 | H11: =OFFSET(Balance!H27,0,($O$1-1)*12) -> 59423.205 | I11: =OFFSET(Balance!I27,0,($O$1-1)*12) -> 82636.36 | J11: =OFFSET(Balance!J27,0,($O$1-1)*12) -> 89525.766 | K11: =OFFSET(Balance!K27,0,($O$1-1)*12) -> 72079.99 | L11: =OFFSET(Balance!L27,0,($O$1-1)*12) -> - | M11: =OFFSET(Balance!M27,0,($O$1-1)*12) -> - | N11: =OFFSET(Balance!N27,0,($O$1-1)*12) -> - | O11: 502130.729
B12: Turbina de gas | C12: =OFFSET(Balance!C28,0,($O$1-1)*12) -> 59852.256 | D12: =OFFSET(Balance!D28,0,($O$1-1)*12) -> 59882.575 | E12: =OFFSET(Balance!E28,0,($O$1-1)*12) -> 61051.561 | F12: =OFFSET(Balance!F28,0,($O$1-1)*12) -> 57191.896 | G12: =OFFSET(Balance!G28,0,($O$1-1)*12) -> 66096.778 | H12: =OFFSET(Balance!H28,0,($O$1-1)*12) -> 77051.413 | I12: =OFFSET(Balance!I28,0,($O$1-1)*12) -> 95847.726 | J12: =OFFSET(Balance!J28,0,($O$1-1)*12) -> 91166.569 | K12: =OFFSET(Balance!K28,0,($O$1-1)*12) -> 75102.128 | L12: =OFFSET(Balance!L28,0,($O$1-1)*12) -> - | M12: =OFFSET(Balance!M28,0,($O$1-1)*12) -> - | N12: =OFFSET(Balance!N28,0,($O$1-1)*12) -> - | O12: 643242.902
B13: Fuel + Gas | C13: =OFFSET(Balance!C29,0,($O$1-1)*12) -> 94932.438 | D13: =OFFSET(Balance!D29,0,($O$1-1)*12) -> 98852.191 | E13: =OFFSET(Balance!E29,0,($O$1-1)*12) -> 96980.013 | F13: =OFFSET(Balance!F29,0,($O$1-1)*12) -> 94399.131 | G13: =OFFSET(Balance!G29,0,($O$1-1)*12) -> 117376.701 | H13: =OFFSET(Balance!H29,0,($O$1-1)*12) -> 136474.618 | I13: =OFFSET(Balance!I29,0,($O$1-1)*12) -> 178484.086 | J13: =OFFSET(Balance!J29,0,($O$1-1)*12) -> 180692.335 | K13: =OFFSET(Balance!K29,0,($O$1-1)*12) -> 147182.118 | L13: =OFFSET(Balance!L29,0,($O$1-1)*12) -> - | M13: =OFFSET(Balance!M29,0,($O$1-1)*12) -> - | N13: =OFFSET(Balance!N29,0,($O$1-1)*12) -> - | O13: =SUM(O11:O12) -> 1145373.631
B14: Ciclo combinado (2) | C14: =OFFSET(Balance!C30,0,($O$1-1)*12) -> 31201.088 | D14: =OFFSET(Balance!D30,0,($O$1-1)*12) -> 48135.34 | E14: =OFFSET(Balance!E30,0,($O$1-1)*12) -> 39439.262 | F14: =OFFSET(Balance!F30,0,($O$1-1)*12) -> 48047.037 | G14: =OFFSET(Balance!G30,0,($O$1-1)*12) -> 45724.514 | H14: =OFFSET(Balance!H30,0,($O$1-1)*12) -> 36755.219 | I14: =OFFSET(Balance!I30,0,($O$1-1)*12) -> 53754.595 | J14: =OFFSET(Balance!J30,0,($O$1-1)*12) -> 62465.704 | K14: =OFFSET(Balance!K30,0,($O$1-1)*12) -> 31104.753 | L14: =OFFSET(Balance!L30,0,($O$1-1)*12) -> - | M14: =OFFSET(Balance!M30,0,($O$1-1)*12) -> - | N14: =OFFSET(Balance!N30,0,($O$1-1)*12) -> - | O14: =IF(SUM(C14:N14)=0,"-",SUM(C14:N14)) -> 396627.512
B15: Generación auxiliar (3) | C15: =OFFSET(Balance!C31,0,($O$1-1)*12) -> 0 | D15: =OFFSET(Balance!D31,0,($O$1-1)*12) -> 0 | E15: =OFFSET(Balance!E31,0,($O$1-1)*12) -> 0 | F15: =OFFSET(Balance!F31,0,($O$1-1)*12) -> 0 | G15: =OFFSET(Balance!G31,0,($O$1-1)*12) -> 258.189 | H15: =OFFSET(Balance!H31,0,($O$1-1)*12) -> 1406.851 | I15: =OFFSET(Balance!I31,0,($O$1-1)*12) -> 3408.733 | J15: =OFFSET(Balance!J31,0,($O$1-1)*12) -> 5196.124 | K15: =OFFSET(Balance!K31,0,($O$1-1)*12) -> 2265.332 | L15: =OFFSET(Balance!L31,0,($O$1-1)*12) -> - | M15: =OFFSET(Balance!M31,0,($O$1-1)*12) -> - | N15: =OFFSET(Balance!N31,0,($O$1-1)*12) -> - | O15: =IF(SUM(C15:N15)=0,"-",SUM(C15:N15)) -> 12535.229
B16: Régimen ordinario | C16: =OFFSET(Balance!C32,0,($O$1-1)*12) -> - | D16: =OFFSET(Balance!D32,0,($O$1-1)*12) -> - | E16: =OFFSET(Balance!E32,0,($O$1-1)*12) -> - | F16: =OFFSET(Balance!F32,0,($O$1-1)*12) -> - | G16: =OFFSET(Balance!G32,0,($O$1-1)*12) -> - | H16: =OFFSET(Balance!H32,0,($O$1-1)*12) -> - | I16: =OFFSET(Balance!I32,0,($O$1-1)*12) -> - | J16: =OFFSET(Balance!J32,0,($O$1-1)*12) -> - | K16: =OFFSET(Balance!K32,0,($O$1-1)*12) -> - | L16: =OFFSET(Balance!L32,0,($O$1-1)*12) -> - | M16: =OFFSET(Balance!M32,0,($O$1-1)*12) -> - | N16: =OFFSET(Balance!N32,0,($O$1-1)*12) -> - | O16: =SUM(O10,O13:O15) -> 3468983.664
B18: Eólica | C18: =OFFSET(Balance!C33,0,($O$1-1)*12) -> 252.64 | D18: =OFFSET(Balance!D33,0,($O$1-1)*12) -> 324.012 | E18: =OFFSET(Balance!E33,0,($O$1-1)*12) -> 405.924 | F18: =OFFSET(Balance!F33,0,($O$1-1)*12) -> 282.65 | G18: =OFFSET(Balance!G33,0,($O$1-1)*12) -> 228.893 | H18: =OFFSET(Balance!H33,0,($O$1-1)*12) -> 138.682 | I18: =OFFSET(Balance!I33,0,($O$1-1)*12) -> 139.329 | J18: =OFFSET(Balance!J33,0,($O$1-1)*12) -> 192.208 | K18: =OFFSET(Balance!K33,0,($O$1-1)*12) -> 198.176 | L18: =OFFSET(Balance!L33,0,($O$1-1)*12) -> - | M18: =OFFSET(Balance!M33,0,($O$1-1)*12) -> - | N18: =OFFSET(Balance!N33,0,($O$1-1)*12) -> - | O18: 2162.514
B19: Solar fotovoltaica | C19: =OFFSET(Balance!C34,0,($O$1-1)*12) -> 7038.017 | D19: =OFFSET(Balance!D34,0,($O$1-1)*12) -> 5329.54 | E19: =OFFSET(Balance!E34,0,($O$1-1)*12) -> 10195.877 | F19: =OFFSET(Balance!F34,0,($O$1-1)*12) -> 11476.928 | G19: =OFFSET(Balance!G34,0,($O$1-1)*12) -> 11838.782 | H19: =OFFSET(Balance!H34,0,($O$1-1)*12) -> 12382.848 | I19: =OFFSET(Balance!I34,0,($O$1-1)*12) -> 13421.057 | J19: =OFFSET(Balance!J34,0,($O$1-1)*12) -> 11261.585 | K19: =OFFSET(Balance!K34,0,($O$1-1)*12) -> 9045.834 | L19: =OFFSET(Balance!L34,0,($O$1-1)*12) -> - | M19: =OFFSET(Balance!M34,0,($O$1-1)*12) -> - | N19: =OFFSET(Balance!N34,0,($O$1-1)*12) -> - | O19: 91990.468
B20: Otras renovables | C20: =OFFSET(Balance!C35,0,($O$1-1)*12) -> 219.363 | D20: =OFFSET(Balance!D35,0,($O$1-1)*12) -> 166.24 | E20: =OFFSET(Balance!E35,0,($O$1-1)*12) -> 184.165 | F20: =OFFSET(Balance!F35,0,($O$1-1)*12) -> 130.801 | G20: =OFFSET(Balance!G35,0,($O$1-1)*12) -> 127.68 | H20: =OFFSET(Balance!H35,0,($O$1-1)*12) -> 110.028 | I20: =OFFSET(Balance!I35,0,($O$1-1)*12) -> 57.737 | J20: =OFFSET(Balance!J35,0,($O$1-1)*12) -> 56.852 | K20: =OFFSET(Balance!K35,0,($O$1-1)*12) -> 19.17 | L20: =OFFSET(Balance!L35,0,($O$1-1)*12) -> - | M20: =OFFSET(Balance!M35,0,($O$1-1)*12) -> - | N20: =OFFSET(Balance!N35,0,($O$1-1)*12) -> - | O20: 1072.036
B21: Cogeneración | C21: =OFFSET(Balance!C36,0,($O$1-1)*12) -> 3182.987 | D21: =OFFSET(Balance!D36,0,($O$1-1)*12) -> 3083.654 | E21: =OFFSET(Balance!E36,0,($O$1-1)*12) -> 2294.685 | F21: =OFFSET(Balance!F36,0,($O$1-1)*12) -> 1982.166 | G21: =OFFSET(Balance!G36,0,($O$1-1)*12) -> 2578.575 | H21: =OFFSET(Balance!H36,0,($O$1-1)*12) -> 3357.242 | I21: =OFFSET(Balance!I36,0,($O$1-1)*12) -> 3565.564 | J21: =OFFSET(Balance!J36,0,($O$1-1)*12) -> 3515.458 | K21: =OFFSET(Balance!K36,0,($O$1-1)*12) -> 2436.55 | L21: =OFFSET(Balance!L36,0,($O$1-1)*12) -> - | M21: =OFFSET(Balance!M36,0,($O$1-1)*12) -> - | N21: =OFFSET(Balance!N36,0,($O$1-1)*12) -> - | O21: 25996.881
B22: Residuos no renovables | C22: =OFFSET(Balance!C37,0,($O$1-1)*12) -> 7481.4245 | D22: =OFFSET(Balance!D37,0,($O$1-1)*12) -> 4455.9545 | E22: =OFFSET(Balance!E37,0,($O$1-1)*12) -> 11199.8515 | F22: =OFFSET(Balance!F37,0,($O$1-1)*12) -> 10486.7385 | G22: =OFFSET(Balance!G37,0,($O$1-1)*12) -> 10524.592 | H22: =OFFSET(Balance!H37,0,($O$1-1)*12) -> 14709.1545 | I22: =OFFSET(Balance!I37,0,($O$1-1)*12) -> 14429.119 | J22: =OFFSET(Balance!J37,0,($O$1-1)*12) -> 14961.3625 | K22: =OFFSET(Balance!K37,0,($O$1-1)*12) -> 13453.5695 | L22: =OFFSET(Balance!L37,0,($O$1-1)*12) -> - | M22: =OFFSET(Balance!M37,0,($O$1-1)*12) -> - | N22: =OFFSET(Balance!N37,0,($O$1-1)*12) -> - | O22: =IF(SUM(C22:N22)=0,"-",SUM(C22:N22)) -> 101701.7665
B23: Residuos renovables | C23: =OFFSET(Balance!C38,0,($O$1-1)*12) -> 7481.4245 | D23: =OFFSET(Balance!D38,0,($O$1-1)*12) -> 4455.9545 | E23: =OFFSET(Balance!E38,0,($O$1-1)*12) -> 11199.8515 | F23: =OFFSET(Balance!F38,0,($O$1-1)*12) -> 10486.7385 | G23: =OFFSET(Balance!G38,0,($O$1-1)*12) -> 10524.592 | H23: =OFFSET(Balance!H38,0,($O$1-1)*12) -> 14709.1545 | I23: =OFFSET(Balance!I38,0,($O$1-1)*12) -> 14429.119 | J23: =OFFSET(Balance!J38,0,($O$1-1)*12) -> 14961.3625 | K23: =OFFSET(Balance!K38,0,($O$1-1)*12) -> 13453.5695 | L23: =OFFSET(Balance!L38,0,($O$1-1)*12) -> - | M23: =OFFSET(Balance!M38,0,($O$1-1)*12) -> - | N23: =OFFSET(Balance!N38,0,($O$1-1)*12) -> - | O23: =IF(SUM(C23:N23)=0,"-",SUM(C23:N23)) -> 101701.7665
B24: Régimen especial | C24: =OFFSET(Balance!C39,0,($O$1-1)*12) -> - | D24: =OFFSET(Balance!D39,0,($O$1-1)*12) -> - | E24: =OFFSET(Balance!E39,0,($O$1-1)*12) -> - | F24: =OFFSET(Balance!F39,0,($O$1-1)*12) -> - | G24: =OFFSET(Balance!G39,0,($O$1-1)*12) -> - | H24: =OFFSET(Balance!H39,0,($O$1-1)*12) -> - | I24: =OFFSET(Balance!I39,0,($O$1-1)*12) -> - | J24: =OFFSET(Balance!J39,0,($O$1-1)*12) -> - | K24: =OFFSET(Balance!K39,0,($O$1-1)*12) -> - | L24: =OFFSET(Balance!L39,0,($O$1-1)*12) -> - | M24: =OFFSET(Balance!M39,0,($O$1-1)*12) -> - | N24: =OFFSET(Balance!N39,0,($O$1-1)*12) -> - | O24: =SUM(O18:O23) -> 324625.432
B25: Generación | C25: =OFFSET(Balance!C40,0,($O$1-1)*12) -> 350344.411 | D25: =OFFSET(Balance!D40,0,($O$1-1)*12) -> 357597.82 | E25: =OFFSET(Balance!E40,0,($O$1-1)*12) -> 371721.199 | F25: =OFFSET(Balance!F40,0,($O$1-1)*12) -> 360348.411 | G25: =OFFSET(Balance!G40,0,($O$1-1)*12) -> 384510.341 | H25: =OFFSET(Balance!H40,0,($O$1-1)*12) -> 424923.528 | I25: =OFFSET(Balance!I40,0,($O$1-1)*12) -> 523757.818 | J25: =OFFSET(Balance!J40,0,($O$1-1)*12) -> 550616.101 | K25: =OFFSET(Balance!K40,0,($O$1-1)*12) -> 469789.467 | L25: =OFFSET(Balance!L40,0,($O$1-1)*12) -> - | M25: =OFFSET(Balance!M40,0,($O$1-1)*12) -> - | N25: =OFFSET(Balance!N40,0,($O$1-1)*12) -> - | O25: =SUM(O16:O17,O24) -> 3793609.096
B26: Enlace Península-Baleares (5) | C26: =OFFSET(Balance!C41,0,($O$1-1)*12) -> 86203.829 | D26: =OFFSET(Balance!D41,0,($O$1-1)*12) -> 99993.399 | E26: =OFFSET(Balance!E41,0,($O$1-1)*12) -> 89996.875 | F26: =OFFSET(Balance!F41,0,($O$1-1)*12) -> 66467.52 | G26: =OFFSET(Balance!G41,0,($O$1-1)*12) -> 89565.091 | H26: =OFFSET(Balance!H41,0,($O$1-1)*12) -> 108623.635 | I26: =OFFSET(Balance!I41,0,($O$1-1)*12) -> 161791.603 | J26: =OFFSET(Balance!J41,0,($O$1-1)*12) -> 153133.589 | K26: =OFFSET(Balance!K41,0,($O$1-1)*12) -> 107931.268 | L26: =OFFSET(Balance!L41,0,($O$1-1)*12) -> - | M26: =OFFSET(Balance!M41,0,($O$1-1)*12) -> - | N26: =OFFSET(Balance!N41,0,($O$1-1)*12) -> - | O26: 963706.809
B27: Demanda transporte (b.c.) | C27: =OFFSET(Balance!C42,0,($O$1-1)*12) -> 436548.24 | D27: =OFFSET(Balance!D42,0,($O$1-1)*12) -> 457591.219 | E27: =OFFSET(Balance!E42,0,($O$1-1)*12) -> 461718.074 | F27: =OFFSET(Balance!F42,0,($O$1-1)*12) -> 426815.931 | G27: =OFFSET(Balance!G42,0,($O$1-1)*12) -> 474075.432 | H27: =OFFSET(Balance!H42,0,($O$1-1)*12) -> 533547.163 | I27: =OFFSET(Balance!I42,0,($O$1-1)*12) -> 685549.421 | J27: =OFFSET(Balance!J42,0,($O$1-1)*12) -> 703749.69 | K27: =OFFSET(Balance!K42,0,($O$1-1)*12) -> 577720.735 | L27: =OFFSET(Balance!L42,0,($O$1-1)*12) -> - | M27: =OFFSET(Balance!M42,0,($O$1-1)*12) -> - | N27: =OFFSET(Balance!N42,0,($O$1-1)*12) -> - | O27: =SUM(O25:O26) -> 4757315.905
B28: (1) Asignación de unidades de producción según combustible principal.
B29: (2) Incluye funcionamiento en ciclo abierto.
B30: (3) Grupos de emergencia que se instalan de forma transitoria en determinadas zonas para cubrir un déficit de generación.
B31: (4) Hasta 2010 incluye residuos.
B32: (5) Valor positivo: entrada de energía en el sistema; valor negativo: salida de energía del sistema. Enlace funcionando al mínimo técnico de seguridad hasta el 13/08/2012.
B33: ='Balance nacional mensual'!B38 -> Datos definitivos hasta el 31/03/2017. Datos provisionales del 01/04/2017 al 31/08/2018. Datos programados del 01/09/2018 al 30/09/2018.

Sheet Balance Baleares anual
J1: 2
I4: Sistema eléctrico
I5: Horizonte temporal
I6: Periodo
C8: =OFFSET(Balance!C130,0,($J$1-1)*8) -> 2014 | D8: =OFFSET(Balance!D130,0,($J$1-1)*8) -> 2015 | E8: =OFFSET(Balance!E130,0,($J$1-1)*8) -> 2016 | F8: =OFFSET(Balance!F130,0,($J$1-1)*8) -> 2017 | G8: =OFFSET(Balance!G130,0,($J$1-1)*8) -> 2018 | H8: =OFFSET(Balance!H130,0,($J$1-1)*8) -> 2019 | I8: =OFFSET(Balance!I130,0,($J$1-1)*8) -> 2020 | J8: =OFFSET(Balance!J130,0,($J$1-1)*8) -> 2021
B10: Carbón | C10: =OFFSET(Balance!C131,0,($J$1-1)*8) -> 2187777.726 | D10: =OFFSET(Balance!D131,0,($J$1-1)*8) -> 1861683.087 | E10: =OFFSET(Balance!E131,0,($J$1-1)*8) -> 2302867.971 | F10: =OFFSET(Balance!F131,0,($J$1-1)*8) -> 2598502.443 | G10: =OFFSET(Balance!G131,0,($J$1-1)*8) -> 1914447.292 | H10: =OFFSET(Balance!H131,0,($J$1-1)*8) -> - | I10: =OFFSET(Balance!I131,0,($J$1-1)*8) -> - | J10: =OFFSET(Balance!J131,0,($J$1-1)*8) -> -
B11: Motores diesel | C11: =OFFSET(Balance!C132,0,($J$1-1)*8) -> 666783.56 | D11: =OFFSET(Balance!D132,0,($J$1-1)*8) -> 724983.971 | E11: =OFFSET(Balance!E132,0,($J$1-1)*8) -> 961260.82 | F11: =OFFSET(Balance!F132,0,($J$1-1)*8) -> 795987.56 | G11: =OFFSET(Balance!G132,0,($J$1-1)*8) -> 502130.729 | H11: =OFFSET(Balance!H132,0,($J$1-1)*8) -> - | I11: =OFFSET(Balance!I132,0,($J$1-1)*8) -> - | J11: =OFFSET(Balance!J132,0,($J$1-1)*8) -> -
B12: Turbina de gas | C12: =OFFSET(Balance!C133,0,($J$1-1)*8) -> 585387.882 | D12: =OFFSET(Balance!D133,0,($J$1-1)*8) -> 586589.299 | E12: =OFFSET(Balance!E133,0,($J$1-1)*8) -> 339758.265 | F12: =OFFSET(Balance!F133,0,($J$1-1)*8) -> 556524.574 | G12: =OFFSET(Balance!G133,0,($J$1-1)*8) -> 643242.902 | H12: =OFFSET(Balance!H133,0,($J$1-1)*8) -> - | I12: =OFFSET(Balance!I133,0,($J$1-1)*8) -> - | J12: =OFFSET(Balance!J133,0,($J$1-1)*8) -> -
B13: Fuel + Gas | C13: =OFFSET(Balance!C134,0,($J$1-1)*8) -> 1252171.442 | D13: =OFFSET(Balance!D134,0,($J$1-1)*8) -> 1311573.27 | E13: =OFFSET(Balance!E134,0,($J$1-1)*8) -> 1301019.085 | F13: =OFFSET(Balance!F134,0,($J$1-1)*8) -> 1352512.134 | G13: =OFFSET(Balance!G134,0,($J$1-1)*8) -> 1145373.631 | H13: =OFFSET(Balance!H134,0,($J$1-1)*8) -> - | I13: =OFFSET(Balance!I134,0,($J$1-1)*8) -> - | J13: =OFFSET(Balance!J134,0,($J$1-1)*8) -> -
B14: Ciclo combinado (2) | C14: =OFFSET(Balance!C135,0,($J$1-1)*8) -> 419633.12 | D14: =OFFSET(Balance!D135,0,($J$1-1)*8) -> 804686.986 | E14: =OFFSET(Balance!E135,0,($J$1-1)*8) -> 535082.095 | F14: =OFFSET(Balance!F135,0,($J$1-1)*8) -> 420429.356 | G14: =OFFSET(Balance!G135,0,($J$1-1)*8) -> 396627.512 | H14: =OFFSET(Balance!H135,0,($J$1-1)*8) -> - | I14: =OFFSET(Balance!I135,0,($J$1-1)*8) -> - | J14: =OFFSET(Balance!J135,0,($J$1-1)*8) -> -
B15: Generación auxiliar (3) | C15: =OFFSET(Balance!C136,0,($J$1-1)*8) -> 7694.094 | D15: =OFFSET(Balance!D136,0,($J$1-1)*8) -> 10578.49 | E15: =OFFSET(Balance!E136,0,($J$1-1)*8) -> 10092.819 | F15: =OFFSET(Balance!F136,0,($J$1-1)*8) -> 14746.465 | G15: =OFFSET(Balance!G136,0,($J$1-1)*8) -> 12535.229 | H15: =OFFSET(Balance!H136,0,($J$1-1)*8) -> - | I15: =OFFSET(Balance!I136,0,($J$1-1)*8) -> - | J15: =OFFSET(Balance!J136,0,($J$1-1)*8) -> -
B16: Régimen ordinario | C16: =OFFSET(Balance!C137,0,($J$1-1)*8) ->  | D16: =OFFSET(Balance!D137,0,($J$1-1)*8) ->  | E16: =OFFSET(Balance!E137,0,($J$1-1)*8) ->  | F16: =OFFSET(Balance!F137,0,($J$1-1)*8) ->  | G16: =OFFSET(Balance!G137,0,($J$1-1)*8) ->  | H16: =OFFSET(Balance!H137,0,($J$1-1)*8) ->  | I16: =OFFSET(Balance!I137,0,($J$1-1)*8) ->  | J16: =OFFSET(Balance!J137,0,($J$1-1)*8) -> 
B18: Eólica | C18: =OFFSET(Balance!C138,0,($J$1-1)*8) -> 5839.578 | D18: =OFFSET(Balance!D138,0,($J$1-1)*8) -> 5318.228 | E18: =OFFSET(Balance!E138,0,($J$1-1)*8) -> 5416.058 | F18: =OFFSET(Balance!F138,0,($J$1-1)*8) -> 2924.276 | G18: =OFFSET(Balance!G138,0,($J$1-1)*8) -> 2162.514 | H18: =OFFSET(Balance!H138,0,($J$1-1)*8) -> - | I18: =OFFSET(Balance!I138,0,($J$1-1)*8) -> - | J18: =OFFSET(Balance!J138,0,($J$1-1)*8) -> -
B19: Solar fotovoltaica | C19: =OFFSET(Balance!C139,0,($J$1-1)*8) -> 122765.689 | D19: =OFFSET(Balance!D139,0,($J$1-1)*8) -> 122619.803 | E19: =OFFSET(Balance!E139,0,($J$1-1)*8) -> 120507.53 | F19: =OFFSET(Balance!F139,0,($J$1-1)*8) -> 123336.939 | G19: =OFFSET(Balance!G139,0,($J$1-1)*8) -> 91990.468 | H19: =OFFSET(Balance!H139,0,($J$1-1)*8) -> - | I19: =OFFSET(Balance!I139,0,($J$1-1)*8) -> - | J19: =OFFSET(Balance!J139,0,($J$1-1)*8) -> -
B20: Térmica renovable(4)/Otras renovables | C20: =OFFSET(Balance!C140,0,($J$1-1)*8) -> 1945.659 | D20: =OFFSET(Balance!D140,0,($J$1-1)*8) -> 1971.549 | E20: =OFFSET(Balance!E140,0,($J$1-1)*8) -> 1309.715 | F20: =OFFSET(Balance!F140,0,($J$1-1)*8) -> 1626.741 | G20: =OFFSET(Balance!G140,0,($J$1-1)*8) -> 1072.036 | H20: =OFFSET(Balance!H140,0,($J$1-1)*8) -> - | I20: =OFFSET(Balance!I140,0,($J$1-1)*8) -> - | J20: =OFFSET(Balance!J140,0,($J$1-1)*8) -> -
B21: Cogeneración y resto(4)/Cogeneración | C21: =OFFSET(Balance!C141,0,($J$1-1)*8) -> 25222.584 | D21: =OFFSET(Balance!D141,0,($J$1-1)*8) -> 31549.727 | E21: =OFFSET(Balance!E141,0,($J$1-1)*8) -> 34701.317 | F21: =OFFSET(Balance!F141,0,($J$1-1)*8) -> 36244.234 | G21: =OFFSET(Balance!G141,0,($J$1-1)*8) -> 25996.881 | H21: =OFFSET(Balance!H141,0,($J$1-1)*8) -> - | I21: =OFFSET(Balance!I141,0,($J$1-1)*8) -> - | J21: =OFFSET(Balance!J141,0,($J$1-1)*8) -> -
B22: Residuos no renovables | C22: =OFFSET(Balance!C142,0,($J$1-1)*8) -> 128084.3295 | D22: =OFFSET(Balance!D142,0,($J$1-1)*8) -> 151097.7295 | E22: =OFFSET(Balance!E142,0,($J$1-1)*8) -> 130805.0665 | F22: =OFFSET(Balance!F142,0,($J$1-1)*8) -> 143878.668 | G22: =OFFSET(Balance!G142,0,($J$1-1)*8) -> 101701.7665 | H22: =OFFSET(Balance!H142,0,($J$1-1)*8) -> - | I22: =OFFSET(Balance!I142,0,($J$1-1)*8) -> - | J22: =OFFSET(Balance!J142,0,($J$1-1)*8) -> -
B23: Residuos renovables | C23: =OFFSET(Balance!C143,0,($J$1-1)*8) -> 128084.3295 | D23: =OFFSET(Balance!D143,0,($J$1-1)*8) -> 151097.7295 | E23: =OFFSET(Balance!E143,0,($J$1-1)*8) -> 130805.0665 | F23: =OFFSET(Balance!F143,0,($J$1-1)*8) -> 143878.668 | G23: =OFFSET(Balance!G143,0,($J$1-1)*8) -> 101701.7665 | H23: =OFFSET(Balance!H143,0,($J$1-1)*8) -> - | I23: =OFFSET(Balance!I143,0,($J$1-1)*8) -> - | J23: =OFFSET(Balance!J143,0,($J$1-1)*8) -> -
B24: Régimen especial | C24: =OFFSET(Balance!C144,0,($J$1-1)*8) ->  | D24: =OFFSET(Balance!D144,0,($J$1-1)*8) ->  | E24: =OFFSET(Balance!E144,0,($J$1-1)*8) ->  | F24: =OFFSET(Balance!F144,0,($J$1-1)*8) ->  | G24: =OFFSET(Balance!G144,0,($J$1-1)*8) ->  | H24: =OFFSET(Balance!H144,0,($J$1-1)*8) ->  | I24: =OFFSET(Balance!I144,0,($J$1-1)*8) ->  | J24: =OFFSET(Balance!J144,0,($J$1-1)*8) -> 
B25: Generación | C25: =OFFSET(Balance!C145,0,($J$1-1)*8) -> 4279218.551 | D25: =OFFSET(Balance!D145,0,($J$1-1)*8) -> 4452176.599 | E25: =OFFSET(Balance!E145,0,($J$1-1)*8) -> 4572606.723 | F25: =OFFSET(Balance!F145,0,($J$1-1)*8) -> 4838079.924 | G25: =OFFSET(Balance!G145,0,($J$1-1)*8) -> 3793609.096 | H25: =OFFSET(Balance!H145,0,($J$1-1)*8) -> - | I25: =OFFSET(Balance!I145,0,($J$1-1)*8) -> - | J25: =OFFSET(Balance!J145,0,($J$1-1)*8) -> -
B26: Enlace Península-Baleares (5) | C26: =OFFSET(Balance!C146,0,($J$1-1)*8) -> 1298258.934 | D26: =OFFSET(Balance!D146,0,($J$1-1)*8) -> 1335792.544 | E26: =OFFSET(Balance!E146,0,($J$1-1)*8) -> 1250583.968 | F26: =OFFSET(Balance!F146,0,($J$1-1)*8) -> 1179306.642 | G26: =OFFSET(Balance!G146,0,($J$1-1)*8) -> 963706.809 | H26: =OFFSET(Balance!H146,0,($J$1-1)*8) -> - | I26: =OFFSET(Balance!I146,0,($J$1-1)*8) -> - | J26: =OFFSET(Balance!J146,0,($J$1-1)*8) -> -
B27: Demanda transporte (b.c.) | C27: =OFFSET(Balance!C147,0,($J$1-1)*8) -> 5577477.485 | D27: =OFFSET(Balance!D147,0,($J$1-1)*8) -> 5787969.143 | E27: =OFFSET(Balance!E147,0,($J$1-1)*8) -> 5823190.691 | F27: =OFFSET(Balance!F147,0,($J$1-1)*8) -> 6017386.566 | G27: =OFFSET(Balance!G147,0,($J$1-1)*8) -> 4757315.905 | H27: =OFFSET(Balance!H147,0,($J$1-1)*8) -> - | I27: =OFFSET(Balance!I147,0,($J$1-1)*8) -> - | J27: =OFFSET(Balance!J147,0,($J$1-1)*8) -> -
B28: (1) Asignación de unidades de producción según combustible principal.
B29: (2) Incluye funcionamiento en ciclo abierto.
B30: (3) Grupos de emergencia que se instalan de forma transitoria en determinadas zonas para cubrir un déficit de generación.
B31: (4) Hasta 2014 e incluye residuos hasta 2010.
B32: (4) Incluye residuos hasta 2010.
B33: (5) Valor positivo: entrada de energía en el sistema; valor negativo: salida de energía del sistema. Enlace funcionando al mínimo técnico de seguridad hasta el 13/08/2012.
B34: =IF(MONTH(FACT)=1,"",CONCATENATE("Para el año ",YEAR(FACT), " valores acumulados hasta ",TEXT(FACT-30,"mmmm")," de ",YEAR(FACT),".")) -> Para el año 2018 valores acumulados hasta septiembre de 2018.
B35: ='Balance nacional mensual'!B38 -> Datos definitivos hasta el 31/03/2017. Datos provisionales del 01/04/2017 al 31/08/2018. Datos programados del 01/09/2018 al 30/09/2018.

Sheet Balance Canarias mensual
O1: 13
M4: Sistema eléctrico
M5: Horizonte temporal
M6: Periodo
C8: Ene. | D8: Feb. | E8: Mar. | F8: Abr. | G8: May. | H8: Jun. | I8: Jul. | J8: Ago. | K8: Sep. | L8: Oct. | M8: Nov. | N8: Dic. | O8: =OFFSET(Año!C18,($O$1-1),0) -> 2018
B10: Hidráulica | C10: =OFFSET(Balance!C45,0,($O$1-1)*12) -> 279.432 | D10: =OFFSET(Balance!D45,0,($O$1-1)*12) -> 34.173 | E10: =OFFSET(Balance!E45,0,($O$1-1)*12) -> 309.527 | F10: =OFFSET(Balance!F45,0,($O$1-1)*12) -> 276.123 | G10: =OFFSET(Balance!G45,0,($O$1-1)*12) -> 308.334 | H10: =OFFSET(Balance!H45,0,($O$1-1)*12) -> 294.482 | I10: =OFFSET(Balance!I45,0,($O$1-1)*12) -> 295.596 | J10: =OFFSET(Balance!J45,0,($O$1-1)*12) -> 307.64 | K10: =OFFSET(Balance!K45,0,($O$1-1)*12) -> 288.399 | L10: =OFFSET(Balance!L45,0,($O$1-1)*12) -> - | M10: =OFFSET(Balance!M45,0,($O$1-1)*12) -> - | N10: =OFFSET(Balance!N45,0,($O$1-1)*12) -> - | O10: =IF(SUM(C10:N10)=0,"-",SUM(C10:N10)) -> 2393.706
B11: Motores diesel | C11: =OFFSET(Balance!C46,0,($O$1-1)*12) -> 184470.955 | D11: =OFFSET(Balance!D46,0,($O$1-1)*12) -> 165518.859 | E11: =OFFSET(Balance!E46,0,($O$1-1)*12) -> 176176.586 | F11: =OFFSET(Balance!F46,0,($O$1-1)*12) -> 171464.6 | G11: =OFFSET(Balance!G46,0,($O$1-1)*12) -> 172148.367 | H11: =OFFSET(Balance!H46,0,($O$1-1)*12) -> 162836.706 | I11: =OFFSET(Balance!I46,0,($O$1-1)*12) -> 173812.749 | J11: =OFFSET(Balance!J46,0,($O$1-1)*12) -> 196430.051 | K11: =OFFSET(Balance!K46,0,($O$1-1)*12) -> 187122.561 | L11: =OFFSET(Balance!L46,0,($O$1-1)*12) -> - | M11: =OFFSET(Balance!M46,0,($O$1-1)*12) -> - | N11: =OFFSET(Balance!N46,0,($O$1-1)*12) -> - | O11: =IF(SUM(C11:N11)=0,"-",SUM(C11:N11)) -> 1589981.434
B12: Turbina de gas | C12: =OFFSET(Balance!C47,0,($O$1-1)*12) -> 27249.141 | D12: =OFFSET(Balance!D47,0,($O$1-1)*12) -> 24751.364 | E12: =OFFSET(Balance!E47,0,($O$1-1)*12) -> 19300.776 | F12: =OFFSET(Balance!F47,0,($O$1-1)*12) -> 22020.657 | G12: =OFFSET(Balance!G47,0,($O$1-1)*12) -> 27236.414 | H12: =OFFSET(Balance!H47,0,($O$1-1)*12) -> 24035.203 | I12: =OFFSET(Balance!I47,0,($O$1-1)*12) -> 19071.615 | J12: =OFFSET(Balance!J47,0,($O$1-1)*12) -> 22472.683 | K12: =OFFSET(Balance!K47,0,($O$1-1)*12) -> 28508.218 | L12: =OFFSET(Balance!L47,0,($O$1-1)*12) -> - | M12: =OFFSET(Balance!M47,0,($O$1-1)*12) -> - | N12: =OFFSET(Balance!N47,0,($O$1-1)*12) -> - | O12: =IF(SUM(C12:N12)=0,"-",SUM(C12:N12)) -> 214646.071
B13: Turbina de vapor | C13: =OFFSET(Balance!C48,0,($O$1-1)*12) -> 230384.784 | D13: =OFFSET(Balance!D48,0,($O$1-1)*12) -> 210409.161 | E13: =OFFSET(Balance!E48,0,($O$1-1)*12) -> 195203.052 | F13: =OFFSET(Balance!F48,0,($O$1-1)*12) -> 189558.611 | G13: =OFFSET(Balance!G48,0,($O$1-1)*12) -> 186409.186 | H13: =OFFSET(Balance!H48,0,($O$1-1)*12) -> 200030.849 | I13: =OFFSET(Balance!I48,0,($O$1-1)*12) -> 206693.728 | J13: =OFFSET(Balance!J48,0,($O$1-1)*12) -> 214943.949 | K13: =OFFSET(Balance!K48,0,($O$1-1)*12) -> 188605.344 | L13: =OFFSET(Balance!L48,0,($O$1-1)*12) -> - | M13: =OFFSET(Balance!M48,0,($O$1-1)*12) -> - | N13: =OFFSET(Balance!N48,0,($O$1-1)*12) -> - | O13: =IF(SUM(C13:N13)=0,"-",SUM(C13:N13)) -> 1822238.664
B14: Fuel + Gas | C14: =OFFSET(Balance!C49,0,($O$1-1)*12) -> 442104.88 | D14: =OFFSET(Balance!D49,0,($O$1-1)*12) -> 400679.384 | E14: =OFFSET(Balance!E49,0,($O$1-1)*12) -> 390680.414 | F14: =OFFSET(Balance!F49,0,($O$1-1)*12) -> 383043.868 | G14: =OFFSET(Balance!G49,0,($O$1-1)*12) -> 385793.967 | H14: =OFFSET(Balance!H49,0,($O$1-1)*12) -> 386902.758 | I14: =OFFSET(Balance!I49,0,($O$1-1)*12) -> 399578.092 | J14: =OFFSET(Balance!J49,0,($O$1-1)*12) -> 433846.683 | K14: =OFFSET(Balance!K49,0,($O$1-1)*12) -> 404236.123 | L14: =OFFSET(Balance!L49,0,($O$1-1)*12) -> - | M14: =OFFSET(Balance!M49,0,($O$1-1)*12) -> - | N14: =OFFSET(Balance!N49,0,($O$1-1)*12) -> - | O14: =IF(SUM(C14:N14)=0,"-",SUM(C14:N14)) -> 3626866.169
B15: Ciclo combinado (2) | C15: =OFFSET(Balance!C50,0,($O$1-1)*12) -> 233901.625 | D15: =OFFSET(Balance!D50,0,($O$1-1)*12) -> 215216.772 | E15: =OFFSET(Balance!E50,0,($O$1-1)*12) -> 260839.181 | F15: =OFFSET(Balance!F50,0,($O$1-1)*12) -> 246337.683 | G15: =OFFSET(Balance!G50,0,($O$1-1)*12) -> 248616.789 | H15: =OFFSET(Balance!H50,0,($O$1-1)*12) -> 234948.236 | I15: =OFFSET(Balance!I50,0,($O$1-1)*12) -> 230145.596 | J15: =OFFSET(Balance!J50,0,($O$1-1)*12) -> 251789.052 | K15: =OFFSET(Balance!K50,0,($O$1-1)*12) -> 281474.674 | L15: =OFFSET(Balance!L50,0,($O$1-1)*12) -> - | M15: =OFFSET(Balance!M50,0,($O$1-1)*12) -> - | N15: =OFFSET(Balance!N50,0,($O$1-1)*12) -> - | O15: 2203269.608
B16: Generación auxiliar (3) | C16: =OFFSET(Balance!C51,0,($O$1-1)*12) -> 0 | D16: =OFFSET(Balance!D51,0,($O$1-1)*12) -> 0 | E16: =OFFSET(Balance!E51,0,($O$1-1)*12) -> 0 | F16: =OFFSET(Balance!F51,0,($O$1-1)*12) -> 0 | G16: =OFFSET(Balance!G51,0,($O$1-1)*12) -> 0 | H16: =OFFSET(Balance!H51,0,($O$1-1)*12) -> 0 | I16: =OFFSET(Balance!I51,0,($O$1-1)*12) -> 0 | J16: =OFFSET(Balance!J51,0,($O$1-1)*12) -> 0 | K16: =OFFSET(Balance!K51,0,($O$1-1)*12) -> 0 | L16: =OFFSET(Balance!L51,0,($O$1-1)*12) -> - | M16: =OFFSET(Balance!M51,0,($O$1-1)*12) -> - | N16: =OFFSET(Balance!N51,0,($O$1-1)*12) -> - | O16: -
B17: Régimen ordinario | C17: =OFFSET(Balance!C52,0,($O$1-1)*12) -> - | D17: =OFFSET(Balance!D52,0,($O$1-1)*12) -> - | E17: =OFFSET(Balance!E52,0,($O$1-1)*12) -> - | F17: =OFFSET(Balance!F52,0,($O$1-1)*12) -> - | G17: =OFFSET(Balance!G52,0,($O$1-1)*12) -> - | H17: =OFFSET(Balance!H52,0,($O$1-1)*12) -> - | I17: =OFFSET(Balance!I52,0,($O$1-1)*12) -> - | J17: =OFFSET(Balance!J52,0,($O$1-1)*12) -> - | K17: =OFFSET(Balance!K52,0,($O$1-1)*12) -> - | L17: =OFFSET(Balance!L52,0,($O$1-1)*12) -> - | M17: =OFFSET(Balance!M52,0,($O$1-1)*12) -> - | N17: =OFFSET(Balance!N52,0,($O$1-1)*12) -> - | O17: =IF(SUM(C17:N17)=0,"-",SUM(C17:N17)) -> -
B19: Hidroeólica | C19: =OFFSET(Balance!C53,0,($O$1-1)*12) -> 2257.767 | D19: =OFFSET(Balance!D53,0,($O$1-1)*12) -> 1754.305 | E19: =OFFSET(Balance!E53,0,($O$1-1)*12) -> 1599.522 | F19: =OFFSET(Balance!F53,0,($O$1-1)*12) -> 2262.646 | G19: =OFFSET(Balance!G53,0,($O$1-1)*12) -> 2034.203 | H19: =OFFSET(Balance!H53,0,($O$1-1)*12) -> 2321.804 | I19: =OFFSET(Balance!I53,0,($O$1-1)*12) -> 3716.283 | J19: =OFFSET(Balance!J53,0,($O$1-1)*12) -> 2859.321 | K19: =OFFSET(Balance!K53,0,($O$1-1)*12) -> 2165.861 | L19: =OFFSET(Balance!L53,0,($O$1-1)*12) -> - | M19: =OFFSET(Balance!M53,0,($O$1-1)*12) -> - | N19: =OFFSET(Balance!N53,0,($O$1-1)*12) -> - | O19: =IF(SUM(C19:N19)=0,"-",SUM(C19:N19)) -> 20971.712
B20: Hidráulica | C20: =OFFSET(Balance!C54,0,($O$1-1)*12) -> - | D20: =OFFSET(Balance!D54,0,($O$1-1)*12) -> - | E20: =OFFSET(Balance!E54,0,($O$1-1)*12) -> - | F20: =OFFSET(Balance!F54,0,($O$1-1)*12) -> - | G20: =OFFSET(Balance!G54,0,($O$1-1)*12) -> - | H20: =OFFSET(Balance!H54,0,($O$1-1)*12) -> - | I20: =OFFSET(Balance!I54,0,($O$1-1)*12) -> - | J20: =OFFSET(Balance!J54,0,($O$1-1)*12) -> - | K20: =OFFSET(Balance!K54,0,($O$1-1)*12) -> - | L20: =OFFSET(Balance!L54,0,($O$1-1)*12) -> - | M20: =OFFSET(Balance!M54,0,($O$1-1)*12) -> - | N20: =OFFSET(Balance!N54,0,($O$1-1)*12) -> - | O20: =IF(SUM(C20:N20)=0,"-",SUM(C20:N20)) -> -
B21: Eólica | C21: =OFFSET(Balance!C55,0,($O$1-1)*12) -> 56908.339 | D21: =OFFSET(Balance!D55,0,($O$1-1)*12) -> 46207.472 | E21: =OFFSET(Balance!E55,0,($O$1-1)*12) -> 50497.744 | F21: =OFFSET(Balance!F55,0,($O$1-1)*12) -> 45548.925 | G21: =OFFSET(Balance!G55,0,($O$1-1)*12) -> 55351.942 | H21: =OFFSET(Balance!H55,0,($O$1-1)*12) -> 56421.117 | I21: =OFFSET(Balance!I55,0,($O$1-1)*12) -> 95148.663 | J21: =OFFSET(Balance!J55,0,($O$1-1)*12) -> 65077.772 | K21: =OFFSET(Balance!K55,0,($O$1-1)*12) -> 51688.221 | L21: =OFFSET(Balance!L55,0,($O$1-1)*12) -> - | M21: =OFFSET(Balance!M55,0,($O$1-1)*12) -> - | N21: =OFFSET(Balance!N55,0,($O$1-1)*12) -> - | O21: 522850.195
B22: Solar fotovoltaica | C22: =OFFSET(Balance!C56,0,($O$1-1)*12) -> 19063.385 | D22: =OFFSET(Balance!D56,0,($O$1-1)*12) -> 17866.654 | E22: =OFFSET(Balance!E56,0,($O$1-1)*12) -> 25080.915 | F22: =OFFSET(Balance!F56,0,($O$1-1)*12) -> 25190.73 | G22: =OFFSET(Balance!G56,0,($O$1-1)*12) -> 23051.194 | H22: =OFFSET(Balance!H56,0,($O$1-1)*12) -> 25992.826 | I22: =OFFSET(Balance!I56,0,($O$1-1)*12) -> 29624.827 | J22: =OFFSET(Balance!J56,0,($O$1-1)*12) -> 27841.747 | K22: =OFFSET(Balance!K56,0,($O$1-1)*12) -> 24190.496 | L22: =OFFSET(Balance!L56,0,($O$1-1)*12) -> - | M22: =OFFSET(Balance!M56,0,($O$1-1)*12) -> - | N22: =OFFSET(Balance!N56,0,($O$1-1)*12) -> - | O22: 217902.774
B23: Otras renovables | C23: =OFFSET(Balance!C57,0,($O$1-1)*12) -> 762.423 | D23: =OFFSET(Balance!D57,0,($O$1-1)*12) -> 646.573 | E23: =OFFSET(Balance!E57,0,($O$1-1)*12) -> 837.294 | F23: =OFFSET(Balance!F57,0,($O$1-1)*12) -> 538.897 | G23: =OFFSET(Balance!G57,0,($O$1-1)*12) -> 750.601 | H23: =OFFSET(Balance!H57,0,($O$1-1)*12) -> 531.015 | I23: =OFFSET(Balance!I57,0,($O$1-1)*12) -> 702.394 | J23: =OFFSET(Balance!J57,0,($O$1-1)*12) -> 816.452 | K23: =OFFSET(Balance!K57,0,($O$1-1)*12) -> 782.909 | L23: =OFFSET(Balance!L57,0,($O$1-1)*12) -> - | M23: =OFFSET(Balance!M57,0,($O$1-1)*12) -> - | N23: =OFFSET(Balance!N57,0,($O$1-1)*12) -> - | O23: 6368.558
B24: Cogeneración | C24: =OFFSET(Balance!C58,0,($O$1-1)*12) -> - | D24: =OFFSET(Balance!D58,0,($O$1-1)*12) -> - | E24: =OFFSET(Balance!E58,0,($O$1-1)*12) -> - | F24: =OFFSET(Balance!F58,0,($O$1-1)*12) -> - | G24: =OFFSET(Balance!G58,0,($O$1-1)*12) -> - | H24: =OFFSET(Balance!H58,0,($O$1-1)*12) -> - | I24: =OFFSET(Balance!I58,0,($O$1-1)*12) -> - | J24: =OFFSET(Balance!J58,0,($O$1-1)*12) -> - | K24: =OFFSET(Balance!K58,0,($O$1-1)*12) -> - | L24: =OFFSET(Balance!L58,0,($O$1-1)*12) -> - | M24: =OFFSET(Balance!M58,0,($O$1-1)*12) -> - | N24: =OFFSET(Balance!N58,0,($O$1-1)*12) -> - | O24: -
B25: Régimen especial | C25: =OFFSET(Balance!C59,0,($O$1-1)*12) -> - | D25: =OFFSET(Balance!D59,0,($O$1-1)*12) -> - | E25: =OFFSET(Balance!E59,0,($O$1-1)*12) -> - | F25: =OFFSET(Balance!F59,0,($O$1-1)*12) -> - | G25: =OFFSET(Balance!G59,0,($O$1-1)*12) -> - | H25: =OFFSET(Balance!H59,0,($O$1-1)*12) -> - | I25: =OFFSET(Balance!I59,0,($O$1-1)*12) -> - | J25: =OFFSET(Balance!J59,0,($O$1-1)*12) -> - | K25: =OFFSET(Balance!K59,0,($O$1-1)*12) -> - | L25: =OFFSET(Balance!L59,0,($O$1-1)*12) -> - | M25: =OFFSET(Balance!M59,0,($O$1-1)*12) -> - | N25: =OFFSET(Balance!N59,0,($O$1-1)*12) -> - | O25: =SUM(O20:O24) -> 747121.527
B26: Generación | C26: =OFFSET(Balance!C60,0,($O$1-1)*12) -> 755277.851 | D26: =OFFSET(Balance!D60,0,($O$1-1)*12) -> 682405.333 | E26: =OFFSET(Balance!E60,0,($O$1-1)*12) -> 729844.597 | F26: =OFFSET(Balance!F60,0,($O$1-1)*12) -> 703198.872 | G26: =OFFSET(Balance!G60,0,($O$1-1)*12) -> 715907.03 | H26: =OFFSET(Balance!H60,0,($O$1-1)*12) -> 707412.238 | I26: =OFFSET(Balance!I60,0,($O$1-1)*12) -> 759211.451 | J26: =OFFSET(Balance!J60,0,($O$1-1)*12) -> 782538.667 | K26: =OFFSET(Balance!K60,0,($O$1-1)*12) -> 764826.683 | L26: =OFFSET(Balance!L60,0,($O$1-1)*12) -> - | M26: =OFFSET(Balance!M60,0,($O$1-1)*12) -> - | N26: =OFFSET(Balance!N60,0,($O$1-1)*12) -> - | O26: 6600622.722
B27: Demanda transporte (b.c.) | C27: =OFFSET(Balance!C61,0,($O$1-1)*12) -> 755277.851 | D27: =OFFSET(Balance!D61,0,($O$1-1)*12) -> 682405.333 | E27: =OFFSET(Balance!E61,0,($O$1-1)*12) -> 729844.597 | F27: =OFFSET(Balance!F61,0,($O$1-1)*12) -> 703198.872 | G27: =OFFSET(Balance!G61,0,($O$1-1)*12) -> 715907.03 | H27: =OFFSET(Balance!H61,0,($O$1-1)*12) -> 707412.238 | I27: =OFFSET(Balance!I61,0,($O$1-1)*12) -> 759211.451 | J27: =OFFSET(Balance!J61,0,($O$1-1)*12) -> 782538.667 | K27: =OFFSET(Balance!K61,0,($O$1-1)*12) -> 764826.683 | L27: =OFFSET(Balance!L61,0,($O$1-1)*12) -> - | M27: =OFFSET(Balance!M61,0,($O$1-1)*12) -> - | N27: =OFFSET(Balance!N61,0,($O$1-1)*12) -> - | O27: 6600622.722
B28: (1) Asignación de unidades de producción según combustible principal.
B29: (2) Utiliza fue y gasoil como combustible principal. Incluye funcionamiento en ciclo abierto.
B30: (3) Grupos de emergencia que se instalan de forma transitoria en determinadas zonas para cubrir un déficit de generación.
B31: (4) Incluye todas aquellas unidades menores de 50 MW que no pertenecen a ninguna unidad de gestión hidráulica (UGH).
B32: ='Balance nacional mensual'!B38 -> Datos definitivos hasta el 31/03/2017. Datos provisionales del 01/04/2017 al 31/08/2018. Datos programados del 01/09/2018 al 30/09/2018.

Sheet Balance Canarias anual
J1: 2
I4: Sistema eléctrico
I5: Horizonte temporal
I6: Periodo
C8: =OFFSET(Balance!C149,0,($J$1-1)*8) -> 2014 | D8: =OFFSET(Balance!D149,0,($J$1-1)*8) -> 2015 | E8: =OFFSET(Balance!E149,0,($J$1-1)*8) -> 2016 | F8: =OFFSET(Balance!F149,0,($J$1-1)*8) -> 2017 | G8: =OFFSET(Balance!G149,0,($J$1-1)*8) -> 2018 | H8: =OFFSET(Balance!H149,0,($J$1-1)*8) -> 2019 | I8: =OFFSET(Balance!I149,0,($J$1-1)*8) -> 2020 | J8: =OFFSET(Balance!J149,0,($J$1-1)*8) -> 2021
B10: Hidráulica | C10: =OFFSET(Balance!C150,0,($J$1-1)*8) -> 3461.056 | D10: =OFFSET(Balance!D150,0,($J$1-1)*8) -> 3568.393 | E10: =OFFSET(Balance!E150,0,($J$1-1)*8) -> 3453.961 | F10: =OFFSET(Balance!F150,0,($J$1-1)*8) -> 3271.979 | G10: =OFFSET(Balance!G150,0,($J$1-1)*8) -> 2393.706 | H10: =OFFSET(Balance!H150,0,($J$1-1)*8) -> - | I10: =OFFSET(Balance!I150,0,($J$1-1)*8) -> - | J10: =OFFSET(Balance!J150,0,($J$1-1)*8) -> -
B11: Motores diesel | C11: =OFFSET(Balance!C151,0,($J$1-1)*8) -> 2138198.435 | D11: =OFFSET(Balance!D151,0,($J$1-1)*8) -> 2202337.522 | E11: =OFFSET(Balance!E151,0,($J$1-1)*8) -> 2222301.543 | F11: =OFFSET(Balance!F151,0,($J$1-1)*8) -> 2242328.775 | G11: =OFFSET(Balance!G151,0,($J$1-1)*8) -> 1589981.434 | H11: =OFFSET(Balance!H151,0,($J$1-1)*8) -> - | I11: =OFFSET(Balance!I151,0,($J$1-1)*8) -> - | J11: =OFFSET(Balance!J151,0,($J$1-1)*8) -> -
B12: Turbina de gas | C12: =OFFSET(Balance!C152,0,($J$1-1)*8) -> 360744.295 | D12: =OFFSET(Balance!D152,0,($J$1-1)*8) -> 327805.271 | E12: =OFFSET(Balance!E152,0,($J$1-1)*8) -> 275900.624 | F12: =OFFSET(Balance!F152,0,($J$1-1)*8) -> 314281.595 | G12: =OFFSET(Balance!G152,0,($J$1-1)*8) -> 214646.071 | H12: =OFFSET(Balance!H152,0,($J$1-1)*8) -> - | I12: =OFFSET(Balance!I152,0,($J$1-1)*8) -> - | J12: =OFFSET(Balance!J152,0,($J$1-1)*8) -> -
B13: Turbina de vapor | C13: =OFFSET(Balance!C153,0,($J$1-1)*8) -> 2070771.428 | D13: =OFFSET(Balance!D153,0,($J$1-1)*8) -> 2222950.567 | E13: =OFFSET(Balance!E153,0,($J$1-1)*8) -> 2536143.003 | F13: =OFFSET(Balance!F153,0,($J$1-1)*8) -> 2674344.374 | G13: =OFFSET(Balance!G153,0,($J$1-1)*8) -> 1822238.664 | H13: =OFFSET(Balance!H153,0,($J$1-1)*8) -> - | I13: =OFFSET(Balance!I153,0,($J$1-1)*8) -> - | J13: =OFFSET(Balance!J153,0,($J$1-1)*8) -> -
B14: Fuel + Gas | C14: =OFFSET(Balance!C154,0,($J$1-1)*8) -> 4569714.158 | D14: =OFFSET(Balance!D154,0,($J$1-1)*8) -> 4753094.36 | E14: =OFFSET(Balance!E154,0,($J$1-1)*8) -> 5034345.17 | F14: =OFFSET(Balance!F154,0,($J$1-1)*8) -> 5230954.744 | G14: =OFFSET(Balance!G154,0,($J$1-1)*8) -> 3626866.169 | H14: =OFFSET(Balance!H154,0,($J$1-1)*8) -> - | I14: =OFFSET(Balance!I154,0,($J$1-1)*8) -> - | J14: =OFFSET(Balance!J154,0,($J$1-1)*8) -> -
B15: Ciclo combinado (2) | C15: =OFFSET(Balance!C155,0,($J$1-1)*8) -> 3240591.696 | D15: =OFFSET(Balance!D155,0,($J$1-1)*8) -> 3188056.789 | E15: =OFFSET(Balance!E155,0,($J$1-1)*8) -> 3008333.741 | F15: =OFFSET(Balance!F155,0,($J$1-1)*8) -> 2997377.283 | G15: =OFFSET(Balance!G155,0,($J$1-1)*8) -> 2203269.608 | H15: =OFFSET(Balance!H155,0,($J$1-1)*8) -> - | I15: =OFFSET(Balance!I155,0,($J$1-1)*8) -> - | J15: =OFFSET(Balance!J155,0,($J$1-1)*8) -> -
B16: Generación auxiliar (3) | C16: =OFFSET(Balance!C156,0,($J$1-1)*8) -> 0 | D16: =OFFSET(Balance!D156,0,($J$1-1)*8) -> 0 | E16: =OFFSET(Balance!E156,0,($J$1-1)*8) -> 0 | F16: =OFFSET(Balance!F156,0,($J$1-1)*8) -> 0 | G16: =OFFSET(Balance!G156,0,($J$1-1)*8) -> 0 | H16: =OFFSET(Balance!H156,0,($J$1-1)*8) -> - | I16: =OFFSET(Balance!I156,0,($J$1-1)*8) -> - | J16: =OFFSET(Balance!J156,0,($J$1-1)*8) -> -
B17: Régimen ordinario | C17: =OFFSET(Balance!C157,0,($J$1-1)*8) ->  | D17: =OFFSET(Balance!D157,0,($J$1-1)*8) ->  | E17: =OFFSET(Balance!E157,0,($J$1-1)*8) ->  | F17: =OFFSET(Balance!F157,0,($J$1-1)*8) ->  | G17: =OFFSET(Balance!G157,0,($J$1-1)*8) ->  | H17: =OFFSET(Balance!H157,0,($J$1-1)*8) ->  | I17: =OFFSET(Balance!I157,0,($J$1-1)*8) ->  | J17: =OFFSET(Balance!J157,0,($J$1-1)*8) -> 
B19: Hidroeólica | C19: =OFFSET(Balance!C158,0,($J$1-1)*8) -> 728.837 | D19: =OFFSET(Balance!D158,0,($J$1-1)*8) -> 8207.424 | E19: =OFFSET(Balance!E158,0,($J$1-1)*8) -> 17891.936 | F19: =OFFSET(Balance!F158,0,($J$1-1)*8) -> 20233.057 | G19: =OFFSET(Balance!G158,0,($J$1-1)*8) -> 20971.712 | H19: =OFFSET(Balance!H158,0,($J$1-1)*8) -> - | I19: =OFFSET(Balance!I158,0,($J$1-1)*8) -> - | J19: =OFFSET(Balance!J158,0,($J$1-1)*8) -> -
B20: Resto hidráulica (4) | C20: =OFFSET(Balance!C159,0,($J$1-1)*8) ->  | D20: =OFFSET(Balance!D159,0,($J$1-1)*8) ->  | E20: =OFFSET(Balance!E159,0,($J$1-1)*8) ->  | F20: =OFFSET(Balance!F159,0,($J$1-1)*8) ->  | G20: =OFFSET(Balance!G159,0,($J$1-1)*8) ->  | H20: =OFFSET(Balance!H159,0,($J$1-1)*8) ->  | I20: =OFFSET(Balance!I159,0,($J$1-1)*8) ->  | J20: =OFFSET(Balance!J159,0,($J$1-1)*8) -> 
B21: Eólica | C21: =OFFSET(Balance!C160,0,($J$1-1)*8) -> 389528.806 | D21: =OFFSET(Balance!D160,0,($J$1-1)*8) -> 396687.143 | E21: =OFFSET(Balance!E160,0,($J$1-1)*8) -> 393080.583 | F21: =OFFSET(Balance!F160,0,($J$1-1)*8) -> 395927.348 | G21: =OFFSET(Balance!G160,0,($J$1-1)*8) -> 522850.195 | H21: =OFFSET(Balance!H160,0,($J$1-1)*8) -> - | I21: =OFFSET(Balance!I160,0,($J$1-1)*8) -> - | J21: =OFFSET(Balance!J160,0,($J$1-1)*8) -> -
B22: Solar fotovoltaica | C22: =OFFSET(Balance!C161,0,($J$1-1)*8) -> 282285.689 | D22: =OFFSET(Balance!D161,0,($J$1-1)*8) -> 275546.605 | E22: =OFFSET(Balance!E161,0,($J$1-1)*8) -> 277661.343 | F22: =OFFSET(Balance!F161,0,($J$1-1)*8) -> 273622.211 | G22: =OFFSET(Balance!G161,0,($J$1-1)*8) -> 217902.774 | H22: =OFFSET(Balance!H161,0,($J$1-1)*8) -> - | I22: =OFFSET(Balance!I161,0,($J$1-1)*8) -> - | J22: =OFFSET(Balance!J161,0,($J$1-1)*8) -> -
B23: Térmica renovable/Otras renovables | C23: =OFFSET(Balance!C162,0,($J$1-1)*8) -> 8806.584 | D23: =OFFSET(Balance!D162,0,($J$1-1)*8) -> 8053.625 | E23: =OFFSET(Balance!E162,0,($J$1-1)*8) -> 9335.775 | F23: =OFFSET(Balance!F162,0,($J$1-1)*8) -> 9565.259 | G23: =OFFSET(Balance!G162,0,($J$1-1)*8) -> 6368.558 | H23: =OFFSET(Balance!H162,0,($J$1-1)*8) -> - | I23: =OFFSET(Balance!I162,0,($J$1-1)*8) -> - | J23: =OFFSET(Balance!J162,0,($J$1-1)*8) -> -
B24: Cogeneración | C24: =OFFSET(Balance!C163,0,($J$1-1)*8) -> 0 | D24: =OFFSET(Balance!D163,0,($J$1-1)*8) -> 0 | E24: =OFFSET(Balance!E163,0,($J$1-1)*8) -> 0 | F24: =OFFSET(Balance!F163,0,($J$1-1)*8) -> 0 | G24: =OFFSET(Balance!G163,0,($J$1-1)*8) -> 0 | H24: =OFFSET(Balance!H163,0,($J$1-1)*8) -> - | I24: =OFFSET(Balance!I163,0,($J$1-1)*8) -> - | J24: =OFFSET(Balance!J163,0,($J$1-1)*8) -> -
B25: Régimen especial | C25: =OFFSET(Balance!C164,0,($J$1-1)*8) ->  | D25: =OFFSET(Balance!D164,0,($J$1-1)*8) ->  | E25: =OFFSET(Balance!E164,0,($J$1-1)*8) ->  | F25: =OFFSET(Balance!F164,0,($J$1-1)*8) ->  | G25: =OFFSET(Balance!G164,0,($J$1-1)*8) ->  | H25: =OFFSET(Balance!H164,0,($J$1-1)*8) ->  | I25: =OFFSET(Balance!I164,0,($J$1-1)*8) ->  | J25: =OFFSET(Balance!J164,0,($J$1-1)*8) -> 
B26: Generación | C26: =OFFSET(Balance!C165,0,($J$1-1)*8) -> 8495116.826 | D26: =OFFSET(Balance!D165,0,($J$1-1)*8) -> 8633213.339 | E26: =OFFSET(Balance!E165,0,($J$1-1)*8) -> 8744102.509 | F26: =OFFSET(Balance!F165,0,($J$1-1)*8) -> 8930951.881 | G26: =OFFSET(Balance!G165,0,($J$1-1)*8) -> 6600622.722 | H26: =OFFSET(Balance!H165,0,($J$1-1)*8) -> - | I26: =OFFSET(Balance!I165,0,($J$1-1)*8) -> - | J26: =OFFSET(Balance!J165,0,($J$1-1)*8) -> -
B27: Demanda transporte (b.c.) | C27: =OFFSET(Balance!C166,0,($J$1-1)*8) -> 8495116.826 | D27: =OFFSET(Balance!D166,0,($J$1-1)*8) -> 8633213.339 | E27: =OFFSET(Balance!E166,0,($J$1-1)*8) -> 8744102.509 | F27: =OFFSET(Balance!F166,0,($J$1-1)*8) -> 8930951.881 | G27: =OFFSET(Balance!G166,0,($J$1-1)*8) -> 6600622.722 | H27: =OFFSET(Balance!H166,0,($J$1-1)*8) -> - | I27: =OFFSET(Balance!I166,0,($J$1-1)*8) -> - | J27: =OFFSET(Balance!J166,0,($J$1-1)*8) -> -
B28: (1) Asignación de unidades de producción según combustible principal.
B29: (2) Utiliza fue y gasoil como combustible principal. Incluye funcionamiento en ciclo abierto.
B30: (3) Grupos de emergencia que se instalan de forma transitoria en determinadas zonas para cubrir un déficit de generación.
B31: (4) Incluye todas aquellas unidades menores de 50 MW que no pertenecen a ninguna unidad de gestión hidráulica (UGH).
B32: =IF(MONTH(FACT)=1,"",CONCATENATE("Para el año ",YEAR(FACT), " valores acumulados hasta ",TEXT(FACT-30,"mmmm")," de ",YEAR(FACT),".")) -> Para el año 2018 valores acumulados hasta septiembre de 2018.
B33: ='Balance nacional mensual'!B38 -> Datos definitivos hasta el 31/03/2017. Datos provisionales del 01/04/2017 al 31/08/2018. Datos programados del 01/09/2018 al 30/09/2018.

Sheet Balance Ceuta mensual
O1: 12
M4: Sistema eléctrico
M5: Horizonte temporal
M6: Periodo
C8: Ene. | D8: Feb. | E8: Mar. | F8: Abr. | G8: May. | H8: Jun. | I8: Jul. | J8: Ago. | K8: Sep. | L8: Oct. | M8: Nov. | N8: Dic. | O8: =OFFSET(Año!C19,($O$1-1),0) -> 2018
B10: Motores diesel | C10: =OFFSET(Balance!C64,0,($O$1-1)*12) -> 18543.508 | D10: =OFFSET(Balance!D64,0,($O$1-1)*12) -> 17093.706 | E10: =OFFSET(Balance!E64,0,($O$1-1)*12) -> 17581.858 | F10: =OFFSET(Balance!F64,0,($O$1-1)*12) -> 16315.113 | G10: =OFFSET(Balance!G64,0,($O$1-1)*12) -> 16335.309 | H10: =OFFSET(Balance!H64,0,($O$1-1)*12) -> 15983.209 | I10: =OFFSET(Balance!I64,0,($O$1-1)*12) -> 17163.687 | J10: =OFFSET(Balance!J64,0,($O$1-1)*12) -> 17711.165 | K10: =OFFSET(Balance!K64,0,($O$1-1)*12) -> 18071.242 | L10: =OFFSET(Balance!L64,0,($O$1-1)*12) -> - | M10: =OFFSET(Balance!M64,0,($O$1-1)*12) -> - | N10: =OFFSET(Balance!N64,0,($O$1-1)*12) -> - | O10: =IF(SUM(C10:N10)=0,"-",SUM(C10:N10)) -> 154798.797
B11: Turbina de gas | C11: =OFFSET(Balance!C65,0,($O$1-1)*12) -> 0.553 | D11: =OFFSET(Balance!D65,0,($O$1-1)*12) -> 5.36 | E11: =OFFSET(Balance!E65,0,($O$1-1)*12) -> 3.116 | F11: =OFFSET(Balance!F65,0,($O$1-1)*12) -> 0.553 | G11: =OFFSET(Balance!G65,0,($O$1-1)*12) -> 7.594 | H11: =OFFSET(Balance!H65,0,($O$1-1)*12) -> 0.518 | I11: =OFFSET(Balance!I65,0,($O$1-1)*12) -> 0.904 | J11: =OFFSET(Balance!J65,0,($O$1-1)*12) -> 0.599 | K11: =OFFSET(Balance!K65,0,($O$1-1)*12) -> 4.195 | L11: =OFFSET(Balance!L65,0,($O$1-1)*12) -> - | M11: =OFFSET(Balance!M65,0,($O$1-1)*12) -> - | N11: =OFFSET(Balance!N65,0,($O$1-1)*12) -> - | O11: 23.392
B12: Fuel + Gas | C12: =OFFSET(Balance!C66,0,($O$1-1)*12) -> 18544.061 | D12: =OFFSET(Balance!D66,0,($O$1-1)*12) -> 17099.066 | E12: =OFFSET(Balance!E66,0,($O$1-1)*12) -> 17584.974 | F12: =OFFSET(Balance!F66,0,($O$1-1)*12) -> 16315.666 | G12: =OFFSET(Balance!G66,0,($O$1-1)*12) -> 16342.903 | H12: =OFFSET(Balance!H66,0,($O$1-1)*12) -> 15983.727 | I12: =OFFSET(Balance!I66,0,($O$1-1)*12) -> 17164.591 | J12: =OFFSET(Balance!J66,0,($O$1-1)*12) -> 17711.764 | K12: =OFFSET(Balance!K66,0,($O$1-1)*12) -> 18075.437 | L12: =OFFSET(Balance!L66,0,($O$1-1)*12) -> - | M12: =OFFSET(Balance!M66,0,($O$1-1)*12) -> - | N12: =OFFSET(Balance!N66,0,($O$1-1)*12) -> - | O12: =SUM(O10:O11) -> 154822.189
B13: Régimen ordinario | C13: =OFFSET(Balance!C67,0,($O$1-1)*12) -> - | D13: =OFFSET(Balance!D67,0,($O$1-1)*12) -> - | E13: =OFFSET(Balance!E67,0,($O$1-1)*12) -> - | F13: =OFFSET(Balance!F67,0,($O$1-1)*12) -> - | G13: =OFFSET(Balance!G67,0,($O$1-1)*12) -> - | H13: =OFFSET(Balance!H67,0,($O$1-1)*12) -> - | I13: =OFFSET(Balance!I67,0,($O$1-1)*12) -> - | J13: =OFFSET(Balance!J67,0,($O$1-1)*12) -> - | K13: =OFFSET(Balance!K67,0,($O$1-1)*12) -> - | L13: =OFFSET(Balance!L67,0,($O$1-1)*12) -> - | M13: =OFFSET(Balance!M67,0,($O$1-1)*12) -> - | N13: =OFFSET(Balance!N67,0,($O$1-1)*12) -> - | O13: =SUM(O12) -> 154822.189
B15: Generación | C15: =OFFSET(Balance!C68,0,($O$1-1)*12) -> 18544.061 | D15: =OFFSET(Balance!D68,0,($O$1-1)*12) -> 17099.066 | E15: =OFFSET(Balance!E68,0,($O$1-1)*12) -> 17584.974 | F15: =OFFSET(Balance!F68,0,($O$1-1)*12) -> 16315.666 | G15: =OFFSET(Balance!G68,0,($O$1-1)*12) -> 16342.903 | H15: =OFFSET(Balance!H68,0,($O$1-1)*12) -> 15983.727 | I15: =OFFSET(Balance!I68,0,($O$1-1)*12) -> 17164.591 | J15: =OFFSET(Balance!J68,0,($O$1-1)*12) -> 17711.764 | K15: =OFFSET(Balance!K68,0,($O$1-1)*12) -> 18075.437 | L15: =OFFSET(Balance!L68,0,($O$1-1)*12) -> - | M15: =OFFSET(Balance!M68,0,($O$1-1)*12) -> - | N15: =OFFSET(Balance!N68,0,($O$1-1)*12) -> - | O15: =SUM(O13:O14) -> 154822.189
B16: Demanda transporte (b.c.) | C16: =OFFSET(Balance!C69,0,($O$1-1)*12) -> 18544.061 | D16: =OFFSET(Balance!D69,0,($O$1-1)*12) -> 17099.066 | E16: =OFFSET(Balance!E69,0,($O$1-1)*12) -> 17584.974 | F16: =OFFSET(Balance!F69,0,($O$1-1)*12) -> 16315.666 | G16: =OFFSET(Balance!G69,0,($O$1-1)*12) -> 16342.903 | H16: =OFFSET(Balance!H69,0,($O$1-1)*12) -> 15983.727 | I16: =OFFSET(Balance!I69,0,($O$1-1)*12) -> 17164.591 | J16: =OFFSET(Balance!J69,0,($O$1-1)*12) -> 17711.764 | K16: =OFFSET(Balance!K69,0,($O$1-1)*12) -> 18075.437 | L16: =OFFSET(Balance!L69,0,($O$1-1)*12) -> - | M16: =OFFSET(Balance!M69,0,($O$1-1)*12) -> - | N16: =OFFSET(Balance!N69,0,($O$1-1)*12) -> - | O16: =O15 -> 154822.189
B17: (1) Asignación de unidades de producción según combustible principal.
B18: =CONCATENATE("Datos definitivos hasta el ",RIGHT('Balance nacional mensual'!B38,59)) -> Datos definitivos hasta el 31/08/2018. Datos programados del 01/09/2018 al 30/09/2018.

Sheet Balance Ceuta anual
I1: 2
H4: Sistema eléctrico
H5: Horizonte temporal
H6: Periodo
C8: =OFFSET(Balance!C168,0,($I$1-1)*7) -> 2014 | D8: =OFFSET(Balance!D168,0,($I$1-1)*7) -> 2015 | E8: =OFFSET(Balance!E168,0,($I$1-1)*7) -> 2016 | F8: =OFFSET(Balance!F168,0,($I$1-1)*7) -> 2017 | G8: =OFFSET(Balance!G168,0,($I$1-1)*7) -> 2018 | H8: =OFFSET(Balance!H168,0,($I$1-1)*7) -> 2019 | I8: =OFFSET(Balance!I168,0,($I$1-1)*7) -> 2020
B10: Motores diesel | C10: =OFFSET(Balance!C169,0,($I$1-1)*7) -> 212152.625 | D10: =OFFSET(Balance!D169,0,($I$1-1)*7) -> 203257.309 | E10: =OFFSET(Balance!E169,0,($I$1-1)*7) -> 210557.992 | F10: =OFFSET(Balance!F169,0,($I$1-1)*7) -> 202648.205 | G10: =OFFSET(Balance!G169,0,($I$1-1)*7) -> 154798.797 | H10: =OFFSET(Balance!H169,0,($I$1-1)*7) -> - | I10: =OFFSET(Balance!I169,0,($I$1-1)*7) -> -
B11: Turbina de gas | C11: =OFFSET(Balance!C170,0,($I$1-1)*7) -> 92.532 | D11: =OFFSET(Balance!D170,0,($I$1-1)*7) -> 765.781 | E11: =OFFSET(Balance!E170,0,($I$1-1)*7) -> 122.944 | F11: =OFFSET(Balance!F170,0,($I$1-1)*7) -> 212.495 | G11: =OFFSET(Balance!G170,0,($I$1-1)*7) -> 23.392 | H11: =OFFSET(Balance!H170,0,($I$1-1)*7) -> - | I11: =OFFSET(Balance!I170,0,($I$1-1)*7) -> -
B12: Fuel + Gas | C12: =OFFSET(Balance!C171,0,($I$1-1)*7) -> 212245.157 | D12: =OFFSET(Balance!D171,0,($I$1-1)*7) -> 204023.09 | E12: =OFFSET(Balance!E171,0,($I$1-1)*7) -> 210680.936 | F12: =OFFSET(Balance!F171,0,($I$1-1)*7) -> 202860.7 | G12: =OFFSET(Balance!G171,0,($I$1-1)*7) -> 154822.189 | H12: =OFFSET(Balance!H171,0,($I$1-1)*7) -> - | I12: =OFFSET(Balance!I171,0,($I$1-1)*7) -> -
B13: Régimen ordinario | C13: =OFFSET(Balance!C172,0,($I$1-1)*7) ->  | D13: =OFFSET(Balance!D172,0,($I$1-1)*7) ->  | E13: =OFFSET(Balance!E172,0,($I$1-1)*7) ->  | F13: =OFFSET(Balance!F172,0,($I$1-1)*7) ->  | G13: =OFFSET(Balance!G172,0,($I$1-1)*7) ->  | H13: =OFFSET(Balance!H172,0,($I$1-1)*7) ->  | I13: =OFFSET(Balance!I172,0,($I$1-1)*7) -> 
B15: Generación | C15: =OFFSET(Balance!C173,0,($I$1-1)*7) -> 212245.157 | D15: =OFFSET(Balance!D173,0,($I$1-1)*7) -> 204023.09 | E15: =OFFSET(Balance!E173,0,($I$1-1)*7) -> 210680.936 | F15: =OFFSET(Balance!F173,0,($I$1-1)*7) -> 202860.7 | G15: =OFFSET(Balance!G173,0,($I$1-1)*7) -> 154822.189 | H15: =OFFSET(Balance!H173,0,($I$1-1)*7) -> - | I15: =OFFSET(Balance!I173,0,($I$1-1)*7) -> -
B16: Demanda transporte (b.c.) | C16: =OFFSET(Balance!C174,0,($I$1-1)*7) -> 212245.157 | D16: =OFFSET(Balance!D174,0,($I$1-1)*7) -> 204023.09 | E16: =OFFSET(Balance!E174,0,($I$1-1)*7) -> 210680.936 | F16: =OFFSET(Balance!F174,0,($I$1-1)*7) -> 202860.7 | G16: =OFFSET(Balance!G174,0,($I$1-1)*7) -> 154822.189 | H16: =OFFSET(Balance!H174,0,($I$1-1)*7) -> - | I16: =OFFSET(Balance!I174,0,($I$1-1)*7) -> -
B17: (1) Asignación de unidades de producción según combustible principal.
B18: =IF(MONTH(FACT)=1,"",CONCATENATE("Para el año ",YEAR(FACT), " valores acumulados hasta ",TEXT(FACT-30,"mmmm")," de ",YEAR(FACT),".")) -> Para el año 2018 valores acumulados hasta septiembre de 2018.
B19: ='Balance Ceuta mensual'!B18:O18 -> Datos definitivos hasta el 31/08/2018. Datos programados del 01/09/2018 al 30/09/2018.

Sheet Balance Melilla mensual
O1: 12
M4: Sistema eléctrico
M5: Horizonte temporal
M6: Periodo
C8: Ene. | D8: Feb. | E8: Mar. | F8: Abr. | G8: May. | H8: Jun. | I8: Jul. | J8: Ago. | K8: Sep. | L8: Oct. | M8: Nov. | N8: Dic. | O8: =OFFSET(Año!C19,($O$1-1),0) -> 2018
B10: Motores diesel | C10: =OFFSET(Balance!C72,0,($O$1-1)*12) -> 17095.319 | D10: =OFFSET(Balance!D72,0,($O$1-1)*12) -> 16046.134 | E10: =OFFSET(Balance!E72,0,($O$1-1)*12) -> 15645.465 | F10: =OFFSET(Balance!F72,0,($O$1-1)*12) -> 14934.573 | G10: =OFFSET(Balance!G72,0,($O$1-1)*12) -> 15540.776 | H10: =OFFSET(Balance!H72,0,($O$1-1)*12) -> 16168.516 | I10: =OFFSET(Balance!I72,0,($O$1-1)*12) -> 18176.228 | J10: =OFFSET(Balance!J72,0,($O$1-1)*12) -> 20469.174 | K10: =OFFSET(Balance!K72,0,($O$1-1)*12) -> 18564.09 | L10: =OFFSET(Balance!L72,0,($O$1-1)*12) -> - | M10: =OFFSET(Balance!M72,0,($O$1-1)*12) -> - | N10: =OFFSET(Balance!N72,0,($O$1-1)*12) -> - | O10: =IF(SUM(C10:N10)=0,"-",SUM(C10:N10)) -> 152640.275
B11: Turbina de gas | C11: =OFFSET(Balance!C73,0,($O$1-1)*12) -> 44.298 | D11: =OFFSET(Balance!D73,0,($O$1-1)*12) -> 8.669 | E11: =OFFSET(Balance!E73,0,($O$1-1)*12) -> 0.496 | F11: =OFFSET(Balance!F73,0,($O$1-1)*12) -> 0.579 | G11: =OFFSET(Balance!G73,0,($O$1-1)*12) -> 0.551 | H11: =OFFSET(Balance!H73,0,($O$1-1)*12) -> 1.237 | I11: =OFFSET(Balance!I73,0,($O$1-1)*12) -> 9.276 | J11: =OFFSET(Balance!J73,0,($O$1-1)*12) -> 0.94 | K11: =OFFSET(Balance!K73,0,($O$1-1)*12) -> 0.345 | L11: =OFFSET(Balance!L73,0,($O$1-1)*12) -> - | M11: =OFFSET(Balance!M73,0,($O$1-1)*12) -> - | N11: =OFFSET(Balance!N73,0,($O$1-1)*12) -> - | O11: =IF(SUM(C11:N11)=0,"-",SUM(C11:N11)) -> 66.391
B12: Fuel + Gas | C12: =OFFSET(Balance!C74,0,($O$1-1)*12) -> 17139.617 | D12: =OFFSET(Balance!D74,0,($O$1-1)*12) -> 16054.803 | E12: =OFFSET(Balance!E74,0,($O$1-1)*12) -> 15645.961 | F12: =OFFSET(Balance!F74,0,($O$1-1)*12) -> 14935.152 | G12: =OFFSET(Balance!G74,0,($O$1-1)*12) -> 15541.327 | H12: =OFFSET(Balance!H74,0,($O$1-1)*12) -> 16169.753 | I12: =OFFSET(Balance!I74,0,($O$1-1)*12) -> 18185.504 | J12: =OFFSET(Balance!J74,0,($O$1-1)*12) -> 20470.114 | K12: =OFFSET(Balance!K74,0,($O$1-1)*12) -> 18564.435 | L12: =OFFSET(Balance!L74,0,($O$1-1)*12) -> - | M12: =OFFSET(Balance!M74,0,($O$1-1)*12) -> - | N12: =OFFSET(Balance!N74,0,($O$1-1)*12) -> - | O12: =SUM(O10:O11) -> 152706.666
B13: Régimen ordinario | C13: =OFFSET(Balance!C75,0,($O$1-1)*12) -> - | D13: =OFFSET(Balance!D75,0,($O$1-1)*12) -> - | E13: =OFFSET(Balance!E75,0,($O$1-1)*12) -> - | F13: =OFFSET(Balance!F75,0,($O$1-1)*12) -> - | G13: =OFFSET(Balance!G75,0,($O$1-1)*12) -> - | H13: =OFFSET(Balance!H75,0,($O$1-1)*12) -> - | I13: =OFFSET(Balance!I75,0,($O$1-1)*12) -> - | J13: =OFFSET(Balance!J75,0,($O$1-1)*12) -> - | K13: =OFFSET(Balance!K75,0,($O$1-1)*12) -> - | L13: =OFFSET(Balance!L75,0,($O$1-1)*12) -> - | M13: =OFFSET(Balance!M75,0,($O$1-1)*12) -> - | N13: =OFFSET(Balance!N75,0,($O$1-1)*12) -> - | O13: =SUM(O12) -> 152706.666
B15: Solar fotovoltaica | C15: =OFFSET(Balance!C76,0,($O$1-1)*12) -> 4.205 | D15: =OFFSET(Balance!D76,0,($O$1-1)*12) -> 5.874 | E15: =OFFSET(Balance!E76,0,($O$1-1)*12) -> 7.59 | F15: =OFFSET(Balance!F76,0,($O$1-1)*12) -> 6.899 | G15: =OFFSET(Balance!G76,0,($O$1-1)*12) -> 7.645 | H15: =OFFSET(Balance!H76,0,($O$1-1)*12) -> 6.288 | I15: =OFFSET(Balance!I76,0,($O$1-1)*12) -> 6.204 | J15: =OFFSET(Balance!J76,0,($O$1-1)*12) -> 8.629 | K15: =OFFSET(Balance!K76,0,($O$1-1)*12) -> 0 | L15: =OFFSET(Balance!L76,0,($O$1-1)*12) -> - | M15: =OFFSET(Balance!M76,0,($O$1-1)*12) -> - | N15: =OFFSET(Balance!N76,0,($O$1-1)*12) -> - | O15: =IF(SUM(C15:N15)=0,"-",SUM(C15:N15)) -> 53.334
B16: Térmica no renovable | C16: =OFFSET(Balance!C77,0,($O$1-1)*12) -> - | D16: =OFFSET(Balance!D77,0,($O$1-1)*12) -> - | E16: =OFFSET(Balance!E77,0,($O$1-1)*12) -> - | F16: =OFFSET(Balance!F77,0,($O$1-1)*12) -> - | G16: =OFFSET(Balance!G77,0,($O$1-1)*12) -> - | H16: =OFFSET(Balance!H77,0,($O$1-1)*12) -> - | I16: =OFFSET(Balance!I77,0,($O$1-1)*12) -> - | J16: =OFFSET(Balance!J77,0,($O$1-1)*12) -> - | K16: =OFFSET(Balance!K77,0,($O$1-1)*12) -> - | L16: =OFFSET(Balance!L77,0,($O$1-1)*12) -> - | M16: =OFFSET(Balance!M77,0,($O$1-1)*12) -> - | N16: =OFFSET(Balance!N77,0,($O$1-1)*12) -> - | O16: =IF(SUM(C16:N16)=0,"-",SUM(C16:N16)) -> -
B17: Residuos no renovables | C17: =OFFSET(Balance!C78,0,($O$1-1)*12) -> 521.0755 | D17: =OFFSET(Balance!D78,0,($O$1-1)*12) -> 484.4805 | E17: =OFFSET(Balance!E78,0,($O$1-1)*12) -> 524.2205 | F17: =OFFSET(Balance!F78,0,($O$1-1)*12) -> 456.2945 | G17: =OFFSET(Balance!G78,0,($O$1-1)*12) -> 476.224 | H17: =OFFSET(Balance!H78,0,($O$1-1)*12) -> 420.4815 | I17: =OFFSET(Balance!I78,0,($O$1-1)*12) -> 461.947 | J17: =OFFSET(Balance!J78,0,($O$1-1)*12) -> 470.8915 | K17: =OFFSET(Balance!K78,0,($O$1-1)*12) -> 430.504 | L17: =OFFSET(Balance!L78,0,($O$1-1)*12) -> - | M17: =OFFSET(Balance!M78,0,($O$1-1)*12) -> - | N17: =OFFSET(Balance!N78,0,($O$1-1)*12) -> - | O17: =IF(SUM(C17:N17)=0,"-",SUM(C17:N17)) -> 4246.119
B18: Residuos renovables | C18: =OFFSET(Balance!C79,0,($O$1-1)*12) -> 521.0755 | D18: =OFFSET(Balance!D79,0,($O$1-1)*12) -> 484.4805 | E18: =OFFSET(Balance!E79,0,($O$1-1)*12) -> 524.2205 | F18: =OFFSET(Balance!F79,0,($O$1-1)*12) -> 456.2945 | G18: =OFFSET(Balance!G79,0,($O$1-1)*12) -> 476.224 | H18: =OFFSET(Balance!H79,0,($O$1-1)*12) -> 420.4815 | I18: =OFFSET(Balance!I79,0,($O$1-1)*12) -> 461.947 | J18: =OFFSET(Balance!J79,0,($O$1-1)*12) -> 470.8915 | K18: =OFFSET(Balance!K79,0,($O$1-1)*12) -> 430.504 | L18: =OFFSET(Balance!L79,0,($O$1-1)*12) -> - | M18: =OFFSET(Balance!M79,0,($O$1-1)*12) -> - | N18: =OFFSET(Balance!N79,0,($O$1-1)*12) -> - | O18: =IF(SUM(C18:N18)=0,"-",SUM(C18:N18)) -> 4246.119
B19: Régimen especial | C19: =OFFSET(Balance!C80,0,($O$1-1)*12) -> - | D19: =OFFSET(Balance!D80,0,($O$1-1)*12) -> - | E19: =OFFSET(Balance!E80,0,($O$1-1)*12) -> - | F19: =OFFSET(Balance!F80,0,($O$1-1)*12) -> - | G19: =OFFSET(Balance!G80,0,($O$1-1)*12) -> - | H19: =OFFSET(Balance!H80,0,($O$1-1)*12) -> - | I19: =OFFSET(Balance!I80,0,($O$1-1)*12) -> - | J19: =OFFSET(Balance!J80,0,($O$1-1)*12) -> - | K19: =OFFSET(Balance!K80,0,($O$1-1)*12) -> - | L19: =OFFSET(Balance!L80,0,($O$1-1)*12) -> - | M19: =OFFSET(Balance!M80,0,($O$1-1)*12) -> - | N19: =OFFSET(Balance!N80,0,($O$1-1)*12) -> - | O19: =SUM(O15:O18) -> 8545.572
B20: Generación | C20: =OFFSET(Balance!C81,0,($O$1-1)*12) -> 18185.973 | D20: =OFFSET(Balance!D81,0,($O$1-1)*12) -> 17029.638 | E20: =OFFSET(Balance!E81,0,($O$1-1)*12) -> 16701.992 | F20: =OFFSET(Balance!F81,0,($O$1-1)*12) -> 15854.64 | G20: =OFFSET(Balance!G81,0,($O$1-1)*12) -> 16501.42 | H20: =OFFSET(Balance!H81,0,($O$1-1)*12) -> 17017.004 | I20: =OFFSET(Balance!I81,0,($O$1-1)*12) -> 19115.602 | J20: =OFFSET(Balance!J81,0,($O$1-1)*12) -> 21420.526 | K20: =OFFSET(Balance!K81,0,($O$1-1)*12) -> 19425.443 | L20: =OFFSET(Balance!L81,0,($O$1-1)*12) -> - | M20: =OFFSET(Balance!M81,0,($O$1-1)*12) -> - | N20: =OFFSET(Balance!N81,0,($O$1-1)*12) -> - | O20: =SUM(O13:O14,O19) -> 161252.238
B21: Demanda transporte (b.c.) | C21: =OFFSET(Balance!C82,0,($O$1-1)*12) -> 18185.973 | D21: =OFFSET(Balance!D82,0,($O$1-1)*12) -> 17029.638 | E21: =OFFSET(Balance!E82,0,($O$1-1)*12) -> 16701.992 | F21: =OFFSET(Balance!F82,0,($O$1-1)*12) -> 15854.64 | G21: =OFFSET(Balance!G82,0,($O$1-1)*12) -> 16501.42 | H21: =OFFSET(Balance!H82,0,($O$1-1)*12) -> 17017.004 | I21: =OFFSET(Balance!I82,0,($O$1-1)*12) -> 19115.602 | J21: =OFFSET(Balance!J82,0,($O$1-1)*12) -> 21420.526 | K21: =OFFSET(Balance!K82,0,($O$1-1)*12) -> 19425.443 | L21: =OFFSET(Balance!L82,0,($O$1-1)*12) -> - | M21: =OFFSET(Balance!M82,0,($O$1-1)*12) -> - | N21: =OFFSET(Balance!N82,0,($O$1-1)*12) -> - | O21: =O20 -> 161252.238
B22: (1) Asignación de unidades de producción según combustible principal.
B23: ='Balance nacional mensual'!B38 -> Datos definitivos hasta el 31/03/2017. Datos provisionales del 01/04/2017 al 31/08/2018. Datos programados del 01/09/2018 al 30/09/2018.

Sheet Balance Melilla anual
I1: 2
H4: Sistema eléctrico
H5: Horizonte temporal
H6: Periodo
C8: =OFFSET(Balance!C176,0,($I$1-1)*7) -> 2014 | D8: =OFFSET(Balance!D176,0,($I$1-1)*7) -> 2015 | E8: =OFFSET(Balance!E176,0,($I$1-1)*7) -> 2016 | F8: =OFFSET(Balance!F176,0,($I$1-1)*7) -> 2017 | G8: =OFFSET(Balance!G176,0,($I$1-1)*7) -> 2018 | H8: =OFFSET(Balance!H176,0,($I$1-1)*7) -> 2019 | I8: =OFFSET(Balance!I176,0,($I$1-1)*7) -> 2020
B10: Motores diesel | C10: =OFFSET(Balance!C177,0,($I$1-1)*7) -> 200050.458 | D10: =OFFSET(Balance!D177,0,($I$1-1)*7) -> 203917.102 | E10: =OFFSET(Balance!E177,0,($I$1-1)*7) -> 198250.316 | F10: =OFFSET(Balance!F177,0,($I$1-1)*7) -> 200316.964 | G10: =OFFSET(Balance!G177,0,($I$1-1)*7) -> 152640.275 | H10: =OFFSET(Balance!H177,0,($I$1-1)*7) -> - | I10: =OFFSET(Balance!I177,0,($I$1-1)*7) -> -
B11: Turbina de gas | C11: =OFFSET(Balance!C178,0,($I$1-1)*7) -> 766.31 | D11: =OFFSET(Balance!D178,0,($I$1-1)*7) -> 611.498 | E11: =OFFSET(Balance!E178,0,($I$1-1)*7) -> 255.469 | F11: =OFFSET(Balance!F178,0,($I$1-1)*7) -> 77.273 | G11: =OFFSET(Balance!G178,0,($I$1-1)*7) -> 66.391 | H11: =OFFSET(Balance!H178,0,($I$1-1)*7) -> - | I11: =OFFSET(Balance!I178,0,($I$1-1)*7) -> -
B12: Fuel + Gas | C12: =OFFSET(Balance!C179,0,($I$1-1)*7) -> 200816.768 | D12: =OFFSET(Balance!D179,0,($I$1-1)*7) -> 204528.6 | E12: =OFFSET(Balance!E179,0,($I$1-1)*7) -> 198505.785 | F12: =OFFSET(Balance!F179,0,($I$1-1)*7) -> 200394.237 | G12: =OFFSET(Balance!G179,0,($I$1-1)*7) -> 152706.666 | H12: =OFFSET(Balance!H179,0,($I$1-1)*7) -> - | I12: =OFFSET(Balance!I179,0,($I$1-1)*7) -> -
B13: Régimen ordinario | C13: =OFFSET(Balance!C180,0,($I$1-1)*7) ->  | D13: =OFFSET(Balance!D180,0,($I$1-1)*7) ->  | E13: =OFFSET(Balance!E180,0,($I$1-1)*7) ->  | F13: =OFFSET(Balance!F180,0,($I$1-1)*7) ->  | G13: =OFFSET(Balance!G180,0,($I$1-1)*7) ->  | H13: =OFFSET(Balance!H180,0,($I$1-1)*7) ->  | I13: =OFFSET(Balance!I180,0,($I$1-1)*7) -> 
B15: Solar fotovoltaica | C15: =OFFSET(Balance!C181,0,($I$1-1)*7) -> 83.833 | D15: =OFFSET(Balance!D181,0,($I$1-1)*7) -> 79.96 | E15: =OFFSET(Balance!E181,0,($I$1-1)*7) -> 80.1 | F15: =OFFSET(Balance!F181,0,($I$1-1)*7) -> 76.869 | G15: =OFFSET(Balance!G181,0,($I$1-1)*7) -> 53.334 | H15: =OFFSET(Balance!H181,0,($I$1-1)*7) -> - | I15: =OFFSET(Balance!I181,0,($I$1-1)*7) -> -
B16: Cogeneración y resto (2) | C16: =OFFSET(Balance!C182,0,($I$1-1)*7) -> 0 | D16: =OFFSET(Balance!D182,0,($I$1-1)*7) -> - | E16: =OFFSET(Balance!E182,0,($I$1-1)*7) -> - | F16: =OFFSET(Balance!F182,0,($I$1-1)*7) -> - | G16: =OFFSET(Balance!G182,0,($I$1-1)*7) -> - | H16: =OFFSET(Balance!H182,0,($I$1-1)*7) -> - | I16: =OFFSET(Balance!I182,0,($I$1-1)*7) -> -
B17: Residuos no renovables | C17: =OFFSET(Balance!C183,0,($I$1-1)*7) -> 4449.157 | D17: =OFFSET(Balance!D183,0,($I$1-1)*7) -> 4296.498 | E17: =OFFSET(Balance!E183,0,($I$1-1)*7) -> 4850.0525 | F17: =OFFSET(Balance!F183,0,($I$1-1)*7) -> 4976.986 | G17: =OFFSET(Balance!G183,0,($I$1-1)*7) -> 4246.119 | H17: =OFFSET(Balance!H183,0,($I$1-1)*7) -> - | I17: =OFFSET(Balance!I183,0,($I$1-1)*7) -> -
B18: Residuos renovables | C18: =OFFSET(Balance!C184,0,($I$1-1)*7) -> 4449.157 | D18: =OFFSET(Balance!D184,0,($I$1-1)*7) -> 4296.498 | E18: =OFFSET(Balance!E184,0,($I$1-1)*7) -> 4850.0525 | F18: =OFFSET(Balance!F184,0,($I$1-1)*7) -> 4976.986 | G18: =OFFSET(Balance!G184,0,($I$1-1)*7) -> 4246.119 | H18: =OFFSET(Balance!H184,0,($I$1-1)*7) -> - | I18: =OFFSET(Balance!I184,0,($I$1-1)*7) -> -
B19: Régimen especial | C19: =OFFSET(Balance!C185,0,($I$1-1)*7) ->  | D19: =OFFSET(Balance!D185,0,($I$1-1)*7) ->  | E19: =OFFSET(Balance!E185,0,($I$1-1)*7) ->  | F19: =OFFSET(Balance!F185,0,($I$1-1)*7) ->  | G19: =OFFSET(Balance!G185,0,($I$1-1)*7) ->  | H19: =OFFSET(Balance!H185,0,($I$1-1)*7) ->  | I19: =OFFSET(Balance!I185,0,($I$1-1)*7) -> 
B20: Generación | C20: =OFFSET(Balance!C186,0,($I$1-1)*7) -> 209798.915 | D20: =OFFSET(Balance!D186,0,($I$1-1)*7) -> 213201.556 | E20: =OFFSET(Balance!E186,0,($I$1-1)*7) -> 208285.99 | F20: =OFFSET(Balance!F186,0,($I$1-1)*7) -> 210425.078 | G20: =OFFSET(Balance!G186,0,($I$1-1)*7) -> 161252.238 | H20: =OFFSET(Balance!H186,0,($I$1-1)*7) -> - | I20: =OFFSET(Balance!I186,0,($I$1-1)*7) -> -
B21: Demanda transporte (b.c.) | C21: =OFFSET(Balance!C187,0,($I$1-1)*7) -> 209798.915 | D21: =OFFSET(Balance!D187,0,($I$1-1)*7) -> 213201.556 | E21: =OFFSET(Balance!E187,0,($I$1-1)*7) -> 208285.99 | F21: =OFFSET(Balance!F187,0,($I$1-1)*7) -> 210425.078 | G21: =OFFSET(Balance!G187,0,($I$1-1)*7) -> 161252.238 | H21: =OFFSET(Balance!H187,0,($I$1-1)*7) -> - | I21: =OFFSET(Balance!I187,0,($I$1-1)*7) -> -
B22: (1) Asignación de unidades de producción según combustible principal.
B23: (2) Hasta 2010 incluye residuos.
B24: =IF(MONTH(FACT)=1,"",CONCATENATE("Para el año ",YEAR(FACT), " valores acumulados hasta ",TEXT(FACT-30,"mmmm")," de ",YEAR(FACT),".")) -> Para el año 2018 valores acumulados hasta septiembre de 2018.
B25: ='Balance nacional mensual'!B38 -> Datos definitivos hasta el 31/03/2017. Datos provisionales del 01/04/2017 al 31/08/2018. Datos programados del 01/09/2018 al 30/09/2018.

Sheet Balance (hidden)
B2: Balance eléctrico mensual peninsular (GWh) | C2: 1990-01-01 | D2: 1990-02-01 | E2: 1990-03-01 | F2: 1990-04-01 | G2: 1990-05-01 | H2: 1990-06-01 | I2: 1990-07-01 | J2: 1990-08-01 | K2: 1990-09-01 | L2: 1990-10-01 | M2: 1990-11-01 | N2: 1990-12-01 | O2: 1991-01-01 | P2: 1991-02-01 | Q2: 1991-03-01 | R2: 1991-04-01 | S2: 1991-05-01 | T2: 1991-06-01 | U2: 1991-07-01 | V2: 1991-08-01 | W2: 1991-09-01 | X2: 1991-10-01 | Y2: 1991-11-01 | Z2: 1991-12-01 | AA2: 1992-01-01 | AB2: 1992-02-01 | AC2: 1992-03-01 | AD2: 1992-04-01 | AE2: 1992-05-01 | AF2: 1992-06-01 | AG2: 1992-07-01 | AH2: 1992-08-01 | AI2: 1992-09-01 | AJ2: 1992-10-01 | AK2: 1992-11-01 | AL2: 1992-12-01 | AM2: 1993-01-01 | AN2: 1993-02-01 | AO2: 1993-03-01 | AP2: 1993-04-01 | AQ2: 1993-05-01 | AR2: 1993-06-01 | AS2: 1993-07-01 | AT2: 1993-08-01 | AU2: 1993-09-01 | AV2: 1993-10-01 | AW2: 1993-11-01 | AX2: 1993-12-01 | AY2: 1994-01-01 | AZ2: 1994-02-01 | BA2: 1994-03-01 | BB2: 1994-04-01 | BC2: 1994-05-01 | BD2: 1994-06-01 | BE2: 1994-07-01 | BF2: 1994-08-01 | BG2: 1994-09-01 | BH2: 1994-10-01 | BI2: 1994-11-01 | BJ2: 1994-12-01 | BK2: 1995-01-01 | BL2: 1995-02-01 | BM2: 1995-03-01 | BN2: 1995-04-01 | BO2: 1995-05-01 | BP2: 1995-06-01 | BQ2: 1995-07-01 | BR2: 1995-08-01 | BS2: 1995-09-01 | BT2: 1995-10-01 | BU2: 1995-11-01 | BV2: 1995-12-01 | BW2: 1996-01-01 | BX2: 1996-02-01 | BY2: 1996-03-01 | BZ2: 1996-04-01 | CA2: 1996-05-01 | CB2: 1996-06-01 | CC2: 1996-07-01 | CD2: 1996-08-01 | CE2: 1996-09-01 | CF2: 1996-10-01 | CG2: 1996-11-01 | CH2: 1996-12-01 | CI2: 1997-01-01 | CJ2: 1997-02-01 | CK2: 1997-03-01 | CL2: 1997-04-01 | CM2: 1997-05-01 | CN2: 1997-06-01 | CO2: 1997-07-01 | CP2: 1997-08-01 | CQ2: 1997-09-01 | CR2: 1997-10-01 | CS2: 1997-11-01 | CT2: 1997-12-01 | CU2: 1998-01-01 | CV2: 1998-02-01 | CW2: 1998-03-01 | CX2: 1998-04-01 | CY2: 1998-05-01 | CZ2: 1998-06-01 | DA2: 1998-07-01 | DB2: 1998-08-01 | DC2: 1998-09-01 | DD2: 1998-10-01 | DE2: 1998-11-01 | DF2: 1998-12-01 | DG2: 1999-01-01 | DH2: 1999-02-01 | DI2: 1999-03-01 | DJ2: 1999-04-01 | DK2: 1999-05-01 | DL2: 1999-06-01 | DM2: 1999-07-01 | DN2: 1999-08-01 | DO2: 1999-09-01 | DP2: 1999-10-01 | DQ2: 1999-11-01 | DR2: 1999-12-01 | DS2: 2000-01-01 | DT2: 2000-02-01 | DU2: 2000-03-01 | DV2: 2000-04-01 | DW2: 2000-05-01 | DX2: 2000-06-01 | DY2: 2000-07-01 | DZ2: 2000-08-01 | EA2: 2000-09-01 | EB2: 2000-10-01 | EC2: 2000-11-01 | ED2: 2000-12-01 | EE2: 2001-01-01 | EF2: 2001-02-01 | EG2: 2001-03-01 | EH2: 2001-04-01 | EI2: 2001-05-01 | EJ2: 2001-06-01 | EK2: 2001-07-01 | EL2: 2001-08-01 | EM2: 2001-09-01 | EN2: 2001-10-01 | EO2: 2001-11-01 | EP2: 2001-12-01 | EQ2: 2002-01-01 | ER2: 2002-02-01 | ES2: 2002-03-01 | ET2: 2002-04-01 | EU2: 2002-05-01 | EV2: 2002-06-01 | EW2: 2002-07-01 | EX2: 2002-08-01 | EY2: 2002-09-01 | EZ2: 2002-10-01 | FA2: 2002-11-01 | FB2: 2002-12-01 | FC2: 2003-01-01 | FD2: 2003-02-01 | FE2: 2003-03-01 | FF2: 2003-04-01 | FG2: 2003-05-01 | FH2: 2003-06-01 | FI2: 2003-07-01 | FJ2: 2003-08-01 | FK2: 2003-09-01 | FL2: 2003-10-01 | FM2: 2003-11-01 | FN2: 2003-12-01 | FO2: 2004-01-01 | FP2: 2004-02-01 | FQ2: 2004-03-01 | FR2: 2004-04-01 | FS2: 2004-05-01 | FT2: 2004-06-01 | FU2: 2004-07-01 | FV2: 2004-08-01 | FW2: 2004-09-01 | FX2: 2004-10-01 | FY2: 2004-11-01 | FZ2: 2004-12-01 | GA2: 2005-01-01 | GB2: 2005-02-01 | GC2: 2005-03-01 | GD2: 2005-04-01 | GE2: 2005-05-01 | GF2: 2005-06-01 | GG2: 2005-07-01 | GH2: 2005-08-01 | GI2: 2005-09-01 | GJ2: 2005-10-01 | GK2: 2005-11-01 | GL2: 2005-12-01 | GM2: 2006-01-01 | GN2: 2006-02-01 | GO2: 2006-03-01 | GP2: 2006-04-01 | GQ2: 2006-05-01 | GR2: 2006-06-01 | GS2: 2006-07-01 | GT2: 2006-08-01 | GU2: 2006-09-01 | GV2: 2006-10-01 | GW2: 2006-11-01 | GX2: 2006-12-01 | GY2: 2007-01-01 | GZ2: 2007-02-01 | HA2: 2007-03-01 | HB2: 2007-04-01 | HC2: 2007-05-01 | HD2: 2007-06-01 | HE2: 2007-07-01 | HF2: 2007-08-01 | HG2: 2007-09-01 | HH2: 2007-10-01 | HI2: 2007-11-01 | HJ2: 2007-12-01 | HK2: 2008-01-01 | HL2: 2008-02-01 | HM2: 2008-03-01 | HN2: 2008-04-01 | HO2: 2008-05-01 | HP2: 2008-06-01 | HQ2: 2008-07-01 | HR2: 2008-08-01 | HS2: 2008-09-01 | HT2: 2008-10-01 | HU2: 2008-11-01 | HV2: 2008-12-01 | HW2: 2009-01-01 | HX2: 2009-02-01 | HY2: 2009-03-01 | HZ2: 2009-04-01 | IA2: 2009-05-01 | IB2: 2009-06-01 | IC2: 2009-07-01 | ID2: 2009-08-01 | IE2: 2009-09-01 | IF2: 2009-10-01 | IG2: 2009-11-01 | IH2: 2009-12-01 | II2: 2010-01-01 | IJ2: 2010-02-01 | IK2: 2010-03-01 | IL2: 2010-04-01 | IM2: 2010-05-01 | IN2: 2010-06-01 | IO2: 2010-07-01 | IP2: 2010-08-01 | IQ2: 2010-09-01 | IR2: 2010-10-01 | IS2: 2010-11-01 | IT2: 2010-12-01 | IU2: 2011-01-01 | IV2: 2011-02-01 | IW2: 2011-03-01 | IX2: 2011-04-01 | IY2: 2011-05-01 | IZ2: 2011-06-01 | JA2: 2011-07-01 | JB2: 2011-08-01 | JC2: 2011-09-01 | JD2: 2011-10-01 | JE2: 2011-11-01 | JF2: 2011-12-01 | JG2: 2012-01-01 | JH2: 2012-02-01 | JI2: 2012-03-01 | JJ2: 2012-04-01 | JK2: 2012-05-01 | JL2: 2012-06-01 | JM2: 2012-07-01 | JN2: 2012-08-01 | JO2: 2012-09-01 | JP2: 2012-10-01 | JQ2: 2012-11-01 | JR2: 2012-12-01 | JS2: 2013-01-01 | JT2: 2013-02-01 | JU2: 2013-03-01 | JV2: 2013-04-01 | JW2: 2013-05-01 | JX2: 2013-06-01 | JY2: 2013-07-01 | JZ2: 2013-08-01 | KA2: 2013-09-01 | KB2: 2013-10-01 | KC2: 2013-11-01 | KD2: 2013-12-01 | KE2: 2014-01-01 | KF2: 2014-02-01 | KG2: 2014-03-01 | KH2: 2014-04-01 | KI2: 2014-05-01 | KJ2: 2014-06-01 | KK2: 2014-07-01 | KL2: 2014-08-01 | KM2: 2014-09-01 | KN2: 2014-10-01 | KO2: 2014-11-01 | KP2: 2014-12-01 | KQ2: 2015-01-01 | KR2: 2015-02-01 | KS2: 2015-03-01 | KT2: 2015-04-01 | KU2: 2015-05-01 | KV2: 2015-06-01 | KW2: 2015-07-01 | KX2: 2015-08-01 | KY2: 2015-09-01 | KZ2: 2015-10-01 | LA2: 2015-11-01 | LB2: 2015-12-01 | LC2: 2016-01-01 | LD2: 2016-02-01 | LE2: 2016-03-01 | LF2: 2016-04-01 | LG2: 2016-05-01 | LH2: 2016-06-01 | LI2: 2016-07-01 | LJ2: 2016-08-01 | LK2: 2016-09-01 | LL2: 2016-10-01 | LM2: 2016-11-01 | LN2: 2016-12-01 | LO2: 2017-01-01 | LP2: 2017-02-01 | LQ2: 2017-03-01 | LR2: 2017-04-01 | LS2: 2017-05-01 | LT2: 2017-06-01 | LU2: 2017-07-01 | LV2: 2017-08-01 | LW2: 2017-09-01 | LX2: 2017-10-01 | LY2: 2017-11-01 | LZ2: 2017-12-01 | MA2: 2018-01-01 | MB2: 2018-02-01 | MC2: 2018-03-01 | MD2: 2018-04-01 | ME2: 2018-05-01 | MF2: 2018-06-01 | MG2: 2018-07-01 | MH2: 2018-08-01 | MI2: 2018-09-01 | MJ2: 2018-10-01 | MK2: 2018-11-01 | ML2: 2018-12-01
B3: Hidráulica | C3: 3812.6837 | D3: 3241.3314 | E3: 2387.7997 | F3: 1664.4925 | G3: 1752.9018 | H3: 1739.8822 | I3: 1544.0682 | J3: 1169.8984 | K3: 1178.3229 | L3: 1337.0603 | M3: 1868.1971 | N3: 1844.1224 | O3: 2467.4704 | P3: 1919.5629 | Q3: 3614.2048 | R3: 3316.7103 | S3: 2694.8297 | T3: 1973.8522 | U3: 1620.9676 | V3: 1055.456 | W3: 1050.6569 | X3: 1456.6257 | Y3: 1844.0771 | Z3: 1713.5203 | AA3: 1250.8666 | AB3: 723.7795 | AC3: 698.13 | AD3: 1390.8229 | AE3: 1287.4845 | AF3: 1384.7242 | AG3: 1490.8639 | AH3: 1021.2474 | AI3: 1103.2182 | AJ3: 1653.1741 | AK3: 1965.1257 | AL3: 2587.4305 | AM3: 1964.7223 | AN3: 1382.2487 | AO3: 1283.8342 | AP3: 971.6232 | AQ3: 1629.2967 | AR3: 1998.1276 | AS3: 1732.0918 | AT3: 1141.0419 | AU3: 1098.4952 | AV3: 2604.2501 | AW3: 3227.9827 | AX3: 2480.7753 | AY3: 3506.1818 | AZ3: 2871.0269 | BA3: 2559.2107 | BB3: 2180.1567 | BC3: 2397.3125 | BD3: 2261.01 | BE3: 1724.8936 | BF3: 1239.8088 | BG3: 1153.1582 | BH3: 1376.5239 | BI3: 2086.2166 | BJ3: 1653.166 | BK3: 2531.9199 | BL3: 2392.7034 | BM3: 2922.0562 | BN3: 1736.6887 | BO3: 1575.2419 | BP3: 1613.2683 | BQ3: 1506.0025 | BR3: 986.9473 | BS3: 810.2377 | BT3: 876.0217 | BU3: 1104.649 | BV3: 2183.3512 | BW3: 5366.4255 | BX3: 5212.2742 | BY3: 3299.6811 | BZ3: 3427.3589 | CA3: 3565.8544 | CB3: 2717.4453 | CC3: 2133.1412 | CD3: 1426.6442 | CE3: 1653.9289 | CF3: 1642.9637 | CG3: 2028.1707 | CH3: 3850.8693 | CI3: 5243.6578 | CJ3: 3212.0474 | CK3: 2463.6686 | CL3: 2149.8221 | CM3: 2047.0708 | CN3: 2156.1441 | CO3: 1862.2452 | CP3: 1573.6127 | CQ3: 1466.7003 | CR3: 1361.9638 | CS3: 3192.0373 | CT3: 4952.2926 | CU3: 5470.6295 | CV3: 3738.6074 | CW3: 2434.1593 | CX3: 3142.3083 | CY3: 3702.8203 | CZ3: 3175.0884 | DA3: 2392.2329 | DB3: 1887.2715 | DC3: 1699.3458 | DD3: 1791.5409 | DE3: 1342.3168 | DF3: 1079.2141 | DG3: 1111.8596 | DH3: 1083.0403 | DI3: 1671.6503 | DJ3: 1854.1497 | DK3: 2506.3908 | DL3: 2240.7728 | DM3: 1763.4634 | DN3: 1280.9924 | DO3: 1341.8103 | DP3: 1474.7902 | DQ3: 2480.3628 | DR3: 2488.0994 | DS3: 2258.7286 | DT3: 1356.0572 | DU3: 1300.8536 | DV3: 1804.3186 | DW3: 2863.7578 | DX3: 2010.3655 | DY3: 1492.7416 | DZ3: 1557.3933 | EA3: 1681.1606 | EB3: 1511.4157 | EC3: 2137.1221 | ED3: 4083.9202 | EE3: 5842.8609 | EF3: 5371.9687 | EG3: 6098.7381 | EH3: 3956.8407 | EI3: 2967.3583 | EJ3: 2227.5889 | EK3: 1785.2493 | EL3: 1721.3026 | EM3: 1319.4317 | EN3: 1577.8277 | EO3: 1812.4448 | EP3: 1422.9655 | EQ3: 1092.5866 | ER3: 918.6936 | ES3: 1561.1817 | ET3: 1532.7879 | EU3: 1572.4141 | EV3: 1595.1734 | EW3: 1135.2789 | EX3: 844.2856 | EY3: 837.7712 | EZ3: 937.8151 | FA3: 1607.2706 | FB3: 3690.6139 | FC3: 5077.4655 | FD3: 3962.1759 | FE3: 4042.184 | FF3: 3389.938 | FG3: 3195.2093 | FH3: 2009.3285 | FI3: 1705.3562 | FJ3: 1257.8617 | FK3: 1451.1365 | FL3: 1701.9633 | FM3: 2809.7932 | FN3: 4405.9511 | FO3: 3194.3601 | FP3: 2970.821 | FQ3: 2675.6499 | FR3: 2489.1505 | FS3: 2791.3154 | FT3: 2347.6551 | FU3: 1776.8766 | FV3: 1499.0746 | FW3: 1336.6138 | FX3: 1499.4952 | FY3: 2039.2545 | FZ3: 1500.1924 | GA3: 1212.913 | GB3: 1247.2604 | GC3: 1424.3981 | GD3: 1633.995 | GE3: 1748.5584 | GF3: 1526.0681 | GG3: 1063.7019 | GH3: 938.55 | GI3: 667.8684 | GJ3: 638.9878 | GK3: 1022.1013 | GL3: 1306.2117 | GM3: 1233.9693 | GN3: 869.5377 | GO3: 2443.6333 | GP3: 2221.2243 | GQ3: 1775.2779 | GR3: 1255.5403 | GS3: 1280.5138 | GT3: 855.7432 | GU3: 952.0689 | GV3: 1324.1279 | GW3: 2588.5226 | GX3: 4426.2257 | GY3: 1920.0478 | GZ3: 2539.7347 | HA3: 3412.3604 | HB3: 2337.7021 | HC3: 2328.2846 | HD3: 1896.4942 | HE3: 2152.4523 | HF3: 1514.2806 | HG3: 1189.9215 | HH3: 1525.5493 | HI3: 1152.0925 | HJ3: 1010.0581 | HK3: 1052.9718 | HL3: 724.4335 | HM3: 774.5612 | HN3: 2158.8984 | HO3: 2756.8809 | HP3: 2593.9365 | HQ3: 1801.4576 | HR3: 1275.0206 | HS3: 1101.1438 | HT3: 904.6395 | HU3: 1192.6748 | HV3: 1959.02 | HW3: 1753.4291 | HX3: 2852.5815 | HY3: 2234.3776 | HZ3: 1704.1587 | IA3: 2008.6724 | IB3: 1659.6542 | IC3: 1393.0594 | ID3: 1167.1748 | IE3: 750.3409 | IF3: 1028.1299 | IG3: 1560.9613 | IH3: 2619.7629 | II3: 4414.276113 | IJ3: 3450.725562 | IK3: 5031.778044 | IL3: 4029.856131 | IM3: 3174.539048 | IN3: 2946.088153 | IO3: 2437.169407 | IP3: 1695.081813 | IQ3: 1249.407344 | IR3: 1282.613029 | IS3: 2043.858068 | IT3: 3254.061477 | IU3: 4439.24539 | IV3: 2483.327006 | IW3: 3232.060056 | IX3: 2936.979976 | IY3: 2301.762578 | IZ3: 1658.936526 | JA3: 1271.632698 | JB3: 1211.761241 | JC3: 986.1244732 | JD3: 1054.686747 | JE3: 1734.165339 | JF3: 1730.601858 | JG3: 1288.429194 | JH3: 890.01074 | JI3: 1012.576244 | JJ3: 1270.933546 | JK3: 1884.764808 | JL3: 1662.359715 | JM3: 1321.613362 | JN3: 1067.309015 | JO3: 832.0397223 | JP3: 1114.787371 | JQ3: 1571.085897 | JR3: 2029.809627 | JS3: 2334.093153 | JT3: 2847.929657 | JU3: 3722.613263 | JV3: 4522.697576 | JW3: 3013.977343 | JX3: 2527.858498 | JY3: 2174.262826 | JZ3: 1734.543712 | KA3: 1514.129681 | KB3: 1515.136218 | KC3: 2268.976088 | KD3: 1922.17871 | KE3: 4261.089441 | KF3: 5762.976808 | KG3: 5292.71858 | KH3: 4986.567864 | KI3: 2826.466361 | KJ3: 2485.440482 | KK3: 2354.510689 | KL3: 2044.576989 | KM3: 1796.850468 | KN3: 1631.747831 | KO3: 2451.805829 | KP3: 3283.772818 | KQ3: 2554.527494 | KR3: 3558.737229 | KS3: 3845.280396 | KT3: 2662.520772 | KU3: 2966.879723 | KV3: 2497.294804 | KW3: 2060.0959 | KX3: 1643.417731 | KY3: 1609.227182 | KZ3: 1649.857537 | LA3: 1892.383414 | LB3: 1438.789389 | LC3: 3441.520467 | LD3: 4052.601401 | LE3: 4366.237995 | LF3: 5244.585173 | LG3: 5100.89935 | LH3: 2955.873145 | LI3: 2272.888805 | LJ3: 2046.813432 | LK3: 1653.365927 | LL3: 1631.560771 | LM3: 1498.794683 | LN3: 1846.293218 | LO3: 2040.378652 | LP3: 1956.351219 | LQ3: 2700.967572 | LR3: 1897.721995 | LS3: 1935.158531 | LT3: 1637.601144 | LU3: 1192.784179 | LV3: 1082.439769 | LW3: 1147.580836 | LX3: 773.3563124 | LY3: 831.6172885 | LZ3: 1249.937019 | MA3: 2193.923799 | MB3: 2388.61228 | MC3: 4399.009078 | MD3: 4716.42828 | ME3: 3520.795046 | MF3: 3710.881287 | MG3: 3024.33791 | MH3: 2103.909178 | MI3: 1923.630572 | MJ3: - | MK3: - | ML3: -
B4: Turbinación bombeo | C4: 161.4753 | D4: 85.6016 | E4: 10.0023 | F4: 19.7015 | G4: 30.4402 | H4: 9.1798 | I4: 15.4728 | J4: 34.9846 | K4: 112.4991 | L4: 108.8507 | M4: 31.1549 | N4: 108.1276 | O4: 188.2356 | P4: 152.8681 | Q4: 120.1802 | R4: 8.5407 | S4: 10.9403 | T4: 28.9688 | U4: 40.3984 | V4: 50.463 | W4: 78.9411 | X4: 56.6153 | Y4: 131.9689 | Z4: 134.7927 | AA4: 183.3944 | AB4: 101.0205 | AC4: 119.308 | AD4: 208.3151 | AE4: 139.0305 | AF4: 172.7978 | AG4: 194.1751 | AH4: 192.3446 | AI4: 192.0898 | AJ4: 204.5099 | AK4: 127.2243 | AL4: 119.2835 | AM4: 97.1187 | AN4: 78.8823 | AO4: 132.2958 | AP4: 141.7808 | AQ4: 158.9483 | AR4: 94.0954 | AS4: 97.8922 | AT4: 133.1981 | AU4: 141.6548 | AV4: 133.4529 | AW4: 59.5273 | AX4: 52.4447 | AY4: 212.8532 | AZ4: 87.9431 | BA4: 11.2063 | BB4: 24.2123 | BC4: 37.1035 | BD4: 28 | BE4: 78.9894 | BF4: 20.3042 | BG4: 118.0438 | BH4: 131.6301 | BI4: 78.8214 | BJ4: 112.665 | BK4: 160.9531 | BL4: 106.2796 | BM4: 104.9398 | BN4: 97.3693 | BO4: 88.7621 | BP4: 88.3757 | BQ4: 114.7615 | BR4: 110.0827 | BS4: 122.0093 | BT4: 124.7743 | BU4: 116.683 | BV4: 222.2178 | BW4: 532.9415 | BX4: 133.2898 | BY4: 21.0189 | BZ4: 23.6971 | CA4: 30.8196 | CB4: 51.0097 | CC4: 46.4478 | CD4: 8.4518 | CE4: 16.2421 | CF4: 27.4323 | CG4: 48.7753 | CH4: 125.7067 | CI4: 177.0552 | CJ4: 26.0946 | CK4: 8.5834 | CL4: 15.0479 | CM4: 57.3202 | CN4: 59.8199 | CO4: 82.7148 | CP4: 123.4373 | CQ4: 133.0357 | CR4: 101.2872 | CS4: 186.2427 | CT4: 261.9834 | CU4: 194.0085 | CV4: 94.3866 | CW4: 77.8477 | CX4: 150.4027 | CY4: 127.2327 | CZ4: 80.1906 | DA4: 142.3611 | DB4: 223.9475 | DC4: 135.3632 | DD4: 120.2061 | DE4: 149.6502 | DF4: 315.8309 | DG4: 328.1404 | DH4: 239.9327 | DI4: 164.0667 | DJ4: 151.0313 | DK4: 153.8782 | DL4: 124.3452 | DM4: 150.1626 | DN4: 182.5866 | DO4: 238.6517 | DP4: 342.8348 | DQ4: 221.2182 | DR4: 269.6176 | DS4: 258.0144 | DT4: 219.2778 | DU4: 241.9704 | DV4: 359.5004 | DW4: 432.5482 | DX4: 231.1505 | DY4: 226.4094 | DZ4: 172.4387 | EA4: 179.7824 | EB4: 253.7703 | EC4: 316.1739 | ED4: 543.7838 | EE4: 377.3511 | EF4: 215.1513 | EG4: 271.2479 | EH4: 140.6713 | EI4: 150.2347 | EJ4: 181.0641 | EK4: 212.1077 | EL4: 204.0724 | EM4: 258.1243 | EN4: 254.8693 | EO4: 235.3022 | EP4: 391.6885 | EQ4: 456.9964 | ER4: 354.3694 | ES4: 326.4023 | ET4: 310.3751 | EU4: 391.6199 | EV4: 439.9206 | EW4: 489.8691 | EX4: 400.5904 | EY4: 418.5818 | EZ4: 402.8969 | FA4: 399.2954 | FB4: 478.7601 | FC4: 411.1345 | FD4: 265.8131 | FE4: 258.055 | FF4: 153.09 | FG4: 186.1937 | FH4: 291.0005 | FI4: 293.8908 | FJ4: 330.6233 | FK4: 305.9175 | FL4: 273.2107 | FM4: 225.4868 | FN4: 280.2779 | FO4: 283.3719 | FP4: 193.284 | FQ4: 237.3021 | FR4: 230.2965 | FS4: 275.3646 | FT4: 297.9249 | FU4: 285.8184 | FV4: 270.5094 | FW4: 271.4502 | FX4: 288.0388 | FY4: 251.0025 | FZ4: 338.9316 | GA4: 387.163 | GB4: 303.0566 | GC4: 344.8109 | GD4: 315.434 | GE4: 450.1476 | GF4: 444.1689 | GG4: 485.3191 | GH4: 312.256 | GI4: 363.8026 | GJ4: 337.9432 | GK4: 318.2137 | GL4: 387.5473 | GM4: 410.5087 | GN4: 370.9433 | GO4: 262.4447 | GP4: 214.0607 | GQ4: 219.5921 | GR4: 259.0567 | GS4: 359.3492 | GT4: 280.2478 | GU4: 340.6011 | GV4: 379.0661 | GW4: 379.1004 | GX4: 268.8903 | GY4: 260.2432 | GZ4: 277.1153 | HA4: 268.9176 | HB4: 205.3779 | HC4: 278.3354 | HD4: 249.3778 | HE4: 233.4647 | HF4: 259.9674 | HG4: 242.1475 | HH4: 221.9007 | HI4: 268.9085 | HJ4: 336.8449 | HK4: 301.5852 | HL4: 293.5135 | HM4: 281.2558 | HN4: 153.3406 | HO4: 144.2511 | HP4: 199.6785 | HQ4: 177.6474 | HR4: 133.5614 | HS4: 158.5892 | HT4: 208.0015 | HU4: 287.8792 | HV4: 322.448 | HW4: 344.5589 | HX4: 274.4245 | HY4: 197.0304 | HZ4: 179.0313 | IA4: 173.2486 | IB4: 157.2158 | IC4: 168.7126 | ID4: 171.5042 | IE4: 178.1451 | IF4: 198.8861 | IG4: 278.2507 | IH4: 334.9241 | II4: 529.6098367 | IJ4: 388.3055554 | IK4: 381.2650926 | IL4: 212.2124193 | IM4: 195.9644344 | IN4: 161.1085868 | IO4: 139.417691 | IP4: 161.8007685 | IQ4: 163.5869683 | IR4: 242.2811895 | IS4: 225.5565683 | IT4: 319.3386931 | IU4: 283.9449077 | IV4: 172.1443778 | IW4: 234.3481209 | IX4: 201.5268856 | IY4: 111.1314104 | IZ4: 97.4017276 | JA4: 102.4390861 | JB4: 120.0197351 | JC4: 138.4371618 | JD4: 216.2073107 | JE4: 224.2613774 | JF4: 281.6741296 | JG4: 318.6914518 | JH4: 266.298885 | JI4: 265.7554954 | JJ4: 307.5811599 | JK4: 223.4214838 | JL4: 199.6128536 | JM4: 195.8227263 | JN4: 256.5476817 | JO4: 270.2417067 | JP4: 283.987815 | JQ4: 276.8436295 | JR4: 337.084855 | JS4: 372.3401237 | JT4: 342.6002962 | JU4: 457.1494529 | JV4: 370.5157122 | JW4: 251.1484002 | JX4: 216.4942682 | JY4: 175.2608152 | JZ4: 163.0164395 | KA4: 139.9517451 | KB4: 216.2682905 | KC4: 246.2846074 | KD4: 338.647033 | KE4: 443.6786262 | KF4: 369.2219831 | KG4: 354.7752499 | KH4: 361.1886132 | KI4: 275.9564758 | KJ4: 207.7026544 | KK4: 170.7723553 | KL4: 151.6569418 | KM4: 160.190686 | KN4: 267.5023279 | KO4: 326.9083208 | KP4: 326.4417923 | KQ4: 319.0210306 | KR4: 291.3396455 | KS4: 327.1447372 | KT4: 255.8627235 | KU4: 242.8414769 | KV4: 125.3668387 | KW4: 110.9740453 | KX4: 202.4642589 | KY4: 162.1055381 | KZ4: 249.5772665 | LA4: 276.574928 | LB4: 332.0932989 | LC4: 454.9848761 | LD4: 434.3675924 | LE4: 351.102469 | LF4: 429.2996681 | LG4: 316.0191135 | LH4: 169.5525221 | LI4: 96.84953377 | LJ4: 110.3576521 | LK4: 101.2399776 | LL4: 161.4373624 | LM4: 258.2335668 | LN4: 250.8845765 | LO4: 291.2130177 | LP4: 267.7395801 | LQ4: 241.2235743 | LR4: 199.4334495 | LS4: 162.4549828 | LT4: 91.89774922 | LU4: 98.82669405 | LV4: 112.2051763 | LW4: 118.4715549 | LX4: 133.8209176 | LY4: 222.0912555 | LZ4: 309.5864663 | MA4: 273.4352352 | MB4: 180.6230236 | MC4: 369.7777144 | MD4: 345.6373248 | ME4: 153.2743607 | MF4: 58.72284642 | MG4: 35.30614401 | MH4: 60.03104151 | MI4: 40.02675324 | MJ4: - | MK4: - | ML4: -
B5: Nuclear | C5: 5193.267 | D5: 4339.07 | E5: 4257.043 | F5: 4556.652 | G5: 3888.478 | H5: 3340.776 | I5: 4237.203 | J5: 4785.957 | K5: 3922.86 | L5: 3724.698 | M5: 4508.012 | N5: 5151.652 | O5: 5104.171 | P5: 4384.294 | Q5: 4067.27 | R5: 3992.02 | S5: 4552.189 | T5: 4225.19 | U5: 4437.653 | V5: 4942.09 | W5: 4277.073 | X5: 4464.017 | Y5: 4223.282 | Z5: 4493.151 | AA5: 5192.877 | AB5: 4385.729 | AC5: 4026.587 | AD5: 3462.453 | AE5: 4064.541 | AF5: 4293.199 | AG5: 4749.755 | AH5: 4946.147 | AI5: 4034.17 | AJ5: 4813.036 | AK5: 4192.345 | AL5: 5199.221 | AM5: 5201.174 | AN5: 4155.793 | AO5: 4669.188 | AP5: 4062.371 | AQ5: 3893.606 | AR5: 4183.93 | AS5: 4729.246 | AT5: 4829.798 | AU5: 4382.91 | AV5: 4501.306 | AW5: 4049.26 | AX5: 5006.708 | AY5: 4888.214 | AZ5: 3958.138 | BA5: 3900.121 | BB5: 4180.04 | BC5: 4543.501 | BD5: 3955.25 | BE5: 4579.176 | BF5: 5011.767 | BG5: 4867.835 | BH5: 4055.733 | BI5: 3978.734 | BJ5: 5077.294 | BK5: 5146.429 | BL5: 4395.348 | BM5: 4446.422 | BN5: 4134.199 | BO5: 4752.051 | BP5: 4513.055 | BQ5: 4113.75 | BR5: 4140.442 | BS5: 3814.664 | BT5: 4207.821 | BU5: 4297.065 | BV5: 5176.852 | BW5: 5195.754 | BX5: 4737.443 | BY5: 4830.922 | BZ5: 4445.974 | CA5: 5116.925 | CB5: 3774.429 | CC5: 3664.36 | CD5: 3673.057 | CE5: 3886.011 | CF5: 4866.237 | CG5: 4595.546 | CH5: 5326.088 | CI5: 5031.441 | CJ5: 4410.622 | CK5: 3691.562 | CL5: 4062.065 | CM5: 4998.131 | CN5: 4588.075 | CO5: 4734.536 | CP5: 4656.466 | CQ5: 4176.013 | CR5: 4076.844 | CS5: 4225.661 | CT5: 4396.926 | CU5: 4850.357 | CV5: 4864.741 | CW5: 4461.119 | CX5: 4236.956 | CY5: 4651.556 | CZ5: 4934.211 | DA5: 5286.895 | DB5: 5284.746 | DC5: 4524.404 | DD5: 4228.455 | DE5: 4439.546 | DF5: 4809.061 | DG5: 5175.085 | DH5: 3934.949 | DI5: 4011.019 | DJ5: 3517.41 | DK5: 4880.704 | DL5: 4516.897 | DM5: 4677.932 | DN5: 5216.167 | DO5: 4711.526 | DP5: 5076.299 | DQ5: 5278.687 | DR5: 5381.522 | DS5: 5459.17 | DT5: 5121.331 | DU5: 4958.84 | DV5: 4468.136 | DW5: 4874.432 | DX5: 5231.805 | DY5: 5359.431 | DZ5: 5001.26 | EA5: 4030.767 | EB5: 4407.563 | EC5: 5064.955 | ED5: 5552.63 | EE5: 5502.377 | EF5: 4781.093 | EG5: 4681.95 | EH5: 4579.076 | EI5: 5513.328 | EJ5: 5103.848 | EK5: 5432.708 | EL5: 5308.987 | EM5: 4701.936 | EN5: 4737.749 | EO5: 5173.696 | EP5: 5468.465 | EQ5: 5520.427 | ER5: 4774.628 | ES5: 4206.713 | ET5: 4213.842 | EU5: 4779.207 | EV5: 5056.317 | EW5: 5461.048 | EX5: 5342.009 | EY5: 4584.918 | EZ5: 5397.964 | FA5: 5372.254 | FB5: 5579.12 | FC5: 5509.204 | FD5: 4935.939 | FE5: 4672.105 | FF5: 4666.587 | FG5: 4788.816 | FH5: 4456.119 | FI5: 5407.931 | FJ5: 5310.365 | FK5: 4125.64 | FL5: 4543.852 | FM5: 5301.45 | FN5: 5501.582 | FO5: 5460.718 | FP5: 5125.564 | FQ5: 4948.627 | FR5: 5126.832 | FS5: 4825.293 | FT5: 5119.868 | FU5: 5506.266 | FV5: 5391.197 | FW5: 4699.066 | FX5: 4456.99 | FY5: 5064.813 | FZ5: 5150.508 | GA5: 5568.309 | GB5: 4881.149 | GC5: 4397.378 | GD5: 3772.495 | GE5: 3619.368 | GF5: 3778.693 | GG5: 3888.026 | GH5: 4532.116 | GI5: 5109.769 | GJ5: 4710.487 | GK5: 5173.164 | GL5: 5470.879 | GM5: 5421.283 | GN5: 4884.597 | GO5: 5073.241 | GP5: 3528.834 | GQ5: 4300.088 | GR5: 4842.653 | GS5: 4775.66 | GT5: 5164.555 | GU5: 4298.756 | GV5: 4620.297 | GW5: 5068.626 | GX5: 5375.116 | GY5: 5319.158 | GZ5: 4778.305 | HA5: 4947.463 | HB5: 4342.93 | HC5: 3485.058 | HD5: 3161.45 | HE5: 3855.746 | HF5: 3976.62 | HG5: 4877.284 | HH5: 4891.066 | HI5: 3934.346 | HJ5: 5069.501 | HK5: 5322.941 | HL5: 5119.932 | HM5: 5354.706 | HN5: 4039.755 | HO5: 4689.704 | HP5: 4579.733 | HQ5: 4541.035 | HR5: 5013.949 | HS5: 4482.389 | HT5: 4314.462 | HU5: 4045.827 | HV5: 4955.858 | HW5: 5438.39 | HX5: 4335.14 | HY5: 3949.223 | HZ5: 4063.489 | IA5: 3687.607 | IB5: 3530.33 | IC5: 3998.25 | ID5: 5278.162 | IE5: 4387.847 | IF5: 3957.824 | IG5: 3973.495 | IH5: 3949.688 | II5: 4480.61 | IJ5: 4635.983 | IK5: 4877.964647 | IL5: 4894.268 | IM5: 4417.869 | IN5: 4693.97 | IO5: 5399.984 | IP5: 5421.255 | IQ5: 5066.819 | IR5: 5429.769 | IS5: 5094.619 | IT5: 4829.211 | IU5: 4706.500878 | IV5: 4266.689754 | IW5: 4324.231209 | IX5: 4450.077308 | IY5: 3611.779417 | IZ5: 4695.257446 | JA5: 4817.469682 | JB5: 5271.690542 | JC5: 4981.741631 | JD5: 4490.637988 | JE5: 4538.88147 | JF5: 4850.917542 | JG5: 5164.189642 | JH5: 5145.328688 | JI5: 5475.719816 | JJ5: 5196.306606 | JK5: 4472.201069 | JL5: 3482.867754 | JM5: 5091.855769 | JN5: 5458.005744 | JO5: 5300.147239 | JP5: 5396.098031 | JQ5: 4059.590095 | JR5: 4353.128346 | JS5: 4573.278219 | JT5: 4420.669595 | JU5: 5208.391229 | JV5: 4453.463633 | JW5: 3978.806297 | JX5: 4322.524901 | JY5: 5134.232246 | JZ5: 5022.173757 | KA5: 4737.082166 | KB5: 4333.346795 | KC5: 4057.455982 | KD5: 3969.363299 | KE5: 4526.062779 | KF5: 4721.937495 | KG5: 5286.792276 | KH5: 5056.306647 | KI5: 4336.633309 | KJ5: 3416.66553 | KK5: 4253.41344 | KL5: 4205.395065 | KM5: 4801.362391 | KN5: 5126.607422 | KO5: 4363.827098 | KP5: 4686.277883 | KQ5: 5240.045056 | KR5: 4716.807315 | KS5: 5203.717493 | KT5: 4681.620985 | KU5: 3534.498833 | KV5: 3750.101549 | KW5: 4794.536939 | KX5: 4962.672806 | KY5: 4871.533734 | KZ5: 4085.58256 | LA5: 3964.219502 | LB5: 4856.466533 | LC5: 4607.560676 | LD5: 3961.132227 | LE5: 5190.041431 | LF5: 5052.21048 | LG5: 3877.83723 | LH5: 4814.131857 | LI5: 5176.652116 | LJ5: 5150.521036 | LK5: 5008.646428 | LL5: 5093.041035 | LM5: 3762.53913 | LN5: 4327.368413 | LO5: 5283.554335 | LP5: 4766.657187 | LQ5: 5269.133725 | LR5: 4926.069892 | LS5: 4130.87031 | LT5: 4034.332738 | LU5: 4385.200742 | LV5: 5078.952117 | LW5: 4722.573526 | LX5: 4301.325456 | LY5: 3601.78287 | LZ5: 5039.108604 | MA5: 5096.528633 | MB5: 4592.320568 | MC5: 4488.917022 | MD5: 3812.588835 | ME5: 3728.673667 | MF5: 3591.591351 | MG5: 4471.023688 | MH5: 5135.724678 | MI5: 5013.034921 | MJ5: - | MK5: - | ML5: -
B6: Carbón | C6: 3554.713 | D6: 2808.93 | E6: 4652.699 | F6: 4136.543 | G6: 4587.111 | H6: 5321.432 | I6: 5250.706 | J6: 3947.904 | K6: 5387.902 | L6: 5510.969 | M6: 4915.063 | N6: 5264.836 | O6: 5224.28 | P6: 5296.625 | Q6: 3495.028 | R6: 3481.849 | S6: 3671.818 | T6: 4256.693 | U6: 4980.173 | V6: 4086.721 | W6: 5208.071 | X6: 5263.247 | Y6: 5335.63 | Z6: 5504.172 | AA6: 5944.99 | AB6: 5738.336 | AC6: 6103.602 | AD6: 5201.309 | AE6: 4697.456 | AF6: 4286.62 | AG6: 5015.971 | AH6: 4074.345 | AI6: 5319.274 | AJ6: 4625.697 | AK6: 4904.899 | AL6: 3913.396 | AM6: 5346.884 | AN6: 5513.03 | AO6: 5612.2 | AP6: 5170.295 | AQ6: 4777.482 | AR6: 4212.786 | AS6: 4707.795 | AT6: 4404.015 | AU6: 5167.946 | AV6: 4033.755 | AW6: 4331.081 | AX6: 4573.829 | AY6: 3978.51 | AZ6: 4574.626 | BA6: 4772.031 | BB6: 4414.084 | BC6: 3947.582 | BD6: 4969.916 | BE6: 5461.822 | BF6: 4646.473 | BG6: 4986.63 | BH6: 5297.803 | BI6: 4989.803 | BJ6: 5135.429 | BK6: 4961.543 | BL6: 4086.702 | BM6: 4543.376 | BN6: 4764.923 | BO6: 4849.966 | BP6: 4988.427 | BQ6: 5813.121 | BR6: 5715.288 | BS6: 5955.434 | BT6: 5452.807 | BU6: 5627.412 | BV6: 4475.713 | BW6: 2360.506 | BX6: 2530.396 | BY6: 3906.415 | BZ6: 2566.183 | CA6: 2468.016 | CB6: 4802.957 | CC6: 6075.884 | CD6: 5718.72 | CE6: 5483.271 | CF6: 5300.673 | CG6: 5235.796 | CH6: 3019.852 | CI6: 3369.965 | CJ6: 3440.405 | CK6: 5261.442 | CL6: 5405.207 | CM6: 4764.108 | CN6: 4851.495 | CO6: 5510.269 | CP6: 5458.799 | CQ6: 6182.282 | CR6: 6159.891 | CS6: 4489.942 | CT6: 3626.001 | CU6: 2784.997 | CV6: 3170.357 | CW6: 5292.931 | CX6: 4252.312 | CY6: 3309.682 | CZ6: 4052.584 | DA6: 5346.399 | DB6: 4423.574 | DC6: 5801.128 | DD6: 6013.634 | DE6: 6005.669 | DF6: 6472.708 | DG6: 6340.864 | DH6: 5930.681 | DI6: 6145.65 | DJ6: 5483.532 | DK6: 4405.944 | DL6: 5287.699 | DM6: 6323.383 | DN6: 5275.55 | DO6: 6366.487 | DP6: 5855.647 | DQ6: 5280.283 | DR6: 5709.913 | DS6: 6646.727 | DT6: 6309.58 | DU6: 6444.9 | DV6: 5440.619 | DW6: 4905.92 | DX6: 5885.038 | DY6: 6534.355 | DZ6: 6262.804 | EA6: 6674.877 | EB6: 6592.702 | EC6: 6222.237 | ED6: 4308.412 | EE6: 3864.127 | EF6: 3418.344 | EG6: 3396.487 | EH6: 3806.208 | EI6: 4867.444 | EJ6: 5835.146 | EK6: 6385.937 | EL6: 6261.54 | EM6: 6593.664 | EN6: 6585.913 | EO6: 6448.018 | EP6: 6986.076 | EQ6: 6959.422 | ER6: 6404.216 | ES6: 6858.526 | ET6: 6465.355 | EU6: 6436.551 | EV6: 6061.064 | EW6: 6297.098 | EX6: 6142.676 | EY6: 6405.984 | EZ6: 5954.988 | FA6: 6040.416 | FB6: 4529.395 | FC6: 4692.41 | FD6: 5217.618 | FE6: 5238.538 | FF6: 4917.42 | FG6: 5208.806 | FH6: 6150.093 | FI6: 6649.875 | FJ6: 6645.774 | FK6: 6560.467 | FL6: 6463.724 | FM6: 5574.144 | FN6: 4974.297 | FO6: 5656.455 | FP6: 5871.244 | FQ6: 6356.156 | FR6: 5163.093 | FS6: 5313.855 | FT6: 5886.91 | FU6: 6545.987 | FV6: 6332.239 | FW6: 6239.248 | FX6: 6190.806 | FY6: 5967.052 | FZ6: 6597.061 | GA6: 6811.043 | GB6: 6089.217 | GC6: 6168.657 | GD6: 5506.63 | GE6: 5676.776 | GF6: 5758.908 | GG6: 6257.933 | GH6: 5758.177 | GI6: 5916.067 | GJ6: 6141.552 | GK6: 6328.211 | GL6: 6580.918 | GM6: 6886.589 | GN6: 5775.369 | GO6: 4765.658 | GP6: 3496.492 | GQ6: 5080.473 | GR6: 5562.59 | GS6: 6510.018 | GT6: 5286.591 | GU6: 5409.01 | GV6: 4807.43 | GW6: 4258.214 | GX6: 4287.631 | GY6: 6102.67 | GZ6: 4895.344 | HA6: 4863.635 | HB6: 5834.914 | HC6: 5991.804 | HD6: 5773.713 | HE6: 5941.476 | HF6: 5886.238 | HG6: 5490.184 | HH6: 5348.828 | HI6: 5486.22 | HJ6: 6071.222 | HK6: 4980.962 | HL6: 4597.712 | HM6: 3661.907 | HN6: 3107.048 | HO6: 2174.694 | HP6: 2041.751 | HQ6: 3682.365 | HR6: 3065.986 | HS6: 3445.736 | HT6: 4099.561 | HU6: 4098.351 | HV6: 4453.464 | HW6: 4585.163 | HX6: 3015.414 | HY6: 2964.835 | HZ6: 1785.362 | IA6: 2230.875 | IB6: 2454.086 | IC6: 3212.927 | ID6: 1795.094 | IE6: 2689.472 | IF6: 3054.298 | IG6: 1997.712 | IH6: 1837.324 | II6: 1696.094 | IJ6: 1367.276 | IK6: 844.196834 | IL6: 633.698 | IM6: 823.906 | IN6: 1322.563 | IO6: 2450.416 | IP6: 2835.734 | IQ6: 2971.126 | IR6: 1987.136 | IS6: 1627.231 | IT6: 2039.879 | IU6: 2032.048613 | IV6: 2457.403854 | IW6: 2974.465019 | IX6: 2432.419513 | IY6: 2948.423502 | IZ6: 2720.703328 | JA6: 4180.843146 | JB6: 4063.69502 | JC6: 4662.402343 | JD6: 4277.939237 | JE6: 3876.807976 | JF6: 3785.328297 | JG6: 5153.171535 | JH6: 5282.549216 | JI6: 4447.5218 | JJ6: 2513.879866 | JK6: 3782.484482 | JL6: 5060.672545 | JM6: 4672.944405 | JN6: 4817.102584 | JO6: 3807.967081 | JP6: 4055.686181 | JQ6: 3912.991059 | JR6: 3590.353182 | JS6: 2875.60752 | JT6: 2413.779758 | JU6: 1236.112305 | JV6: 886.622734 | JW6: 1891.518836 | JX6: 2459.690718 | JY6: 5224.852042 | JZ6: 4373.07242 | KA6: 4538.507335 | KB6: 4027.820251 | KC6: 2505.669158 | KD6: 4657.644235 | KE6: 2110.070195 | KF6: 734.008932 | KG6: 1133.987178 | KH6: 1211.551655 | KI6: 3173.254261 | KJ6: 5006.633636 | KK6: 5377.036782 | KL6: 5051.754418 | KM6: 5683.639402 | KN6: 4389.422225 | KO6: 3143.321112 | KP6: 4043.598975 | KQ6: 4886.664151 | KR6: 2921.152324 | KS6: 2565.219322 | KT6: 2935.163643 | KU6: 2805.889373 | KV6: 5324.088547 | KW6: 6056.578209 | KX6: 5191.570147 | KY6: 4587.513366 | KZ6: 4301.735581 | LA6: 4564.057847 | LB6: 4615.162001 | LC6: 2580.646073 | LD6: 1780.305998 | LE6: 1662.78544 | LF6: 881.77149 | LG6: 1010.611485 | LH6: 2030.031229 | LI6: 3641.600458 | LJ6: 3380.024678 | LK6: 4295.65075 | LL6: 4273.118087 | LM6: 4448.355996 | LN6: 5026.008096 | LO6: 5158.248485 | LP6: 3313.488661 | LQ6: 1765.567336 | LR6: 1874.962368 | LS6: 3525.007417 | LT6: 4275.578212 | LU6: 4031.305857 | LV6: 2962.43416 | LW6: 2821.150749 | LX6: 3901.332712 | LY6: 4664.887744 | LZ6: 4128.149634 | MA6: 3020.070461 | MB6: 3488.685717 | MC6: 1310.682136 | MD6: 1360.590295 | ME6: 2254.334191 | MF6: 2273.650899 | MG6: 3488.17318 | MH6: 3496.644297 | MI6: 4125.149649 | MJ6: - | MK6: - | ML6: -
B7: Fuel + Gas | C7: 204.218 | D7: 106.632 | E7: 108.531 | F7: 79.792 | G7: 202.105 | H7: 384.878 | I7: 413.754 | J7: 154.664 | K7: 238.912 | L7: 286.886 | M7: 267.439 | N7: 418.135 | O7: 255.223 | P7: 330.269 | Q7: 128.713 | R7: 181.603 | S7: 200.854 | T7: 278.568 | U7: 687.282 | V7: 178.961 | W7: 651.77 | X7: 308.139 | Y7: 371.593 | Z7: 468.71 | AA7: 1299.375 | AB7: 1787.73 | AC7: 1434.253 | AD7: 698.915 | AE7: 614.411 | AF7: 147.673 | AG7: 415.723 | AH7: 221.515 | AI7: 529.484 | AJ7: 185.837 | AK7: 87.533 | AL7: 41.134 | AM7: 95.265 | AN7: 339.473 | AO7: 343.836 | AP7: 259.45 | AQ7: 99.405 | AR7: 120.458 | AS7: 38.927 | AT7: 88.599 | AU7: 185.272 | AV7: 52.688 | AW7: 79.194 | AX7: 74.58 | AY7: 99.884 | AZ7: 90.411 | BA7: 115.894 | BB7: 122.311 | BC7: 19.071 | BD7: 97.452 | BE7: 377.674 | BF7: 54.8 | BG7: 84.704 | BH7: 118.869 | BI7: 64.49 | BJ7: 166.625 | BK7: 152.781 | BL7: 37.526 | BM7: 143.05 | BN7: 120.69 | BO7: 108.382 | BP7: 288.232 | BQ7: 593.743 | BR7: 231.724 | BS7: 578.349 | BT7: 658.579 | BU7: 432.286 | BV7: 315.821 | BW7: 15.11 | BX7: 185.81 | BY7: 257.11 | BZ7: 138.064 | CA7: 30.668 | CB7: 162.97 | CC7: 265.834 | CD7: 140.586 | CE7: 231.84 | CF7: 97.463 | CG7: 243.305 | CH7: 274.57 | CI7: 261.459 | CJ7: 382.801 | CK7: 453.163 | CL7: 496.788 | CM7: 437.559 | CN7: 493.385 | CO7: 819.472 | CP7: 582.312 | CQ7: 735.84 | CR7: 822.644 | CS7: 542.729 | CT7: 524.389 | CU7: 69.924 | CV7: 100.933 | CW7: 152.994 | CX7: 52.482 | CY7: 36.298 | CZ7: 200.457 | DA7: 473.969 | DB7: 507.113 | DC7: 713.855 | DD7: 389.214 | DE7: 997.22 | DF7: 1644.422 | DG7: 1502.458 | DH7: 1861.304 | DI7: 1086.079 | DJ7: 532.757 | DK7: 168.644 | DL7: 532.41 | DM7: 1127.99 | DN7: 686.731 | DO7: 596.713 | DP7: 154.831 | DQ7: 413.447 | DR7: 687.299 | DS7: 1113.669 | DT7: 491.264 | DU7: 1132.887 | DV7: 724.643 | DW7: 174.013 | DX7: 674.131 | DY7: 890.41 | DZ7: 736.769 | EA7: 1450.383 | EB7: 931.175 | EC7: 755.077 | ED7: 490.878 | EE7: 502.29 | EF7: 406.874 | EG7: 415.246 | EH7: 162.849 | EI7: 332.142 | EJ7: 1148.567 | EK7: 1351.695 | EL7: 1201.89 | EM7: 1299.134 | EN7: 1281.455 | EO7: 1320.459 | EP7: 2157.018 | EQ7: 2663.572 | ER7: 1619.697 | ES7: 1419.443 | ET7: 1389.165 | EU7: 1086.731 | EV7: 1639.803 | EW7: 1896.914 | EX7: 889.726 | EY7: 1207.86 | EZ7: 878.513 | FA7: 477.951 | FB7: 376.307 | FC7: 581.383 | FD7: 499.107 | FE7: 206.448 | FF7: 78.708 | FG7: 237.103 | FH7: 1224.425 | FI7: 1186.803 | FJ7: 1068.492 | FK7: 943.468 | FL7: 648.372 | FM7: 347.553 | FN7: 409.78 | FO7: 431.414 | FP7: 344.906 | FQ7: 608.288 | FR7: 174.5 | FS7: 312.653 | FT7: 737.545 | FU7: 1090.75 | FV7: 714.632 | FW7: 946.658 | FX7: 578.892 | FY7: 466.279 | FZ7: 682.951 | GA7: 916.314 | GB7: 1095.09 | GC7: 1363.62 | GD7: 371.743 | GE7: 521.771 | GF7: 1160.585 | GG7: 1354.295 | GH7: 407.675 | GI7: 515.482 | GJ7: 357.865 | GK7: 420.929 | GL7: 808.949 | GM7: 760.536 | GN7: 627.523 | GO7: 291.553 | GP7: 282.347 | GQ7: 230.671 | GR7: 521.586 | GS7: 1004.05 | GT7: 339.096 | GU7: 760.597 | GV7: 340.628 | GW7: 131.166 | GX7: 106.305 | GY7: 102.61 | GZ7: 220.437 | HA7: 191.126 | HB7: 113.172 | HC7: 166.474 | HD7: 83.596 | HE7: 272.951 | HF7: 212.661 | HG7: 233.035 | HH7: 127.132 | HI7: 199.016 | HJ7: 168.555 | HK7: 142.142 | HL7: 124.255 | HM7: 70.555 | HN7: 137.2 | HO7: 147.767 | HP7: 248.855 | HQ7: 154.963 | HR7: 242.519 | HS7: 189.069 | HT7: 200.066 | HU7: 227.266 | HV7: 190.238 | HW7: 128.807 | HX7: 119.209 | HY7: 191.562 | HZ7: 137.769 | IA7: 91.484 | IB7: 147.091 | IC7: 212.322 | ID7: 171.65 | IE7: 154.518 | IF7: 104.516 | IG7: 165.878 | IH7: 164.784 | II7: 153.209 | IJ7: 126.666 | IK7: 22.518 | IL7: 105.508 | IM7: 163.869 | IN7: 165.569 | IO7: 138.492 | IP7: 113.152 | IQ7: 138.319 | IR7: 124.903 | IS7: 166.811 | IT7: 147.007 | IU7: -0.75117 | IV7: -0.708431 | IW7: -1.362029 | IX7: -1.231732 | IY7: -1.18033 | IZ7: -1.078477 | JA7: -0.855977 | JB7: -0.821213 | JC7: -0.555127 | JD7: -0.645199 | JE7: -0.524326 | JF7: -0.298332 | JG7: -0.169122 | JH7: 0.439723 | JI7: -0.443245 | JJ7: -0.499587 | JK7: -0.459208 | JL7: -0.350946 | JM7: -0.36165 | JN7: -0.465863 | JO7: -0.405233 | JP7: -0.348777 | JQ7: -0.257684 | JR7: -0.491049 | JS7: -0.192093 | JT7: -0.206971 | JU7: -0.183429 | JV7: -0.266627 | JW7: -0.170455 | JX7: -0.153101 | JY7: -0.153523 | JZ7: -0.143194 | KA7: -0.126245 | KB7: -0.128209 | KC7: -0.136351 | KD7: -0.152517 | KE7: -0.148739 | KF7: -0.134753 | KG7: -0.1409 | KH7: -0.107327 | KI7: -0.109851 | KJ7: -0.042239 | KK7: -0.040735 | KL7: -0.037553 | KM7: -0.037085 | KN7: -0.020549 | KO7: 0 | KP7: 0 | KQ7: 0.000322 | KR7: 0 | KS7: 0.009275 | KT7: 0 | KU7: 0 | KV7: 0 | KW7: 0 | KX7: 0.007021 | KY7: 0 | KZ7: 0 | LA7: 0 | LB7: 0 | LC7: 0 | LD7: 0.000236 | LE7: 0 | LF7: 0 | LG7: 0 | LH7: 0 | LI7: 0 | LJ7: 0 | LK7: -1e-06 | LL7: 0 | LM7: 0 | LN7: 0 | LO7: 0 | LP7: 0 | LQ7: 1e-06 | LR7: -1e-06 | LS7: 0 | LT7: 0 | LU7: 0 | LV7: -1e-06 | LW7: 0 | LX7: 0 | LY7: 0 | LZ7: 0 | MA7: 0 | MB7: 0 | MC7: 0 | MD7: 0 | ME7: -1e-06 | MF7: 0 | MG7: 1e-06 | MH7: -1e-06 | MI7: 0 | MJ7: - | MK7: - | ML7: -
B8: Ciclo combinado | C8: - | D8: - | E8: - | F8: - | G8: - | H8: - | I8: - | J8: - | K8: - | L8: - | M8: - | N8: - | O8: - | P8: - | Q8: - | R8: - | S8: - | T8: - | U8: - | V8: - | W8: - | X8: - | Y8: - | Z8: - | AA8: - | AB8: - | AC8: - | AD8: - | AE8: - | AF8: - | AG8: - | AH8: - | AI8: - | AJ8: - | AK8: - | AL8: - | AM8: 0.213 | AN8: - | AO8: - | AP8: - | AQ8: - | AR8: - | AS8: - | AT8: - | AU8: - | AV8: - | AW8: - | AX8: - | AY8: - | AZ8: - | BA8: - | BB8: - | BC8: - | BD8: - | BE8: - | BF8: - | BG8: - | BH8: - | BI8: - | BJ8: - | BK8: - | BL8: - | BM8: - | BN8: - | BO8: - | BP8: - | BQ8: - | BR8: - | BS8: - | BT8: - | BU8: - | BV8: - | BW8: - | BX8: - | BY8: - | BZ8: - | CA8: - | CB8: - | CC8: - | CD8: - | CE8: - | CF8: - | CG8: - | CH8: - | CI8: - | CJ8: - | CK8: - | CL8: - | CM8: - | CN8: - | CO8: - | CP8: - | CQ8: - | CR8: - | CS8: - | CT8: - | CU8: - | CV8: - | CW8: - | CX8: - | CY8: - | CZ8: - | DA8: - | DB8: - | DC8: - | DD8: - | DE8: - | DF8: - | DG8: - | DH8: - | DI8: - | DJ8: - | DK8: - | DL8: - | DM8: - | DN8: - | DO8: - | DP8: - | DQ8: - | DR8: - | DS8: - | DT8: - | DU8: - | DV8: - | DW8: - | DX8: - | DY8: - | DZ8: - | EA8: - | EB8: - | EC8: - | ED8: - | EE8: - | EF8: - | EG8: - | EH8: - | EI8: - | EJ8: - | EK8: - | EL8: - | EM8: - | EN8: - | EO8: - | EP8: - | EQ8: - | ER8: - | ES8: - | ET8: - | EU8: 121.518 | EV8: 305.007 | EW8: 520.594 | EX8: 763.192 | EY8: 1165.914 | EZ8: 1151.137 | FA8: 610.332 | FB8: 517.979 | FC8: 436.832 | FD8: 845.815 | FE8: 761.981 | FF8: 386.589 | FG8: 799.416 | FH8: 1781.138 | FI8: 1927.342 | FJ8: 1793.886 | FK8: 2025.468 | FL8: 1795.77 | FM8: 1208.196 | FN8: 863.653 | FO8: 1541.807 | FP8: 1943.228 | FQ8: 2272.911 | FR8: 1822.15 | FS8: 2011.424 | FT8: 2317.648 | FU8: 2722.288 | FV8: 2333.433 | FW8: 2921.537 | FX8: 2845.403 | FY8: 2763.156 | FZ8: 2817.86 | GA8: 3347.629 | GB8: 3357.813 | GC8: 3345.948 | GD8: 3237.21 | GE8: 3507.254 | GF8: 4645.311 | GG8: 5188.211 | GH8: 4424.916 | GI8: 4433.434 | GJ8: 4074.636 | GK8: 4170.737 | GL8: 4113.69 | GM8: 5549.648 | GN8: 5482.822 | GO8: 4705.139 | GP8: 4650.806 | GQ8: 4929.557 | GR8: 5469.55 | GS8: 6664.457 | GT8: 4828.182 | GU8: 6324.433 | GV8: 5050.22 | GW8: 4256.457 | GX8: 4211.163 | GY8: 6046.649 | GZ8: 3813.023 | HA8: 3823.553 | HB8: 4054.708 | HC8: 4329.247 | HD8: 6168.922 | HE8: 6583.839 | HF8: 5145.517 | HG8: 5637.609 | HH8: 6092.117 | HI8: 7608.162 | HJ8: 7269.522 | HK8: 7999.771 | HL8: 7995.581 | HM8: 6774.804 | HN8: 6899.11 | HO8: 7196.281 | HP8: 7596.274 | HQ8: 8863.531 | HR8: 8223.301 | HS8: 7817.517 | HT8: 7214.455 | HU8: 6826.167 | HV8: 5693.94 | HW8: 5970.275 | HX8: 4444.191 | HY8: 5032.65 | HZ8: 5434.445 | IA8: 5603.483 | IB8: 7620.646 | IC8: 8497.575 | ID8: 8177.814 | IE8: 7385.088 | IF8: 6555.009 | IG8: 5522.15 | IH8: 6135.958 | II8: 5308.095 | IJ8: 4758.78 | IK8: 4086.589928 | IL8: 4360.6161 | IM8: 4552.942 | IN8: 5475.442 | IO8: 6782.456 | IP8: 5736.69 | IQ8: 6235.23 | IR8: 5277.748 | IS8: 5529.094 | IT8: 4851.257217 | IU8: 5010.424401 | IV8: 4611.37756 | IW8: 3920.587087 | IX8: 2762.083208 | IY8: 4128.731523 | IZ8: 4823.538519 | JA8: 4491.707078 | JB8: 4664.710874 | JC8: 4452.029875 | JD8: 3691.328391 | JE8: 3327.959068 | JF8: 3308.736362 | JG8: 4196.209607 | JH8: 3847.953802 | JI8: 3054.328204 | JJ8: 2206.318924 | JK8: 2377.22223 | JL8: 3078.745322 | JM8: 3332.407439 | JN8: 3448.767028 | JO8: 2857.03208 | JP8: 3207.450154 | JQ8: 2928.88708 | JR8: 2781.467801 | JS8: 2586.29159 | JT8: 1937.659987 | JU8: 1471.632107 | JV8: 1100.374634 | JW8: 1614.902184 | JX8: 1355.611329 | JY8: 2202.287831 | JZ8: 2349.847505 | KA8: 2217.702231 | KB8: 2519.763735 | KC8: 2016.093317 | KD8: 2754.390855 | KE8: 1530.539604 | KF8: 1251.379223 | KG8: 1265.537718 | KH8: 1215.723947 | KI8: 1400.6746 | KJ8: 1753.971781 | KK8: 1838.628446 | KL8: 2202.131046 | KM8: 2642.354506 | KN8: 2122.388498 | KO8: 1909.192387 | KP8: 1987.986869 | KQ8: 2199.323612 | KR8: 1684.443112 | KS8: 1608.330527 | KT8: 1653.277075 | KU8: 1579.18556 | KV8: 1863.013992 | KW8: 3388.777577 | KX8: 2322.747747 | KY8: 1957.794126 | KZ8: 2081.342752 | LA8: 2082.358954 | LB8: 2613.950526 | LC8: 1860.461944 | LD8: 1295.818189 | LE8: 1322.984106 | LF8: 1155.770304 | LG8: 1482.041935 | LH8: 1871.712477 | LI8: 2360.646684 | LJ8: 2002.222015 | LK8: 2126.541297 | LL8: 3282.443042 | LM8: 3414.98358 | LN8: 3287.440685 | LO8: 2911.541309 | LP8: 1505.758904 | LQ8: 1428.431296 | LR8: 1228.255356 | LS8: 1593.510545 | LT8: 3169.006109 | LU8: 3735.905906 | LV8: 3454.416028 | LW8: 3197.924785 | LX8: 3848.68547 | LY8: 4546.437715 | LZ8: 3028.112431 | MA8: 2254.632369 | MB8: 1950.724201 | MC8: 1248.040595 | MD8: 1200.661205 | ME8: 1968.429467 | MF8: 2180.126706 | MG8: 2229.279387 | MH8: 2663.055537 | MI8: 2148.659568 | MJ8: - | MK8: - | ML8: -
B9: Régimen ordinario | C9: 12926.357 | D9: 10581.565 | E9: 11416.075 | F9: 10457.181 | G9: 10461.036 | H9: 10796.148 | I9: 11461.204 | J9: 10093.408 | K9: 10840.496 | L9: 10968.464 | M9: 11589.866 | N9: 12786.873 | O9: 13239.38 | P9: 12083.619 | Q9: 11425.396 | R9: 10980.723 | S9: 11130.631 | T9: 10763.272 | U9: 11766.474 | V9: 10313.691 | W9: 11266.512 | X9: 11548.644 | Y9: 11906.551 | Z9: 12314.346 | AA9: 13871.503 | AB9: 12736.595 | AC9: 12381.88 | AD9: 10961.815 | AE9: 10802.923 | AF9: 10285.014 | AG9: 11866.488 | AH9: 10455.599 | AI9: 11178.236 | AJ9: 11482.254 | AK9: 11277.127 | AL9: 11860.465 | AM9: 12705.377 | AN9: 11469.427 | AO9: 12041.354 | AP9: 10605.52 | AQ9: 10558.738 | AR9: 10609.397 | AS9: 11305.952 | AT9: 10596.652 | AU9: 10976.278 | AV9: 11325.452 | AW9: 11747.045 | AX9: 12188.337 | AY9: 12685.643 | AZ9: 11582.145 | BA9: 11358.463 | BB9: 10920.804 | BC9: 10944.57 | BD9: 11311.628 | BE9: 12222.555 | BF9: 10973.153 | BG9: 11210.371 | BH9: 10980.559 | BI9: 11198.065 | BJ9: 12145.179 | BK9: 12953.626 | BL9: 11018.559 | BM9: 12159.844 | BN9: 10853.87 | BO9: 11374.403 | BP9: 11491.358 | BQ9: 12141.378 | BR9: 11184.484 | BS9: 11280.694 | BT9: 11320.003 | BU9: 11578.095 | BV9: 12373.955 | BW9: 13470.737 | BX9: 12799.213 | BY9: 12315.147 | BZ9: 10601.277 | CA9: 11212.283 | CB9: 11508.811 | CC9: 12185.667 | CD9: 10967.459 | CE9: 11271.293 | CF9: 11934.769 | CG9: 12151.593 | CH9: 12597.086 | CI9: 14083.578 | CJ9: 11471.97 | CK9: 11878.419 | CL9: 12128.93 | CM9: 12304.189 | CN9: 12148.919 | CO9: 13009.237 | CP9: 12394.627 | CQ9: 12693.871 | CR9: 12522.63 | CS9: 12636.612 | CT9: 13761.592 | CU9: 13369.916 | CV9: 11969.025 | CW9: 12419.051 | CX9: 11834.461 | CY9: 11827.589 | CZ9: 12442.531 | DA9: 13641.857 | DB9: 12326.652 | DC9: 12874.096 | DD9: 12543.05 | DE9: 12934.402 | DF9: 14321.236 | DG9: 14458.407 | DH9: 13049.907 | DI9: 13078.465 | DJ9: 11538.88 | DK9: 12115.561 | DL9: 12702.124 | DM9: 14042.931 | DN9: 12642.027 | DO9: 13255.188 | DP9: 12904.402 | DQ9: 13673.998 | DR9: 14536.451 | DS9: 15736.309 | DT9: 13497.51 | DU9: 14079.451 | DV9: 12797.217 | DW9: 13250.671 | DX9: 14032.49 | DY9: 14503.347 | DZ9: 13730.665 | EA9: 14016.97 | EB9: 13696.626 | EC9: 14495.565 | ED9: 14979.624 | EE9: 16089.006 | EF9: 14193.431 | EG9: 14863.669 | EH9: 12645.645 | EI9: 13830.507 | EJ9: 14496.214 | EK9: 15167.697 | EL9: 14697.792 | EM9: 14172.29 | EN9: 14437.814 | EO9: 14989.92 | EP9: 16426.213 | EQ9: 16693.004 | ER9: 14071.604 | ES9: 14372.266 | ET9: 13911.525 | EU9: 14388.041 | EV9: 15097.285 | EW9: 15800.802 | EX9: 14382.479 | EY9: 14621.029 | EZ9: 14723.314 | FA9: 14507.519 | FB9: 15172.175 | FC9: 16708.429 | FD9: 15726.468 | FE9: 15179.311 | FF9: 13592.332 | FG9: 14415.544 | FH9: 15912.104 | FI9: 17171.198 | FJ9: 16407.002 | FK9: 15412.097 | FL9: 15426.892 | FM9: 15466.623 | FN9: 16435.541 | FO9: 16568.126 | FP9: 16449.047 | FQ9: 17098.934 | FR9: 15006.022 | FS9: 15529.905 | FT9: 16707.551 | FU9: 17927.986 | FV9: 16541.085 | FW9: 16414.573 | FX9: 15859.625 | FY9: 16551.557 | FZ9: 17087.504 | GA9: 18243.371 | GB9: 16973.586 | GC9: 17044.812 | GD9: 14837.507 | GE9: 15523.875 | GF9: 17313.734 | GG9: 18237.486 | GH9: 16373.69 | GI9: 17006.423 | GJ9: 16261.471 | GK9: 17433.356 | GL9: 18668.195 | GM9: 20262.534 | GN9: 18010.792 | GO9: 17541.669 | GP9: 14393.764 | GQ9: 16535.659 | GR9: 17910.976 | GS9: 20594.048 | GT9: 16754.415 | GU9: 18085.466 | GV9: 16521.769 | GW9: 16682.086 | GX9: 18675.331 | GY9: 19751.378 | GZ9: 16523.959 | HA9: 17507.055 | HB9: 16888.804 | HC9: 16579.203 | HD9: 17333.553 | HE9: 19039.929 | HF9: 16995.284 | HG9: 17670.181 | HH9: 18206.593 | HI9: 18648.745 | HJ9: 19925.703 | HK9: 19800.373 | HL9: 18855.427 | HM9: 16917.789 | HN9: 16495.352 | HO9: 17109.578 | HP9: 17260.228 | HQ9: 19220.999 | HR9: 17954.337 | HS9: 17194.444 | HT9: 16941.185 | HU9: 16678.165 | HV9: 17574.968 | HW9: 18220.623 | HX9: 15040.96 | HY9: 14569.678 | HZ9: 13304.255 | IA9: 13795.37 | IB9: 15569.023 | IC9: 17482.846 | ID9: 16761.399 | IE9: 15545.411 | IF9: 14898.663 | IG9: 13498.447 | IH9: 15042.441 | II9: 16581.89395 | IJ9: 14727.73612 | IK9: 15244.31255 | IL9: 14236.15865 | IM9: 13329.08948 | IN9: 14764.74074 | IO9: 17347.9351 | IP9: 15963.71358 | IQ9: 15824.48831 | IR9: 14344.45022 | IS9: 14687.16964 | IT9: 15440.75439 | IU9: 16471.41302 | IV9: 13990.23412 | IW9: 14684.32946 | IX9: 12781.85516 | IY9: 13100.6481 | IZ9: 13994.75907 | JA9: 14863.23571 | JB9: 15331.0562 | JC9: 15220.18036 | JD9: 13730.15447 | JE9: 13701.5509 | JF9: 13956.95986 | JG9: 16120.52231 | JH9: 15432.58105 | JI9: 14255.45831 | JJ9: 11494.52052 | JK9: 12739.63486 | JL9: 13483.90724 | JM9: 14614.28205 | JN9: 15047.26619 | JO9: 13067.0226 | JP9: 14057.66078 | JQ9: 12749.14008 | JR9: 13091.35276 | JS9: 12741.41851 | JT9: 11962.43232 | JU9: 12095.71493 | JV9: 11333.40766 | JW9: 10750.1826 | JX9: 10882.02661 | JY9: 14910.74224 | JZ9: 13642.51064 | KA9: 13147.24691 | KB9: 12612.20708 | KC9: 11094.3428 | KD9: 13642.07162 | KE9: - | KF9: - | KG9: - | KH9: - | KI9: - | KJ9: - | KK9: - | KL9: - | KM9: - | KN9: - | KO9: - | KP9: - | KQ9: - | KR9: - | KS9: - | KT9: - | KU9: - | KV9: - | KW9: - | KX9: - | KY9: - | KZ9: - | LA9: - | LB9: - | LC9: - | LD9: - | LE9: - | LF9: - | LG9: - | LH9: - | LI9: - | LJ9: - | LK9: - | LL9: - | LM9: - | LN9: - | LO9: - | LP9: - | LQ9: - | LR9: - | LS9: - | LT9: - | LU9: - | LV9: - | LW9: - | LX9: - | LY9: - | LZ9: - | MA9: - | MB9: - | MC9: - | MD9: - | ME9: - | MF9: - | MG9: - | MH9: - | MI9: - | MJ9: - | MK9: - | ML9: -
B10: Hidráulica/Resto hidráulica | C10: 105.992 | D10: 92.30599999 | E10: 64.72999999 | F10: 90.82900001 | G10: 84.02299996 | H10: 91.299 | I10: 55.459 | J10: 57.63200001 | K10: 34.01199999 | L10: 69.63399999 | M10: 110.01 | N10: 126.706 | O10: 179.138 | P10: 122.811 | Q10: 215.011 | R10: 190.109 | S10: 195.073 | T10: 144.594 | U10: 99.561 | V10: 80.389 | W10: 78.209 | X10: 93.88 | Y10: 141.988 | Z10: 164.018 | AA10: 125.135 | AB10: 89.669 | AC10: 114.311 | AD10: 191.757 | AE10: 193.59 | AF10: 203.803 | AG10: 181.002 | AH10: 118.066 | AI10: 117.869 | AJ10: 215.527 | AK10: 233.875 | AL10: 297.169 | AM10: 208.395 | AN10: 120.724 | AO10: 171.353 | AP10: 192.554 | AQ10: 247.309 | AR10: 207.114 | AS10: 151.58 | AT10: 102.715 | AU10: 108.434 | AV10: 243.801 | AW10: 228.351 | AX10: 251.898 | AY10: 342.685 | AZ10: 275.549 | BA10: 261.048 | BB10: 218.693 | BC10: 253.366 | BD10: 170.896 | BE10: 113.035 | BF10: 101.443 | BG10: 106.75 | BH10: 171.698 | BI10: 238.982 | BJ10: 221.123 | BK10: 329.748 | BL10: 321.577 | BM10: 299.329 | BN10: 168.033 | BO10: 176.271 | BP10: 142.427 | BQ10: 114.445 | BR10: 86.067 | BS10: 110.54 | BT10: 88.179 | BU10: 129.774 | BV10: 256.484 | BW10: 431.994 | BX10: 394.019 | BY10: 364.698 | BZ10: 371.68 | CA10: 349.161 | CB10: 242.652 | CC10: 197.031 | CD10: 174.123 | CE10: 161.743 | CF10: 181.576 | CG10: 235.112 | CH10: 440.058 | CI10: 440.792 | CJ10: 368.973 | CK10: 267.722 | CL10: 216.182 | CM10: 261.68 | CN10: 278.391 | CO10: 254.605 | CP10: 204.188 | CQ10: 190.687 | CR10: 154.25 | CS10: 310.862 | CT10: 480.663 | CU10: 492.716819 | CV10: 339.410518 | CW10: 327.064365 | CX10: 403.458525 | CY10: 412.076272 | CZ10: 315.956945 | DA10: 207.934447 | DB10: 197.432695 | DC10: 167.836814 | DD10: 248.31533 | DE10: 203.701928 | DF10: 262.569259 | DG10: 323.522396 | DH10: 292.899812 | DI10: 373.902231 | DJ10: 348.717189 | DK10: 443.138313 | DL10: 296.523594 | DM10: 224.706943 | DN10: 189.845427 | DO10: 210.825293 | DP10: 274.411798 | DQ10: 366.447977 | DR10: 395.381639 | DS10: 330.40558 | DT10: 282.436739 | DU10: 249.446216 | DV10: 435.783218 | DW10: 494.627909 | DX10: 357.927451 | DY10: 254.292919 | DZ10: 199.410305 | EA10: 158.612187 | EB10: 230.155185 | EC10: 367.537209 | ED10: 475.465015 | EE10: 558.920303 | EF10: 485.996064 | EG10: 596.948281 | EH10: 489.463965 | EI10: 476.68399 | EJ10: 352.760995 | EK10: 300.49063 | EL10: 227.071678 | EM10: 181.600837 | EN10: 202.508315 | EO10: 222.42957 | EP10: 192.648005 | EQ10: 255.920349 | ER10: 271.46624 | ES10: 345.515552 | ET10: 361.372052 | EU10: 420.062442 | EV10: 357.790122 | EW10: 235.872343 | EX10: 210.054023 | EY10: 204.411097 | EZ10: 280.620946 | FA10: 390.817645 | FB10: 565.549528 | FC10: 581.193939 | FD10: 453.43334 | FE10: 562.61659 | FF10: 532.278526 | FG10: 529.630674 | FH10: 359.335678 | FI10: 277.913169 | FJ10: 209.447635 | FK10: 208.9305 | FL10: 309.717496 | FM10: 485.77286 | FN10: 578.373638 | FO10: 587.995369 | FP10: 427.628958 | FQ10: 507.792138 | FR10: 547.04273 | FS10: 572.541482 | FT10: 412.623003 | FU10: 336.467575 | FV10: 259.270925 | FW10: 199.838133 | FX10: 245.598881 | FY10: 329.701046 | FZ10: 323.078145 | GA10: 350.78451 | GB10: 292.229427 | GC10: 386.56585 | GD10: 465.508544 | GE10: 438.710303 | GF10: 297.453519 | GG10: 244.468044 | GH10: 191.049618 | GI10: 151.162091 | GJ10: 217.906843 | GK10: 377.399041 | GL10: 404.345149 | GM10: 400.558873 | GN10: 320.878335 | GO10: 567.05897 | GP10: 506.039156 | GQ10: 360.074545 | GR10: 248.514 | GS10: 226.349 | GT10: 177.815 | GU10: 164.14 | GV10: 312.404 | GW10: 381.881 | GX10: 482.851 | GY10: 345.489 | GZ10: 478.796 | HA10: 516.028 | HB10: 529.759 | HC10: 509.19 | HD10: 412.917 | HE10: 302.212 | HF10: 256.501 | HG10: 186.134 | HH10: 186.888 | HI10: 189.873 | HJ10: 211.538 | HK10: 340.206 | HL10: 233.218 | HM10: 301.234 | HN10: 581.111 | HO10: 613.279 | HP10: 581.555 | HQ10: 380.409 | HR10: 264.581 | HS10: 212.28 | HT10: 190.523 | HU10: 400.121 | HV10: 539.626 | HW10: 521.055 | HX10: 629.452 | HY10: 559.845 | HZ10: 501.442 | IA10: 577.142 | IB10: 468.387 | IC10: 365.353 | ID10: 282.65 | IE10: 242.869 | IF10: 230.81 | IG10: 466.05 | IH10: 608.618 | II10: 764.37 | IJ10: 616.578 | IK10: 784.76 | IL10: 690.196 | IM10: 688.343 | IN10: 608.948 | IO10: 459.603 | IP10: 341.748 | IQ10: 281.05 | IR10: 318.889 | IS10: 567.66 | IT10: 702.175 | IU10: 680.268902 | IV10: 514.726067 | IW10: 678.303416 | IX10: 600.720451 | IY10: 495.574738 | IZ10: 411.239947 | JA10: 390.048662 | JB10: 309.006243 | JC10: 235.268029 | JD10: 195.355198 | JE10: 428.959375 | JF10: 454.908483 | JG10: 342.608993 | JH10: 334.625827 | JI10: 328.273502 | JJ10: 472.96416 | JK10: 650.04331 | JL10: 443.549172 | JM10: 342.515013 | JN10: 267.274364 | JO10: 203.239734 | JP10: 273.902971 | JQ10: 415.346703 | JR10: 631.734545 | JS10: 680.133506 | JT10: 703.029453 | JU10: 864.222745 | JV10: 867.152816 | JW10: 804.824805 | JX10: 680.792127 | JY10: 549.278999 | JZ10: 408.989834 | KA10: 311.728589 | KB10: 351.293776 | KC10: 535.730127 | KD10: 526.83203 | KE10: - | KF10: - | KG10: - | KH10: - | KI10: - | KJ10: - | KK10: - | KL10: - | KM10: - | KN10: - | KO10: - | KP10: - | KQ10: - | KR10: - | KS10: - | KT10: - | KU10: - | KV10: - | KW10: - | KX10: - | KY10: - | KZ10: - | LA10: - | LB10: - | LC10: - | LD10: - | LE10: - | LF10: - | LG10: - | LH10: - | LI10: - | LJ10: - | LK10: - | LL10: - | LM10: - | LN10: - | LO10: - | LP10: - | LQ10: - | LR10: - | LS10: - | LT10: - | LU10: - | LV10: - | LW10: - | LX10: - | LY10: - | LZ10: - | MA10: - | MB10: - | MC10: - | MD10: - | ME10: - | MF10: - | MG10: - | MH10: - | MI10: - | MJ10: - | MK10: - | ML10: -
B11: Eólica | C11: 0.115 | D11: 0.19899999 | E11: 0.18 | F11: 0.189 | G11: 0.174 | H11: 0.12 | I11: 0.26 | J11: 0.186 | K11: 0.131 | L11: 0.17 | M11: 0.207 | N11: 0.25599999 | O11: 0.192 | P11: 0.143 | Q11: 0.212 | R11: 0.562 | S11: 0.322 | T11: 0.2 | U11: 0.184 | V11: 0.212 | W11: 0.144 | X11: 0.242 | Y11: 0.271 | Z11: 0.181 | AA11: 0.262 | AB11: 0.225 | AC11: 0.313 | AD11: 0.207 | AE11: 0.195 | AF11: 0.163 | AG11: 0.195 | AH11: 0.666 | AI11: 1.295 | AJ11: 2.137 | AK11: 2.507 | AL11: 9.196 | AM11: 7.115 | AN11: 11.386 | AO11: 7.326 | AP11: 6.164 | AQ11: 5.271 | AR11: 7.974 | AS11: 7.391 | AT11: 6.981 | AU11: 5.631 | AV11: 7.198 | AW11: 6.728 | AX11: 5.603 | AY11: 6.899 | AZ11: 4.814 | BA11: 8.769 | BB11: 6.859 | BC11: 4.97 | BD11: 6.462 | BE11: 3.859 | BF11: 5.393 | BG11: 5.047 | BH11: 6.336 | BI11: 7.78 | BJ11: 5.672 | BK11: 7.87 | BL11: 7.675 | BM11: 8.496 | BN11: 11.902 | BO11: 9.211 | BP11: 8.898 | BQ11: 14.465 | BR11: 17.63 | BS11: 14.853 | BT11: 27.623 | BU11: 13.795 | BV11: 17.439 | BW11: 18.83 | BX11: 22.031 | BY11: 24.646 | BZ11: 26.102 | CA11: 23.157 | CB11: 27.099 | CC11: 25.434 | CD11: 15.643 | CE11: 22.706 | CF11: 30.321 | CG11: 31.616 | CH11: 36.544 | CI11: 39.627 | CJ11: 32.179 | CK11: 46.04 | CL11: 56.365 | CM11: 39.41 | CN11: 43.759 | CO11: 57.268 | CP11: 41.053 | CQ11: 45.835 | CR11: 69.47 | CS11: 72.794 | CT11: 76.085 | CU11: 85.726279 | CV11: 73.041771 | CW11: 100.156674 | CX11: 97.154275 | CY11: 87.936697 | CZ11: 72.687051 | DA11: 112.788958 | DB11: 131.013278 | DC11: 104.747635 | DD11: 104.146754 | DE11: 128.518917 | DF11: 138.738417 | DG11: 159.911065 | DH11: 214.375135 | DI11: 206.772797 | DJ11: 190.999426 | DK11: 173.148566 | DL11: 212.214153 | DM11: 177.000959 | DN11: 139.302129 | DO11: 172.17858 | DP11: 199.350315 | DQ11: 312.980648 | DR11: 315.799525 | DS11: 305.024786 | DT11: 295.1137 | DU11: 338.149516 | DV11: 416.021442 | DW11: 226.957358 | DX11: 365.846115 | DY11: 360.052448 | DZ11: 315.707212 | EA11: 276.366005 | EB11: 409.721173 | EC11: 544.093822 | ED11: 609.442473 | EE11: 594.731676 | EF11: 573.654778 | EG11: 654.248611 | EH11: 650.224566 | EI11: 424.361087 | EJ11: 408.907282 | EK11: 400.205723 | EL11: 374.720812 | EM11: 611.542894 | EN11: 574.769948 | EO11: 768.828981 | EP11: 557.951755 | EQ11: 657.009295 | ER11: 782.540758 | ES11: 795.79278 | ET11: 618.787308 | EU11: 820.586332 | EV11: 646.365366 | EW11: 693.582831 | EX11: 598.43409 | EY11: 505.371396 | EZ11: 869.000019 | FA11: 1056.957505 | FB11: 1214.869007 | FC11: 1395.171019 | FD11: 997.62485 | FE11: 837.860626 | FF11: 1138.000866 | FG11: 901.866016 | FH11: 703.483064 | FI11: 727.405981 | FJ11: 543.970839 | FK11: 781.2453 | FL11: 1086.955352 | FM11: 1172.985179 | FN11: 1433.677041 | FO11: 1685.344923 | FP11: 1074.447704 | FQ11: 1281.279462 | FR11: 1519.372767 | FS11: 1019.357853 | FT11: 1048.332716 | FU11: 970.026109 | FV11: 1114.316325 | FW11: 1147.637898 | FX11: 1635.269143 | FY11: 1511.245273 | FZ11: 1747.487596 | GA11: 1879.193348 | GB11: 1745.313957 | GC11: 1763.513597 | GD11: 1926.458081 | GE11: 1492.0682 | GF11: 1261.460764 | GG11: 1611.02847 | GH11: 1640.440853 | GI11: 1271.494533 | GJ11: 1902.724597 | GK11: 1958.532153 | GL11: 2405.437406 | GM11: 1563.700931 | GN11: 1924.867031 | GO11: 2788.267198 | GP11: 1955.917235 | GQ11: 1670.51768 | GR11: 1364.448 | GS11: 1171.791 | GT11: 2177.821 | GU11: 1465.816 | GV11: 2334.802 | GW11: 2279.523 | GX11: 2183.385 | GY11: 2149.807 | GZ11: 2871.919 | HA11: 3086.247 | HB11: 1356.316 | HC11: 2605.873 | HD11: 1786.288 | HE11: 1888.609 | HF11: 2419.819 | HG11: 2028.855 | HH11: 1907.625 | HI11: 2752.312 | HJ11: 2395.485 | HK11: 2651.468 | HL11: 2018.948 | HM11: 4092.55 | HN11: 3352.686 | HO11: 1737.161 | HP11: 2085.509 | HQ11: 2124.237 | HR11: 1972.523 | HS11: 2129.885 | HT11: 2482.013 | HU11: 3462.688 | HV11: 3648.182 | HW11: 3503.799 | HX11: 3226.32 | HY11: 3100.516 | HZ11: 3059.658 | IA11: 2698.004 | IB11: 2332.395 | IC11: 2426.129 | ID11: 2235.837 | IE11: 2466.731 | IF11: 3125.33 | IG11: 4792.63 | IH11: 4921.228 | II11: 4292.092 | IJ11: 4622.435 | IK11: 4546.547 | IL11: 2634.819 | IM11: 3619.334 | IN11: 2576.197 | IO11: 2798.133 | IP11: 2894.744 | IQ11: 2301.323 | IR11: 3952.831 | IS11: 4348.059 | IT11: 4621.882 | IU11: 4021.664377 | IV11: 4028.617282 | IW11: 4692.967394 | IX11: 3399.8872 | IY11: 3166.012039 | IZ11: 2937.49434 | JA11: 3254.704718 | JB11: 2730.852573 | JC11: 2322.956455 | JD11: 3152.198095 | JE11: 3819.856832 | JF11: 4588.575788 | JG11: 3648.791131 | JH11: 5018.862598 | JI11: 3811.353286 | JJ11: 5306.39049 | JK11: 3707.879342 | JL11: 3429.200937 | JM11: 2981.912591 | JN11: 3126.884376 | JO11: 3940.341527 | JP11: 3129.821392 | JQ11: 4604.842312 | JR11: 5449.977965 | JS11: 6291.574234 | JT11: 5340.996438 | JU11: 5749.103159 | JV11: 4396.782103 | JW11: 3932.350082 | JX11: 3827.052263 | JY11: 2844.212849 | JZ11: 3411.023511 | KA11: 3214.272503 | KB11: 3963.879786 | KC11: 6429.81384 | KD11: 4943.440014 | KE11: 6540.918605 | KF11: 5884.285287 | KG11: 5050.005098 | KH11: 3950.218045 | KI11: 4134.841384 | KJ11: 3275.599214 | KK11: 3591.601846 | KL11: 2857.511526 | KM11: 2132.613528 | KN11: 3382.766062 | KO11: 5071.980759 | KP11: 4764.32111 | KQ11: 4912.459822 | KR11: 5948.174044 | KS11: 4865.124194 | KT11: 3904.518438 | KU11: 4800.45312 | KV11: 2873.288099 | KW11: 3053.374254 | KX11: 3237.3727 | KY11: 3002.694547 | KZ11: 3889.981469 | LA11: 3699.879886 | LB11: 3528.561572 | LC11: 5604.84411 | LD11: 6068.142812 | LE11: 5409.60297 | LF11: 4414.65311 | LG11: 3902.185767 | LH11: 3226.857228 | LI11: 3464.678578 | LJ11: 3603.862053 | LK11: 2666.88782 | LL11: 2376.010907 | LM11: 3888.748965 | LN11: 2671.689348 | LO11: 4796.964636 | LP11: 4905.537269 | LQ11: 4687.838771 | LR11: 4177.339629 | LS11: 3440.349131 | LT11: 3152.079588 | LU11: 3336.789019 | LV11: 3296.361583 | LW11: 2817.340224 | LX11: 3186.721569 | LY11: 3957.839349 | LZ11: 5753.271048 | MA11: 5286.004917 | MB11: 4633.582556 | MC11: 7650.139038 | MD11: 4409.565782 | ME11: 3253.884139 | MF11: 2571.687929 | MG11: 2478.28994 | MH11: 3063.769017 | MI11: 2403.200776 | MJ11: - | MK11: - | ML11: -
B12: Solar fotovoltaica | C12: 0 | D12: 0 | E12: 0 | F12: 0 | G12: 0 | H12: 0 | I12: 0 | J12: 0 | K12: 0 | L12: 0 | M12: 0 | N12: 0 | O12: 0 | P12: 0 | Q12: 0 | R12: 0 | S12: 0 | T12: 0 | U12: 0 | V12: 0 | W12: 0 | X12: 0 | Y12: 0 | Z12: 0 | AA12: 1.01 | AB12: 0.772 | AC12: 0.572 | AD12: 1.289 | AE12: 1.113 | AF12: 1.164 | AG12: 1.307 | AH12: 1.155 | AI12: 1.223 | AJ12: 0.944 | AK12: 0.57 | AL12: 0.937 | AM12: 0.538 | AN12: 0.533 | AO12: 1.252 | AP12: 1.303 | AQ12: 1.05 | AR12: 1.069 | AS12: 1.273 | AT12: 1.193 | AU12: 0.88 | AV12: 0.72 | AW12: 1.263 | AX12: 0.926 | AY12: 0.978 | AZ12: 1.242 | BA12: 1.065 | BB12: 1.208 | BC12: 1.742 | BD12: 1.484 | BE12: 1.635 | BF12: 1.668 | BG12: 1.69 | BH12: 1.521 | BI12: 1.004 | BJ12: 0.0589 | BK12: 0.064 | BL12: 0.068 | BM12: 0.112 | BN12: 0.117 | BO12: 0.132 | BP12: 0.111 | BQ12: 0.105 | BR12: 0.096 | BS12: 0.091 | BT12: 0.048 | BU12: 0.091 | BV12: 0.027 | BW12: 0.024 | BX12: 0.033 | BY12: 0.047 | BZ12: 0.093 | CA12: 0.086 | CB12: 0.117 | CC12: 0.107 | CD12: 0.103 | CE12: 0.096 | CF12: 0.095 | CG12: 0.064 | CH12: 0.026 | CI12: 0.041 | CJ12: 0.088 | CK12: 0.088 | CL12: 0.119 | CM12: 0.093 | CN12: 0.107 | CO12: 0.143 | CP12: 0.087 | CQ12: 0.12 | CR12: 0.096 | CS12: 0.105 | CT12: 0.04 | CU12: 0.049635 | CV12: 0.070578 | CW12: 0.11299 | CX12: 0.11806 | CY12: 0.096177 | CZ12: 0.130517 | DA12: 0.13625 | DB12: 0.110493 | DC12: 0.09651 | DD12: 0.112811 | DE12: 0.069553 | DF12: 0.066723 | DG12: 0.053642 | DH12: 0.107873 | DI12: 0.15288 | DJ12: 0.117727 | DK12: 0.122524 | DL12: 0.14708 | DM12: 0.159277 | DN12: 0.14217 | DO12: 0.121715 | DP12: 0.088742 | DQ12: 0.079734 | DR12: 0.047817 | DS12: -0.026861 | DT12: 0.101559 | DU12: 0.124075 | DV12: 0.012024 | DW12: 0.205484 | DX12: 0.16091 | DY12: 0.019985 | DZ12: 0.298272 | EA12: 0.136951 | EB12: 0.12126 | EC12: 0.072306 | ED12: 0.043852 | EE12: 0.054685 | EF12: 0.098406 | EG12: 0.10854 | EH12: 0.170565 | EI12: 0.156555 | EJ12: 0.197492 | EK12: 0.168866 | EL12: 0.213764 | EM12: 0.128753 | EN12: 0.163998 | EO12: 0.094907 | EP12: 0.083112 | EQ12: 0.126051 | ER12: 0.229529 | ES12: 0.274106 | ET12: 0.396381 | EU12: 0.478436 | EV12: 0.479391 | EW12: 0.538064 | EX12: 0.533652 | EY12: 0.489809 | EZ12: 0.419306 | FA12: 0.317988 | FB12: 0.278739 | FC12: 0.331772 | FD12: 0.405857 | FE12: 0.562187 | FF12: 0.715348 | FG12: 0.856797 | FH12: 0.976934 | FI12: 1.140896 | FJ12: 1.017998 | FK12: 0.915326 | FL12: 0.809065 | FM12: 0.531804 | FN12: 0.666121 | FO12: 0.575979 | FP12: 0.833369 | FQ12: 1.127006 | FR12: 1.376597 | FS12: 1.638065 | FT12: 1.936569 | FU12: 2.015126 | FV12: 2.030072 | FW12: 1.850632 | FX12: 1.706128 | FY12: 1.375854 | FZ12: 1.328614 | GA12: 1.310038 | GB12: 1.59649 | GC12: 2.752105 | GD12: 2.916883 | GE12: 3.637065 | GF12: 4.270227 | GG12: 4.396409 | GH12: 4.542723 | GI12: 4.291025 | GJ12: 3.943208 | GK12: 3.248179 | GL12: 3.183997 | GM12: 2.56564 | GN12: 4.341388 | GO12: 5.163743 | GP12: 7.314716 | GQ12: 8.774512 | GR12: 10.192 | GS12: 11.021 | GT12: 13.52 | GU12: 11.63 | GV12: 9.949 | GW12: 8.077 | GX12: 9.826 | GY12: 9.686 | GZ12: 12.005 | HA12: 20.551 | HB12: 24.491 | HC12: 34.18 | HD12: 38.843 | HE12: 49.655 | HF12: 53.862 | HG12: 58.231 | HH12: 55.535 | HI12: 52.622 | HJ12: 52.916 | HK12: 57.421 | HL12: 70.549 | HM12: 104.433 | HN12: 126.235 | HO12: 131.754 | HP12: 189.707 | HQ12: 232.234 | HR12: 288.112 | HS12: 317.111 | HT12: 320.166 | HU12: 324.321 | HV12: 244.027 | HW12: 248.703 | HX12: 380.174 | HY12: 508.662 | HZ12: 546.455 | IA12: 647.317 | IB12: 618.528 | IC12: 690.862 | ID12: 637.125 | IE12: 492.289 | IF12: 482.285 | IG12: 345.4 | IH12: 231.205 | II12: 248.575 | IJ12: 289.95 | IK12: 458.217 | IL12: 565.84 | IM12: 683.248 | IN12: 656.766 | IO12: 752.89 | IP12: 691.532 | IQ12: 605.388 | IR12: 525.855 | IS12: 364.052 | IT12: 297.469 | IU12: 330.686007 | IV12: 481.491656 | IW12: 508.851028 | IX12: 631.956214 | IY12: 716.837677 | IZ12: 778.343553 | JA12: 825.352516 | JB12: 772.150481 | JC12: 705.196098 | JD12: 603.445746 | JE12: 345.878021 | JF12: 405.681805 | JG12: 482.679558 | JH12: 635.514072 | JI12: 736.9448 | JJ12: 627.60361 | JK12: 826.209122 | JL12: 839.14592 | JM12: 902.627416 | JN12: 826.45653 | JO12: 658.334983 | JP12: 566.692926 | JQ12: 350.395325 | JR12: 377.465114 | JS12: 418.752891 | JT12: 500.851015 | JU12: 531.479938 | JV12: 725.435928 | JW12: 832.560046 | JX12: 886.251453 | JY12: 929.532569 | JZ12: 857.080863 | KA12: 724.785135 | KB12: 603.790046 | KC12: 490.22813 | KD12: 417.62809 | KE12: 352.691037 | KF12: 405.784512 | KG12: 697.702989 | KH12: 753.337087 | KI12: 882.627909 | KJ12: 862.916347 | KK12: 910.103227 | KL12: 871.552828 | KM12: 655.182041 | KN12: 616.964827 | KO12: 362.102199 | KP12: 431.825917 | KQ12: 493.217544 | KR12: 469.241672 | KS12: 677.67496 | KT12: 718.225925 | KU12: 880.712786 | KV12: 848.448017 | KW12: 888.935081 | KX12: 793.676251 | KY12: 691.735869 | KZ12: 510.878196 | LA12: 503.191862 | LB12: 369.376374 | LC12: 337.686064 | LD12: 452.534531 | LE12: 674.592812 | LF12: 686.153009 | LG12: 769.189457 | LH12: 881.462391 | LI12: 875.510183 | LJ12: 855.094815 | LK12: 730.023359 | LL12: 555.783062 | LM12: 402.9502 | LN12: 358.238329 | LO12: 452.337442 | LP12: 419.297686 | LQ12: 679.827954 | LR12: 798.192052 | LS12: 834.118766 | LT12: 840.615351 | LU12: 875.227848 | LV12: 779.85283 | LW12: 742.387548 | LX12: 652.669831 | LY12: 516.576254 | LZ12: 408.967125 | MA12: 418.213969 | MB12: 487.035563 | MC12: 555.357855 | MD12: 664.197636 | ME12: 777.597958 | MF12: 779.943951 | MG12: 886.332246 | MH12: 802.006368 | MI12: 633.083846 | MJ12: - | MK12: - | ML12: -
B13: Solar térmica | C13: - | D13: - | E13: - | F13: - | G13: - | H13: - | I13: - | J13: - | K13: - | L13: - | M13: - | N13: - | O13: - | P13: - | Q13: - | R13: - | S13: - | T13: - | U13: - | V13: - | W13: - | X13: - | Y13: - | Z13: - | AA13: - | AB13: - | AC13: - | AD13: - | AE13: - | AF13: - | AG13: - | AH13: - | AI13: - | AJ13: - | AK13: - | AL13: - | AM13: - | AN13: - | AO13: - | AP13: - | AQ13: - | AR13: - | AS13: - | AT13: - | AU13: - | AV13: - | AW13: - | AX13: - | AY13: - | AZ13: - | BA13: - | BB13: - | BC13: - | BD13: - | BE13: - | BF13: - | BG13: - | BH13: - | BI13: - | BJ13: - | BK13: - | BL13: - | BM13: - | BN13: - | BO13: - | BP13: - | BQ13: - | BR13: - | BS13: - | BT13: - | BU13: - | BV13: - | BW13: - | BX13: - | BY13: - | BZ13: - | CA13: - | CB13: - | CC13: - | CD13: - | CE13: - | CF13: - | CG13: - | CH13: - | CI13: - | CJ13: - | CK13: - | CL13: - | CM13: - | CN13: - | CO13: - | CP13: - | CQ13: - | CR13: - | CS13: - | CT13: - | CU13: - | CV13: - | CW13: - | CX13: - | CY13: - | CZ13: - | DA13: - | DB13: - | DC13: - | DD13: - | DE13: - | DF13: - | DG13: - | DH13: - | DI13: - | DJ13: - | DK13: - | DL13: - | DM13: - | DN13: - | DO13: - | DP13: - | DQ13: - | DR13: - | DS13: - | DT13: - | DU13: - | DV13: - | DW13: - | DX13: - | DY13: - | DZ13: - | EA13: - | EB13: - | EC13: - | ED13: - | EE13: - | EF13: - | EG13: - | EH13: - | EI13: - | EJ13: - | EK13: - | EL13: - | EM13: - | EN13: - | EO13: - | EP13: - | EQ13: - | ER13: - | ES13: - | ET13: - | EU13: - | EV13: - | EW13: - | EX13: - | EY13: - | EZ13: - | FA13: - | FB13: - | FC13: - | FD13: - | FE13: - | FF13: - | FG13: - | FH13: - | FI13: - | FJ13: - | FK13: - | FL13: - | FM13: - | FN13: - | FO13: - | FP13: - | FQ13: - | FR13: - | FS13: - | FT13: - | FU13: - | FV13: - | FW13: - | FX13: - | FY13: - | FZ13: - | GA13: - | GB13: - | GC13: - | GD13: - | GE13: - | GF13: - | GG13: - | GH13: - | GI13: - | GJ13: - | GK13: - | GL13: - | GM13: 0 | GN13: 0 | GO13: 0 | GP13: 0 | GQ13: 0 | GR13: 0 | GS13: 0 | GT13: 0 | GU13: 0 | GV13: 0 | GW13: 0 | GX13: 0 | GY13: 0 | GZ13: 0 | HA13: 0.431 | HB13: 0.342 | HC13: 0.558 | HD13: 0.883 | HE13: 1.256 | HF13: 1.116 | HG13: 0.639 | HH13: 1.214 | HI13: 0.997 | HJ13: 0.191 | HK13: 1.084 | HL13: 0.797 | HM13: 1.461 | HN13: 0.958 | HO13: 0.942 | HP13: 1.963 | HQ13: 2.038 | HR13: 1.98 | HS13: 0.859 | HT13: 0.866 | HU13: 1.27 | HV13: 1.16 | HW13: 0.69 | HX13: 1.236 | HY13: 2.323 | HZ13: 7.204 | IA13: 7.658 | IB13: 6.752 | IC13: 12.414 | ID13: 23.868 | IE13: 17.539 | IF13: 23.446 | IG13: 16.183 | IH13: 10.51 | II13: 13.152 | IJ13: 11.682 | IK13: 23.732 | IL13: 36.92 | IM13: 69.084 | IN13: 72.532 | IO13: 104.59 | IP13: 121.9 | IQ13: 100.917 | IR13: 71.745 | IS13: 31.619 | IT13: 33.747 | IU13: 39.74313 | IV13: 88.657368 | IW13: 98.457167 | IX13: 137.835121 | IY13: 160.440925 | IZ13: 247.970979 | JA13: 284.059974 | JB13: 235.329098 | JC13: 228.558024 | JD13: 172.949739 | JE13: 81.173647 | JF13: 86.466377 | JG13: 117.342049 | JH13: 200.341854 | JI13: 235.113481 | JJ13: 177.777045 | JK13: 348.382183 | JL13: 414.749072 | JM13: 541.316741 | JN13: 485.126527 | JO13: 368.642901 | JP13: 289.154577 | JQ13: 133.961873 | JR13: 135.585309 | JS13: 113.494435 | JT13: 204.009049 | JU13: 125.370378 | JV13: 300.893605 | JW13: 499.267989 | JX13: 647.330053 | JY13: 758.522911 | JZ13: 661.855805 | KA13: 478.955228 | KB13: 294.241952 | KC13: 199.223861 | KD13: 158.362269 | KE13: 79.800655 | KF13: 103.264502 | KG13: 385.175316 | KH13: 435.527059 | KI13: 729.935555 | KJ13: 687.288082 | KK13: 811.153184 | KL13: 833.17848 | KM13: 389.595903 | KN13: 289.33703 | KO13: 90.187434 | KP13: 124.471726 | KQ13: 176.951396 | KR13: 190.92526 | KS13: 415.828662 | KT13: 393.160486 | KU13: 694.83874 | KV13: 734.053937 | KW13: 888.91771 | KX13: 607.623488 | KY13: 483.250153 | KZ13: 188.168866 | LA13: 226.817751 | LB13: 84.699065 | LC13: 59.913641 | LD13: 133.00979 | LE13: 387.860762 | LF13: 408.323232 | LG13: 498.795382 | LH13: 813.990671 | LI13: 825.32458 | LJ13: 805.818797 | LK13: 595.626693 | LL13: 284.702891 | LM13: 139.699618 | LN13: 118.135645 | LO13: 149.212081 | LP13: 88.740902 | LQ13: 340.844685 | LR13: 535.255478 | LS13: 607.898177 | LT13: 761.902153 | LU13: 812.880286 | LV13: 692.435175 | LW13: 608.142655 | LX13: 398.793222 | LY13: 220.652322 | LZ13: 131.161056 | MA13: 112.387517 | MB13: 229.808151 | MC13: 233.955943 | MD13: 325.935092 | ME13: 477.209634 | MF13: 551.292603 | MG13: 858.894648 | MH13: 688.557997 | MI13: 465.639936 | MJ13: - | MK13: - | ML13: -
B14: Térmica renovable/Otras renovables | C14: - | D14: - | E14: - | F14: - | G14: - | H14: - | I14: - | J14: - | K14: - | L14: - | M14: - | N14: - | O14: - | P14: - | Q14: - | R14: - | S14: - | T14: - | U14: - | V14: - | W14: - | X14: 0.479 | Y14: 0.195 | Z14: 0.18 | AA14: 0.226 | AB14: 0.185 | AC14: 0.209 | AD14: 0.186 | AE14: 0.219 | AF14: 2.491 | AG14: 0.855 | AH14: 1.652 | AI14: 2.195 | AJ14: 3.186 | AK14: 2.852 | AL14: 2.293 | AM14: 2.747 | AN14: 4.291 | AO14: 5.55 | AP14: 5.08 | AQ14: 5.191 | AR14: 4.069 | AS14: 4.405 | AT14: 5.055 | AU14: 4.77 | AV14: 5.999 | AW14: 6.529 | AX14: 5.136 | AY14: 6.182 | AZ14: 4.201 | BA14: 7.788 | BB14: 12.483 | BC14: 22.434 | BD14: 14.593 | BE14: 25.895 | BF14: 34.064 | BG14: 35.963 | BH14: 40.081 | BI14: 55.065 | BJ14: 63.701 | BK14: 52.516 | BL14: 54.169 | BM14: 59.649 | BN14: 59.275 | BO14: 60.63 | BP14: 38.39 | BQ14: 56.09 | BR14: 56.16 | BS14: 55.471 | BT14: 65.761 | BU14: 51.017 | BV14: 62.141 | BW14: 61.97 | BX14: 55.767 | BY14: 73.194 | BZ14: 69.39 | CA14: 67.607 | CB14: 74.481 | CC14: 76.311 | CD14: 76.089 | CE14: 74.905 | CF14: 70.728 | CG14: 57.923 | CH14: 56.715 | CI14: 56.474 | CJ14: 46.637 | CK14: 55.156 | CL14: 57.041 | CM14: 57.334 | CN14: 33.856 | CO14: 57.003 | CP14: 53.272 | CQ14: 57.104 | CR14: 61.066 | CS14: 58.17 | CT14: 55.262 | CU14: 29.002801 | CV14: 53.305843 | CW14: 61.549511 | CX14: 62.649003 | CY14: 69.878224 | CZ14: 68.57453 | DA14: 70.406914 | DB14: 67.345651 | DC14: 60.385234 | DD14: 67.235012 | DE14: 69.010129 | DF14: 69.403475 | DG14: 71.806642 | DH14: 67.740664 | DI14: 76.241169 | DJ14: 70.556648 | DK14: 71.228353 | DL14: 64.031022 | DM14: 80.270443 | DN14: 79.088938 | DO14: 85.153421 | DP14: 84.480839 | DQ14: 82.713458 | DR14: 74.942079 | DS14: 77.705164 | DT14: 72.094493 | DU14: 81.5787 | DV14: 75.639545 | DW14: 57.155141 | DX14: 64.878718 | DY14: 80.062335 | DZ14: 78.219893 | EA14: 86.225769 | EB14: 91.935601 | EC14: 96.959691 | ED14: 98.655336 | EE14: 114.03217 | EF14: 103.259727 | EG14: 115.38466 | EH14: 106.780576 | EI14: 116.226635 | EJ14: 163.253433 | EK14: 164.156034 | EL14: 142.644941 | EM14: 174.912517 | EN14: 184.368091 | EO14: 170.800963 | EP14: 182.638681 | EQ14: 102.326662 | ER14: 103.972908 | ES14: 114.937767 | ET14: 113.405046 | EU14: 116.821017 | EV14: 106.527145 | EW14: 125.927582 | EX14: 138.275534 | EY14: 128.415374 | EZ14: 130.569012 | FA14: 128.796967 | FB14: 143.040272 | FC14: 125.499869 | FD14: 125.666718 | FE14: 141.367661 | FF14: 136.225564 | FG14: 148.434649 | FH14: 135.674954 | FI14: 145.85112 | FJ14: 152.329642 | FK14: 154.938327 | FL14: 162.073384 | FM14: 144.46359 | FN14: 164.51626 | FO14: 165.781692 | FP14: 141.425287 | FQ14: 163.310002 | FR14: 158.001119 | FS14: 158.154288 | FT14: 141.570139 | FU14: 142.667679 | FV14: 139.216976 | FW14: 148.774135 | FX14: 152.856929 | FY14: 147.726873 | FZ14: 158.608513 | GA14: 174.85461 | GB14: 150.827771 | GC14: 176.756115 | GD14: 159.635672 | GE14: 172.117306 | GF14: 162.540982 | GG14: 167.519914 | GH14: 173.003408 | GI14: 160.254506 | GJ14: 152.959924 | GK14: 165.982026 | GL14: 171.405836 | GM14: 172.08672 | GN14: 164.504679 | GO14: 179.217148 | GP14: 172.157263 | GQ14: 184.666872 | GR14: 201.174 | GS14: 194.67 | GT14: 180.725 | GU14: 181.291 | GV14: 197.311 | GW14: 176.127 | GX14: 178.676 | GY14: 195.417 | GZ14: 170.868 | HA14: 196.962 | HB14: 184.118 | HC14: 197.114 | HD14: 193.247 | HE14: 203.052 | HF14: 202.649 | HG14: 191.273 | HH14: 224.429 | HI14: 204.157 | HJ14: 212.399 | HK14: 218.304 | HL14: 215.698 | HM14: 223.7 | HN14: 221.483 | HO14: 218.887 | HP14: 220.451 | HQ14: 223.504 | HR14: 218.31 | HS14: 211.555 | HT14: 229.725 | HU14: 225.656 | HV14: 224.216 | HW14: 243.686 | HX14: 231.253 | HY14: 252.346 | HZ14: 275.297 | IA14: 250.078 | IB14: 229.126 | IC14: 236.274 | ID14: 235.859 | IE14: 264.076 | IF14: 325.339 | IG14: 249.01 | IH14: 251.943 | II14: 250.94 | IJ14: 226.424 | IK14: 245.998 | IL14: 252.761 | IM14: 274.925 | IN14: 268.961 | IO14: 268.03 | IP14: 278.804 | IQ14: 262.937 | IR14: 279.287 | IS14: 269.121 | IT14: 293.611 | IU14: 308.732944 | IV14: 287.459689 | IW14: 303.472871 | IX14: 300.471926 | IY14: 310.707484 | IZ14: 276.438021 | JA14: 310.760034 | JB14: 314.338587 | JC14: 329.797294 | JD14: 323.886182 | JE14: 314.523187 | JF14: 324.54231 | JG14: 322.790192 | JH14: 309.796832 | JI14: 319.803142 | JJ14: 298.022337 | JK14: 313.449904 | JL14: 325.355816 | JM14: 327.228785 | JN14: 294.274262 | JO14: 281.211839 | JP14: 313.549206 | JQ14: 326.445059 | JR14: 350.535768 | JS14: 357.49281 | JT14: 329.59547 | JU14: 354.576681 | JV14: 364.007295 | JW14: 370.571976 | JX14: 346.658768 | JY14: 385.951736 | JZ14: 369.30743 | KA14: 348.411267 | KB14: 355.785675 | KC14: 358.260628 | KD14: 384.657422 | KE14: 379.985678 | KF14: 293.118457 | KG14: 304.872036 | KH14: 265.605168 | KI14: 329.261759 | KJ14: 329.26299 | KK14: 337.327657 | KL14: 348.97107 | KM14: 332.3793 | KN14: 299.619962 | KO14: 287.070161 | KP14: 298.089236 | KQ14: 301.195452 | KR14: 244.80938 | KS14: 273.686568 | KT14: 200.962758 | KU14: 274.110535 | KV14: 287.24583 | KW14: 308.872463 | KX14: 316.55355 | KY14: 306.444638 | KZ14: 313.82398 | LA14: 306.137801 | LB14: 288.723792 | LC14: 269.586509 | LD14: 260.667593 | LE14: 254.629768 | LF14: 209.024615 | LG14: 276.211446 | LH14: 286.849104 | LI14: 310.283034 | LJ14: 325.988029 | LK14: 306.891802 | LL14: 305.478792 | LM14: 303.91302 | LN14: 305.495626 | LO14: 326.489641 | LP14: 288.829501 | LQ14: 268.625631 | LR14: 231.782742 | LS14: 297.730079 | LT14: 301.629359 | LU14: 332.482887 | LV14: 315.272669 | LW14: 308.606647 | LX14: 308.82652 | LY14: 306.823072 | LZ14: 311.651078 | MA14: 295.349655 | MB14: 300.788655 | MC14: 269.07043 | MD14: 237.136789 | ME14: 290.867997 | MF14: 303.747793 | MG14: 323.388862 | MH14: 316.4005 | MI14: 319.227024 | MJ14: - | MK14: - | ML14: -
B15: Térmica no renovable/Cogeneración y resto/Cogeneración | C15: 35.68500001 | D15: 38.35100002 | E15: 45.94500001 | F15: 29.54299999 | G15: 39.72400004 | H15: 36.554 | I15: 59.266 | J15: 54.41599999 | K15: 70.54800001 | L15: 79.42600001 | M15: 86.14999999 | N15: 79.24899999 | O15: 95.989 | P15: 93.531 | Q15: 115.056 | R15: 116.111 | S15: 113.29 | T15: 97.624 | U15: 119.55 | V15: 109.126 | W15: 134.507 | X15: 150.722 | Y15: 140.301 | Z15: 150.177 | AA15: 158.544 | AB15: 156.649 | AC15: 153.353 | AD15: 133.677 | AE15: 150.357 | AF15: 147.037 | AG15: 147.135 | AH15: 155.598 | AI15: 159.136 | AJ15: 169.633 | AK15: 179.527 | AL15: 192.236 | AM15: 216.233 | AN15: 207.395 | AO15: 238.976 | AP15: 228.409 | AQ15: 230.781 | AR15: 243.422 | AS15: 273.033 | AT15: 222.175 | AU15: 290.868 | AV15: 356.511 | AW15: 393.027 | AX15: 406.674 | AY15: 424.012 | AZ15: 397.51 | BA15: 428.83 | BB15: 427.683 | BC15: 448.762 | BD15: 440.017 | BE15: 418.092 | BF15: 419.04 | BG15: 459.931 | BH15: 463.43 | BI15: 473.756 | BJ15: 510.9281 | BK15: 488.055 | BL15: 461.944 | BM15: 538.602 | BN15: 514.274 | BO15: 531.615 | BP15: 523.037 | BQ15: 524.917 | BR15: 510.664 | BS15: 559.844 | BT15: 605.287 | BU15: 625.356 | BV15: 657.158 | BW15: 649.314 | BX15: 674.235 | BY15: 693.763 | BZ15: 721.263 | CA15: 706.927 | CB15: 708.297 | CC15: 764.043 | CD15: 721.083 | CE15: 746.326 | CF15: 827.944 | CG15: 871.216 | CH15: 907.409 | CI15: 907.43 | CJ15: 826.938 | CK15: 929.049 | CL15: 911.043 | CM15: 932.339 | CN15: 902.096 | CO15: 984.035 | CP15: 910.409 | CQ15: 947.55 | CR15: 1078.514 | CS15: 1050.981 | CT15: 1082.232 | CU15: 1132.463466 | CV15: 1055.32629 | CW15: 1179.48246 | CX15: 1140.456137 | CY15: 1143.38163 | CZ15: 1071.931957 | DA15: 1169.521431 | DB15: 1090.506883 | DC15: 1176.458807 | DD15: 1306.934093 | DE15: 1295.514473 | DF15: 1406.303126 | DG15: 1379.875255 | DH15: 1318.561516 | DI15: 1436.056923 | DJ15: 1384.72701 | DK15: 1425.332244 | DL15: 1390.930151 | DM15: 1434.844378 | DN15: 1350.318336 | DO15: 1395.920991 | DP15: 1537.403306 | DQ15: 1510.153183 | DR15: 1573.14894 | DS15: 1568.016331 | DT15: 1437.863509 | DU15: 1555.596493 | DV15: 1469.593771 | DW15: 1469.027108 | DX15: 1426.760806 | DY15: 1439.926313 | DZ15: 1348.346318 | EA15: 1376.726088 | EB15: 1451.718781 | EC15: 1351.805972 | ED15: 1484.173324 | EE15: 1509.982166 | EF15: 1420.973025 | EG15: 1480.331908 | EH15: 1391.977328 | EI15: 1478.901733 | EJ15: 1418.097798 | EK15: 1481.533747 | EL15: 1315.029805 | EM15: 1436.074999 | EN15: 1554.644648 | EO15: 1587.637579 | EP15: 1581.503447 | EQ15: 1753.946643 | ER15: 1624.383565 | ES15: 1752.277795 | ET15: 1751.529213 | EU15: 1747.522773 | EV15: 1607.281976 | EW15: 1731.76718 | EX15: 1586.239701 | EY15: 1675.706324 | EZ15: 1903.924717 | FA15: 1846.961895 | FB15: 1850.110454 | FC15: 1949.896401 | FD15: 1795.454235 | FE15: 1917.128936 | FF15: 1863.546696 | FG15: 1892.492864 | FH15: 1805.79937 | FI15: 1913.795834 | FJ15: 1744.961886 | FK15: 1903.913547 | FL15: 2075.884703 | FM15: 1958.696567 | FN15: 2023.77594 | FO15: 2046.926037 | FP15: 1962.114682 | FQ15: 2107.656392 | FR15: 1979.842787 | FS15: 1934.491312 | FT15: 1817.996573 | FU15: 1921.340511 | FV15: 1769.469702 | FW15: 1826.677202 | FX15: 1981.941919 | FY15: 2074.231954 | FZ15: 2106.015132 | GA15: 2043.023494 | GB15: 1951.798355 | GC15: 2095.811333 | GD15: 2039.99882 | GE15: 2040.297126 | GF15: 1919.581508 | GG15: 1935.739163 | GH15: 1786.162398 | GI15: 1917.189845 | GJ15: 1838.219428 | GK15: 1867.242601 | GL15: 1828.639612 | GM15: 1998.073836 | GN15: 1940.378567 | GO15: 2060.451941 | GP15: 1910.70463 | GQ15: 1907.436391 | GR15: 1747.218 | GS15: 1731.357 | GT15: 1635.847 | GU15: 1728.153 | GV15: 1850.389 | GW15: 1883.634 | GX15: 1925.296 | GY15: 1984.567 | GZ15: 1757.03 | HA15: 1865.888 | HB15: 1831.562 | HC15: 1829.89 | HD15: 1893.941 | HE15: 1990.347 | HF15: 1868.579 | HG15: 1956.135 | HH15: 2102.763 | HI15: 2100.066 | HJ15: 2146.989 | HK15: 2251.917 | HL15: 2226.859 | HM15: 2271.986 | HN15: 2229.342 | HO15: 2106.663 | HP15: 2078.812 | HQ15: 2217.977 | HR15: 2016.659 | HS15: 2177.9 | HT15: 2358.957 | HU15: 2314.276 | HV15: 2324.628 | HW15: 2421.963 | HX15: 2242.406 | HY15: 2406.646 | HZ15: 2338.367 | IA15: 2351.126 | IB15: 2309.733 | IC15: 2396.594 | ID15: 2034.392 | IE15: 2337.3 | IF15: 2464.42 | IG15: 2571.26 | IH15: 2591.727 | II15: 2661.214 | IJ15: 2477.021 | IK15: 2616.777 | IL15: 2550.354 | IM15: 2581.357 | IN15: 2541.783 | IO15: 2613.673 | IP15: 2153.408 | IQ15: 2523.764 | IR15: 2647.117 | IS15: 2659.682 | IT15: 2762.902 | IU15: 2637.924793 | IV15: 2468.567039 | IW15: 2765.528159 | IX15: 2555.169463 | IY15: 2602.254191 | IZ15: 2487.024779 | JA15: 2498.465439 | JB15: 2077.342587 | JC15: 2506.048016 | JD15: 2619.646699 | JE15: 2629.900136 | JF15: 2707.239383 | JG15: 2824.207934 | JH15: 2688.886354 | JI15: 2856.518092 | JJ15: 2710.359994 | JK15: 2737.096551 | JL15: 2608.583731 | JM15: 2707.340054 | JN15: 2274.178248 | JO15: 2648.813853 | JP15: 2805.453355 | JQ15: 2748.438246 | JR15: 2807.912021 | JS15: 2899.626105 | JT15: 2591.503176 | JU15: 2803.636154 | JV15: 2743.157264 | JW15: 2753.089577 | JX15: 2580.880324 | JY15: 2571.729292 | JZ15: 1990.427366 | KA15: 2401.208112 | KB15: 2473.046344 | KC15: 2473.079641 | KD15: 2528.560412 | KE15: 2548.37614 | KF15: 1874.372471 | KG15: 1829.368894 | KH15: 1617.904848 | KI15: 1929.810131 | KJ15: 2073.645 | KK15: 2116.72001 | KL15: 1983.214306 | KM15: 2110.91757 | KN15: 2125.398912 | KO15: 1932.121595 | KP15: 1986.171421 | KQ15: 2161.008875 | KR15: 1922.525573 | KS15: 2077.93867 | KT15: 2011.905445 | KU15: 2074.258821 | KV15: 2062.541314 | KW15: 2157.707858 | KX15: 2036.558693 | KY15: 2148.705487 | KZ15: 2211.217462 | LA15: 2126.759709 | LB15: 2178.200132 | LC15: 2127.671047 | LD15: 1967.564593 | LE15: 2069.460799 | LF15: 1992.488017 | LG15: 2113.606739 | LH15: 2167.730554 | LI15: 2239.782555 | LJ15: 2120.598672 | LK15: 2135.172355 | LL15: 2318.646524 | LM15: 2295.933107 | LN15: 2325.28728 | LO15: 2449.598372 | LP15: 2206.458476 | LQ15: 2390.974647 | LR15: 2233.47698 | LS15: 2327.22638 | LT15: 2315.360509 | LU15: 2398.074768 | LV15: 2257.658103 | LW15: 2272.553978 | LX15: 2392.965302 | LY15: 2441.541155 | LZ15: 2489.407971 | MA15: 2480.449058 | MB15: 2251.080739 | MC15: 2335.527296 | MD15: 2353.589597 | ME15: 2418.3062 | MF15: 2403.646138 | MG15: 2432.042806 | MH15: 2358.331876 | MI15: 2391.961923 | MJ15: - | MK15: - | ML15: -
B16: Residuos no renovables | C16: - | D16: - | E16: - | F16: - | G16: - | H16: - | I16: - | J16: - | K16: - | L16: - | M16: - | N16: - | O16: - | P16: - | Q16: - | R16: - | S16: - | T16: - | U16: - | V16: - | W16: - | X16: - | Y16: - | Z16: - | AA16: - | AB16: - | AC16: - | AD16: - | AE16: - | AF16: - | AG16: - | AH16: - | AI16: - | AJ16: - | AK16: - | AL16: - | AM16: - | AN16: - | AO16: - | AP16: - | AQ16: - | AR16: - | AS16: - | AT16: - | AU16: - | AV16: - | AW16: - | AX16: - | AY16: - | AZ16: - | BA16: - | BB16: - | BC16: - | BD16: - | BE16: - | BF16: - | BG16: - | BH16: - | BI16: - | BJ16: - | BK16: - | BL16: - | BM16: - | BN16: - | BO16: - | BP16: - | BQ16: - | BR16: - | BS16: - | BT16: - | BU16: - | BV16: - | BW16: - | BX16: - | BY16: - | BZ16: - | CA16: - | CB16: - | CC16: - | CD16: - | CE16: - | CF16: - | CG16: - | CH16: - | CI16: - | CJ16: - | CK16: - | CL16: - | CM16: - | CN16: - | CO16: - | CP16: - | CQ16: - | CR16: - | CS16: - | CT16: - | CU16: - | CV16: - | CW16: - | CX16: - | CY16: - | CZ16: - | DA16: - | DB16: - | DC16: - | DD16: - | DE16: - | DF16: - | DG16: - | DH16: - | DI16: - | DJ16: - | DK16: - | DL16: - | DM16: - | DN16: - | DO16: - | DP16: - | DQ16: - | DR16: - | DS16: - | DT16: - | DU16: - | DV16: - | DW16: - | DX16: - | DY16: - | DZ16: - | EA16: - | EB16: - | EC16: - | ED16: - | EE16: - | EF16: - | EG16: - | EH16: - | EI16: - | EJ16: - | EK16: - | EL16: - | EM16: - | EN16: - | EO16: - | EP16: - | EQ16: - | ER16: - | ES16: - | ET16: - | EU16: - | EV16: - | EW16: - | EX16: - | EY16: - | EZ16: - | FA16: - | FB16: - | FC16: - | FD16: - | FE16: - | FF16: - | FG16: - | FH16: - | FI16: - | FJ16: - | FK16: - | FL16: - | FM16: - | FN16: - | FO16: - | FP16: - | FQ16: - | FR16: - | FS16: - | FT16: - | FU16: - | FV16: - | FW16: - | FX16: - | FY16: - | FZ16: - | GA16: - | GB16: - | GC16: - | GD16: - | GE16: - | GF16: - | GG16: - | GH16: - | GI16: - | GJ16: - | GK16: - | GL16: - | GM16: - | GN16: - | GO16: - | GP16: - | GQ16: - | GR16: - | GS16: - | GT16: - | GU16: - | GV16: - | GW16: - | GX16: - | GY16: - | GZ16: - | HA16: - | HB16: - | HC16: - | HD16: - | HE16: - | HF16: - | HG16: - | HH16: - | HI16: - | HJ16: - | HK16: - | HL16: - | HM16: - | HN16: - | HO16: - | HP16: - | HQ16: - | HR16: - | HS16: - | HT16: - | HU16: - | HV16: - | HW16: - | HX16: - | HY16: - | HZ16: - | IA16: - | IB16: - | IC16: - | ID16: - | IE16: - | IF16: - | IG16: - | IH16: - | II16: - | IJ16: - | IK16: - | IL16: - | IM16: - | IN16: - | IO16: - | IP16: - | IQ16: - | IR16: - | IS16: - | IT16: - | IU16: 106.3227535 | IV16: 95.1620825 | IW16: 82.4959805 | IX16: 102.9483595 | IY16: 70.1634035 | IZ16: 88.7365175 | JA16: 75.9599225 | JB16: 84.326142 | JC16: 96.779359 | JD16: 123.575436 | JE16: 116.1072815 | JF16: 117.963598 | JG16: 124.1688765 | JH16: 112.846404 | JI16: 110.281379 | JJ16: 128.415032 | JK16: 119.8694345 | JL16: 104.1874575 | JM16: 113.600646 | JN16: 127.489637 | JO16: 131.0540715 | JP16: 142.8087995 | JQ16: 121.463185 | JR16: 129.2869565 | JS16: 140.204112 | JT16: 136.994911 | JU16: 139.541136 | JV16: 79.729951 | JW16: 111.4110865 | JX16: 100.240985 | JY16: 110.5039345 | JZ16: 119.443185 | KA16: 134.1050245 | KB16: 142.8327375 | KC16: 135.9197 | KD16: 149.223772 | KE16: 134.8419275 | KF16: 115.6305295 | KG16: 102.2672645 | KH16: 125.9423185 | KI16: 156.421807 | KJ16: 151.9059905 | KK16: 156.313722 | KL16: 169.774332 | KM16: 176.352553 | KN16: 175.795556 | KO16: 169.6521315 | KP16: 198.445425 | KQ16: 188.1249385 | KR16: 170.320916 | KS16: 195.8192195 | KT16: 154.011197 | KU16: 192.697857 | KV16: 196.301325 | KW16: 210.196475 | KX16: 213.7809945 | KY16: 202.416236 | KZ16: 215.489239 | LA16: 203.286709 | LB16: 182.2696345 | LC16: 200.859686 | LD16: 187.6061845 | LE16: 209.0865235 | LF16: 179.4145225 | LG16: 136.9970355 | LH16: 195.591038 | LI16: 242.9444475 | LJ16: 243.1547295 | LK16: 236.993208 | LL16: 230.0378715 | LM16: 205.3221455 | LN16: 203.3012535 | LO16: 216.856933 | LP16: 190.8861225 | LQ16: 209.1301965 | LR16: 172.6677655 | LS16: 175.58352 | LT16: 211.361659 | LU16: 200.628116 | LV16: 215.234794 | LW16: 213.315484 | LX16: 228.412195 | LY16: 206.525261 | LZ16: 218.5118425 | MA16: 226.5715625 | MB16: 204.210088 | MC16: 215.3954785 | MD16: 169.464494 | ME16: 137.027331 | MF16: 175.415691 | MG16: 199.575432 | MH16: 194.6552735 | MI16: 189.018788 | MJ16: - | MK16: - | ML16: -
B17: Residuos renovables | C17: - | D17: - | E17: - | F17: - | G17: - | H17: - | I17: - | J17: - | K17: - | L17: - | M17: - | N17: - | O17: - | P17: - | Q17: - | R17: - | S17: - | T17: - | U17: - | V17: - | W17: - | X17: - | Y17: - | Z17: - | AA17: - | AB17: - | AC17: - | AD17: - | AE17: - | AF17: - | AG17: - | AH17: - | AI17: - | AJ17: - | AK17: - | AL17: - | AM17: - | AN17: - | AO17: - | AP17: - | AQ17: - | AR17: - | AS17: - | AT17: - | AU17: - | AV17: - | AW17: - | AX17: - | AY17: - | AZ17: - | BA17: - | BB17: - | BC17: - | BD17: - | BE17: - | BF17: - | BG17: - | BH17: - | BI17: - | BJ17: - | BK17: - | BL17: - | BM17: - | BN17: - | BO17: - | BP17: - | BQ17: - | BR17: - | BS17: - | BT17: - | BU17: - | BV17: - | BW17: - | BX17: - | BY17: - | BZ17: - | CA17: - | CB17: - | CC17: - | CD17: - | CE17: - | CF17: - | CG17: - | CH17: - | CI17: - | CJ17: - | CK17: - | CL17: - | CM17: - | CN17: - | CO17: - | CP17: - | CQ17: - | CR17: - | CS17: - | CT17: - | CU17: - | CV17: - | CW17: - | CX17: - | CY17: - | CZ17: - | DA17: - | DB17: - | DC17: - | DD17: - | DE17: - | DF17: - | DG17: - | DH17: - | DI17: - | DJ17: - | DK17: - | DL17: - | DM17: - | DN17: - | DO17: - | DP17: - | DQ17: - | DR17: - | DS17: - | DT17: - | DU17: - | DV17: - | DW17: - | DX17: - | DY17: - | DZ17: - | EA17: - | EB17: - | EC17: - | ED17: - | EE17: - | EF17: - | EG17: - | EH17: - | EI17: - | EJ17: - | EK17: - | EL17: - | EM17: - | EN17: - | EO17: - | EP17: - | EQ17: - | ER17: - | ES17: - | ET17: - | EU17: - | EV17: - | EW17: - | EX17: - | EY17: - | EZ17: - | FA17: - | FB17: - | FC17: - | FD17: - | FE17: - | FF17: - | FG17: - | FH17: - | FI17: - | FJ17: - | FK17: - | FL17: - | FM17: - | FN17: - | FO17: - | FP17: - | FQ17: - | FR17: - | FS17: - | FT17: - | FU17: - | FV17: - | FW17: - | FX17: - | FY17: - | FZ17: - | GA17: - | GB17: - | GC17: - | GD17: - | GE17: - | GF17: - | GG17: - | GH17: - | GI17: - | GJ17: - | GK17: - | GL17: - | GM17: - | GN17: - | GO17: - | GP17: - | GQ17: - | GR17: - | GS17: - | GT17: - | GU17: - | GV17: - | GW17: - | GX17: - | GY17: - | GZ17: - | HA17: - | HB17: - | HC17: - | HD17: - | HE17: - | HF17: - | HG17: - | HH17: - | HI17: - | HJ17: - | HK17: - | HL17: - | HM17: - | HN17: - | HO17: - | HP17: - | HQ17: - | HR17: - | HS17: - | HT17: - | HU17: - | HV17: - | HW17: - | HX17: - | HY17: - | HZ17: - | IA17: - | IB17: - | IC17: - | ID17: - | IE17: - | IF17: - | IG17: - | IH17: - | II17: - | IJ17: - | IK17: - | IL17: - | IM17: - | IN17: - | IO17: - | IP17: - | IQ17: - | IR17: - | IS17: - | IT17: - | IU17: 57.0327295 | IV17: 50.9930145 | IW17: 33.0274135 | IX17: 50.9762745 | IY17: 40.8274545 | IZ17: 57.3867355 | JA17: 57.2614405 | JB17: 50.553342 | JC17: 47.872502 | JD17: 53.463646 | JE17: 53.1320195 | JF17: 56.299528 | JG17: 56.3013555 | JH17: 44.974486 | JI17: 31.257473 | JJ17: 53.07847 | JK17: 39.8214305 | JL17: 54.4483985 | JM17: 57.100843 | JN17: 54.449194 | JO17: 53.1819555 | JP17: 54.7805555 | JQ17: 51.188629 | JR17: 45.2631915 | JS17: 50.514924 | JT17: 46.712419 | JU17: 38.196782 | JV17: 17.166904 | JW17: 20.9788915 | JX17: 15.358893 | JY17: 20.5593065 | JZ17: 35.316523 | KA17: 48.5228395 | KB17: 45.4761305 | KC17: 48.379472 | KD17: 51.470924 | KE17: 40.9610535 | KF17: 28.9339245 | KG17: 22.5603225 | KH17: 39.1741005 | KI17: 54.939255 | KJ17: 44.8463765 | KK17: 51.875004 | KL17: 44.059013 | KM17: 54.613833 | KN17: 50.060762 | KO17: 51.6517155 | KP17: 61.862726 | KQ17: 54.5827335 | KR17: 52.223671 | KS17: 60.2138735 | KT17: 33.475764 | KU17: 49.703733 | KV17: 58.970399 | KW17: 60.00164 | KX17: 57.4909905 | KY17: 55.067411 | KZ17: 60.863129 | LA17: 60.056931 | LB17: 60.0051995 | LC17: 57.299935 | LD17: 48.1038525 | LE17: 57.5293145 | LF17: 26.7023955 | LG17: 24.2782545 | LH17: 55.115868 | LI17: 63.6462505 | LJ17: 60.3154875 | LK17: 62.051794 | LL17: 60.0501525 | LM17: 64.7392985 | LN17: 69.9073075 | LO17: 64.737576 | LP17: 55.9992095 | LQ17: 59.9110415 | LR17: 46.5753125 | LS17: 34.262043 | LT17: 66.986297 | LU17: 68.889367 | LV17: 65.701225 | LW17: 62.429442 | LX17: 66.129402 | LY17: 66.55759 | LZ17: 69.9719275 | MA17: 69.2635705 | MB17: 62.195682 | MC17: 65.9092005 | MD17: 66.929152 | ME17: 24.344858 | MF17: 50.806421 | MG17: 64.813797 | MH17: 65.7551745 | MI17: 64.738028 | MJ17: - | MK17: - | ML17: -
B18: Régimen especial | C18: 141.792 | D18: 130.856 | E18: 110.855 | F18: 120.561 | G18: 123.921 | H18: 127.973 | I18: 114.985 | J18: 112.234 | K18: 104.691 | L18: 149.23 | M18: 196.367 | N18: 206.211 | O18: 275.319 | P18: 216.485 | Q18: 330.279 | R18: 306.782 | S18: 308.685 | T18: 242.418 | U18: 219.295 | V18: 189.727 | W18: 212.86 | X18: 245.323 | Y18: 282.755 | Z18: 314.556 | AA18: 285.177 | AB18: 247.5 | AC18: 268.758 | AD18: 327.116 | AE18: 345.474 | AF18: 354.658 | AG18: 330.494 | AH18: 277.137 | AI18: 281.718 | AJ18: 391.427 | AK18: 419.331 | AL18: 501.831 | AM18: 435.028 | AN18: 344.329 | AO18: 424.457 | AP18: 433.51 | AQ18: 489.602 | AR18: 463.648 | AS18: 437.682 | AT18: 338.119 | AU18: 410.583 | AV18: 614.229 | AW18: 635.898 | AX18: 670.237 | AY18: 780.756 | AZ18: 683.316 | BA18: 707.5 | BB18: 666.926 | BC18: 731.274 | BD18: 633.452 | BE18: 562.516 | BF18: 561.608 | BG18: 609.381 | BH18: 683.066 | BI18: 776.587 | BJ18: 801.483 | BK18: 878.253 | BL18: 845.433 | BM18: 906.188 | BN18: 753.601 | BO18: 777.859 | BP18: 712.863 | BQ18: 710.022 | BR18: 670.617 | BS18: 740.799 | BT18: 786.898 | BU18: 820.033 | BV18: 993.249 | BW18: 1162.132 | BX18: 1146.085 | BY18: 1156.348 | BZ18: 1188.528 | CA18: 1146.938 | CB18: 1052.646 | CC18: 1062.926 | CD18: 987.041 | CE18: 1005.776 | CF18: 1110.664 | CG18: 1195.931 | CH18: 1440.752 | CI18: 1444.364 | CJ18: 1274.815 | CK18: 1298.055 | CL18: 1240.75 | CM18: 1290.856 | CN18: 1258.209 | CO18: 1353.054 | CP18: 1209.009 | CQ18: 1241.296 | CR18: 1363.396 | CS18: 1492.912 | CT18: 1694.282 | CU18: 1739.959 | CV18: 1521.155 | CW18: 1668.366 | CX18: 1703.836 | CY18: 1713.369 | CZ18: 1529.281 | DA18: 1560.788 | DB18: 1486.409 | DC18: 1509.525 | DD18: 1726.744 | DE18: 1696.815 | DF18: 1877.081 | DG18: 1935.169 | DH18: 1893.685 | DI18: 2093.126 | DJ18: 1995.118 | DK18: 2112.97 | DL18: 1963.846 | DM18: 1916.982 | DN18: 1758.697 | DO18: 1864.2 | DP18: 2095.735 | DQ18: 2272.375 | DR18: 2359.32 | DS18: 2281.125 | DT18: 2087.61 | DU18: 2224.895 | DV18: 2397.05 | DW18: 2247.973 | DX18: 2215.574 | DY18: 2134.354 | DZ18: 1941.982 | EA18: 1898.067 | EB18: 2183.652 | EC18: 2360.469 | ED18: 2667.78 | EE18: 2777.721 | EF18: 2583.982 | EG18: 2847.022 | EH18: 2638.617 | EI18: 2496.33 | EJ18: 2343.217 | EK18: 2346.555 | EL18: 2059.681 | EM18: 2404.26 | EN18: 2516.455 | EO18: 2749.792 | EP18: 2514.825 | EQ18: 2769.329 | ER18: 2782.593 | ES18: 3008.798 | ET18: 2845.49 | EU18: 3105.471 | EV18: 2718.444 | EW18: 2787.688 | EX18: 2533.537 | EY18: 2514.394 | EZ18: 3184.534 | FA18: 3423.852 | FB18: 3773.848 | FC18: 4052.093 | FD18: 3372.585 | FE18: 3459.536 | FF18: 3670.767 | FG18: 3473.281 | FH18: 3005.27 | FI18: 3066.107 | FJ18: 2651.728 | FK18: 3049.943 | FL18: 3635.44 | FM18: 3762.45 | FN18: 4201.009 | FO18: 4486.624 | FP18: 3606.45 | FQ18: 4061.165 | FR18: 4205.636 | FS18: 3686.183 | FT18: 3422.459 | FU18: 3372.517 | FV18: 3284.304 | FW18: 3324.778 | FX18: 4017.373 | FY18: 4064.281 | FZ18: 4336.518 | GA18: 4449.166 | GB18: 4141.766 | GC18: 4425.399 | GD18: 4594.518 | GE18: 4146.83 | GF18: 3645.307 | GG18: 3963.152 | GH18: 3795.199 | GI18: 3504.392 | GJ18: 4115.754 | GK18: 4372.404 | GL18: 4813.012 | GM18: 4136.986 | GN18: 4354.97 | GO18: 5600.159 | GP18: 4552.133 | GQ18: 4131.47 | GR18: 3571.546 | GS18: 3335.188 | GT18: 4185.728 | GU18: 3551.03 | GV18: 4704.855 | GW18: 4729.242 | GX18: 4780.034 | GY18: 4684.966 | GZ18: 5290.618 | HA18: 5686.107 | HB18: 3926.588 | HC18: 5176.805 | HD18: 4326.119 | HE18: 4435.131 | HF18: 4802.526 | HG18: 4421.267 | HH18: 4478.454 | HI18: 5300.027 | HJ18: 5019.518 | HK18: 5520.4 | HL18: 4766.069 | HM18: 6995.364 | HN18: 6511.815 | HO18: 4808.686 | HP18: 5157.997 | HQ18: 5180.399 | HR18: 4762.165 | HS18: 5049.59 | HT18: 5582.25 | HU18: 6728.332 | HV18: 6981.839 | HW18: 6939.896 | HX18: 6710.841 | HY18: 6830.338 | HZ18: 6728.423 | IA18: 6531.325 | IB18: 5964.921 | IC18: 6127.626 | ID18: 5449.731 | IE18: 5820.804 | IF18: 6651.63 | IG18: 8440.533 | IH18: 8615.231 | II18: 8230.343 | IJ18: 8244.09 | IK18: 8676.031 | IL18: 6730.89 | IM18: 7916.291 | IN18: 6725.187 | IO18: 6996.919 | IP18: 6482.136 | IQ18: 6075.379 | IR18: 7795.724 | IS18: 8240.193 | IT18: 8711.786 | IU18: 8182.375636 | IV18: 8015.674198 | IW18: 9163.103429 | IX18: 7779.965009 | IY18: 7562.817912 | IZ18: 7284.634872 | JA18: 7696.612706 | JB18: 6573.899053 | JC18: 6472.475777 | JD18: 7244.520741 | JE18: 7789.530499 | JF18: 8741.677272 | JG18: 7918.890089 | JH18: 9345.848427 | JI18: 8429.545155 | JJ18: 9774.611138 | JK18: 8742.751277 | JL18: 8219.220504 | JM18: 7973.642089 | JN18: 7456.133138 | JO18: 8284.820864 | JP18: 7576.163782 | JQ18: 8752.081332 | JR18: 9927.76087 | JS18: 10951.79302 | JT18: 9853.691931 | JU18: 10606.12697 | JV18: 9494.325866 | JW18: 9325.054453 | JX18: 9084.564866 | JY18: 8170.291597 | JZ18: 7853.444517 | KA18: 7661.988698 | KB18: 8230.346447 | KC18: 10670.6354 | KD18: 9160.174933 | KE18: - | KF18: - | KG18: - | KH18: - | KI18: - | KJ18: - | KK18: - | KL18: - | KM18: - | KN18: - | KO18: - | KP18: - | KQ18: - | KR18: - | KS18: - | KT18: - | KU18: - | KV18: - | KW18: - | KX18: - | KY18: - | KZ18: - | LA18: - | LB18: - | LC18: - | LD18: - | LE18: - | LF18: - | LG18: - | LH18: - | LI18: - | LJ18: - | LK18: - | LL18: - | LM18: - | LN18: - | LO18: - | LP18: - | LQ18: - | LR18: - | LS18: - | LT18: - | LU18: - | LV18: - | LW18: - | LX18: - | LY18: - | LZ18: - | MA18: - | MB18: - | MC18: - | MD18: - | ME18: - | MF18: - | MG18: - | MH18: - | MI18: - | MJ18: - | MK18: - | ML18: -
B19: Generación | C19: 13068.149 | D19: 10712.421 | E19: 11526.93 | F19: 10577.742 | G19: 10584.957 | H19: 10924.121 | I19: 11576.189 | J19: 10205.642 | K19: 10945.187 | L19: 11117.694 | M19: 11786.233 | N19: 12993.084 | O19: 13514.699 | P19: 12300.104 | Q19: 11755.675 | R19: 11287.505 | S19: 11439.316 | T19: 11005.69 | U19: 11985.769 | V19: 10503.418 | W19: 11479.372 | X19: 11793.967 | Y19: 12189.306 | Z19: 12628.902 | AA19: 14156.68 | AB19: 12984.095 | AC19: 12650.638 | AD19: 11288.931 | AE19: 11148.397 | AF19: 10639.672 | AG19: 12196.982 | AH19: 10732.736 | AI19: 11459.954 | AJ19: 11873.681 | AK19: 11696.458 | AL19: 12362.296 | AM19: 13140.405 | AN19: 11813.756 | AO19: 12465.811 | AP19: 11039.03 | AQ19: 11048.34 | AR19: 11073.045 | AS19: 11743.634 | AT19: 10934.771 | AU19: 11386.861 | AV19: 11939.681 | AW19: 12382.943 | AX19: 12858.574 | AY19: 13466.399 | AZ19: 12265.461 | BA19: 12065.963 | BB19: 11587.73 | BC19: 11675.844 | BD19: 11945.08 | BE19: 12785.071 | BF19: 11534.761 | BG19: 11819.752 | BH19: 11663.625 | BI19: 11974.652 | BJ19: 12946.662 | BK19: 13831.879 | BL19: 11863.992 | BM19: 13066.032 | BN19: 11607.471 | BO19: 12152.262 | BP19: 12204.221 | BQ19: 12851.4 | BR19: 11855.101 | BS19: 12021.493 | BT19: 12106.901 | BU19: 12398.128 | BV19: 13367.204 | BW19: 14632.869 | BX19: 13945.298 | BY19: 13471.495 | BZ19: 11789.805 | CA19: 12359.221 | CB19: 12561.457 | CC19: 13248.593 | CD19: 11954.5 | CE19: 12277.069 | CF19: 13045.433 | CG19: 13347.524 | CH19: 14037.838 | CI19: 15527.942 | CJ19: 12746.785 | CK19: 13176.474 | CL19: 13369.68 | CM19: 13595.045 | CN19: 13407.128 | CO19: 14362.291 | CP19: 13603.636 | CQ19: 13935.167 | CR19: 13886.026 | CS19: 14129.524 | CT19: 15455.874 | CU19: 15109.875 | CV19: 13490.18 | CW19: 14087.417 | CX19: 13538.297 | CY19: 13540.958 | CZ19: 13971.812 | DA19: 15202.645 | DB19: 13813.061 | DC19: 14383.621 | DD19: 14269.794 | DE19: 14631.217 | DF19: 16198.317 | DG19: 16393.576 | DH19: 14943.592 | DI19: 15171.591 | DJ19: 13533.998 | DK19: 14228.531 | DL19: 14665.97 | DM19: 15959.913 | DN19: 14400.724 | DO19: 15119.388 | DP19: 15000.137 | DQ19: 15946.373 | DR19: 16895.771 | DS19: 18017.434 | DT19: 15585.12 | DU19: 16304.346 | DV19: 15194.267 | DW19: 15498.644 | DX19: 16248.064 | DY19: 16637.701 | DZ19: 15672.647 | EA19: 15915.037 | EB19: 15880.278 | EC19: 16856.034 | ED19: 17647.404 | EE19: 18866.727 | EF19: 16777.413 | EG19: 17710.691 | EH19: 15284.262 | EI19: 16326.837 | EJ19: 16839.431 | EK19: 17514.252 | EL19: 16757.473 | EM19: 16576.55 | EN19: 16954.269 | EO19: 17739.712 | EP19: 18941.038 | EQ19: 19462.333 | ER19: 16854.197 | ES19: 17381.064 | ET19: 16757.015 | EU19: 17493.512 | EV19: 17815.729 | EW19: 18588.49 | EX19: 16916.016 | EY19: 17135.423 | EZ19: 17907.848 | FA19: 17931.371 | FB19: 18946.023 | FC19: 20760.522 | FD19: 19099.053 | FE19: 18638.847 | FF19: 17263.099 | FG19: 17888.825 | FH19: 18917.374 | FI19: 20237.305 | FJ19: 19058.73 | FK19: 18462.04 | FL19: 19062.332 | FM19: 19229.073 | FN19: 20636.55 | FO19: 21054.75 | FP19: 20055.497 | FQ19: 21160.099 | FR19: 19211.658 | FS19: 19216.088 | FT19: 20130.01 | FU19: 21300.503 | FV19: 19825.389 | FW19: 19739.351 | FX19: 19876.998 | FY19: 20615.838 | FZ19: 21424.022 | GA19: 22692.537 | GB19: 21115.352 | GC19: 21470.211 | GD19: 19432.025 | GE19: 19670.705 | GF19: 20959.041 | GG19: 22200.638 | GH19: 20168.889 | GI19: 20510.815 | GJ19: 20377.225 | GK19: 21805.76 | GL19: 23481.207 | GM19: 24399.52 | GN19: 22365.762 | GO19: 23141.828 | GP19: 18945.897 | GQ19: 20667.129 | GR19: 21482.522 | GS19: 23929.236 | GT19: 20940.143 | GU19: 21636.496 | GV19: 21226.624 | GW19: 21411.328 | GX19: 23455.365 | GY19: 24436.344 | GZ19: 21814.577 | HA19: 23193.162 | HB19: 20815.392 | HC19: 21756.008 | HD19: 21659.672 | HE19: 23475.06 | HF19: 21797.81 | HG19: 22091.448 | HH19: 22685.047 | HI19: 23948.772 | HJ19: 24945.221 | HK19: 25320.773 | HL19: 23621.496 | HM19: 23913.153 | HN19: 23007.167 | HO19: 21918.264 | HP19: 22418.225 | HQ19: 24401.398 | HR19: 22716.502 | HS19: 22244.034 | HT19: 22523.435 | HU19: 23406.497 | HV19: 24556.807 | HW19: 25160.519 | HX19: 21751.801 | HY19: 21400.016 | HZ19: 20032.678 | IA19: 20326.695 | IB19: 21533.944 | IC19: 23610.472 | ID19: 22211.13 | IE19: 21366.215 | IF19: 21550.293 | IG19: 21938.98 | IH19: 23657.672 | II19: 24812.23695 | IJ19: 22971.82612 | IK19: 23920.34355 | IL19: 20967.04865 | IM19: 21245.38048 | IN19: 21489.92774 | IO19: 24344.8541 | IP19: 22445.84958 | IQ19: 21899.86731 | IR19: 22140.17422 | IS19: 22927.36264 | IT19: 24152.54039 | IU19: 24653.78866 | IV19: 22005.90832 | IW19: 23847.43289 | IX19: 20561.82017 | IY19: 20663.46601 | IZ19: 21279.39394 | JA19: 22559.84842 | JB19: 21904.95525 | JC19: 21692.65613 | JD19: 20974.67522 | JE19: 21491.0814 | JF19: 22698.63713 | JG19: 24039.4124 | JH19: 24778.42948 | JI19: 22685.00347 | JJ19: 21269.13165 | JK19: 21482.38614 | JL19: 21703.12775 | JM19: 22587.92414 | JN19: 22503.39933 | JO19: 21351.84346 | JP19: 21633.82456 | JQ19: 21501.22141 | JR19: 23019.11363 | JS19: 23693.21153 | JT19: 21816.12425 | JU19: 22701.8419 | JV19: 20827.73353 | JW19: 20075.23706 | JX19: 19966.59148 | JY19: 23081.03383 | JZ19: 21495.95516 | KA19: 20809.23561 | KB19: 20842.55353 | KC19: 21764.9782 | KD19: 22802.24655 | KE19: 22948.867 | KF19: 21544.77937 | KG19: 21725.62202 | KH19: 20018.94002 | KI19: 20230.71296 | KJ19: 20295.83584 | KK19: 21969.41563 | KL19: 20763.73846 | KM19: 20936.0151 | KN19: 20477.59087 | KO19: 20159.82074 | KP19: 22193.2659 | KQ19: 23487.12243 | KR19: 22170.70014 | KS19: 22115.9879 | KT19: 19604.70521 | KU19: 20096.07056 | KV19: 20620.71465 | KW19: 23978.96815 | KX19: 21585.93638 | KY19: 20078.48829 | KZ19: 19758.51804 | LA19: 19905.72529 | LB19: 20548.29752 | LC19: 21603.03503 | LD19: 20641.855 | LE19: 21955.91439 | LF19: 20680.39602 | LG19: 19508.67319 | LH19: 19468.89808 | LI19: 21570.80723 | LJ19: 20704.7714 | LK19: 19919.09141 | LL19: 20572.3105 | LM19: 20684.21331 | LN19: 20790.04978 | LO19: 24141.13248 | LP19: 19965.74472 | LQ19: 20042.47643 | LR19: 18321.73302 | LS19: 19064.16988 | LT19: 20858.35087 | LU19: 21468.99567 | LV19: 20312.96363 | LW19: 19032.47743 | LX19: 20193.03891 | LY19: 21583.33188 | LZ19: 23137.8362 | MA19: 21726.83075 | MB19: 20769.66722 | MC19: 23141.78179 | MD19: 19662.72448 | ME19: 19004.74485 | MF19: 18651.51361 | MG19: 20491.45804 | MH19: 20948.84094 | MI19: 19717.37178 | MJ19: - | MK19: - | ML19: -
B20: Consumos en bombeo | C20: -230.679 | D20: -122.288 | E20: -14.289 | F20: -28.145 | G20: -43.486 | H20: -13.114 | I20: -22.104 | J20: -49.978 | K20: -160.713 | L20: -155.501 | M20: -44.507 | N20: -154.468 | O20: -268.908 | P20: -218.383 | Q20: -171.686 | R20: -12.201 | S20: -15.629 | T20: -41.384 | U20: -57.712 | V20: -72.09 | W20: -112.773 | X20: -80.879 | Y20: -188.527 | Z20: -192.561 | AA20: -261.992 | AB20: -144.315 | AC20: -170.44 | AD20: -297.593 | AE20: -198.615 | AF20: -246.854 | AG20: -277.393 | AH20: -274.778 | AI20: -274.414 | AJ20: -292.157 | AK20: -181.749 | AL20: -170.405 | AM20: -138.741 | AN20: -112.689 | AO20: -188.994 | AP20: -202.544 | AQ20: -227.069 | AR20: -134.422 | AS20: -139.846 | AT20: -190.283 | AU20: -202.364 | AV20: -190.647 | AW20: -85.039 | AX20: -74.921 | AY20: -304.076 | AZ20: -125.633 | BA20: -16.009 | BB20: -34.589 | BC20: -53.005 | BD20: -40 | BE20: -112.842 | BF20: -29.006 | BG20: -168.634 | BH20: -188.043 | BI20: -112.602 | BJ20: -160.95 | BK20: -229.933 | BL20: -151.828 | BM20: -149.914 | BN20: -139.099 | BO20: -126.803 | BP20: -126.251 | BQ20: -163.945 | BR20: -157.261 | BS20: -174.299 | BT20: -178.249 | BU20: -166.69 | BV20: -317.454 | BW20: -761.345 | BX20: -190.414 | BY20: -30.027 | BZ20: -33.853 | CA20: -44.028 | CB20: -72.871 | CC20: -66.354 | CD20: -12.074 | CE20: -23.203 | CF20: -39.189 | CG20: -69.679 | CH20: -179.581 | CI20: -252.936 | CJ20: -37.278 | CK20: -12.262 | CL20: -21.497 | CM20: -81.886 | CN20: -85.457 | CO20: -118.164 | CP20: -176.339 | CQ20: -190.051 | CR20: -144.696 | CS20: -266.061 | CT20: -374.262 | CU20: -277.155 | CV20: -134.838 | CW20: -111.211 | CX20: -214.861 | CY20: -181.761 | CZ20: -114.558 | DA20: -203.373 | DB20: -319.925 | DC20: -193.376 | DD20: -171.723 | DE20: -213.786 | DF20: -451.187 | DG20: -468.772 | DH20: -342.761 | DI20: -234.381 | DJ20: -215.759 | DK20: -219.826 | DL20: -177.636 | DM20: -214.518 | DN20: -260.838 | DO20: -340.931 | DP20: -489.764 | DQ20: -316.026 | DR20: -385.168 | DS20: -368.592 | DT20: -313.254 | DU20: -345.672 | DV20: -513.572 | DW20: -617.926 | DX20: -330.215 | DY20: -323.442 | DZ20: -246.341 | EA20: -256.832 | EB20: -362.529 | EC20: -451.677 | ED20: -776.834 | EE20: -539.073 | EF20: -307.359 | EG20: -387.497 | EH20: -200.959 | EI20: -214.621 | EJ20: -258.663 | EK20: -303.011 | EL20: -291.532 | EM20: -368.749 | EN20: -364.099 | EO20: -336.146 | EP20: -559.555 | EQ20: -652.852 | ER20: -506.242 | ES20: -466.289 | ET20: -443.393 | EU20: -559.457 | EV20: -628.458 | EW20: -699.813 | EX20: -572.272 | EY20: -597.974 | EZ20: -575.567 | FA20: -570.422 | FB20: -683.943 | FC20: -587.335 | FD20: -379.733 | FE20: -368.65 | FF20: -218.7 | FG20: -265.991 | FH20: -415.715 | FI20: -419.844 | FJ20: -472.319 | FK20: -437.025 | FL20: -390.301 | FM20: -322.124 | FN20: -400.397 | FO20: -404.817 | FP20: -276.12 | FQ20: -339.003 | FR20: -328.995 | FS20: -393.378 | FT20: -425.607 | FU20: -408.312 | FV20: -386.442 | FW20: -387.786 | FX20: -411.484 | FY20: -358.575 | FZ20: -484.188 | GA20: -553.09 | GB20: -432.938 | GC20: -492.587 | GD20: -450.62 | GE20: -643.068 | GF20: -634.527 | GG20: -693.313 | GH20: -446.08 | GI20: -519.718 | GJ20: -482.776 | GK20: -454.591 | GL20: -553.639 | GM20: -586.441 | GN20: -529.919 | GO20: -374.921 | GP20: -305.801 | GQ20: -313.703 | GR20: -370.081 | GS20: -513.356 | GT20: -400.354 | GU20: -486.573 | GV20: -541.523 | GW20: -541.572 | GX20: -384.129 | GY20: -371.776 | GZ20: -395.879 | HA20: -384.168 | HB20: -293.397 | HC20: -397.622 | HD20: -356.254 | HE20: -333.521 | HF20: -371.382 | HG20: -345.925 | HH20: -317.001 | HI20: -384.155 | HJ20: -481.207 | HK20: -430.836 | HL20: -419.305 | HM20: -401.794 | HN20: -219.058 | HO20: -206.073 | HP20: -285.255 | HQ20: -253.782 | HR20: -190.802 | HS20: -226.556 | HT20: -297.145 | HU20: -411.256 | HV20: -460.64 | HW20: -492.227 | HX20: -392.035 | HY20: -281.472 | HZ20: -255.759 | IA20: -247.498 | IB20: -224.594 | IC20: -241.018 | ID20: -245.006 | IE20: -254.493 | IF20: -284.123 | IG20: -397.501 | IH20: -478.463 | II20: -756.585481 | IJ20: -554.722222 | IK20: -544.664418 | IL20: -303.160599 | IM20: -279.949192 | IN20: -230.155124 | IO20: -199.16813 | IP20: -231.143955 | IQ20: -233.695669 | IR20: -346.115985 | IS20: -322.223669 | IT20: -456.198133 | IU20: -433.1102475 | IV20: -283.7415255 | IW20: -349.3009769 | IX20: -300.0476159 | IY20: -160.6498008 | IZ20: -141.7813222 | JA20: -175.847837 | JB20: -183.3806715 | JC20: -178.1124562 | JD20: -303.857385 | JE20: -327.1725404 | JF20: -404.4914377 | JG20: -451.8272217 | JH20: -450.4468483 | JI20: -434.6151017 | JJ20: -569.2879136 | JK20: -362.2329329 | JL20: -324.5038034 | JM20: -288.75519 | JN20: -368.9457371 | JO20: -457.4628681 | JP20: -398.687897 | JQ20: -405.0262385 | JR20: -547.3392473 | JS20: -699.7514834 | JT20: -564.5684652 | JU20: -1023.591614 | JV20: -874.0791592 | JW20: -454.167332 | JX20: -388.9454405 | JY20: -259.7379937 | JZ20: -234.3071486 | KA20: -214.3471291 | KB20: -306.952372 | KC20: -350.9262456 | KD20: -584.4017084 | KE20: -859.9946723 | KF20: -629.0472046 | KG20: -527.5222651 | KH20: -512.7715484 | KI20: -436.9803967 | KJ20: -326.9637776 | KK20: -276.14044 | KL20: -220.3755466 | KM20: -218.0815178 | KN20: -410.464348 | KO20: -519.9136806 | KP20: -447.5134619 | KQ20: -482.1012377 | KR20: -545.6212122 | KS20: -480.7403517 | KT20: -406.669959 | KU20: -371.1852916 | KV20: -155.1187746 | KW20: -168.7042007 | KX20: -303.4580201 | KY20: -246.4010913 | KZ20: -375.058305 | LA20: -439.2249663 | LB20: -537.9680205 | LC20: -897.520004 | LD20: -716.5785192 | LE20: -590.2720685 | LF20: -584.3782799 | LG20: -474.9324937 | LH20: -211.0382154 | LI20: -141.9074278 | LJ20: -161.3246498 | LK20: -122.898689 | LL20: -230.009152 | LM20: -353.5994714 | LN20: -343.126097 | LO20: -434.6042667 | LP20: -482.9998812 | LQ20: -334.4702822 | LR20: -342.5347127 | LS20: -229.2222938 | LT20: -192.691575 | LU20: -174.032812 | LV20: -204.91962 | LW20: -164.388731 | LX20: -222.160927 | LY20: -270.174164 | LZ20: -555.381722 | MA20: -391.478352 | MB20: -253.861089 | MC20: -733.496424 | MD20: -560.0684122 | ME20: -213.2435446 | MF20: -83.65209087 | MG20: -57.94025794 | MH20: -68.90229615 | MI20: -80.573028 | MJ20: - | MK20: - | ML20: -
B21: Enlace Península-Baleares | C21: - | D21: - | E21: - | F21: - | G21: - | H21: - | I21: - | J21: - | K21: - | L21: - | M21: - | N21: - | O21: - | P21: - | Q21: - | R21: - | S21: - | T21: - | U21: - | V21: - | W21: - | X21: - | Y21: - | Z21: - | AA21: - | AB21: - | AC21: - | AD21: - | AE21: - | AF21: - | AG21: - | AH21: - | AI21: - | AJ21: - | AK21: - | AL21: - | AM21: - | AN21: - | AO21: - | AP21: - | AQ21: - | AR21: - | AS21: - | AT21: - | AU21: - | AV21: - | AW21: - | AX21: - | AY21: - | AZ21: - | BA21: - | BB21: - | BC21: - | BD21: - | BE21: - | BF21: - | BG21: - | BH21: - | BI21: - | BJ21: - | BK21: - | BL21: - | BM21: - | BN21: - | BO21: - | BP21: - | BQ21: - | BR21: - | BS21: - | BT21: - | BU21: - | BV21: - | BW21: - | BX21: - | BY21: - | BZ21: - | CA21: - | CB21: - | CC21: - | CD21: - | CE21: - | CF21: - | CG21: - | CH21: - | CI21: - | CJ21: - | CK21: - | CL21: - | CM21: - | CN21: - | CO21: - | CP21: - | CQ21: - | CR21: - | CS21: - | CT21: - | CU21: - | CV21: - | CW21: - | CX21: - | CY21: - | CZ21: - | DA21: - | DB21: - | DC21: - | DD21: - | DE21: - | DF21: - | DG21: - | DH21: - | DI21: - | DJ21: - | DK21: - | DL21: - | DM21: - | DN21: - | DO21: - | DP21: - | DQ21: - | DR21: - | DS21: - | DT21: - | DU21: - | DV21: - | DW21: - | DX21: - | DY21: - | DZ21: - | EA21: - | EB21: - | EC21: - | ED21: - | EE21: - | EF21: - | EG21: - | EH21: - | EI21: - | EJ21: - | EK21: - | EL21: - | EM21: - | EN21: - | EO21: - | EP21: - | EQ21: - | ER21: - | ES21: - | ET21: - | EU21: - | EV21: - | EW21: - | EX21: - | EY21: - | EZ21: - | FA21: - | FB21: - | FC21: - | FD21: - | FE21: - | FF21: - | FG21: - | FH21: - | FI21: - | FJ21: - | FK21: - | FL21: - | FM21: - | FN21: - | FO21: - | FP21: - | FQ21: - | FR21: - | FS21: - | FT21: - | FU21: - | FV21: - | FW21: - | FX21: - | FY21: - | FZ21: - | GA21: - | GB21: - | GC21: - | GD21: - | GE21: - | GF21: - | GG21: - | GH21: - | GI21: - | GJ21: - | GK21: - | GL21: - | GM21: - | GN21: - | GO21: - | GP21: - | GQ21: - | GR21: - | GS21: - | GT21: - | GU21: - | GV21: - | GW21: - | GX21: - | GY21: - | GZ21: - | HA21: - | HB21: - | HC21: - | HD21: - | HE21: - | HF21: - | HG21: - | HH21: - | HI21: - | HJ21: - | HK21: - | HL21: - | HM21: - | HN21: - | HO21: - | HP21: - | HQ21: - | HR21: - | HS21: - | HT21: - | HU21: - | HV21: - | HW21: - | HX21: - | HY21: - | HZ21: - | IA21: - | IB21: - | IC21: - | ID21: - | IE21: - | IF21: - | IG21: - | IH21: - | II21: 0 | IJ21: 0 | IK21: 0 | IL21: 0 | IM21: 0 | IN21: 0 | IO21: 0 | IP21: 0 | IQ21: 0 | IR21: 0 | IS21: 0 | IT21: 0 | IU21: 0 | IV21: 0 | IW21: 0 | IX21: 0 | IY21: 0 | IZ21: 0 | JA21: 0 | JB21: 0 | JC21: 0 | JD21: 0 | JE21: -0.000648 | JF21: -0.662601 | JG21: -2.996827 | JH21: -25.378618 | JI21: -36.698443 | JJ21: -35.662767 | JK21: -31.625769 | JL21: -35.803857 | JM21: -36.381227 | JN21: -68.014382 | JO21: -74.016633 | JP21: -70.299274 | JQ21: -67.437619 | JR21: -91.247602 | JS21: -108.822873 | JT21: -90.838239 | JU21: -84.296937 | JV21: -88.234445 | JW21: -83.693952 | JX21: -112.811098 | JY21: -145.595967 | JZ21: -157.387881 | KA21: -113.878526 | KB21: -108.856743 | KC21: -86.13635 | KD21: -87.955589 | KE21: -98.644522 | KF21: -86.919696 | KG21: -88.249651 | KH21: -80.404574 | KI21: -85.669402 | KJ21: -124.876598 | KK21: -153.192168 | KL21: -165.071866 | KM21: -146.829629 | KN21: -101.05858 | KO21: -79.551937 | KP21: -87.790311 | KQ21: -110.897596 | KR21: -111.884631 | KS21: -100.736395 | KT21: -87.606187 | KU21: -65.670472 | KV21: -123.291288 | KW21: -181.060099 | KX21: -170.384126 | KY21: -119.558215 | KZ21: -99.377005 | LA21: -71.777664 | LB21: -93.548866 | LC21: -89.213443 | LD21: -91.217189 | LE21: -111.467448 | LF21: -86.955768 | LG21: -105.354345 | LH21: -124.743759 | LI21: -144.841694 | LJ21: -152.53868 | LK21: -109.260447 | LL21: -90.883771 | LM21: -58.978757 | LN21: -85.128667 | LO21: -96.651403 | LP21: -64.562012 | LQ21: -78.352012 | LR21: -57.072946 | LS21: -75.027427 | LT21: -114.233415 | LU21: -155.211459 | LV21: -166.876245 | LW21: -116.104623 | LX21: -93.286301 | LY21: -70.161934 | LZ21: -91.766865 | MA21: -86.203829 | MB21: -99.993399 | MC21: -89.996875 | MD21: -66.46752 | ME21: -89.565091 | MF21: -108.623635 | MG21: -161.791603 | MH21: -153.133589 | MI21: -107.931268 | MJ21: - | MK21: - | ML21: -
B22: Saldo intercambios internacionales | C22: -269.297 | D22: 16.551 | E22: -11.987 | F22: -20.997 | G22: 159.398 | H22: 0.442 | I22: -28.161 | J22: -32.036 | K22: 14.863 | L22: -21.733 | M22: -139.47 | N22: -87.152 | O22: -24.533 | P22: 22.889 | Q22: -122.07 | R22: -226.919 | S22: -191.566 | T22: -45.839 | U22: -92.112 | V22: 27.849 | W22: -99.836 | X22: -14.272 | Y22: 56.174 | Z22: 33.649 | AA22: -96.052 | AB22: -312.209 | AC22: -213.216 | AD22: 188.663 | AE22: 271.98 | AF22: 371.259 | AG22: 87.992 | AH22: 216.896 | AI22: 131.307 | AJ22: -16.239 | AK22: 8.023 | AL22: 2.72 | AM22: 95.905 | AN22: 222.438 | AO22: 184.267 | AP22: 48.24 | AQ22: 224.115 | AR22: 217.795 | AS22: 282.58 | AT22: 18.098 | AU22: -4.785 | AV22: -0.854 | AW22: -0.365 | AX22: -20.362 | AY22: -20.455 | AZ22: 19.067 | BA22: 44.103 | BB22: 42.116 | BC22: 71.338 | BD22: 56.383 | BE22: 128.051 | BF22: 134.206 | BG22: 271.501 | BH22: 383.184 | BI22: 371.482 | BJ22: 354.129 | BK22: 382.278 | BL22: 376.395 | BM22: 379.125 | BN22: 353.886 | BO22: 378.616 | BP22: 369.635 | BQ22: 406.479 | BR22: 389.687 | BS22: 389.569 | BT22: 434.896 | BU22: 380.024 | BV22: 248.455 | BW22: -23.15 | BX22: -228.839 | BY22: 95.809 | BZ22: 234.45 | CA22: 175.223 | CB22: 297.359 | CC22: 337.605 | CD22: 288.542 | CE22: 53.531 | CF22: -123.297 | CG22: -16.169 | CH22: -31.698 | CI22: -483.959 | CJ22: -204.565 | CK22: -220.011 | CL22: -410.142 | CM22: -439.194 | CN22: -268.21 | CO22: -397.761 | CP22: -455.005 | CQ22: -103.389 | CR22: 13.219 | CS22: 65.416 | CT22: -169.271 | CU22: 339.841 | CV22: 345.961 | CW22: 404.92 | CX22: 388.819 | CY22: 355.114 | CZ22: 244.862 | DA22: 284.57 | DB22: 320.095 | DC22: -25.49 | DD22: 206.148 | DE22: 283.522 | DF22: 253.502 | DG22: 244.117 | DH22: 366.794 | DI22: 462.856 | DJ22: 712.678 | DK22: 628.458 | DL22: 570.858 | DM22: 515.622 | DN22: 504.84 | DO22: 210.995 | DP22: 438.75 | DQ22: 625.315 | DR22: 437.962 | DS22: 196.386 | DT22: 415.9 | DU22: 422.249 | DV22: 519.17 | DW22: 683.538 | DX22: 173.875 | DY22: 258.827 | DZ22: 208.528 | EA22: 340.728 | EB22: 443.806 | EC22: 516.198 | ED22: 261.39 | EE22: -38.209 | EF22: 21.673 | EG22: -83.964 | EH22: 447.062 | EI22: 578.603 | EJ22: 504.504 | EK22: 431.037 | EL22: 282.045 | EM22: 283.086 | EN22: 139.702 | EO22: 402.852 | EP22: 489.569 | EQ22: 532.016 | ER22: 648.786 | ES22: 721.604 | ET22: 705.349 | EU22: 259.038 | EV22: 187.01 | EW22: 575.936 | EX22: 236.118 | EY22: 428.063 | EZ22: 298.139 | FA22: 490.714 | FB22: 245.995 | FC22: 26.416 | FD22: 50.988 | FE22: 247.018 | FF22: -36.927 | FG22: 134.057 | FH22: 409.345 | FI22: 237.348 | FJ22: 123.487 | FK22: 160.179 | FL22: 55.116 | FM22: -24.058 | FN22: -119.067 | FO22: -318.326 | FP22: -299.787 | FQ22: -234.032 | FR22: -621.22 | FS22: -303.664 | FT22: -321.336 | FU22: -241.462 | FV22: -454.689 | FW22: -53.952 | FX22: -330.99 | FY22: -45.66 | FZ22: 198.1 | GA22: 295.549 | GB22: 299.658 | GC22: 51.223 | GD22: 68.78 | GE22: 176.042 | GF22: 176.29 | GG22: 31.582 | GH22: -174.634 | GI22: -495.369 | GJ22: -662.588 | GK22: -689.605 | GL22: -420.322 | GM22: -365.174 | GN22: -583.775 | GO22: -799.06 | GP22: 41.878 | GQ22: 18.828 | GR22: -262.107 | GS22: -377.879 | GT22: 63.245 | GU22: -310.535 | GV22: -236.933 | GW22: -285.297 | GX22: -175.709 | GY22: 94.565 | GZ22: -235.492 | HA22: -243.362 | HB22: -261.054 | HC22: -494.788 | HD22: -223.463 | HE22: -289.778 | HF22: -314.014 | HG22: -846.576 | HH22: -1153.772 | HI22: -1052.93 | HJ22: -729.801 | HK22: -456.804 | HL22: -655.587 | HM22: -1199.348 | HN22: -1291.615 | HO22: -761.275 | HP22: -1052.342 | HQ22: -907.813 | HR22: -796.073 | HS22: -935.81 | HT22: -1102.016 | HU22: -948.447 | HV22: -932.456 | HW22: -897.628 | HX22: -474.277 | HY22: -192.952 | HZ22: -548.934 | IA22: -437.376 | IB22: -769.161 | IC22: -944.909 | ID22: -817.417 | IE22: -711.168 | IF22: -941.365 | IG22: -897.212 | IH22: -454.015 | II22: -304.713446 | IJ22: -506.196753 | IK22: -560.114046 | IL22: -729.095102 | IM22: -542.815029 | IN22: -821.225751 | IO22: -1000.653567 | IP22: -758.601057 | IQ22: -964.255452 | IR22: -1295.509887 | IS22: -593.210574 | IT22: -256.288394 | IU22: -611.335805 | IV22: -358.842359 | IW22: -762.636009 | IX22: -1074.811317 | IY22: -233.6238 | IZ22: -404.767187 | JA22: -470.93457 | JB22: -197.100881 | JC22: -548.756858 | JD22: -381.584261 | JE22: -579.516633 | JF22: -466.216654 | JG22: -525.290936 | JH22: -1375.793221 | JI22: -869.96907 | JJ22: -1211.919782 | JK22: -939.840381 | JL22: -625.329352 | JM22: -629.525456 | JN22: -646.209749 | JO22: -1047.302604 | JP22: -1457.208903 | JQ22: -791.406931 | JR22: -1080.157206 | JS22: -364.452211 | JT22: -642.393978 | JU22: -430.417258 | JV22: -411.182201 | JW22: -132.055593 | JX22: -358.69515 | JY22: -1060.431631 | JZ22: -517.674522 | KA22: -821.873088 | KB22: -679.119191 | KC22: -892.911319 | KD22: -420.926308 | KE22: 28.099829 | KF22: -490.540624 | KG22: -225.946703 | KH22: -652.232276 | KI22: -256.411483 | KJ22: -285.581113 | KK22: -481.720248 | KL22: -236.69277 | KM22: -336.25484 | KN22: -303.548856 | KO22: 195.372657 | KP22: -360.667597 | KQ22: -259.102957 | KR22: -558.855046 | KS22: -396.756779 | KT22: -295.550736 | KU22: 180.77279 | KV22: 0.889155 | KW22: -184.17543 | KX22: -251.793361 | KY22: -169.940833 | KZ22: 436.527932 | LA22: 453.107913 | LB22: 911.714189 | LC22: 847.590265 | LD22: 960.575773 | LE22: 174.926621 | LF22: -106.684112 | LG22: 762.502365 | LH22: 1083.269212 | LI22: 917.731142 | LJ22: 1034.656114 | LK22: 1121.321048 | LL22: -433.778126 | LM22: 357.211215 | LN22: 938.722174 | LO22: -531.549298 | LP22: 541.13476 | LQ22: 1457.080766 | LR22: 1040.955944 | LS22: 1444.989565 | LT22: 1128.875684 | LU22: 1273.443396 | LV22: 1827.91674 | LW22: 1393.309341 | LX22: 282.979618 | LY22: -350.214877 | LZ22: -339.928116 | MA22: 1340.298263 | MB22: 857.102993 | MC22: -273.622032 | MD22: 882.598526 | ME22: 1368.360937 | MF22: 1863.9643 | MG22: 1893.727091 | MH22: 1244.022075 | MI22: 1124.462151 | MJ22: - | MK22: - | ML22: -
B23: Demanda transporte (b.c.) | C23: 12568.173 | D23: 10606.684 | E23: 11500.654 | F23: 10528.6 | G23: 10700.869 | H23: 10911.449 | I23: 11525.924 | J23: 10123.628 | K23: 10799.337 | L23: 10940.46 | M23: 11602.256 | N23: 12751.464 | O23: 13221.258 | P23: 12104.61 | Q23: 11461.919 | R23: 11048.385 | S23: 11232.121 | T23: 10918.467 | U23: 11835.945 | V23: 10459.177 | W23: 11266.763 | X23: 11698.816 | Y23: 12056.953 | Z23: 12469.99 | AA23: 13798.636 | AB23: 12527.571 | AC23: 12266.982 | AD23: 11180.001 | AE23: 11221.762 | AF23: 10764.077 | AG23: 12007.581 | AH23: 10674.854 | AI23: 11316.847 | AJ23: 11565.285 | AK23: 11522.732 | AL23: 12194.611 | AM23: 13097.569 | AN23: 11923.505 | AO23: 12461.084 | AP23: 10884.726 | AQ23: 11045.386 | AR23: 11156.418 | AS23: 11886.368 | AT23: 10762.586 | AU23: 11179.712 | AV23: 11748.18 | AW23: 12297.539 | AX23: 12763.291 | AY23: 13141.868 | AZ23: 12158.895 | BA23: 12094.057 | BB23: 11595.257 | BC23: 11694.177 | BD23: 11961.463 | BE23: 12800.28 | BF23: 11639.961 | BG23: 11922.619 | BH23: 11858.766 | BI23: 12233.532 | BJ23: 13139.841 | BK23: 13984.224 | BL23: 12088.559 | BM23: 13295.243 | BN23: 11822.258 | BO23: 12404.075 | BP23: 12447.605 | BQ23: 13093.934 | BR23: 12087.527 | BS23: 12236.763 | BT23: 12363.548 | BU23: 12611.462 | BV23: 13298.205 | BW23: 13848.374 | BX23: 13526.045 | BY23: 13537.277 | BZ23: 11990.402 | CA23: 12490.416 | CB23: 12785.945 | CC23: 13519.844 | CD23: 12230.968 | CE23: 12307.397 | CF23: 12882.947 | CG23: 13261.676 | CH23: 13826.559 | CI23: 14791.047 | CJ23: 12504.942 | CK23: 12944.201 | CL23: 12938.041 | CM23: 13073.965 | CN23: 13053.461 | CO23: 13846.366 | CP23: 12972.292 | CQ23: 13641.727 | CR23: 13754.549 | CS23: 13928.879 | CT23: 14912.341 | CU23: 15172.561 | CV23: 13701.303 | CW23: 14381.126 | CX23: 13712.255 | CY23: 13714.311 | CZ23: 14102.116 | DA23: 15283.842 | DB23: 13813.231 | DC23: 14164.755 | DD23: 14304.219 | DE23: 14700.953 | DF23: 16000.632 | DG23: 16168.921 | DH23: 14967.625 | DI23: 15400.066 | DJ23: 14030.917 | DK23: 14637.163 | DL23: 15059.192 | DM23: 16261.017 | DN23: 14644.726 | DO23: 14989.452 | DP23: 14949.123 | DQ23: 16255.662 | DR23: 16948.565 | DS23: 17845.228 | DT23: 15687.766 | DU23: 16380.923 | DV23: 15199.865 | DW23: 15564.256 | DX23: 16091.724 | DY23: 16573.086 | DZ23: 15634.834 | EA23: 15998.933 | EB23: 15961.555 | EC23: 16920.555 | ED23: 17131.96 | EE23: 18289.445 | EF23: 16491.727 | EG23: 17239.23 | EH23: 15530.365 | EI23: 16690.819 | EJ23: 17085.272 | EK23: 17642.278 | EL23: 16747.986 | EM23: 16490.887 | EN23: 16729.872 | EO23: 17806.418 | EP23: 18871.052 | EQ23: 19341.497 | ER23: 16996.741 | ES23: 17636.379 | ET23: 17018.971 | EU23: 17193.093 | EV23: 17374.281 | EW23: 18464.613 | EX23: 16579.862 | EY23: 16965.512 | EZ23: 17630.42 | FA23: 17851.663 | FB23: 18508.075 | FC23: 20199.603 | FD23: 18770.308 | FE23: 18517.215 | FF23: 17007.472 | FG23: 17756.891 | FH23: 18911.004 | FI23: 20054.809 | FJ23: 18709.898 | FK23: 18185.194 | FL23: 18727.147 | FM23: 18882.891 | FN23: 20117.086 | FO23: 20331.607 | FP23: 19479.59 | FQ23: 20587.064 | FR23: 18261.443 | FS23: 18519.046 | FT23: 19383.067 | FU23: 20650.729 | FV23: 18984.258 | FW23: 19297.613 | FX23: 19134.524 | FY23: 20211.603 | FZ23: 21137.934 | GA23: 22434.996 | GB23: 20982.072 | GC23: 21028.847 | GD23: 19050.185 | GE23: 19203.679 | GF23: 20500.804 | GG23: 21538.907 | GH23: 19548.175 | GI23: 19495.728 | GJ23: 19231.861 | GK23: 20661.564 | GL23: 22507.246 | GM23: 23447.905 | GN23: 21252.068 | GO23: 21967.847 | GP23: 18681.974 | GQ23: 20372.254 | GR23: 20850.334 | GS23: 23038.001 | GT23: 20603.034 | GU23: 20839.388 | GV23: 20448.168 | GW23: 20584.459 | GX23: 22895.527 | GY23: 24159.133 | GZ23: 21183.206 | HA23: 22565.632 | HB23: 20260.941 | HC23: 20863.598 | HD23: 21079.955 | HE23: 22851.761 | HF23: 21112.414 | HG23: 20898.947 | HH23: 21214.274 | HI23: 22511.687 | HJ23: 23734.213 | HK23: 24433.133 | HL23: 22546.604 | HM23: 22312.011 | HN23: 21496.494 | HO23: 20950.916 | HP23: 21080.628 | HQ23: 23239.803 | HR23: 21729.627 | HS23: 21081.668 | HT23: 21124.274 | HU23: 22046.794 | HV23: 23163.711 | HW23: 23770.664 | HX23: 20885.489 | HY23: 20925.592 | HZ23: 19227.985 | IA23: 19641.821 | IB23: 20540.189 | IC23: 22424.545 | ID23: 21148.707 | IE23: 20400.554 | IF23: 20324.805 | IG23: 20644.267 | IH23: 22725.194 | II23: 23750.93802 | IJ23: 21910.90714 | IK23: 22815.56508 | IL23: 19934.79295 | IM23: 20422.61626 | IN23: 20438.54686 | IO23: 23145.0324 | IP23: 21456.10457 | IQ23: 20701.91619 | IR23: 20498.54835 | IS23: 22011.92839 | IT23: 23440.05386 | IU23: 23609.3426 | IV23: 21363.32443 | IW23: 22735.49591 | IX23: 19186.96124 | IY23: 20269.19241 | IZ23: 20732.84543 | JA23: 21913.06601 | JB23: 21524.4737 | JC23: 20965.78682 | JD23: 20289.23357 | JE23: 20584.39158 | JF23: 21827.26644 | JG23: 23059.29741 | JH23: 22926.81079 | JI23: 21343.72085 | JJ23: 19452.26119 | JK23: 20148.68706 | JL23: 20717.49074 | JM23: 21633.26227 | JN23: 21420.22946 | JO23: 19773.06135 | JP23: 19707.62848 | JQ23: 20237.35062 | JR23: 21300.36958 | JS23: 22520.18496 | JT23: 20518.32357 | JU23: 21163.53609 | JV23: 19454.23772 | JW23: 19405.32018 | JX23: 19106.13979 | JY23: 21615.26824 | JZ23: 20586.58561 | KA23: 19659.13687 | KB23: 19747.62522 | KC23: 20435.00429 | KD23: 21708.96294 | KE23: 22018.32764 | KF23: 20338.27185 | KG23: 20883.9034 | KH23: 18773.53163 | KI23: 19451.65167 | KJ23: 19558.41436 | KK23: 21058.36277 | KL23: 20141.59828 | KM23: 20234.84911 | KN23: 19662.51908 | KO23: 19755.72778 | KP23: 21297.29453 | KQ23: 22635.02064 | KR23: 20954.33925 | KS23: 21137.75437 | KT23: 18814.87833 | KU23: 19839.98758 | KV23: 20343.19374 | KW23: 23445.02842 | KX23: 20860.30087 | KY23: 19542.58815 | KZ23: 19720.61066 | LA23: 19847.83058 | LB23: 20828.49482 | LC23: 21463.89185 | LD23: 20794.63506 | LE23: 21429.10149 | LF23: 19902.37786 | LG23: 19690.88872 | LH23: 20216.38532 | LI23: 22201.78925 | LJ23: 21425.56418 | LK23: 20808.25332 | LL23: 19817.63945 | LM23: 20628.8463 | LN23: 21300.51719 | LO23: 23078.32751 | LP23: 19959.31758 | LQ23: 21086.7349 | LR23: 18963.0813 | LS23: 20204.90973 | LT23: 21680.30156 | LU23: 22413.19479 | LV23: 21769.0845 | LW23: 20145.29342 | LX23: 20160.5713 | LY23: 20892.7809 | LZ23: 22150.7595 | MA23: 22589.44683 | MB23: 21272.91573 | MC23: 22044.66645 | MD23: 19918.78708 | ME23: 20070.29715 | MF23: 20323.20219 | MG23: 22165.45327 | MH23: 21970.82713 | MI23: 20653.32964 | MJ23: - | MK23: - | ML23: -
B25: Balance eléctrico mensual Islas Baleares (MWh) | C25: 2006-01-01 | D25: 2006-02-01 | E25: 2006-03-01 | F25: 2006-04-01 | G25: 2006-05-01 | H25: 2006-06-01 | I25: 2006-07-01 | J25: 2006-08-01 | K25: 2006-09-01 | L25: 2006-10-01 | M25: 2006-11-01 | N25: 2006-12-01 | O25: 2007-01-01 | P25: 2007-02-01 | Q25: 2007-03-01 | R25: 2007-04-01 | S25: 2007-05-01 | T25: 2007-06-01 | U25: 2007-07-01 | V25: 2007-08-01 | W25: 2007-09-01 | X25: 2007-10-01 | Y25: 2007-11-01 | Z25: 2007-12-01 | AA25: 2008-01-01 | AB25: 2008-02-01 | AC25: 2008-03-01 | AD25: 2008-04-01 | AE25: 2008-05-01 | AF25: 2008-06-01 | AG25: 2008-07-01 | AH25: 2008-08-01 | AI25: 2008-09-01 | AJ25: 2008-10-01 | AK25: 2008-11-01 | AL25: 2008-12-01 | AM25: 2009-01-01 | AN25: 2009-02-01 | AO25: 2009-03-01 | AP25: 2009-04-01 | AQ25: 2009-05-01 | AR25: 2009-06-01 | AS25: 2009-07-01 | AT25: 2009-08-01 | AU25: 2009-09-01 | AV25: 2009-10-01 | AW25: 2009-11-01 | AX25: 2009-12-01 | AY25: 2010-01-01 | AZ25: 2010-02-01 | BA25: 2010-03-01 | BB25: 2010-04-01 | BC25: 2010-05-01 | BD25: 2010-06-01 | BE25: 2010-07-01 | BF25: 2010-08-01 | BG25: 2010-09-01 | BH25: 2010-10-01 | BI25: 2010-11-01 | BJ25: 2010-12-01 | BK25: 2011-01-01 | BL25: 2011-02-01 | BM25: 2011-03-01 | BN25: 2011-04-01 | BO25: 2011-05-01 | BP25: 2011-06-01 | BQ25: 2011-07-01 | BR25: 2011-08-01 | BS25: 2011-09-01 | BT25: 2011-10-01 | BU25: 2011-11-01 | BV25: 2011-12-01 | BW25: 2012-01-01 | BX25: 2012-02-01 | BY25: 2012-03-01 | BZ25: 2012-04-01 | CA25: 2012-05-01 | CB25: 2012-06-01 | CC25: 2012-07-01 | CD25: 2012-08-01 | CE25: 2012-09-01 | CF25: 2012-10-01 | CG25: 2012-11-01 | CH25: 2012-12-01 | CI25: 2013-01-01 | CJ25: 2013-02-01 | CK25: 2013-03-01 | CL25: 2013-04-01 | CM25: 2013-05-01 | CN25: 2013-06-01 | CO25: 2013-07-01 | CP25: 2013-08-01 | CQ25: 2013-09-01 | CR25: 2013-10-01 | CS25: 2013-11-01 | CT25: 2013-12-01 | CU25: 2014-01-01 | CV25: 2014-02-01 | CW25: 2014-03-01 | CX25: 2014-04-01 | CY25: 2014-05-01 | CZ25: 2014-06-01 | DA25: 2014-07-01 | DB25: 2014-08-01 | DC25: 2014-09-01 | DD25: 2014-10-01 | DE25: 2014-11-01 | DF25: 2014-12-01 | DG25: 2015-01-01 | DH25: 2015-02-01 | DI25: 2015-03-01 | DJ25: 2015-04-01 | DK25: 2015-05-01 | DL25: 2015-06-01 | DM25: 2015-07-01 | DN25: 2015-08-01 | DO25: 2015-09-01 | DP25: 2015-10-01 | DQ25: 2015-11-01 | DR25: 2015-12-01 | DS25: 2016-01-01 | DT25: 2016-02-01 | DU25: 2016-03-01 | DV25: 2016-04-01 | DW25: 2016-05-01 | DX25: 2016-06-01 | DY25: 2016-07-01 | DZ25: 2016-08-01 | EA25: 2016-09-01 | EB25: 2016-10-01 | EC25: 2016-11-01 | ED25: 2016-12-01 | EE25: 2017-01-01 | EF25: 2017-02-01 | EG25: 2017-03-01 | EH25: 2017-04-01 | EI25: 2017-05-01 | EJ25: 2017-06-01 | EK25: 2017-07-01 | EL25: 2017-08-01 | EM25: 2017-09-01 | EN25: 2017-10-01 | EO25: 2017-11-01 | EP25: 2017-12-01 | EQ25: 2018-01-01 | ER25: 2018-02-01 | ES25: 2018-03-01 | ET25: 2018-04-01 | EU25: 2018-05-01 | EV25: 2018-06-01 | EW25: 2018-07-01 | EX25: 2018-08-01 | EY25: 2018-09-01 | EZ25: 2018-10-01 | FA25: 2018-11-01 | FB25: 2018-12-01
B26: Carbón | C26: 281585 | D26: 245804 | E26: 280062 | F26: 239665 | G26: 271836 | H26: 287051 | I26: 292771 | J26: 281322 | K26: 254499 | L26: 177022 | M26: 201042 | N26: 264651 | O26: 253259 | P26: 227525 | Q26: 220374 | R26: 263500 | S26: 228127 | T26: 222675 | U26: 278923 | V26: 292687 | W26: 263412 | X26: 229147 | Y26: 201758 | Z26: 262468 | AA26: 287616 | AB26: 269886 | AC26: 265619 | AD26: 216223 | AE26: 246771 | AF26: 279366 | AG26: 294598 | AH26: 301838 | AI26: 286166 | AJ26: 244583 | AK26: 217953 | AL26: 188207 | AM26: 186398 | AN26: 267602 | AO26: 230164 | AP26: 242090 | AQ26: 270324 | AR26: 291327 | AS26: 298599 | AT26: 307579 | AU26: 259941 | AV26: 281704 | AW26: 254121 | AX26: 280614 | AY26: 288628.964 | AZ26: 253130.437 | BA26: 284143.58 | BB26: 270785.11 | BC26: 229324.108 | BD26: 279046.162 | BE26: 292090 | BF26: 286753.928 | BG26: 285293.825 | BH26: 217296.101 | BI26: 192203.667 | BJ26: 222661.684 | BK26: 271039.094 | BL26: 222552.524 | BM26: 132822.435 | BN26: 193302.215 | BO26: 240528.496 | BP26: 255173.844 | BQ26: 292347.242 | BR26: 285531.248 | BS26: 269841.037 | BT26: 199580.361 | BU26: 166762.404 | BV26: 235503.629 | BW26: 265065.642 | BX26: 219167.12 | BY26: 224145.537 | BZ26: 203970.944 | CA26: 227618.822 | CB26: 243420.854 | CC26: 272060.533 | CD26: 272045.306 | CE26: 234898.145 | CF26: 185552.901 | CG26: 160683.296 | CH26: 173938.137 | CI26: 182299.427 | CJ26: 172762.741 | CK26: 186533.31 | CL26: 175475.452 | CM26: 187896.412 | CN26: 200606.942 | CO26: 246666.415 | CP26: 248251.673 | CQ26: 229416.734 | CR26: 169654.499 | CS26: 168250.633 | CT26: 182826.166 | CU26: 183089.327 | CV26: 150082.495 | CW26: 160255.575 | CX26: 174012.561 | CY26: 194495.332 | CZ26: 206570.047 | DA26: 234612.764 | DB26: 238509.243 | DC26: 227702.616 | DD26: 156195.431 | DE26: 86828.516 | DF26: 175423.819 | DG26: 180751.809 | DH26: 171709.132 | DI26: 173706.216 | DJ26: 70165.726 | DK26: 127697.278 | DL26: 185477.353 | DM26: 218839.822 | DN26: 250939.772 | DO26: 199151.618 | DP26: 82335.692 | DQ26: 101806.757 | DR26: 99101.912 | DS26: 114409.217 | DT26: 99651.174 | DU26: 105038.23 | DV26: 151496.329 | DW26: 197176.087 | DX26: 225485.701 | DY26: 286133.931 | DZ26: 265479.108 | EA26: 256765.626 | EB26: 224344.495 | EC26: 180604.461 | ED26: 196283.612 | EE26: 221058.173 | EF26: 189456.399 | EG26: 177467.581 | EH26: 189508.45 | EI26: 224056.827 | EJ26: 268948.2 | EK26: 273077.908 | EL26: 263831.972 | EM26: 237417.127 | EN26: 196316.934 | EO26: 153252.16 | EP26: 204110.712 | EQ26: 198555.029 | ER26: 192794.934 | ES26: 199821.57 | ET26: 183056.221 | EU26: 185327.823 | EV26: 204879.731 | EW26: 242068.479 | EX26: 257313.11 | EY26: 250630.395 | EZ26: - | FA26: - | FB26: -
B27: Motores diesel | C27: 79209 | D27: 68329 | E27: 70721 | F27: 64718 | G27: 79303 | H27: 85154 | I27: 104210 | J27: 101456 | K27: 93527 | L27: 79792 | M27: 63493 | N27: 74990 | O27: 78135 | P27: 66061 | Q27: 74782 | R27: 71646 | S27: 84385 | T27: 92577 | U27: 102578 | V27: 105250 | W27: 96624 | X27: 79159 | Y27: 73984 | Z27: 80425 | AA27: 80489 | AB27: 70911 | AC27: 75416 | AD27: 72520 | AE27: 86002 | AF27: 96520 | AG27: 116196 | AH27: 118501 | AI27: 98449 | AJ27: 78246 | AK27: 72700 | AL27: 81131 | AM27: 85013 | AN27: 68206 | AO27: 71555 | AP27: 74273 | AQ27: 75820 | AR27: 91793 | AS27: 105509 | AT27: 106425 | AU27: 86067 | AV27: 70751 | AW27: 62004 | AX27: 74409 | AY27: 80487.338 | AZ27: 71127.049 | BA27: 78081.049 | BB27: 70171.272 | BC27: 83167.909 | BD27: 94393.464 | BE27: 113035.62 | BF27: 113945.387 | BG27: 97806.403 | BH27: 76729.221 | BI27: 67045.222 | BJ27: 81630.112 | BK27: 81367.515 | BL27: 64793.348 | BM27: 77198.425 | BN27: 71506.826 | BO27: 83514.44 | BP27: 89601.603 | BQ27: 96223.673 | BR27: 98279.25 | BS27: 81466.531 | BT27: 55485.47 | BU27: 49519.618 | BV27: 74505.665 | BW27: 80432.195 | BX27: 74636.407 | BY27: 73731.098 | BZ27: 72451.394 | CA27: 83641.615 | CB27: 94715.404 | CC27: 104718.624 | CD27: 103888.375 | CE27: 81443.195 | CF27: 61390.207 | CG27: 47298.889 | CH27: 54941.497 | CI27: 58812.649 | CJ27: 52746.378 | CK27: 52141.274 | CL27: 54645.459 | CM27: 67040.168 | CN27: 69555.571 | CO27: 89962.131 | CP27: 86026.616 | CQ27: 65524.44 | CR27: 49664.21 | CS27: 37936.91 | CT27: 54606.176 | CU27: 57672.186 | CV27: 54580.672 | CW27: 38102.189 | CX27: 37100.252 | CY27: 51171.797 | CZ27: 60444.23 | DA27: 69382.616 | DB27: 76557.119 | DC27: 69254.878 | DD27: 50580.255 | DE27: 50997.472 | DF27: 50939.894 | DG27: 56110.774 | DH27: 54025.309 | DI27: 50910.869 | DJ27: 53098.839 | DK27: 63412.131 | DL27: 64532.934 | DM27: 92403.281 | DN27: 83153.923 | DO27: 67317.426 | DP27: 52583.101 | DQ27: 37650.926 | DR27: 49784.458 | DS27: 37783.989 | DT27: 63209.024 | DU27: 77387.698 | DV27: 75097.446 | DW27: 87380.182 | DX27: 92502.951 | DY27: 107271.533 | DZ27: 107253.146 | EA27: 92278.519 | EB27: 88576.097 | EC27: 62148.235 | ED27: 70372 | EE27: 84274.308 | EF27: 70860.632 | EG27: 62289.886 | EH27: 72688.244 | EI27: 87842.728 | EJ27: 96605.957 | EK27: 106657.878 | EL27: 88000.294 | EM27: 42120.804 | EN27: 26871.201 | EO27: 24992.987 | EP27: 32782.641 | EQ27: 35080.182 | ER27: 38969.616 | ES27: 35928.452 | ET27: 37207.235 | EU27: 51279.923 | EV27: 59423.205 | EW27: 82636.36 | EX27: 89525.766 | EY27: 72079.99 | EZ27: - | FA27: - | FB27: -
B28: Turbina de gas | C28: 6947 | D28: 10938 | E28: 22831 | F28: 13569 | G28: 15378 | H28: 29015 | I28: 55976 | J28: 40768 | K28: 31591 | L28: 29413.952 | M28: 18468 | N28: 17160 | O28: 23585 | P28: 20894 | Q28: 20510 | R28: 16976 | S28: 36834 | T28: 31757 | U28: 41358 | V28: 38367 | W28: 21309 | X28: 20978 | Y28: 20783 | Z28: 18090 | AA28: 17521 | AB28: 19944 | AC28: 19984 | AD28: 12615 | AE28: 13376 | AF28: 22615 | AG28: 34364 | AH28: 38299 | AI28: 31566 | AJ28: 20899 | AK28: 19341 | AL28: 21978 | AM28: 18986 | AN28: 20558 | AO28: 19663 | AP28: 12270 | AQ28: 24409 | AR28: 33876 | AS28: 53107 | AT28: 52569 | AU28: 37227 | AV28: 24608 | AW28: 21181 | AX28: 20915 | AY28: 23036.824 | AZ28: 25540.649 | BA28: 22064.977 | BB28: 16837.77 | BC28: 15550.542 | BD28: 20236.732 | BE28: 41379.637 | BF28: 42027.091 | BG28: 26953.492 | BH28: 22516.812 | BI28: 21406.807 | BJ28: 21863.033 | BK28: 16955.983 | BL28: 20867.648 | BM28: 17657.152 | BN28: 13157.877 | BO28: 17049.864 | BP28: 28160.154 | BQ28: 49932.709 | BR28: 59305 | BS28: 47510.294 | BT28: 38894.074 | BU28: 31016.755 | BV28: 10096.861 | BW28: 12675.73 | BX28: 24629.098 | BY28: 14551.031 | BZ28: 7952.314 | CA28: 12662.603 | CB28: 29867.925 | CC28: 42978.014 | CD28: 61551.799 | CE28: 38999.625 | CF28: 34035.131 | CG28: 28853.183 | CH28: 31693.327 | CI28: 30802.12 | CJ28: 33286.273 | CK28: 32332.702 | CL28: 25451.57 | CM28: 32308.272 | CN28: 39630.894 | CO28: 61583.018 | CP28: 68501.819 | CQ28: 57750.919 | CR28: 51097.556 | CS28: 43384.515 | CT28: 38209.33 | CU28: 28626.27 | CV28: 24741.792 | CW28: 43267.237 | CX28: 44385.816 | CY28: 47011.785 | CZ28: 58179.416 | DA28: 76120.493 | DB28: 79659.34 | DC28: 66582.156 | DD28: 52353.144 | DE28: 28059.97 | DF28: 36400.463 | DG28: 36805.256 | DH28: 32863.889 | DI28: 38483.677 | DJ28: 32205.506 | DK28: 43845.551 | DL28: 59050.26 | DM28: 77660.773 | DN28: 80914.687 | DO28: 58314.546 | DP28: 47951.209 | DQ28: 41220.204 | DR28: 37273.741 | DS28: 48057.168 | DT28: 19893.371 | DU28: 13341.967 | DV28: 9026.849 | DW28: 18357.424 | DX28: 33146.463 | DY28: 46712.446 | DZ28: 55467.749 | EA28: 43668.214 | EB28: 18319.132 | EC28: 20382.307 | ED28: 13385.175 | EE28: 13229.322 | EF28: 10726.194 | EG28: 22296.851 | EH28: 14186.651 | EI28: 29491.836 | EJ28: 39728.294 | EK28: 59674.911 | EL28: 82505.828 | EM28: 82010.566 | EN28: 75211.866 | EO28: 62358.717 | EP28: 65103.538 | EQ28: 59852.256 | ER28: 59882.575 | ES28: 61051.561 | ET28: 57191.896 | EU28: 66096.778 | EV28: 77051.413 | EW28: 95847.726 | EX28: 91166.569 | EY28: 75102.128 | EZ28: - | FA28: - | FB28: -
B29: Fuel + Gas | C29: 86156 | D29: 79267 | E29: 93552 | F29: 78287 | G29: 94681 | H29: 114169 | I29: 160186 | J29: 142224 | K29: 125118 | L29: 109205.952 | M29: 81961 | N29: 92150 | O29: 101720 | P29: 86955 | Q29: 95292 | R29: 88622 | S29: 121219 | T29: 124334 | U29: 143936 | V29: 143617 | W29: 117933 | X29: 100137 | Y29: 94767 | Z29: 98515 | AA29: 98010 | AB29: 90855 | AC29: 95400 | AD29: 85135 | AE29: 99378 | AF29: 119135 | AG29: 150560 | AH29: 156800 | AI29: 130015 | AJ29: 99145 | AK29: 92041 | AL29: 103109 | AM29: 103999 | AN29: 88764 | AO29: 91218 | AP29: 86543 | AQ29: 100229 | AR29: 125669 | AS29: 158616 | AT29: 158994 | AU29: 123294 | AV29: 95359 | AW29: 83185 | AX29: 95324 | AY29: 103524.162 | AZ29: 96667.698 | BA29: 100146.026 | BB29: 87009.042 | BC29: 98718.451 | BD29: 114630.196 | BE29: 154415.257 | BF29: 155972.478 | BG29: 124759.895 | BH29: 99246.033 | BI29: 88452.029 | BJ29: 103493.145 | BK29: 98323.498 | BL29: 85660.996 | BM29: 94855.577 | BN29: 84664.703 | BO29: 100564.304 | BP29: 117761.757 | BQ29: 146156.382 | BR29: 157584.25 | BS29: 128976.825 | BT29: 94379.544 | BU29: 80536.373 | BV29: 84602.526 | BW29: 93107.925 | BX29: 99265.505 | BY29: 88282.129 | BZ29: 80403.708 | CA29: 96304.218 | CB29: 124583.329 | CC29: 147696.638 | CD29: 165440.174 | CE29: 120442.82 | CF29: 95425.338 | CG29: 76152.072 | CH29: 86634.824 | CI29: 89614.769 | CJ29: 86032.651 | CK29: 84473.976 | CL29: 80097.029 | CM29: 99348.44 | CN29: 109186.465 | CO29: 151545.149 | CP29: 154528.435 | CQ29: 123275.359 | CR29: 100761.766 | CS29: 81321.425 | CT29: 92815.506 | CU29: 86298.456 | CV29: 79322.464 | CW29: 81369.426 | CX29: 81486.068 | CY29: 98183.582 | CZ29: 118623.646 | DA29: 145503.109 | DB29: 156216.459 | DC29: 135837.034 | DD29: 102933.399 | DE29: 79057.442 | DF29: 87340.357 | DG29: 92916.03 | DH29: 86889.198 | DI29: 89394.546 | DJ29: 85304.345 | DK29: 107257.682 | DL29: 123583.194 | DM29: 170064.054 | DN29: 164068.61 | DO29: 125631.972 | DP29: 100534.31 | DQ29: 78871.13 | DR29: 87058.199 | DS29: 85841.157 | DT29: 83102.395 | DU29: 90729.665 | DV29: 84124.295 | DW29: 105737.606 | DX29: 125649.414 | DY29: 153983.979 | DZ29: 162720.895 | EA29: 135946.733 | EB29: 106895.229 | EC29: 82530.542 | ED29: 83757.175 | EE29: 97503.63 | EF29: 81586.826 | EG29: 84586.737 | EH29: 86874.895 | EI29: 117334.564 | EJ29: 136334.251 | EK29: 166332.789 | EL29: 170506.122 | EM29: 124131.37 | EN29: 102083.067 | EO29: 87351.704 | EP29: 97886.179 | EQ29: 94932.438 | ER29: 98852.191 | ES29: 96980.013 | ET29: 94399.131 | EU29: 117376.701 | EV29: 136474.618 | EW29: 178484.086 | EX29: 180692.335 | EY29: 147182.118 | EZ29: - | FA29: - | FB29: -
B30: Ciclo combinado | C30: 115133 | D30: 112851 | E30: 71802 | F30: 58291 | G30: 79596 | H30: 107515 | I30: 173341 | J30: 167753 | K30: 132665 | L30: 163572 | M30: 80257 | N30: 79139 | O30: 109535 | P30: 97337 | Q30: 133306 | R30: 66630 | S30: 113287 | T30: 174631 | U30: 186393 | V30: 169251 | W30: 141173 | X30: 143962 | Y30: 135271 | Z30: 113219 | AA30: 92464 | AB30: 91614 | AC30: 97252 | AD30: 120602 | AE30: 114746 | AF30: 106773 | AG30: 178739 | AH30: 177899 | AI30: 121342 | AJ30: 111682 | AK30: 111297 | AL30: 199080 | AM30: 206459 | AN30: 81850 | AO30: 132809 | AP30: 89788 | AQ30: 70003 | AR30: 97131 | AS30: 175334 | AT30: 166521 | AU30: 120693 | AV30: 57370 | AW30: 29377 | AX30: 64848 | AY30: 83745.201 | AZ30: 90692.047 | BA30: 69947.986 | BB30: 35630.943 | BC30: 87840.324 | BD30: 61960.638 | BE30: 159205.11 | BF30: 145959.232 | BG30: 74275.329 | BH30: 107178.246 | BI30: 98555.294 | BJ30: 120643.372 | BK30: 86769.994 | BL30: 100990.879 | BM30: 204245.088 | BN30: 87109.23 | BO30: 89290.709 | BP30: 94269.198 | BQ30: 118082.442 | BR30: 151898.381 | BS30: 114823.58 | BT30: 118335.089 | BU30: 95316.159 | BV30: 61977.589 | BW30: 68530.568 | BX30: 134285.899 | BY30: 53424.643 | BZ30: 51297.173 | CA30: 56192.26 | CB30: 94321.538 | CC30: 109975.714 | CD30: 123492.142 | CE30: 46725.381 | CF30: 70381.544 | CG30: 43000.578 | CH30: 34352.272 | CI30: 36854.98 | CJ30: 51128.17 | CK30: 38342.601 | CL30: 25038.955 | CM30: 37992.789 | CN30: 15434.568 | CO30: 35278.08 | CP30: 29391.772 | CQ30: 3171.398 | CR30: 53300.551 | CS30: 34943.772 | CT30: 46453.092 | CU30: 32275.425 | CV30: 44289.522 | CW30: 51621.898 | CX30: 15257.42 | CY30: 32884.425 | CZ30: 15844.592 | DA30: 17515.225 | DB30: 26367.671 | DC30: 15843.344 | DD30: 52801.557 | DE30: 81995.647 | DF30: 32936.394 | DG30: 36581.086 | DH30: 37659.309 | DI30: 37861.843 | DJ30: 110842.199 | DK30: 103123.135 | DL30: 47833.333 | DM30: 79004.589 | DN30: 26112.074 | DO30: 34689.562 | DP30: 122764.639 | DQ30: 75613.285 | DR30: 92601.932 | DS30: 92204.111 | DT30: 107882.426 | DU30: 109644.801 | DV30: 51199.06 | DW30: 18602.155 | DX30: 12211.345 | DY30: 14742.101 | DZ30: 24200.125 | EA30: 26581.525 | EB30: 16362.104 | EC30: 34637.994 | ED30: 26814.348 | EE30: 37633.499 | EF30: 34837.552 | EG30: 31438.682 | EH30: 37314.464 | EI30: 26062.644 | EJ30: 12581.072 | EK30: 35234.932 | EL30: 56051.79 | EM30: 12832.513 | EN30: 40379.856 | EO30: 60508.706 | EP30: 35553.646 | EQ30: 31201.088 | ER30: 48135.34 | ES30: 39439.262 | ET30: 48047.037 | EU30: 45724.514 | EV30: 36755.219 | EW30: 53754.595 | EX30: 62465.704 | EY30: 31104.753 | EZ30: - | FA30: - | FB30: -
B31: Generación auxiliar | C31: 0 | D31: 0 | E31: 0 | F31: 0 | G31: 0 | H31: 0 | I31: 213 | J31: 3531 | K31: 2469 | L31: 1 | M31: 0 | N31: 136.22 | O31: 0 | P31: 0 | Q31: 0 | R31: 0 | S31: 0 | T31: 0 | U31: 2447 | V31: 8618 | W31: 1547 | X31: 0 | Y31: 0 | Z31: 0 | AA31: 0 | AB31: 0 | AC31: 0 | AD31: 0 | AE31: 0 | AF31: 0 | AG31: 2048 | AH31: 2600 | AI31: 1282 | AJ31: 1 | AK31: 0 | AL31: 0 | AM31: 0 | AN31: 0 | AO31: 0 | AP31: 0 | AQ31: 0 | AR31: 0 | AS31: 1489 | AT31: 3042 | AU31: 1037 | AV31: -2 | AW31: 0 | AX31: 0 | AY31: 0 | AZ31: 0 | BA31: 0 | BB31: 0 | BC31: 0 | BD31: 45.686 | BE31: 2619.537 | BF31: 2927.97 | BG31: 1100.336 | BH31: 0.803 | BI31: 0 | BJ31: 0 | BK31: 0 | BL31: 0 | BM31: 0 | BN31: 0 | BO31: 0 | BP31: 1060.802 | BQ31: 2481.41 | BR31: 3645.407 | BS31: 1536.693 | BT31: -2.594 | BU31: 0 | BV31: 0 | BW31: 0 | BX31: 0 | BY31: 0 | BZ31: 0 | CA31: 0 | CB31: 984.39 | CC31: 2564.167 | CD31: 3950.136 | CE31: 1309.72 | CF31: -0.476 | CG31: 0 | CH31: 0 | CI31: 0 | CJ31: 0 | CK31: 0 | CL31: 0 | CM31: -0.398 | CN31: 579.675 | CO31: 2195.384 | CP31: 2895.994 | CQ31: 1089.198 | CR31: 0.002 | CS31: 0 | CT31: 0 | CU31: 0 | CV31: 0 | CW31: 0 | CX31: 0 | CY31: 0 | CZ31: 0 | DA31: 2542.156 | DB31: 3212.201 | DC31: 1940.177 | DD31: -0.44 | DE31: 0 | DF31: 0 | DG31: 0 | DH31: 0 | DI31: 0 | DJ31: 0 | DK31: 0 | DL31: 336.832 | DM31: 3682.482 | DN31: 4194.614 | DO31: 2367.596 | DP31: -3.034 | DQ31: 0 | DR31: 0 | DS31: 0 | DT31: 0 | DU31: 0 | DV31: 0 | DW31: 0 | DX31: 1214.292 | DY31: 2922.406 | DZ31: 3386.491 | EA31: 2143.783 | EB31: 425.847 | EC31: 0 | ED31: 0 | EE31: 0 | EF31: 0 | EG31: 0 | EH31: 0 | EI31: 1338 | EJ31: 1705.877 | EK31: 3128.471 | EL31: 4554.72 | EM31: 2377.349 | EN31: 1642.048 | EO31: 0 | EP31: 0 | EQ31: 0 | ER31: 0 | ES31: 0 | ET31: 0 | EU31: 258.189 | EV31: 1406.851 | EW31: 3408.733 | EX31: 5196.124 | EY31: 2265.332 | EZ31: - | FA31: - | FB31: -
B32: Régimen ordinario | C32: 482874 | D32: 437922 | E32: 445416 | F32: 376243 | G32: 446113 | H32: 508735 | I32: 626511 | J32: 594830 | K32: 514751 | L32: 449800.952 | M32: 363260 | N32: 436076.22 | O32: 464514 | P32: 411817 | Q32: 448972 | R32: 418752 | S32: 462633 | T32: 521640 | U32: 611699 | V32: 614173 | W32: 524065 | X32: 473246 | Y32: 431796 | Z32: 474202 | AA32: 478090 | AB32: 452355 | AC32: 458271 | AD32: 421960 | AE32: 460895 | AF32: 505274 | AG32: 625945 | AH32: 639137 | AI32: 538805 | AJ32: 455411 | AK32: 421291 | AL32: 490396 | AM32: 496856 | AN32: 438216 | AO32: 454191 | AP32: 418421 | AQ32: 440556 | AR32: 514127 | AS32: 634038 | AT32: 636136 | AU32: 504965 | AV32: 434431 | AW32: 366683 | AX32: 440786 | AY32: 475898.327 | AZ32: 440490.182 | BA32: 454237.592 | BB32: 393425.095 | BC32: 415882.883 | BD32: 455682.682 | BE32: 608329.904 | BF32: 591613.608 | BG32: 485429.385 | BH32: 423721.183 | BI32: 379210.99 | BJ32: 446798.201 | BK32: 456132.586 | BL32: 409204.399 | BM32: 431923.1 | BN32: 365076.148 | BO32: 430383.509 | BP32: 468265.601 | BQ32: 559067.476 | BR32: 598659.286 | BS32: 515178.135 | BT32: 412292.4 | BU32: 342614.936 | BV32: 382083.744 | BW32: 426704.135 | BX32: 452718.524 | BY32: 365852.309 | BZ32: 335671.825 | CA32: 380115.3 | CB32: 463310.111 | CC32: 532297.052 | CD32: 564927.758 | CE32: 403376.066 | CF32: 351359.307 | CG32: 279835.946 | CH32: 294925.233 | CI32: 308769.176 | CJ32: 309923.562 | CK32: 309349.887 | CL32: 280611.436 | CM32: 325237.243 | CN32: 325807.65 | CO32: 435685.028 | CP32: 435067.874 | CQ32: 356952.689 | CR32: 323716.818 | CS32: 284515.83 | CT32: 322094.764 | CU32: - | CV32: - | CW32: - | CX32: - | CY32: - | CZ32: - | DA32: - | DB32: - | DC32: - | DD32: - | DE32: - | DF32: - | DG32: - | DH32: - | DI32: - | DJ32: - | DK32: - | DL32: - | DM32: - | DN32: - | DO32: - | DP32: - | DQ32: - | DR32: - | DS32: - | DT32: - | DU32: - | DV32: - | DW32: - | DX32: - | DY32: - | DZ32: - | EA32: - | EB32: - | EC32: - | ED32: - | EE32: - | EF32: - | EG32: - | EH32: - | EI32: - | EJ32: - | EK32: - | EL32: - | EM32: - | EN32: - | EO32: - | EP32: - | EQ32: - | ER32: - | ES32: - | ET32: - | EU32: - | EV32: - | EW32: - | EX32: - | EY32: - | EZ32: - | FA32: - | FB32: -
B33: Eólica | C33: 514.35 | D33: 371.374 | E33: 548.188 | F33: 366.096 | G33: 438.988 | H33: 366.65 | I33: 202.55 | J33: 548.332 | K33: 264.468 | L33: 347.647 | M33: 407.408 | N33: 501.305 | O33: 402 | P33: 480 | Q33: 585 | R33: 246 | S33: 392 | T33: 334 | U33: 358 | V33: 444 | W33: 320 | X33: 541 | Y33: 784 | Z33: 770 | AA33: 415 | AB33: 420 | AC33: 575 | AD33: 741 | AE33: 212 | AF33: 290 | AG33: 272 | AH33: 328 | AI33: 462 | AJ33: 470 | AK33: 620 | AL33: 692 | AM33: 472 | AN33: 688 | AO33: 529 | AP33: 482 | AQ33: 477 | AR33: 383 | AS33: 126 | AT33: 147 | AU33: 346 | AV33: 531 | AW33: 538 | AX33: 824 | AY33: 599 | AZ33: 689 | BA33: 590 | BB33: 377 | BC33: 312 | BD33: 275 | BE33: 322 | BF33: 395 | BG33: 303 | BH33: 477 | BI33: 529 | BJ33: 703 | BK33: 471.577 | BL33: 637.575 | BM33: 627.317 | BN33: 553.497 | BO33: 434.952 | BP33: 359.106 | BQ33: 428.686 | BR33: 330.588 | BS33: 215.447 | BT33: 586.641 | BU33: 548.712 | BV33: 591.817 | BW33: 478.962 | BX33: 1092.041 | BY33: 556.608 | BZ33: 569.577 | CA33: 377.024 | CB33: 358.037 | CC33: 429.751 | CD33: 261.124 | CE33: 665.972 | CF33: 424.183 | CG33: 540.089 | CH33: 751.331 | CI33: 686.511 | CJ33: 673.931 | CK33: 766.675 | CL33: 552.356 | CM33: 439.231 | CN33: 390.755 | CO33: 211.305 | CP33: 355.261 | CQ33: 349.421 | CR33: 476.562 | CS33: 771.94 | CT33: 485.52 | CU33: 586.691 | CV33: 634.687 | CW33: 748.723 | CX33: 441.116 | CY33: 509.305 | CZ33: 341.93 | DA33: 353.502 | DB33: 302.252 | DC33: 236.247 | DD33: 371.446 | DE33: 552.189 | DF33: 761.49 | DG33: 602.192 | DH33: 695.624 | DI33: 580.16 | DJ33: 435.029 | DK33: 636.416 | DL33: 252.534 | DM33: 309.04 | DN33: 230.713 | DO33: 509.121 | DP33: 555.526 | DQ33: 415.115 | DR33: 96.758 | DS33: 530.127 | DT33: 660.824 | DU33: 707.768 | DV33: 665.376 | DW33: 486.435 | DX33: 238.917 | DY33: 471.425 | DZ33: 478.178 | EA33: 222.303 | EB33: 292.355 | EC33: 402.105 | ED33: 260.245 | EE33: 468.562 | EF33: 282.718 | EG33: 227.135 | EH33: 238.206 | EI33: 127.304 | EJ33: 130.101 | EK33: 175.738 | EL33: 171.687 | EM33: 182.989 | EN33: 194.571 | EO33: 342.941 | EP33: 382.324 | EQ33: 252.64 | ER33: 324.012 | ES33: 405.924 | ET33: 282.65 | EU33: 228.893 | EV33: 138.682 | EW33: 139.329 | EX33: 192.208 | EY33: 198.176 | EZ33: - | FA33: - | FB33: -
B34: Solar fotovoltaica | C34: 43.973 | D34: 50.86 | E34: 83.446 | F34: 87.707 | G34: 102.911 | H34: 110.639 | I34: 126.145 | J34: 120.868 | K34: 111.756 | L34: 105.835 | M34: 84.201 | N34: 72.454 | O34: 95 | P34: 122 | Q34: 165 | R34: 156 | S34: 211 | T34: 207 | U34: 226 | V34: 209 | W34: 180 | X34: 139 | Y34: 119 | Z34: 123 | AA34: 134 | AB34: 194 | AC34: 416 | AD34: 664 | AE34: 955 | AF34: 1807 | AG34: 2659 | AH34: 4719 | AI34: 4821 | AJ34: 4337 | AK34: 3391 | AL34: 4283 | AM34: 3838 | AN34: 5190 | AO34: 7556 | AP34: 7099 | AQ34: 8802 | AR34: 9040 | AS34: 8898 | AT34: 8709 | AU34: 6680 | AV34: 6538 | AW34: 5096 | AX34: 3487 | AY34: 3845 | AZ34: 4810 | BA34: 6958 | BB34: 8061 | BC34: 9047 | BD34: 8957 | BE34: 10437 | BF34: 10003 | BG34: 8360 | BH34: 6793 | BI34: 5600 | BJ34: 4886 | BK34: 5358.346 | BL34: 6715.495 | BM34: 8054.262 | BN34: 9942.533 | BO34: 10912.986 | BP34: 10327.227 | BQ34: 10250.508 | BR34: 11566.685 | BS34: 9702.348 | BT34: 8434.606 | BU34: 5035.39 | BV34: 5510.53 | BW34: 6182.936 | BX34: 6955.651 | BY34: 10151.971 | BZ34: 10229.659 | CA34: 12309.453 | CB34: 11697.392 | CC34: 12533.19 | CD34: 12420.079 | CE34: 10872.946 | CF34: 9499.54 | CG34: 6015.916 | CH34: 6724.536 | CI34: 7273.131 | CJ34: 7403.831 | CK34: 11493.687 | CL34: 11208.863 | CM34: 12639.329 | CN34: 13817.142 | CO34: 14315.853 | CP34: 12862.862 | CQ34: 10744.505 | CR34: 8780.527 | CS34: 5601.847 | CT34: 5971.275 | CU34: 5827.915 | CV34: 8461.308 | CW34: 11097.609 | CX34: 12721.366 | CY34: 12506.914 | CZ34: 13246.777 | DA34: 13532.742 | DB34: 12554.948 | DC34: 10351.79 | DD34: 10335.922 | DE34: 6491.343 | DF34: 5637.055 | DG34: 6878.955 | DH34: 7212.557 | DI34: 10110.063 | DJ34: 12578.182 | DK34: 13498.137 | DL34: 13443.677 | DM34: 13857.289 | DN34: 12160.059 | DO34: 9666.642 | DP34: 8931.639 | DQ34: 8007.314 | DR34: 6275.289 | DS34: 7081.305 | DT34: 7539.546 | DU34: 10661.868 | DV34: 11177.264 | DW34: 12590.581 | DX34: 13167.569 | DY34: 13847.847 | DZ34: 13337.502 | EA34: 10357.047 | EB34: 8447.793 | EC34: 6551.461 | ED34: 5747.747 | EE34: 5799.134 | EF34: 7159.338 | EG34: 12164.482 | EH34: 12625.004 | EI34: 13622.494 | EJ34: 13314.391 | EK34: 13296.241 | EL34: 12456.52 | EM34: 10365.357 | EN34: 9718.946 | EO34: 7258.2 | EP34: 5556.832 | EQ34: 7038.017 | ER34: 5329.54 | ES34: 10195.877 | ET34: 11476.928 | EU34: 11838.782 | EV34: 12382.848 | EW34: 13421.057 | EX34: 11261.585 | EY34: 9045.834 | EZ34: - | FA34: - | FB34: -
B35: Térmica renovable/Otras renovables | C35: - | D35: - | E35: - | F35: - | G35: - | H35: - | I35: - | J35: - | K35: - | L35: - | M35: - | N35: - | O35: - | P35: - | Q35: - | R35: - | S35: - | T35: - | U35: - | V35: - | W35: - | X35: - | Y35: - | Z35: - | AA35: - | AB35: - | AC35: - | AD35: - | AE35: - | AF35: - | AG35: - | AH35: - | AI35: - | AJ35: - | AK35: - | AL35: - | AM35: - | AN35: - | AO35: - | AP35: - | AQ35: - | AR35: - | AS35: - | AT35: - | AU35: - | AV35: - | AW35: - | AX35: - | AY35: - | AZ35: - | BA35: - | BB35: - | BC35: - | BD35: - | BE35: - | BF35: - | BG35: - | BH35: - | BI35: - | BJ35: - | BK35: - | BL35: - | BM35: - | BN35: - | BO35: - | BP35: - | BQ35: - | BR35: - | BS35: - | BT35: 8.318 | BU35: 43.209 | BV35: 36.266 | BW35: 44.662 | BX35: 23.314 | BY35: 79.155 | BZ35: 49.38 | CA35: 41.605 | CB35: 39.418 | CC35: 35.753 | CD35: 46.928 | CE35: 53.352 | CF35: 56.861 | CG35: 55.465 | CH35: 43.937 | CI35: 72.702 | CJ35: 47.121 | CK35: 74.637 | CL35: 93.292 | CM35: 0 | CN35: 0 | CO35: 0 | CP35: 0 | CQ35: 0 | CR35: 65.148 | CS35: 60.49 | CT35: 92.303 | CU35: 123.037 | CV35: 171.781 | CW35: 228.412 | CX35: 198.907 | CY35: 261.481 | CZ35: 167.185 | DA35: 88.993 | DB35: 120.734 | DC35: 92.248 | DD35: 132.195 | DE35: 185.213 | DF35: 175.473 | DG35: 229.395 | DH35: 170.763 | DI35: 163.585 | DJ35: 221.163 | DK35: 173 | DL35: 99.679 | DM35: 181.359 | DN35: 108.996 | DO35: 119.236 | DP35: 130.697 | DQ35: 148.003 | DR35: 225.673 | DS35: 176.264 | DT35: 164.962 | DU35: 176.198 | DV35: 152.8 | DW35: 125.882 | DX35: 32.283 | DY35: 35.447 | DZ35: 42.974 | EA35: 33.03 | EB35: 92.938 | EC35: 138.807 | ED35: 138.13 | EE35: 159.457 | EF35: 170.074 | EG35: 104.483 | EH35: 198.49 | EI35: 223.85 | EJ35: 164.332 | EK35: 75.532 | EL35: 73.259 | EM35: 87.362 | EN35: 106.123 | EO35: 126.985 | EP35: 136.794 | EQ35: 219.363 | ER35: 166.24 | ES35: 184.165 | ET35: 130.801 | EU35: 127.68 | EV35: 110.028 | EW35: 57.737 | EX35: 56.852 | EY35: 19.17 | EZ35: - | FA35: - | FB35: -
B36: Térmica no renovable/Cogeneración y resto/Cogeneración | C36: 13134.677 | D36: 11651.766 | E36: 12757.366 | F36: 12126.197 | G36: 9241.101 | H36: 11667.711 | I36: 11282.305 | J36: 11336.8 | K36: 10957.776 | L36: 11996.518 | M36: 10537.391 | N36: 12423.241 | O36: 10231 | P36: 11272 | Q36: 12861 | R36: 12018 | S36: 8170 | T36: 9987 | U36: 8947 | V36: 9642 | W36: 9504 | X36: 1019 | Y36: 8067 | Z36: 12215 | AA36: 11005 | AB36: 12227 | AC36: 12415 | AD36: 11349 | AE36: 11758 | AF36: 11450 | AG36: 11883 | AH36: 11405 | AI36: 10678 | AJ36: 11820 | AK36: 11914 | AL36: 12428 | AM36: 12679 | AN36: 9600 | AO36: 972 | AP36: 11178 | AQ36: 12259 | AR36: 11199 | AS36: 11190 | AT36: 10723 | AU36: 11294 | AV36: 11475 | AW36: 11970 | AX36: 12503 | AY36: 10815 | AZ36: 9246 | BA36: 11253 | BB36: 11204 | BC36: 10903 | BD36: 10391 | BE36: 11522 | BF36: 22957 | BG36: 25904 | BH36: 13766 | BI36: 17545 | BJ36: 20738 | BK36: 940.65 | BL36: 889.088 | BM36: 1029.697 | BN36: 7.338 | BO36: 779.561 | BP36: 646.799 | BQ36: 1456.451 | BR36: 1778.056 | BS36: 1852.463 | BT36: 1702.703 | BU36: 1340.617 | BV36: 910.251 | BW36: 1175.589 | BX36: 2114.07 | BY36: 2721.344 | BZ36: 462.035 | CA36: 2776.594 | CB36: 2547.59 | CC36: 2878.303 | CD36: 2583.626 | CE36: 2739.089 | CF36: 2413.268 | CG36: 1972.799 | CH36: 2112.363 | CI36: 2387.685 | CJ36: 2252.451 | CK36: 2108.623 | CL36: 487.962 | CM36: 2621.27 | CN36: 2600.683 | CO36: 3228.567 | CP36: 2845.348 | CQ36: 2168.719 | CR36: 826.85 | CS36: 1776.366 | CT36: 2416.298 | CU36: 2086.281 | CV36: 1683.588 | CW36: 1810.603 | CX36: 758.587 | CY36: 1364.86 | CZ36: 1651.108 | DA36: 2628.247 | DB36: 2446.642 | DC36: 2744.18 | DD36: 2059.943 | DE36: 2685.139 | DF36: 3303.406 | DG36: 3153.758 | DH36: 2526.708 | DI36: 2771.268 | DJ36: 1697.26 | DK36: 2205.106 | DL36: 1133.425 | DM36: 2921.51 | DN36: 2816.046 | DO36: 2463.793 | DP36: 3139.955 | DQ36: 3259.564 | DR36: 3461.334 | DS36: 3301.81 | DT36: 3209.834 | DU36: 3099.304 | DV36: 3052.671 | DW36: 2121.363 | DX36: 3355.238 | DY36: 2924.667 | DZ36: 2931.331 | EA36: 2901.415 | EB36: 2744.01 | EC36: 2387.464 | ED36: 2672.21 | EE36: 3018.215 | EF36: 3106.099 | EG36: 3515.159 | EH36: 1998.957 | EI36: 2017.168 | EJ36: 2776.925 | EK36: 3059.204 | EL36: 3488.091 | EM36: 3215.986 | EN36: 3349.613 | EO36: 3098.652 | EP36: 3600.165 | EQ36: 3182.987 | ER36: 3083.654 | ES36: 2294.685 | ET36: 1982.166 | EU36: 2578.575 | EV36: 3357.242 | EW36: 3565.564 | EX36: 3515.458 | EY36: 2436.55 | EZ36: - | FA36: - | FB36: -
B37: Residuos no renovables | C37: - | D37: - | E37: - | F37: - | G37: - | H37: - | I37: - | J37: - | K37: - | L37: - | M37: - | N37: - | O37: - | P37: - | Q37: - | R37: - | S37: - | T37: - | U37: - | V37: - | W37: - | X37: - | Y37: - | Z37: - | AA37: - | AB37: - | AC37: - | AD37: - | AE37: - | AF37: - | AG37: - | AH37: - | AI37: - | AJ37: - | AK37: - | AL37: - | AM37: - | AN37: - | AO37: - | AP37: - | AQ37: - | AR37: - | AS37: - | AT37: - | AU37: - | AV37: - | AW37: - | AX37: - | AY37: - | AZ37: - | BA37: - | BB37: - | BC37: - | BD37: - | BE37: - | BF37: - | BG37: - | BH37: - | BI37: - | BJ37: - | BK37: 7179.507 | BL37: 6530.471 | BM37: 6401.907 | BN37: 8918.126 | BO37: 5900.5915 | BP37: 11850.4105 | BQ37: 13051.112 | BR37: 13572.185 | BS37: 13763.906 | BT37: 13074.686 | BU37: 10492.6985 | BV37: 12976.433 | BW37: 10956.6635 | BX37: 8357.7785 | BY37: 9517.905 | BZ37: 9070.161 | CA37: 11143.3815 | CB37: 9830.9385 | CC37: 13487.1705 | CD37: 13161.865 | CE37: 10351.8905 | CF37: 7156.256 | CG37: 7015.447 | CH37: 12740.079 | CI37: 8621.6265 | CJ37: 6081.7205 | CK37: 8029.718 | CL37: 7700.8215 | CM37: 8209.6945 | CN37: 11852.555 | CO37: 10855.8735 | CP37: 11387.2975 | CQ37: 14086.389 | CR37: 9534.9835 | CS37: 7910.633 | CT37: 8795.2825 | CU37: 7939.653 | CV37: 6507.445 | CW37: 9425.1545 | CX37: 11604.4115 | CY37: 5269.725 | CZ37: 13186.8355 | DA37: 14742.679 | DB37: 11272.941 | DC37: 13986.786 | DD37: 14349.8485 | DE37: 8560.699 | DF37: 11238.1515 | DG37: 9163.4615 | DH37: 6908.54 | DI37: 11394.0975 | DJ37: 13639.012 | DK37: 14790.13 | DL37: 13704.3935 | DM37: 12852.9485 | DN37: 12487.333 | DO37: 14777.1275 | DP37: 14664.409 | DQ37: 14317.8935 | DR37: 12398.3835 | DS37: 8564.515 | DT37: 4967.8255 | DU37: 8611.856 | DV37: 12109.9035 | DW37: 14510.119 | DX37: 13617.076 | DY37: 11266.3585 | DZ37: 12685.0265 | EA37: 12613.608 | EB37: 13662.5315 | EC37: 9270.8955 | ED37: 8925.3515 | EE37: 7544.1635 | EF37: 7222.1915 | EG37: 10517.7625 | EH37: 14685.7725 | EI37: 11209.7905 | EJ37: 14046.6855 | EK37: 14055.7905 | EL37: 14325.673 | EM37: 15026.625 | EN37: 13982.9895 | EO37: 11279.2275 | EP37: 9981.9965 | EQ37: 7481.4245 | ER37: 4455.9545 | ES37: 11199.8515 | ET37: 10486.7385 | EU37: 10524.592 | EV37: 14709.1545 | EW37: 14429.119 | EX37: 14961.3625 | EY37: 13453.5695 | EZ37: - | FA37: - | FB37: -
B38: Residuos renovables | C38: - | D38: - | E38: - | F38: - | G38: - | H38: - | I38: - | J38: - | K38: - | L38: - | M38: - | N38: - | O38: - | P38: - | Q38: - | R38: - | S38: - | T38: - | U38: - | V38: - | W38: - | X38: - | Y38: - | Z38: - | AA38: - | AB38: - | AC38: - | AD38: - | AE38: - | AF38: - | AG38: - | AH38: - | AI38: - | AJ38: - | AK38: - | AL38: - | AM38: - | AN38: - | AO38: - | AP38: - | AQ38: - | AR38: - | AS38: - | AT38: - | AU38: - | AV38: - | AW38: - | AX38: - | AY38: - | AZ38: - | BA38: - | BB38: - | BC38: - | BD38: - | BE38: - | BF38: - | BG38: - | BH38: - | BI38: - | BJ38: - | BK38: 7179.507 | BL38: 6530.471 | BM38: 6401.907 | BN38: 8918.126 | BO38: 5900.5915 | BP38: 11850.4105 | BQ38: 13051.112 | BR38: 13572.185 | BS38: 13763.906 | BT38: 13074.686 | BU38: 10492.6985 | BV38: 12976.433 | BW38: 10956.6635 | BX38: 8357.7785 | BY38: 9517.905 | BZ38: 9070.161 | CA38: 11143.3815 | CB38: 9830.9385 | CC38: 13487.1705 | CD38: 13161.865 | CE38: 10351.8905 | CF38: 7156.256 | CG38: 7015.447 | CH38: 12740.079 | CI38: 8621.6265 | CJ38: 6081.7205 | CK38: 8029.718 | CL38: 7700.8215 | CM38: 8209.6945 | CN38: 11852.555 | CO38: 10855.8735 | CP38: 11387.2975 | CQ38: 14086.389 | CR38: 9534.9835 | CS38: 7910.633 | CT38: 8795.2825 | CU38: 7939.653 | CV38: 6507.445 | CW38: 9425.1545 | CX38: 11604.4115 | CY38: 5269.725 | CZ38: 13186.8355 | DA38: 14742.679 | DB38: 11272.941 | DC38: 13986.786 | DD38: 14349.8485 | DE38: 8560.699 | DF38: 11238.1515 | DG38: 9163.4615 | DH38: 6908.54 | DI38: 11394.0975 | DJ38: 13639.012 | DK38: 14790.13 | DL38: 13704.3935 | DM38: 12852.9485 | DN38: 12487.333 | DO38: 14777.1275 | DP38: 14664.409 | DQ38: 14317.8935 | DR38: 12398.3835 | DS38: 8564.515 | DT38: 4967.8255 | DU38: 8611.856 | DV38: 12109.9035 | DW38: 14510.119 | DX38: 13617.076 | DY38: 11266.3585 | DZ38: 12685.0265 | EA38: 12613.608 | EB38: 13662.5315 | EC38: 9270.8955 | ED38: 8925.3515 | EE38: 7544.1635 | EF38: 7222.1915 | EG38: 10517.7625 | EH38: 14685.7725 | EI38: 11209.7905 | EJ38: 14046.6855 | EK38: 14055.7905 | EL38: 14325.673 | EM38: 15026.625 | EN38: 13982.9895 | EO38: 11279.2275 | EP38: 9981.9965 | EQ38: 7481.4245 | ER38: 4455.9545 | ES38: 11199.8515 | ET38: 10486.7385 | EU38: 10524.592 | EV38: 14709.1545 | EW38: 14429.119 | EX38: 14961.3625 | EY38: 13453.5695 | EZ38: - | FA38: - | FB38: -
B39: Régimen especial | C39: 13693 | D39: 12074 | E39: 13389 | F39: 12580 | G39: 9783 | H39: 12145 | I39: 11611 | J39: 12006 | K39: 11334 | L39: 12450 | M39: 11029 | N39: 12997 | O39: 10728 | P39: 11874 | Q39: 13611 | R39: 12420 | S39: 8773 | T39: 10528 | U39: 9531 | V39: 10295 | W39: 10004 | X39: 1699 | Y39: 8970 | Z39: 13108 | AA39: 11554 | AB39: 12841 | AC39: 13406 | AD39: 12754 | AE39: 12925 | AF39: 13547 | AG39: 14814 | AH39: 16452 | AI39: 15961 | AJ39: 16627 | AK39: 15925 | AL39: 17403 | AM39: 16989 | AN39: 15478 | AO39: 9057 | AP39: 18759 | AQ39: 21538 | AR39: 20622 | AS39: 20214 | AT39: 19579 | AU39: 18320 | AV39: 18544 | AW39: 17604 | AX39: 16814 | AY39: 15259 | AZ39: 14745 | BA39: 18801 | BB39: 19642 | BC39: 20262 | BD39: 19623 | BE39: 22281 | BF39: 33355 | BG39: 34567 | BH39: 21036 | BI39: 23674 | BJ39: 26327 | BK39: 21129.587 | BL39: 21303.1 | BM39: 22515.09 | BN39: 28339.62 | BO39: 23928.682 | BP39: 35033.953 | BQ39: 38237.869 | BR39: 40819.699 | BS39: 39298.07 | BT39: 36881.64 | BU39: 27953.325 | BV39: 33001.73 | BW39: 29795.476 | BX39: 26900.633 | BY39: 32544.888 | BZ39: 29450.973 | CA39: 37791.439 | CB39: 34304.314 | CC39: 42851.338 | CD39: 41635.487 | CE39: 35035.14 | CF39: 26706.364 | CG39: 22615.163 | CH39: 35112.325 | CI39: 27663.282 | CJ39: 22540.775 | CK39: 30503.058 | CL39: 27744.116 | CM39: 32119.219 | CN39: 40513.69 | CO39: 39467.472 | CP39: 38838.066 | CQ39: 41435.423 | CR39: 29219.054 | CS39: 24031.909 | CT39: 26555.961 | CU39: - | CV39: - | CW39: - | CX39: - | CY39: - | CZ39: - | DA39: - | DB39: - | DC39: - | DD39: - | DE39: - | DF39: - | DG39: - | DH39: - | DI39: - | DJ39: - | DK39: - | DL39: - | DM39: - | DN39: - | DO39: - | DP39: - | DQ39: - | DR39: - | DS39: - | DT39: - | DU39: - | DV39: - | DW39: - | DX39: - | DY39: - | DZ39: - | EA39: - | EB39: - | EC39: - | ED39: - | EE39: - | EF39: - | EG39: - | EH39: - | EI39: - | EJ39: - | EK39: - | EL39: - | EM39: - | EN39: - | EO39: - | EP39: - | EQ39: - | ER39: - | ES39: - | ET39: - | EU39: - | EV39: - | EW39: - | EX39: - | EY39: - | EZ39: - | FA39: - | FB39: -
B40: Generación | C40: 496567 | D40: 449996 | E40: 458805 | F40: 388823 | G40: 455896 | H40: 520880 | I40: 638122 | J40: 606836 | K40: 526085 | L40: 462250.952 | M40: 374289 | N40: 449073.22 | O40: 475242 | P40: 423691 | Q40: 462583 | R40: 431172 | S40: 471406 | T40: 532168 | U40: 621230 | V40: 624468 | W40: 534069 | X40: 474945 | Y40: 440766 | Z40: 487310 | AA40: 489644 | AB40: 465196 | AC40: 471677 | AD40: 434714 | AE40: 473820 | AF40: 518821 | AG40: 640759 | AH40: 655589 | AI40: 554766 | AJ40: 472038 | AK40: 437216 | AL40: 507799 | AM40: 513845 | AN40: 453694 | AO40: 463248 | AP40: 437180 | AQ40: 462094 | AR40: 534749 | AS40: 654252 | AT40: 655715 | AU40: 523285 | AV40: 452975 | AW40: 384287 | AX40: 457600 | AY40: 491157.327 | AZ40: 455235.182 | BA40: 473038.592 | BB40: 413067.095 | BC40: 436144.883 | BD40: 475305.682 | BE40: 630610.904 | BF40: 624968.608 | BG40: 519996.385 | BH40: 444757.183 | BI40: 402884.99 | BJ40: 473125.201 | BK40: 477262.173 | BL40: 430507.499 | BM40: 454438.19 | BN40: 393415.768 | BO40: 454312.191 | BP40: 503299.554 | BQ40: 597305.345 | BR40: 639478.985 | BS40: 554476.205 | BT40: 449174.04 | BU40: 370568.261 | BV40: 415085.474 | BW40: 456499.611 | BX40: 479619.157 | BY40: 398397.197 | BZ40: 365122.798 | CA40: 417906.739 | CB40: 497614.425 | CC40: 575148.39 | CD40: 606563.245 | CE40: 438411.206 | CF40: 378065.671 | CG40: 302451.109 | CH40: 330037.558 | CI40: 336432.458 | CJ40: 332464.337 | CK40: 339852.945 | CL40: 308355.552 | CM40: 357356.462 | CN40: 366321.34 | CO40: 475152.5 | CP40: 473905.94 | CQ40: 398388.112 | CR40: 352935.872 | CS40: 308547.739 | CT40: 348650.725 | CU40: 326166.438 | CV40: 297660.735 | CW40: 325982.555 | CX40: 308084.848 | CY40: 350745.349 | CZ40: 382818.956 | DA40: 446262.096 | DB40: 462276.032 | DC40: 422721.208 | DD40: 353529.15 | DE40: 274916.887 | DF40: 328054.297 | DG40: 339440.148 | DH40: 320680.371 | DI40: 337375.876 | DJ40: 308521.928 | DK40: 384171.014 | DL40: 399568.814 | DM40: 514566.042 | DN40: 485605.55 | DO40: 404153.795 | DP40: 347718.242 | DQ40: 296756.955 | DR40: 313617.864 | DS40: 320673.021 | DT40: 312146.812 | DU40: 337281.546 | DV40: 326087.602 | DW40: 365860.347 | DX40: 408588.911 | DY40: 497594.52 | DZ40: 497946.657 | EA40: 460178.678 | EB40: 386929.834 | EC40: 325794.625 | ED40: 333524.17 | EE40: 380728.997 | EF40: 331043.389 | EG40: 330539.784 | EH40: 358130.011 | EI40: 407202.432 | EJ40: 464048.52 | EK40: 522492.396 | EL40: 539785.507 | EM40: 420663.303 | EN40: 381757.137 | EO40: 334497.803 | EP40: 367190.645 | EQ40: 350344.411 | ER40: 357597.82 | ES40: 371721.199 | ET40: 360348.411 | EU40: 384510.341 | EV40: 424923.528 | EW40: 523757.818 | EX40: 550616.101 | EY40: 469789.467 | EZ40: - | FA40: - | FB40: -
B41: Enlace Península-Baleares | C41: - | D41: - | E41: - | F41: - | G41: - | H41: - | I41: - | J41: - | K41: - | L41: - | M41: - | N41: - | O41: - | P41: - | Q41: - | R41: - | S41: - | T41: - | U41: - | V41: - | W41: - | X41: - | Y41: - | Z41: - | AA41: - | AB41: - | AC41: - | AD41: - | AE41: - | AF41: - | AG41: - | AH41: - | AI41: - | AJ41: - | AK41: - | AL41: - | AM41: - | AN41: - | AO41: - | AP41: - | AQ41: - | AR41: - | AS41: - | AT41: - | AU41: - | AV41: - | AW41: - | AX41: - | AY41: 0 | AZ41: 0 | BA41: 0 | BB41: 0 | BC41: 0 | BD41: 0 | BE41: 0 | BF41: 0 | BG41: 0 | BH41: 0 | BI41: 0 | BJ41: 0 | BK41: - | BL41: - | BM41: - | BN41: - | BO41: - | BP41: - | BQ41: - | BR41: - | BS41: - | BT41: - | BU41: 0.648 | BV41: 662.601 | BW41: 2996.827 | BX41: 25378.618 | BY41: 36698.443 | BZ41: 35662.767 | CA41: 31625.769 | CB41: 35803.857 | CC41: 36381.227 | CD41: 68014.382 | CE41: 74016.633 | CF41: 70299.274 | CG41: 67437.619 | CH41: 91247.602 | CI41: 108822.873 | CJ41: 90838.239 | CK41: 84296.937 | CL41: 88234.445 | CM41: 83693.952 | CN41: 112811.098 | CO41: 145595.967 | CP41: 157387.881 | CQ41: 113878.526 | CR41: 108856.743 | CS41: 86136.35 | CT41: 87955.589 | CU41: 98644.522 | CV41: 86919.696 | CW41: 88249.651 | CX41: 80404.574 | CY41: 85669.402 | CZ41: 124876.598 | DA41: 153192.168 | DB41: 165071.866 | DC41: 146829.629 | DD41: 101058.58 | DE41: 79551.937 | DF41: 87790.311 | DG41: 110897.596 | DH41: 111884.631 | DI41: 100736.395 | DJ41: 87606.187 | DK41: 65670.472 | DL41: 123291.288 | DM41: 181060.099 | DN41: 170384.126 | DO41: 119558.215 | DP41: 99377.005 | DQ41: 71777.664 | DR41: 93548.866 | DS41: 89213.443 | DT41: 91217.189 | DU41: 111467.448 | DV41: 86955.768 | DW41: 105354.345 | DX41: 124743.759 | DY41: 144841.694 | DZ41: 152538.68 | EA41: 109260.447 | EB41: 90883.771 | EC41: 58978.757 | ED41: 85128.667 | EE41: 96651.403 | EF41: 64562.012 | EG41: 78352.012 | EH41: 57072.946 | EI41: 75027.427 | EJ41: 114233.415 | EK41: 155211.459 | EL41: 166876.245 | EM41: 116104.623 | EN41: 93286.301 | EO41: 70161.934 | EP41: 91766.865 | EQ41: 86203.829 | ER41: 99993.399 | ES41: 89996.875 | ET41: 66467.52 | EU41: 89565.091 | EV41: 108623.635 | EW41: 161791.603 | EX41: 153133.589 | EY41: 107931.268 | EZ41: - | FA41: - | FB41: -
B42: Demanda transporte (b.c.) | C42: 496567 | D42: 449996 | E42: 458805 | F42: 388823 | G42: 455896 | H42: 520880 | I42: 638122 | J42: 606836 | K42: 526085 | L42: 462250.952 | M42: 374289 | N42: 449073.22 | O42: 475242 | P42: 423691 | Q42: 462583 | R42: 431172 | S42: 471406 | T42: 532168 | U42: 621230 | V42: 624468 | W42: 534069 | X42: 474945 | Y42: 440766 | Z42: 487310 | AA42: 489644 | AB42: 465196 | AC42: 471677 | AD42: 434714 | AE42: 473820 | AF42: 518821 | AG42: 640759 | AH42: 655589 | AI42: 554766 | AJ42: 472038 | AK42: 437216 | AL42: 507799 | AM42: 513845 | AN42: 453694 | AO42: 463248 | AP42: 437180 | AQ42: 462094 | AR42: 534749 | AS42: 654252 | AT42: 655715 | AU42: 523285 | AV42: 452975 | AW42: 384287 | AX42: 457600 | AY42: 491157.327 | AZ42: 455235.182 | BA42: 473038.592 | BB42: 413067.095 | BC42: 436144.883 | BD42: 475305.682 | BE42: 630610.904 | BF42: 624968.608 | BG42: 519996.385 | BH42: 444757.183 | BI42: 402884.99 | BJ42: 473125.201 | BK42: 477262.173 | BL42: 430507.499 | BM42: 454438.19 | BN42: 393415.768 | BO42: 454312.191 | BP42: 503299.554 | BQ42: 597305.345 | BR42: 639478.985 | BS42: 554476.205 | BT42: 449174.04 | BU42: 370568.909 | BV42: 415748.075 | BW42: 459496.438 | BX42: 504997.775 | BY42: 435095.64 | BZ42: 400785.565 | CA42: 449532.508 | CB42: 533418.282 | CC42: 611529.617 | CD42: 674577.627 | CE42: 512427.839 | CF42: 448364.945 | CG42: 369888.728 | CH42: 421285.16 | CI42: 445255.331 | CJ42: 423302.576 | CK42: 424149.882 | CL42: 396589.997 | CM42: 441050.414 | CN42: 479132.438 | CO42: 620748.467 | CP42: 631293.821 | CQ42: 512266.638 | CR42: 461792.615 | CS42: 394684.089 | CT42: 436606.314 | CU42: 424810.96 | CV42: 384580.431 | CW42: 414232.206 | CX42: 388489.422 | CY42: 436414.751 | CZ42: 507695.554 | DA42: 599454.264 | DB42: 627347.898 | DC42: 569550.837 | DD42: 454587.73 | DE42: 354468.824 | DF42: 415844.608 | DG42: 450337.744 | DH42: 432565.002 | DI42: 438112.271 | DJ42: 396128.115 | DK42: 449841.486 | DL42: 522860.102 | DM42: 695626.141 | DN42: 655989.676 | DO42: 523712.01 | DP42: 447095.247 | DQ42: 368534.619 | DR42: 407166.73 | DS42: 409886.464 | DT42: 403364.001 | DU42: 448748.994 | DV42: 413043.37 | DW42: 471214.692 | DX42: 533332.67 | DY42: 642436.214 | DZ42: 650485.337 | EA42: 569439.125 | EB42: 477813.605 | EC42: 384773.382 | ED42: 418652.837 | EE42: 477380.4 | EF42: 395605.401 | EG42: 408891.796 | EH42: 415202.957 | EI42: 482229.859 | EJ42: 578281.935 | EK42: 677703.855 | EL42: 706661.752 | EM42: 536767.926 | EN42: 475043.438 | EO42: 404659.737 | EP42: 458957.51 | EQ42: 436548.24 | ER42: 457591.219 | ES42: 461718.074 | ET42: 426815.931 | EU42: 474075.432 | EV42: 533547.163 | EW42: 685549.421 | EX42: 703749.69 | EY42: 577720.735 | EZ42: - | FA42: - | FB42: -
B44: Balance eléctrico mensual Islas Canarias (MWh) | C44: 2006-01-01 | D44: 2006-02-01 | E44: 2006-03-01 | F44: 2006-04-01 | G44: 2006-05-01 | H44: 2006-06-01 | I44: 2006-07-01 | J44: 2006-08-01 | K44: 2006-09-01 | L44: 2006-10-01 | M44: 2006-11-01 | N44: 2006-12-01 | O44: 2007-01-01 | P44: 2007-02-01 | Q44: 2007-03-01 | R44: 2007-04-01 | S44: 2007-05-01 | T44: 2007-06-01 | U44: 2007-07-01 | V44: 2007-08-01 | W44: 2007-09-01 | X44: 2007-10-01 | Y44: 2007-11-01 | Z44: 2007-12-01 | AA44: 2008-01-01 | AB44: 2008-02-01 | AC44: 2008-03-01 | AD44: 2008-04-01 | AE44: 2008-05-01 | AF44: 2008-06-01 | AG44: 2008-07-01 | AH44: 2008-08-01 | AI44: 2008-09-01 | AJ44: 2008-10-01 | AK44: 2008-11-01 | AL44: 2008-12-01 | AM44: 2009-01-01 | AN44: 2009-02-01 | AO44: 2009-03-01 | AP44: 2009-04-01 | AQ44: 2009-05-01 | AR44: 2009-06-01 | AS44: 2009-07-01 | AT44: 2009-08-01 | AU44: 2009-09-01 | AV44: 2009-10-01 | AW44: 2009-11-01 | AX44: 2009-12-01 | AY44: 2010-01-01 | AZ44: 2010-02-01 | BA44: 2010-03-01 | BB44: 2010-04-01 | BC44: 2010-05-01 | BD44: 2010-06-01 | BE44: 2010-07-01 | BF44: 2010-08-01 | BG44: 2010-09-01 | BH44: 2010-10-01 | BI44: 2010-11-01 | BJ44: 2010-12-01 | BK44: 2011-01-01 | BL44: 2011-02-01 | BM44: 2011-03-01 | BN44: 2011-04-01 | BO44: 2011-05-01 | BP44: 2011-06-01 | BQ44: 2011-07-01 | BR44: 2011-08-01 | BS44: 2011-09-01 | BT44: 2011-10-01 | BU44: 2011-11-01 | BV44: 2011-12-01 | BW44: 2012-01-01 | BX44: 2012-02-01 | BY44: 2012-03-01 | BZ44: 2012-04-01 | CA44: 2012-05-01 | CB44: 2012-06-01 | CC44: 2012-07-01 | CD44: 2012-08-01 | CE44: 2012-09-01 | CF44: 2012-10-01 | CG44: 2012-11-01 | CH44: 2012-12-01 | CI44: 2013-01-01 | CJ44: 2013-02-01 | CK44: 2013-03-01 | CL44: 2013-04-01 | CM44: 2013-05-01 | CN44: 2013-06-01 | CO44: 2013-07-01 | CP44: 2013-08-01 | CQ44: 2013-09-01 | CR44: 2013-10-01 | CS44: 2013-11-01 | CT44: 2013-12-01 | CU44: 2014-01-01 | CV44: 2014-02-01 | CW44: 2014-03-01 | CX44: 2014-04-01 | CY44: 2014-05-01 | CZ44: 2014-06-01 | DA44: 2014-07-01 | DB44: 2014-08-01 | DC44: 2014-09-01 | DD44: 2014-10-01 | DE44: 2014-11-01 | DF44: 2014-12-01 | DG44: 2015-01-01 | DH44: 2015-02-01 | DI44: 2015-03-01 | DJ44: 2015-04-01 | DK44: 2015-05-01 | DL44: 2015-06-01 | DM44: 2015-07-01 | DN44: 2015-08-01 | DO44: 2015-09-01 | DP44: 2015-10-01 | DQ44: 2015-11-01 | DR44: 2015-12-01 | DS44: 2016-01-01 | DT44: 2016-02-01 | DU44: 2016-03-01 | DV44: 2016-04-01 | DW44: 2016-05-01 | DX44: 2016-06-01 | DY44: 2016-07-01 | DZ44: 2016-08-01 | EA44: 2016-09-01 | EB44: 2016-10-01 | EC44: 2016-11-01 | ED44: 2016-12-01 | EE44: 2017-01-01 | EF44: 2017-02-01 | EG44: 2017-03-01 | EH44: 2017-04-01 | EI44: 2017-05-01 | EJ44: 2017-06-01 | EK44: 2017-07-01 | EL44: 2017-08-01 | EM44: 2017-09-01 | EN44: 2017-10-01 | EO44: 2017-11-01 | EP44: 2017-12-01 | EQ44: 2018-01-01 | ER44: 2018-02-01 | ES44: 2018-03-01 | ET44: 2018-04-01 | EU44: 2018-05-01 | EV44: 2018-06-01 | EW44: 2018-07-01 | EX44: 2018-08-01 | EY44: 2018-09-01 | EZ44: 2018-10-01 | FA44: 2018-11-01 | FB44: 2018-12-01
B45: Hidráulica | C45: 0 | D45: 0 | E45: 0 | F45: 0 | G45: 0 | H45: 0 | I45: 0 | J45: 0 | K45: 0 | L45: 0 | M45: 0 | N45: 0 | O45: 0 | P45: 0 | Q45: 0 | R45: 0 | S45: 0 | T45: 0 | U45: 0 | V45: 0 | W45: 0 | X45: 0 | Y45: 0 | Z45: 0 | AA45: 0 | AB45: 0 | AC45: 0 | AD45: 0 | AE45: 0 | AF45: 0 | AG45: 0 | AH45: 0 | AI45: 0 | AJ45: 0 | AK45: 0 | AL45: 0 | AM45: 0 | AN45: 0 | AO45: 0 | AP45: 0 | AQ45: 0 | AR45: 0 | AS45: 0 | AT45: 0 | AU45: 0 | AV45: 0 | AW45: 0 | AX45: 0 | AY45: 0 | AZ45: 0 | BA45: 0 | BB45: 0 | BC45: 0 | BD45: 0 | BE45: 0 | BF45: 0 | BG45: 0 | BH45: 0 | BI45: 0 | BJ45: 0 | BK45: -2.003 | BL45: -1.778 | BM45: -1.966 | BN45: -1.821 | BO45: -1.88 | BP45: -1.693 | BQ45: -1.77 | BR45: -1.739 | BS45: -1.659 | BT45: -1.691 | BU45: -1.648 | BV45: -1.507 | BW45: -1.516 | BX45: -1.542 | BY45: -1.99 | BZ45: -1.941 | CA45: -1.997 | CB45: -1.928 | CC45: -1.977 | CD45: -1.946 | CE45: -1.855 | CF45: -1.871 | CG45: -1.784 | CH45: -1.855 | CI45: -1.867 | CJ45: -1.588 | CK45: -1.495 | CL45: -1.446 | CM45: -1.495 | CN45: -1.458 | CO45: -1.484 | CP45: -1.504 | CQ45: -1.453 | CR45: -1.492 | CS45: -1.451 | CT45: -1.488 | CU45: 303.396 | CV45: 274.364 | CW45: 299.433 | CX45: 289.012 | CY45: 298.858 | CZ45: 281.235 | DA45: 306.372 | DB45: 308.505 | DC45: 294.187 | DD45: 270.276 | DE45: 259.646 | DF45: 275.772 | DG45: 302.963 | DH45: 268.974 | DI45: 303.184 | DJ45: 291.012 | DK45: 293.694 | DL45: 294.199 | DM45: 302.025 | DN45: 301.953 | DO45: 294.12 | DP45: 309.281 | DQ45: 299.742 | DR45: 307.246 | DS45: 307.662 | DT45: 280.305 | DU45: 309.428 | DV45: 297.272 | DW45: 306.254 | DX45: 299.061 | DY45: 311.605 | DZ45: 264.923 | EA45: 280.44 | EB45: 269.734 | EC45: 258.593 | ED45: 268.684 | EE45: 262.545 | EF45: 237.11 | EG45: 263.479 | EH45: 260.033 | EI45: 269.847 | EJ45: 270.343 | EK45: 275.071 | EL45: 287.123 | EM45: 267.607 | EN45: 293.598 | EO45: 273.794 | EP45: 311.429 | EQ45: 279.432 | ER45: 34.173 | ES45: 309.527 | ET45: 276.123 | EU45: 308.334 | EV45: 294.482 | EW45: 295.596 | EX45: 307.64 | EY45: 288.399 | EZ45: - | FA45: - | FB45: -
B46: Motores diesel | C46: 165513 | D46: 148359 | E46: 156468 | F46: 143502 | G46: 170858 | H46: 177722 | I46: 176016 | J46: 179233 | K46: 182517 | L46: 179648 | M46: 157979 | N46: 169849 | O46: 187608 | P46: 153155 | Q46: 170227 | R46: 158998 | S46: 161066 | T46: 167755 | U46: 183062 | V46: 178646 | W46: 169801 | X46: 172067 | Y46: 170171 | Z46: 169446 | AA46: 169904 | AB46: 169953 | AC46: 164609 | AD46: 171005 | AE46: 184619 | AF46: 170736 | AG46: 180381 | AH46: 181406 | AI46: 184435 | AJ46: 177595 | AK46: 169810 | AL46: 179313 | AM46: 175499 | AN46: 161432 | AO46: 167927 | AP46: 161723 | AQ46: 174920 | AR46: 177098 | AS46: 181952 | AT46: 183950 | AU46: 185161 | AV46: 193478 | AW46: 183078 | AX46: 194481 | AY46: 187860.426 | AZ46: 166955.349 | BA46: 187977.302 | BB46: 173369.214 | BC46: 162133.906 | BD46: 164800.029 | BE46: 181346.471 | BF46: 198336.867 | BG46: 189919.536 | BH46: 200384.633 | BI46: 184885.126 | BJ46: 185418.913 | BK46: 188315.05 | BL46: 169751.096 | BM46: 187294.711 | BN46: 176784.526 | BO46: 170042.796 | BP46: 179233.324 | BQ46: 187174.4 | BR46: 185609.503 | BS46: 187898.017 | BT46: 178185.008 | BU46: 172824.14 | BV46: 178195.823 | BW46: 179333.071 | BX46: 176674.845 | BY46: 179632.32 | BZ46: 177987.977 | CA46: 179479.825 | CB46: 163739.001 | CC46: 172466.989 | CD46: 197836.149 | CE46: 171862.377 | CF46: 174580.983 | CG46: 163800.891 | CH46: 171048.533 | CI46: 179857.03 | CJ46: 165998.486 | CK46: 179033.259 | CL46: 155919.565 | CM46: 166034.244 | CN46: 161016.578 | CO46: 166449.491 | CP46: 181710.92 | CQ46: 170566.372 | CR46: 179071.353 | CS46: 179218.382 | CT46: 181693.443 | CU46: 181768.586 | CV46: 166356.324 | CW46: 183785.667 | CX46: 173057.852 | CY46: 173462.034 | CZ46: 175271.106 | DA46: 177522.811 | DB46: 192306.311 | DC46: 182600.031 | DD46: 179344.768 | DE46: 165674.377 | DF46: 187048.568 | DG46: 182931.25 | DH46: 167024.787 | DI46: 184985.012 | DJ46: 174671.349 | DK46: 183635.156 | DL46: 162310.734 | DM46: 183941.36 | DN46: 199440.785 | DO46: 197858.969 | DP46: 190752.262 | DQ46: 180923.955 | DR46: 193861.903 | DS46: 190988.363 | DT46: 170676.17 | DU46: 189210.208 | DV46: 178541.473 | DW46: 181497.876 | DX46: 174786.027 | DY46: 195369.475 | DZ46: 199040.712 | EA46: 172366.814 | EB46: 197754.394 | EC46: 184448.639 | ED46: 187621.392 | EE46: 187922.753 | EF46: 166130.771 | EG46: 180374.272 | EH46: 182196.185 | EI46: 187547.679 | EJ46: 177473.776 | EK46: 188916.955 | EL46: 204829.048 | EM46: 190374.362 | EN46: 205566.426 | EO46: 185769.05 | EP46: 185227.498 | EQ46: 184470.955 | ER46: 165518.859 | ES46: 176176.586 | ET46: 171464.6 | EU46: 172148.367 | EV46: 162836.706 | EW46: 173812.749 | EX46: 196430.051 | EY46: 187122.561 | EZ46: - | FA46: - | FB46: -
B47: Turbina de gas | C47: 52857 | D47: 58444 | E47: 91260 | F47: 61071 | G47: 57809 | H47: 75033 | I47: 67196 | J47: 68751 | K47: 76471.12 | L47: 83282 | M47: 74117 | N47: 58140 | O47: 64149 | P47: 63769 | Q47: 68930 | R47: 63759 | S47: 61840 | T47: 50272 | U47: 47789 | V47: 55948 | W47: 62897 | X47: 57361 | Y47: 55111 | Z47: 47645 | AA47: 49303 | AB47: 38729 | AC47: 28799 | AD47: 32804 | AE47: 40343 | AF47: 47105 | AG47: 47074 | AH47: 42237 | AI47: 50914 | AJ47: 36660 | AK47: 29392 | AL47: 30166 | AM47: 34805 | AN47: 21886 | AO47: 30042 | AP47: 11292 | AQ47: 38398 | AR47: 37443 | AS47: 25400 | AT47: 29481 | AU47: 39778.542 | AV47: 31205 | AW47: 25237.512 | AX47: 17204 | AY47: 13491.04 | AZ47: 18753.394 | BA47: 20108.357 | BB47: 13928.882 | BC47: 30855.156 | BD47: 31941.35 | BE47: 29817.828 | BF47: 24986.524 | BG47: 28373.724 | BH47: 46582.515 | BI47: 44841.278 | BJ47: 39601.609 | BK47: 34489.531 | BL47: 37007.345 | BM47: 48972.353 | BN47: 30093.064 | BO47: 33680.946 | BP47: 29140.663 | BQ47: 46058.225 | BR47: 43718.16 | BS47: 56667.764 | BT47: 57329.326 | BU47: 58058.887 | BV47: 53581.664 | BW47: 50750.129 | BX47: 47454.583 | BY47: 51586.403 | BZ47: 44026.641 | CA47: 43712.994 | CB47: 42524.76 | CC47: 41988.754 | CD47: 49475.033 | CE47: 60806.793 | CF47: 64122.081 | CG47: 48281.623 | CH47: 53940.516 | CI47: 34472.491 | CJ47: 28360.381 | CK47: 31584.142 | CL47: 36297.751 | CM47: 25575.27 | CN47: 22272.523 | CO47: 31699.094 | CP47: 33339.911 | CQ47: 28380.671 | CR47: 35606.228 | CS47: 32740.188 | CT47: 28502.143 | CU47: 26245.404 | CV47: 32616.475 | CW47: 19291.74 | CX47: 21075.913 | CY47: 24613.279 | CZ47: 28774.097 | DA47: 25980.511 | DB47: 19410.667 | DC47: 50069.565 | DD47: 36400.24 | DE47: 36561.516 | DF47: 39704.888 | DG47: 27866.816 | DH47: 28545.553 | DI47: 23963.728 | DJ47: 23573.82 | DK47: 36940.271 | DL47: 35205.166 | DM47: 28064.483 | DN47: 25064.772 | DO47: 32474.697 | DP47: 23872.946 | DQ47: 22279.554 | DR47: 19953.465 | DS47: 18430.33 | DT47: 21598.404 | DU47: 18340.244 | DV47: 19063.167 | DW47: 17447.596 | DX47: 14135.015 | DY47: 15590.228 | DZ47: 31233.429 | EA47: 37598.513 | EB47: 27178.258 | EC47: 25777.03 | ED47: 29508.41 | EE47: 31081.89 | EF47: 23292.125 | EG47: 24710.709 | EH47: 18531.559 | EI47: 23627.002 | EJ47: 23084.35 | EK47: 28038.435 | EL47: 28412.152 | EM47: 32016.894 | EN47: 30160.978 | EO47: 25771.56 | EP47: 25553.941 | EQ47: 27249.141 | ER47: 24751.364 | ES47: 19300.776 | ET47: 22020.657 | EU47: 27236.414 | EV47: 24035.203 | EW47: 19071.615 | EX47: 22472.683 | EY47: 28508.218 | EZ47: - | FA47: - | FB47: -
B48: Turbina de vapor | C48: 348359 | D48: 305913 | E48: 351244 | F48: 298246 | G48: 274223 | H48: 249935 | I48: 254565 | J48: 265884 | K48: 284703 | L48: 261074 | M48: 270998 | N48: 264847 | O48: 267716 | P48: 244594 | Q48: 270944 | R48: 295087 | S48: 222900 | T48: 280003 | U48: 253974 | V48: 300035 | W48: 289769 | X48: 297640 | Y48: 280624 | Z48: 303519 | AA48: 325375 | AB48: 311290 | AC48: 288853 | AD48: 271239 | AE48: 285962 | AF48: 228474 | AG48: 273542 | AH48: 273013 | AI48: 285098 | AJ48: 298907 | AK48: 282718 | AL48: 289770 | AM48: 283886 | AN48: 246215 | AO48: 277471 | AP48: 250511 | AQ48: 289749 | AR48: 254556 | AS48: 266775 | AT48: 281781 | AU48: 281193 | AV48: 297557 | AW48: 249395 | AX48: 264539 | AY48: 275233.605 | AZ48: 239085.291 | BA48: 258003.025 | BB48: 233931.054 | BC48: 254626.209 | BD48: 255627.035 | BE48: 246393.45 | BF48: 264783.539 | BG48: 255925.195 | BH48: 219068.06 | BI48: 221691.146 | BJ48: 248219.496 | BK48: 239152.229 | BL48: 224588.283 | BM48: 264588.667 | BN48: 228433.046 | BO48: 220645.816 | BP48: 180364.857 | BQ48: 227369.775 | BR48: 216034.105 | BS48: 207190.398 | BT48: 231889.654 | BU48: 183627.564 | BV48: 210410.723 | BW48: 234435.492 | BX48: 198717.429 | BY48: 226791.145 | BZ48: 204570.229 | CA48: 197795.612 | CB48: 221412.038 | CC48: 236751.367 | CD48: 232960.623 | CE48: 221969.155 | CF48: 235563.599 | CG48: 244573.965 | CH48: 226155.273 | CI48: 194068.794 | CJ48: 194765.835 | CK48: 217694.986 | CL48: 205583.553 | CM48: 195789.121 | CN48: 176122.754 | CO48: 213944.977 | CP48: 213465.726 | CQ48: 203363.681 | CR48: 222809.974 | CS48: 206131.407 | CT48: 220056.191 | CU48: 216697.507 | CV48: 176742.116 | CW48: 150180.23 | CX48: 152334.8 | CY48: 145996.242 | CZ48: 168776.14 | DA48: 183304.363 | DB48: 180445.913 | DC48: 162070.836 | DD48: 169781.14 | DE48: 168773.923 | DF48: 195668.218 | DG48: 202134.491 | DH48: 176199.239 | DI48: 182029.195 | DJ48: 159569.774 | DK48: 150479.185 | DL48: 185133.955 | DM48: 204034.609 | DN48: 206268.151 | DO48: 216741.247 | DP48: 163090.201 | DQ48: 155701.447 | DR48: 221569.073 | DS48: 229357.249 | DT48: 206628.441 | DU48: 219238.82 | DV48: 193721.365 | DW48: 173241.376 | DX48: 204521.105 | DY48: 222425.385 | DZ48: 236303.294 | EA48: 224005.587 | EB48: 208579.202 | EC48: 172038.612 | ED48: 246082.567 | EE48: 210591.342 | EF48: 197528.399 | EG48: 217664.061 | EH48: 240116.471 | EI48: 210579.842 | EJ48: 245173.496 | EK48: 239513.297 | EL48: 236212.208 | EM48: 220949.87 | EN48: 221962.174 | EO48: 208786.586 | EP48: 225266.628 | EQ48: 230384.784 | ER48: 210409.161 | ES48: 195203.052 | ET48: 189558.611 | EU48: 186409.186 | EV48: 200030.849 | EW48: 206693.728 | EX48: 214943.949 | EY48: 188605.344 | EZ48: - | FA48: - | FB48: -
B49: Fuel + Gas | C49: 566729 | D49: 512716 | E49: 598972 | F49: 502819 | G49: 502890 | H49: 502690 | I49: 497777 | J49: 513868 | K49: 543691.12 | L49: 524004 | M49: 503094 | N49: 492836 | O49: 519473 | P49: 461518 | Q49: 510101 | R49: 517844 | S49: 445806 | T49: 498030 | U49: 484825 | V49: 534629 | W49: 522467 | X49: 527068 | Y49: 505906 | Z49: 520610 | AA49: 544582 | AB49: 519972 | AC49: 482261 | AD49: 475048 | AE49: 510924 | AF49: 446315 | AG49: 500997 | AH49: 496656 | AI49: 520447 | AJ49: 513162 | AK49: 481920 | AL49: 499249 | AM49: 494190 | AN49: 429533 | AO49: 475440 | AP49: 423526 | AQ49: 503067 | AR49: 469097 | AS49: 474127 | AT49: 495212 | AU49: 506132.542 | AV49: 522240 | AW49: 457710.512 | AX49: 476224 | AY49: 476585.071 | AZ49: 424794.034 | BA49: 466088.684 | BB49: 421229.15 | BC49: 447615.271 | BD49: 452368.414 | BE49: 457557.749 | BF49: 488106.93 | BG49: 474218.455 | BH49: 466035.208 | BI49: 451417.55 | BJ49: 473240.018 | BK49: 461956.81 | BL49: 431346.724 | BM49: 500855.731 | BN49: 435310.636 | BO49: 424369.558 | BP49: 388738.844 | BQ49: 460602.4 | BR49: 445361.768 | BS49: 451756.179 | BT49: 467403.988 | BU49: 414510.591 | BV49: 442188.21 | BW49: 464518.692 | BX49: 422846.857 | BY49: 458009.868 | BZ49: 426584.847 | CA49: 420988.431 | CB49: 427675.799 | CC49: 451207.11 | CD49: 480271.805 | CE49: 454638.325 | CF49: 474266.663 | CG49: 456656.479 | CH49: 451144.322 | CI49: 408398.315 | CJ49: 389124.702 | CK49: 428312.387 | CL49: 397800.869 | CM49: 387398.635 | CN49: 359411.855 | CO49: 412093.562 | CP49: 428516.557 | CQ49: 402310.724 | CR49: 437487.555 | CS49: 418089.977 | CT49: 430251.777 | CU49: 424711.497 | CV49: 375714.915 | CW49: 353257.637 | CX49: 346468.565 | CY49: 344071.555 | CZ49: 372821.343 | DA49: 386807.685 | DB49: 392162.891 | DC49: 394740.432 | DD49: 385526.148 | DE49: 371009.816 | DF49: 422421.674 | DG49: 412932.557 | DH49: 371769.579 | DI49: 390977.935 | DJ49: 357814.943 | DK49: 371054.612 | DL49: 382649.855 | DM49: 416040.452 | DN49: 430773.708 | DO49: 447074.913 | DP49: 377715.409 | DQ49: 358904.956 | DR49: 435384.441 | DS49: 438775.942 | DT49: 398903.015 | DU49: 426789.272 | DV49: 391326.005 | DW49: 372186.848 | DX49: 393442.147 | DY49: 433385.088 | DZ49: 466577.435 | EA49: 433970.914 | EB49: 433511.854 | EC49: 382264.281 | ED49: 463212.369 | EE49: 429595.985 | EF49: 386951.295 | EG49: 422749.042 | EH49: 440844.215 | EI49: 421754.523 | EJ49: 445731.622 | EK49: 456468.687 | EL49: 469453.408 | EM49: 443341.126 | EN49: 457689.578 | EO49: 420327.196 | EP49: 436048.067 | EQ49: 442104.88 | ER49: 400679.384 | ES49: 390680.414 | ET49: 383043.868 | EU49: 385793.967 | EV49: 386902.758 | EW49: 399578.092 | EX49: 433846.683 | EY49: 404236.123 | EZ49: - | FA49: - | FB49: -
